Workbook

Sheet Généralités
A2: Projet de Territoire du bassin versant de l'Authion
A5: Erreur | B5: Il manque les taux de subventions/co maitrise d'ouvrage
A6: Erreur | B6: Il manque les montants HT/TTC de base
A7: Erreur | B7: Il y a des doublons dans l'établissement des codes
A9: Répartition | B9: Superficie | C9: Agriculteurs
A10: Région CVL | B10: 0.226 | C10: 0.067
A11: Région PDL | B11: 0.774 | C11: 0.933

Sheet ATEau
A8: Enjeu | B8: Objectif stratégiques | C8: Objectifs opérationnels | D8: Secteur/MO | E8: Compartiment | F8: Contrat | G8: Imputation | H8: Année prévisionnelle | I8: Année subv | J8: N° Action | K8: Fiche action | L8: Code action | M8: Code Subvention | N8: Action ATEau | O8: Compléments | P8: Maitre d'ouvrage pressenti | Q8: Co Maitrise d'ouvrage | R8: Autres (tiers) | S8: Priorité | T8: Chef de projet | U8: Montant HT 2026 | V8: Montant HT 2027 | W8: Montant HT 2028 | X8: Montant Total HT | Y8: Montant TTC 2026 | Z8: Montant TTC 2027 | AA8: Montant TTC 2028 | AB8: Montant Total TTC | AC8: Taux Sub AELB | AD8: Montant Sub AELB 2026 | AE8: Montant Sub AELB 2027 | AF8: Montant Sub AELB 2028 | AG8: Montant Sub AELB | AH8: Taux Sub RPDL | AI8: Montant Sub RPDL 2026 | AJ8: Montant Sub RPDL 2027 | AK8: Montant Sub RPDL 2028 | AL8: Montant Sub RPDL | AM8: Taux Sub RCVL | AN8: Montant Sub RCVL 2026 | AO8: Montant Sub RCVL 2027 | AP8: Montant Sub RCVL 2028 | AQ8: Montant Sub RCVL | AR8: Taux Sub CD 37 | AS8: Montant Sub CD 37 2026 | AT8: Montant Sub CD 37 2027 | AU8: Montant Sub CD 37 2028 | AV8: Montant Sub CD 37 | AW8: Taux Sub CD 49 | AX8: Montant Sub CD 49 2026 | AY8: Montant Sub CD 49 2027 | AZ8: Montant Sub CD 49 2028 | BA8: Montant Sub CD 49 | BB8: Taux LIFE | BC8: Montant LIFE 2026 | BD8: Montant LIFE 2027 | BE8: Montant LIFE 2028 | BF8: Montant LIFE | BG8: Taux Sub FPRNM | BH8: Montant Sub FPRNM 2026 | BI8: Montant Sub FPRNM 2027 | BJ8: Montant Sub FPRNM 2028 | BK8: Montant Sub FPRNM | BL8: FCTVA | BM8: Montant FCTVA 2026 | BN8: Montant FCTVA 2027 | BO8: Montant FCTVA 2028 | BP8: Montant FCTVA | BQ8: Taux CO MO | BR8: Montant CO MO 2026 | BS8: Montant CO MO 2027 | BT8: Montant CO MO 2028 | BU8: CO MO | BV8: Taux Tiers | BW8: Tiers 2026 | BX8: Tiers 2027 | BY8: Tiers 2028 | BZ8: Tiers | CA8: Taux MO | CB8: Autofinancement 2026 | CC8: Autofinancement 2027 | CD8: Autofinancement 2028 | CE8: Autofinancement MO
A9: Enjeu_A | B9: A_1 | C9: A10 | D9: AUT | E9: Lit mineur | F9: ATEau | G9: FCT | H9: =IF(CTu[[#This Row],[Montant HT 2026]]>0,"2026",IF(CTu[[#This Row],[Montant HT 2027]]>0,"2027",IF(CTu[[#This Row],[Montant HT 2028]]>0,"2028"))) -> 2027 | J9: 2 | K9: =CONCATENATE(CTu[[#This Row],[Objectifs opérationnels]],"_",VLOOKUP(CTu[[#This Row],[Compartiment]],compartiment[],2,)) -> A10_LMI | L9: =CONCATENATE(CTu[[#This Row],[Objectifs opérationnels]],"_",CTu[[#This Row],[Secteur/MO]],"_",VLOOKUP(CTu[[#This Row],[Compartiment]],compartiment[],2,FALSE),"_",CTu[[#This Row],[N° Action]]) -> A10_AUT_LMI_2 | M9: =IF(CTu[[#This Row],[Année subv]]="","",CONCATENATE(CTu[[#This Row],[Objectifs opérationnels]],"_",CTu[[#This Row],[Secteur/MO]],"_",CTu[[#This Row],[Année subv]],"_",VLOOKUP(CTu[[#This Row],[Compartiment]],compartiment[],2),"_",CTu[[#This Row],[N° Action]])) ->  | N9: Authion - Travaux pour la restauration du Ruisseau de l'Etang Site 4 | O9: ZH en lien avec l'acquisition foncière de Loire Authion - + Mares et ratalutage | P9: SMBAA | S9: 1 | T9: GM | V9: 50000 | X9: =SUM(U9:W9) -> 50000 | Y9: =U9*1.2 -> 0 | Z9: =V9*1.2 -> 60000 | AA9: =W9*1.2 -> 0 | AB9: =SUM(Y9:AA9) -> 60000 | AC9: 0.5 | AD9: =CTu[[#This Row],[Montant TTC 2026]]*CTu[[#This Row],[Taux Sub AELB]] -> 0 | AE9: =CTu[[#This Row],[Montant TTC 2027]]*CTu[[#This Row],[Taux Sub AELB]] -> 30000 | AF9: =CTu[[#This Row],[Montant TTC 2028]]*CTu[[#This Row],[Taux Sub AELB]] -> 0 | AG9: =CTu[[#This Row],[Montant Sub AELB 2026]]+CTu[[#This Row],[Montant Sub AELB 2027]]+CTu[[#This Row],[Montant Sub AELB 2028]] -> 30000 | AH9: 0.3 | AI9: =CTu[[#This Row],[Taux Sub RPDL]]*CTu[[#This Row],[Montant TTC 2026]] -> 0 | AJ9: =CTu[[#This Row],[Taux Sub RPDL]]*CTu[[#This Row],[Montant TTC 2027]] -> 18000 | AK9: =CTu[[#This Row],[Taux Sub RPDL]]*CTu[[#This Row],[Montant TTC 2028]] -> 0 | AL9: =CTu[[#This Row],[Montant Sub RPDL 2026]]+CTu[[#This Row],[Montant Sub RPDL 2027]]+CTu[[#This Row],[Montant Sub RPDL 2028]] -> 18000 | AN9: =CTu[[#This Row],[Taux Sub RCVL]]*CTu[[#This Row],[Montant TTC 2026]] -> 0 | AO9: =CTu[[#This Row],[Taux Sub RCVL]]*CTu[[#This Row],[Montant TTC 2027]] -> 0 | AP9: =CTu[[#This Row],[Taux Sub RCVL]]*CTu[[#This Row],[Montant TTC 2028]] -> 0 | AQ9: =CTu[[#This Row],[Montant Sub RCVL 2026]]+CTu[[#This Row],[Montant Sub RCVL 2027]]+CTu[[#This Row],[Montant Sub RCVL 2028]] -> 0 | AS9: =CTu[[#This Row],[Taux Sub CD 37]]*CTu[[#This Row],[Montant HT 2026]] -> 0 | AT9: =CTu[[#This Row],[Taux Sub CD 37]]*CTu[[#This Row],[Montant HT 2027]] -> 0 | AU9: =CTu[[#This Row],[Taux Sub CD 37]]*CTu[[#This Row],[Montant HT 2028]] -> 0 | AV9: =CTu[[#This Row],[Montant Sub CD 37 2026]]+CTu[[#This Row],[Montant Sub CD 37 2027]]+CTu[[#This Row],[Montant Sub CD 37 2028]] -> 0 | AX9: =CTu[[#This Row],[Taux Sub CD 49]]*CTu[[#This Row],[Montant TTC 2026]] -> 0 | AY9: =CTu[[#This Row],[Taux Sub CD 49]]*CTu[[#This Row],[Montant TTC 2027]] -> 0 | AZ9: =CTu[[#This Row],[Taux Sub CD 49]]*CTu[[#This Row],[Montant TTC 2028]] -> 0 | BA9: =CTu[[#This Row],[Montant Sub CD 49 2026]]+CTu[[#This Row],[Montant Sub CD 49 2027]]+CTu[[#This Row],[Montant Sub CD 49 2028]] -> 0 | BC9: =CTu[[#This Row],[Montant TTC 2026]]*CTu[[#This Row],[Taux LIFE]] -> 0 | BD9: =CTu[[#This Row],[Montant TTC 2027]]*CTu[[#This Row],[Taux LIFE]] -> 0 | BE9: =CTu[[#This Row],[Montant TTC 2028]]*CTu[[#This Row],[Taux LIFE]] -> 0 | BF9: =CTu[[#This Row],[Montant LIFE 2026]]+CTu[[#This Row],[Montant LIFE 2027]]+CTu[[#This Row],[Montant LIFE 2028]] -> 0 | BH9: =CTu[[#This Row],[Taux Sub FPRNM]]*CTu[[#This Row],[Montant HT 2026]] -> 0 | BI9: =CTu[[#This Row],[Taux Sub FPRNM]]*CTu[[#This Row],[Montant HT 2027]] -> 0 | BJ9: =CTu[[#This Row],[Taux Sub FPRNM]]*CTu[[#This Row],[Montant HT 2028]] -> 0 | BK9: =CTu[[#This Row],[Montant Sub FPRNM 2026]]+CTu[[#This Row],[Montant Sub FPRNM 2027]]+CTu[[#This Row],[Montant Sub FPRNM 2028]] -> 0 | BM9: =CTu[[#This Row],[FCTVA]]*CTu[[#This Row],[Montant TTC 2026]] -> 0 | BN9: =CTu[[#This Row],[FCTVA]]*CTu[[#This Row],[Montant TTC 2027]] -> 0 | BO9: =CTu[[#This Row],[FCTVA]]*CTu[[#This Row],[Montant TTC 2028]] -> 0 | BP9: =CTu[[#This Row],[Montant FCTVA 2026]]+CTu[[#This Row],[Montant FCTVA 2027]]+CTu[[#This Row],[Montant FCTVA 2028]] -> 0 | BR9: =CTu[[#This Row],[Taux CO MO]]*CTu[[#This Row],[Montant TTC 2026]] -> 0 | BS9: =CTu[[#This Row],[Taux CO MO]]*CTu[[#This Row],[Montant TTC 2027]] -> 0 | BT9: =CTu[[#This Row],[Taux CO MO]]*CTu[[#This Row],[Montant TTC 2028]] -> 0 | BU9: =CTu[[#This Row],[Montant CO MO 2026]]+CTu[[#This Row],[Montant CO MO 2027]]+CTu[[#This Row],[Montant CO MO 2028]] -> 0 | BW9: =CTu[[#This Row],[Taux Tiers]]*CTu[[#This Row],[Montant TTC 2026]] -> 0 | BX9: =CTu[[#This Row],[Taux Tiers]]*CTu[[#This Row],[Montant TTC 2027]] -> 0 | BY9: =CTu[[#This Row],[Taux Tiers]]*CTu[[#This Row],[Montant TTC 2028]] -> 0 | BZ9: =CTu[[#This Row],[Tiers 2026]]+CTu[[#This Row],[Tiers 2027]]+CTu[[#This Row],[Tiers 2028]] -> 0 | CA9: =100%-CTu[[#This Row],[Taux Sub AELB]]-CTu[[#This Row],[Taux Sub RPDL]]-CTu[[#This Row],[Taux Sub RCVL]]-CTu[[#This Row],[Taux Sub CD 37]]-CTu[[#This Row],[Taux Sub CD 49]]-CTu[[#This Row],[Taux Sub FPRNM]]-CTu[[#This Row],[Taux LIFE]]-CTu[[#This Row],[Taux Tiers]]-CTu[[#This Row],[Taux CO MO]]-CTu[[#This Row],[FCTVA]] -> 0.2 | CB9: =CTu[[#This Row],[Montant TTC 2026]]-(CTu[[#This Row],[Montant Sub AELB 2026]]+CTu[[#This Row],[Montant Sub RPDL 2026]]+CTu[[#This Row],[Montant Sub RCVL 2026]]+CTu[[#This Row],[Montant Sub CD 37 2026]]+CTu[[#This Row],[Montant Sub CD 49 2026]]+CTu[[#This Row],[Montant LIFE 2026]]+CTu[[#This Row],[Montant Sub FPRNM 2026]]+CTu[[#This Row],[Montant FCTVA 2026]]+CTu[[#This Row],[Tiers 2026]]+CTu[[#This Row],[Montant CO MO 2026]]) -> 0 | CC9: =CTu[[#This Row],[Montant TTC 2027]]-(CTu[[#This Row],[Montant Sub AELB 2027]]+CTu[[#This Row],[Montant Sub RPDL 2027]]+CTu[[#This Row],[Montant Sub RCVL 2027]]+CTu[[#This Row],[Montant Sub CD 37 2027]]+CTu[[#This Row],[Montant Sub CD 49 2027]]+CTu[[#This Row],[Montant LIFE 2027]]+CTu[[#This Row],[Montant Sub FPRNM 2027]]+CTu[[#This Row],[Montant FCTVA 2027]]+CTu[[#This Row],[Tiers 2027]]+CTu[[#This Row],[Montant CO MO 2027]]) -> 12000 | CD9: =CTu[[#This Row],[Montant TTC 2028]]-(CTu[[#This Row],[Montant Sub AELB 2028]]+CTu[[#This Row],[Montant Sub RPDL 2028]]+CTu[[#This Row],[Montant Sub RCVL 2028]]+CTu[[#This Row],[Montant Sub CD 37 2028]]+CTu[[#This Row],[Montant Sub CD 49 2028]]+CTu[[#This Row],[Montant LIFE 2028]]+CTu[[#This Row],[Montant Sub FPRNM 2028]]+CTu[[#This Row],[Montant FCTVA 2028]]+CTu[[#This Row],[Tiers 2028]]+CTu[[#This Row],[Montant CO MO 2028]]) -> 0 | CE9: =CTu[[#This Row],[Autofinancement 2026]]+CTu[[#This Row],[Autofinancement 2027]]+CTu[[#This Row],[Autofinancement 2028]] -> 12000
A10: Enjeu_A | B10: A_1 | C10: A10 | D10: AUT | E10: Lit mineur | F10: ATEau | G10: FCT | H10: =IF(CTu[[#This Row],[Montant HT 2026]]>0,"2026",IF(CTu[[#This Row],[Montant HT 2027]]>0,"2027",IF(CTu[[#This Row],[Montant HT 2028]]>0,"2028"))) -> 2028 | J10: 1 | K10: =CONCATENATE(CTu[[#This Row],[Objectifs opérationnels]],"_",VLOOKUP(CTu[[#This Row],[Compartiment]],compartiment[],2,)) -> A10_LMI | L10: =CONCATENATE(CTu[[#This Row],[Objectifs opérationnels]],"_",CTu[[#This Row],[Secteur/MO]],"_",VLOOKUP(CTu[[#This Row],[Compartiment]],compartiment[],2,FALSE),"_",CTu[[#This Row],[N° Action]]) -> A10_AUT_LMI_1 | M10: =IF(CTu[[#This Row],[Année subv]]="","",CONCATENATE(CTu[[#This Row],[Objectifs opérationnels]],"_",CTu[[#This Row],[Secteur/MO]],"_",CTu[[#This Row],[Année subv]],"_",VLOOKUP(CTu[[#This Row],[Compartiment]],compartiment[],2),"_",CTu[[#This Row],[N° Action]])) ->  | N10: Authion - Travaux pour la restauration du Ruisseau de l'Etang Site 1 | O10: Réhaussement du lit mineur - création d'une ZTHA et aménagement de fossés en amont | P10: SMBAA | S10: 1 | T10: GM | W10: 25000 | X10: 25000 | Y10: 0 | Z10: 0 | AA10: 30000 | AB10: 30000 | AC10: 0.5 | AD10: =CTu[[#This Row],[Montant TTC 2026]]*CTu[[#This Row],[Taux Sub AELB]] -> 0 | AE10: =CTu[[#This Row],[Montant TTC 2027]]*CTu[[#This Row],[Taux Sub AELB]] -> 0 | AF10: =CTu[[#This Row],[Montant TTC 2028]]*CTu[[#This Row],[Taux Sub AELB]] -> 15000 | AG10: =CTu[[#This Row],[Montant Sub AELB 2026]]+CTu[[#This Row],[Montant Sub AELB 2027]]+CTu[[#This Row],[Montant Sub AELB 2028]] -> 15000 | AH10: 0.3 | AI10: =CTu[[#This Row],[Taux Sub RPDL]]*CTu[[#This Row],[Montant TTC 2026]] -> 0 | AJ10: =CTu[[#This Row],[Taux Sub RPDL]]*CTu[[#This Row],[Montant TTC 2027]] -> 0 | AK10: =CTu[[#This Row],[Taux Sub RPDL]]*CTu[[#This Row],[Montant TTC 2028]] -> 9000 | AL10: =CTu[[#This Row],[Montant Sub RPDL 2026]]+CTu[[#This Row],[Montant Sub RPDL 2027]]+CTu[[#This Row],[Montant Sub RPDL 2028]] -> 9000 | AN10: =CTu[[#This Row],[Taux Sub RCVL]]*CTu[[#This Row],[Montant TTC 2026]] -> 0 | AO10: =CTu[[#This Row],[Taux Sub RCVL]]*CTu[[#This Row],[Montant TTC 2027]] -> 0 | AP10: =CTu[[#This Row],[Taux Sub RCVL]]*CTu[[#This Row],[Montant TTC 2028]] -> 0 | AQ10: =CTu[[#This Row],[Montant Sub RCVL 2026]]+CTu[[#This Row],[Montant Sub RCVL 2027]]+CTu[[#This Row],[Montant Sub RCVL 2028]] -> 0 | AS10: =CTu[[#This Row],[Taux Sub CD 37]]*CTu[[#This Row],[Montant HT 2026]] -> 0 | AT10: =CTu[[#This Row],[Taux Sub CD 37]]*CTu[[#This Row],[Montant HT 2027]] -> 0 | AU10: =CTu[[#This Row],[Taux Sub CD 37]]*CTu[[#This Row],[Montant HT 2028]] -> 0 | AV10: =CTu[[#This Row],[Montant Sub CD 37 2026]]+CTu[[#This Row],[Montant Sub CD 37 2027]]+CTu[[#This Row],[Montant Sub CD 37 2028]] -> 0 | AX10: =CTu[[#This Row],[Taux Sub CD 49]]*CTu[[#This Row],[Montant TTC 2026]] -> 0 | AY10: =CTu[[#This Row],[Taux Sub CD 49]]*CTu[[#This Row],[Montant TTC 2027]] -> 0 | AZ10: =CTu[[#This Row],[Taux Sub CD 49]]*CTu[[#This Row],[Montant TTC 2028]] -> 0 | BA10: =CTu[[#This Row],[Montant Sub CD 49 2026]]+CTu[[#This Row],[Montant Sub CD 49 2027]]+CTu[[#This Row],[Montant Sub CD 49 2028]] -> 0 | BC10: =CTu[[#This Row],[Montant TTC 2026]]*CTu[[#This Row],[Taux LIFE]] -> 0 | BD10: =CTu[[#This Row],[Montant TTC 2027]]*CTu[[#This Row],[Taux LIFE]] -> 0 | BE10: =CTu[[#This Row],[Montant TTC 2028]]*CTu[[#This Row],[Taux LIFE]] -> 0 | BF10: =CTu[[#This Row],[Montant LIFE 2026]]+CTu[[#This Row],[Montant LIFE 2027]]+CTu[[#This Row],[Montant LIFE 2028]] -> 0 | BH10: =CTu[[#This Row],[Taux Sub FPRNM]]*CTu[[#This Row],[Montant HT 2026]] -> 0 | BI10: =CTu[[#This Row],[Taux Sub FPRNM]]*CTu[[#This Row],[Montant HT 2027]] -> 0 | BJ10: =CTu[[#This Row],[Taux Sub FPRNM]]*CTu[[#This Row],[Montant HT 2028]] -> 0 | BK10: =CTu[[#This Row],[Montant Sub FPRNM 2026]]+CTu[[#This Row],[Montant Sub FPRNM 2027]]+CTu[[#This Row],[Montant Sub FPRNM 2028]] -> 0 | BM10: =CTu[[#This Row],[FCTVA]]*CTu[[#This Row],[Montant TTC 2026]] -> 0 | BN10: =CTu[[#This Row],[FCTVA]]*CTu[[#This Row],[Montant TTC 2027]] -> 0 | BO10: =CTu[[#This Row],[FCTVA]]*CTu[[#This Row],[Montant TTC 2028]] -> 0 | BP10: =CTu[[#This Row],[Montant FCTVA 2026]]+CTu[[#This Row],[Montant FCTVA 2027]]+CTu[[#This Row],[Montant FCTVA 2028]] -> 0 | BR10: =CTu[[#This Row],[Taux CO MO]]*CTu[[#This Row],[Montant TTC 2026]] -> 0 | BS10: =CTu[[#This Row],[Taux CO MO]]*CTu[[#This Row],[Montant TTC 2027]] -> 0 | BT10: =CTu[[#This Row],[Taux CO MO]]*CTu[[#This Row],[Montant TTC 2028]] -> 0 | BU10: =CTu[[#This Row],[Montant CO MO 2026]]+CTu[[#This Row],[Montant CO MO 2027]]+CTu[[#This Row],[Montant CO MO 2028]] -> 0 | BW10: =CTu[[#This Row],[Taux Tiers]]*CTu[[#This Row],[Montant TTC 2026]] -> 0 | BX10: =CTu[[#This Row],[Taux Tiers]]*CTu[[#This Row],[Montant TTC 2027]] -> 0 | BY10: =CTu[[#This Row],[Taux Tiers]]*CTu[[#This Row],[Montant TTC 2028]] -> 0 | BZ10: =CTu[[#This Row],[Tiers 2026]]+CTu[[#This Row],[Tiers 2027]]+CTu[[#This Row],[Tiers 2028]] -> 0 | CA10: =100%-CTu[[#This Row],[Taux Sub AELB]]-CTu[[#This Row],[Taux Sub RPDL]]-CTu[[#This Row],[Taux Sub RCVL]]-CTu[[#This Row],[Taux Sub CD 37]]-CTu[[#This Row],[Taux Sub CD 49]]-CTu[[#This Row],[Taux Sub FPRNM]]-CTu[[#This Row],[Taux LIFE]]-CTu[[#This Row],[Taux Tiers]]-CTu[[#This Row],[Taux CO MO]]-CTu[[#This Row],[FCTVA]] -> 0.2 | CB10: =CTu[[#This Row],[Montant TTC 2026]]-(CTu[[#This Row],[Montant Sub AELB 2026]]+CTu[[#This Row],[Montant Sub RPDL 2026]]+CTu[[#This Row],[Montant Sub RCVL 2026]]+CTu[[#This Row],[Montant Sub CD 37 2026]]+CTu[[#This Row],[Montant Sub CD 49 2026]]+CTu[[#This Row],[Montant LIFE 2026]]+CTu[[#This Row],[Montant Sub FPRNM 2026]]+CTu[[#This Row],[Montant FCTVA 2026]]+CTu[[#This Row],[Tiers 2026]]+CTu[[#This Row],[Montant CO MO 2026]]) -> 0 | CC10: =CTu[[#This Row],[Montant TTC 2027]]-(CTu[[#This Row],[Montant Sub AELB 2027]]+CTu[[#This Row],[Montant Sub RPDL 2027]]+CTu[[#This Row],[Montant Sub RCVL 2027]]+CTu[[#This Row],[Montant Sub CD 37 2027]]+CTu[[#This Row],[Montant Sub CD 49 2027]]+CTu[[#This Row],[Montant LIFE 2027]]+CTu[[#This Row],[Montant Sub FPRNM 2027]]+CTu[[#This Row],[Montant FCTVA 2027]]+CTu[[#This Row],[Tiers 2027]]+CTu[[#This Row],[Montant CO MO 2027]]) -> 0 | CD10: =CTu[[#This Row],[Montant TTC 2028]]-(CTu[[#This Row],[Montant Sub AELB 2028]]+CTu[[#This Row],[Montant Sub RPDL 2028]]+CTu[[#This Row],[Montant Sub RCVL 2028]]+CTu[[#This Row],[Montant Sub CD 37 2028]]+CTu[[#This Row],[Montant Sub CD 49 2028]]+CTu[[#This Row],[Montant LIFE 2028]]+CTu[[#This Row],[Montant Sub FPRNM 2028]]+CTu[[#This Row],[Montant FCTVA 2028]]+CTu[[#This Row],[Tiers 2028]]+CTu[[#This Row],[Montant CO MO 2028]]) -> 6000 | CE10: =CTu[[#This Row],[Autofinancement 2026]]+CTu[[#This Row],[Autofinancement 2027]]+CTu[[#This Row],[Autofinancement 2028]] -> 6000
A11: Enjeu_A | B11: A_1 | C11: A10 | D11: AUT | E11: Lit mineur | F11: ATEau | G11: FCT | H11: =IF(CTu[[#This Row],[Montant HT 2026]]>0,"2026",IF(CTu[[#This Row],[Montant HT 2027]]>0,"2027",IF(CTu[[#This Row],[Montant HT 2028]]>0,"2028"))) -> 2027 | J11: 3 | K11: =CONCATENATE(CTu[[#This Row],[Objectifs opérationnels]],"_",VLOOKUP(CTu[[#This Row],[Compartiment]],compartiment[],2,)) -> A10_LMI | L11: =CONCATENATE(CTu[[#This Row],[Objectifs opérationnels]],"_",CTu[[#This Row],[Secteur/MO]],"_",VLOOKUP(CTu[[#This Row],[Compartiment]],compartiment[],2,FALSE),"_",CTu[[#This Row],[N° Action]]) -> A10_AUT_LMI_3 | M11: =IF(CTu[[#This Row],[Année subv]]="","",CONCATENATE(CTu[[#This Row],[Objectifs opérationnels]],"_",CTu[[#This Row],[Secteur/MO]],"_",CTu[[#This Row],[Année subv]],"_",VLOOKUP(CTu[[#This Row],[Compartiment]],compartiment[],2),"_",CTu[[#This Row],[N° Action]])) ->  | N11: Travaux de restauration de la Boire des Roux - phase 1 | O11: De la confluence avec l'Authion au clapet des Arches | P11: SMBAA | S11: 3 | T11: RC | V11: 283333.3333 | X11: 283333.3333 | Y11: 0 | Z11: 340000 | AA11: 0 | AB11: 340000 | AC11: 0.5 | AD11: =CTu[[#This Row],[Montant TTC 2026]]*CTu[[#This Row],[Taux Sub AELB]] -> 0 | AE11: =CTu[[#This Row],[Montant TTC 2027]]*CTu[[#This Row],[Taux Sub AELB]] -> 170000 | AF11: =CTu[[#This Row],[Montant TTC 2028]]*CTu[[#This Row],[Taux Sub AELB]] -> 0 | AG11: =CTu[[#This Row],[Montant Sub AELB 2026]]+CTu[[#This Row],[Montant Sub AELB 2027]]+CTu[[#This Row],[Montant Sub AELB 2028]] -> 170000 | AH11: 0.3 | AI11: =CTu[[#This Row],[Taux Sub RPDL]]*CTu[[#This Row],[Montant TTC 2026]] -> 0 | AJ11: =CTu[[#This Row],[Taux Sub RPDL]]*CTu[[#This Row],[Montant TTC 2027]] -> 102000 | AK11: =CTu[[#This Row],[Taux Sub RPDL]]*CTu[[#This Row],[Montant TTC 2028]] -> 0 | AL11: =CTu[[#This Row],[Montant Sub RPDL 2026]]+CTu[[#This Row],[Montant Sub RPDL 2027]]+CTu[[#This Row],[Montant Sub RPDL 2028]] -> 102000 | AN11: =CTu[[#This Row],[Taux Sub RCVL]]*CTu[[#This Row],[Montant TTC 2026]] -> 0 | AO11: =CTu[[#This Row],[Taux Sub RCVL]]*CTu[[#This Row],[Montant TTC 2027]] -> 0 | AP11: =CTu[[#This Row],[Taux Sub RCVL]]*CTu[[#This Row],[Montant TTC 2028]] -> 0 | AQ11: =CTu[[#This Row],[Montant Sub RCVL 2026]]+CTu[[#This Row],[Montant Sub RCVL 2027]]+CTu[[#This Row],[Montant Sub RCVL 2028]] -> 0 | AS11: =CTu[[#This Row],[Taux Sub CD 37]]*CTu[[#This Row],[Montant HT 2026]] -> 0 | AT11: =CTu[[#This Row],[Taux Sub CD 37]]*CTu[[#This Row],[Montant HT 2027]] -> 0 | AU11: =CTu[[#This Row],[Taux Sub CD 37]]*CTu[[#This Row],[Montant HT 2028]] -> 0 | AV11: =CTu[[#This Row],[Montant Sub CD 37 2026]]+CTu[[#This Row],[Montant Sub CD 37 2027]]+CTu[[#This Row],[Montant Sub CD 37 2028]] -> 0 | AX11: =CTu[[#This Row],[Taux Sub CD 49]]*CTu[[#This Row],[Montant TTC 2026]] -> 0 | AY11: =CTu[[#This Row],[Taux Sub CD 49]]*CTu[[#This Row],[Montant TTC 2027]] -> 0 | AZ11: =CTu[[#This Row],[Taux Sub CD 49]]*CTu[[#This Row],[Montant TTC 2028]] -> 0 | BA11: =CTu[[#This Row],[Montant Sub CD 49 2026]]+CTu[[#This Row],[Montant Sub CD 49 2027]]+CTu[[#This Row],[Montant Sub CD 49 2028]] -> 0 | BC11: =CTu[[#This Row],[Montant TTC 2026]]*CTu[[#This Row],[Taux LIFE]] -> 0 | BD11: =CTu[[#This Row],[Montant TTC 2027]]*CTu[[#This Row],[Taux LIFE]] -> 0 | BE11: =CTu[[#This Row],[Montant TTC 2028]]*CTu[[#This Row],[Taux LIFE]] -> 0 | BF11: =CTu[[#This Row],[Montant LIFE 2026]]+CTu[[#This Row],[Montant LIFE 2027]]+CTu[[#This Row],[Montant LIFE 2028]] -> 0 | BH11: =CTu[[#This Row],[Taux Sub FPRNM]]*CTu[[#This Row],[Montant HT 2026]] -> 0 | BI11: =CTu[[#This Row],[Taux Sub FPRNM]]*CTu[[#This Row],[Montant HT 2027]] -> 0 | BJ11: =CTu[[#This Row],[Taux Sub FPRNM]]*CTu[[#This Row],[Montant HT 2028]] -> 0 | BK11: =CTu[[#This Row],[Montant Sub FPRNM 2026]]+CTu[[#This Row],[Montant Sub FPRNM 2027]]+CTu[[#This Row],[Montant Sub FPRNM 2028]] -> 0 | BM11: =CTu[[#This Row],[FCTVA]]*CTu[[#This Row],[Montant TTC 2026]] -> 0 | BN11: =CTu[[#This Row],[FCTVA]]*CTu[[#This Row],[Montant TTC 2027]] -> 0 | BO11: =CTu[[#This Row],[FCTVA]]*CTu[[#This Row],[Montant TTC 2028]] -> 0 | BP11: =CTu[[#This Row],[Montant FCTVA 2026]]+CTu[[#This Row],[Montant FCTVA 2027]]+CTu[[#This Row],[Montant FCTVA 2028]] -> 0 | BR11: =CTu[[#This Row],[Taux CO MO]]*CTu[[#This Row],[Montant TTC 2026]] -> 0 | BS11: =CTu[[#This Row],[Taux CO MO]]*CTu[[#This Row],[Montant TTC 2027]] -> 0 | BT11: =CTu[[#This Row],[Taux CO MO]]*CTu[[#This Row],[Montant TTC 2028]] -> 0 | BU11: =CTu[[#This Row],[Montant CO MO 2026]]+CTu[[#This Row],[Montant CO MO 2027]]+CTu[[#This Row],[Montant CO MO 2028]] -> 0 | BW11: =CTu[[#This Row],[Taux Tiers]]*CTu[[#This Row],[Montant TTC 2026]] -> 0 | BX11: =CTu[[#This Row],[Taux Tiers]]*CTu[[#This Row],[Montant TTC 2027]] -> 0 | BY11: =CTu[[#This Row],[Taux Tiers]]*CTu[[#This Row],[Montant TTC 2028]] -> 0 | BZ11: =CTu[[#This Row],[Tiers 2026]]+CTu[[#This Row],[Tiers 2027]]+CTu[[#This Row],[Tiers 2028]] -> 0 | CA11: =100%-CTu[[#This Row],[Taux Sub AELB]]-CTu[[#This Row],[Taux Sub RPDL]]-CTu[[#This Row],[Taux Sub RCVL]]-CTu[[#This Row],[Taux Sub CD 37]]-CTu[[#This Row],[Taux Sub CD 49]]-CTu[[#This Row],[Taux Sub FPRNM]]-CTu[[#This Row],[Taux LIFE]]-CTu[[#This Row],[Taux Tiers]]-CTu[[#This Row],[Taux CO MO]]-CTu[[#This Row],[FCTVA]] -> 0.2 | CB11: =CTu[[#This Row],[Montant TTC 2026]]-(CTu[[#This Row],[Montant Sub AELB 2026]]+CTu[[#This Row],[Montant Sub RPDL 2026]]+CTu[[#This Row],[Montant Sub RCVL 2026]]+CTu[[#This Row],[Montant Sub CD 37 2026]]+CTu[[#This Row],[Montant Sub CD 49 2026]]+CTu[[#This Row],[Montant LIFE 2026]]+CTu[[#This Row],[Montant Sub FPRNM 2026]]+CTu[[#This Row],[Montant FCTVA 2026]]+CTu[[#This Row],[Tiers 2026]]+CTu[[#This Row],[Montant CO MO 2026]]) -> 0 | CC11: =CTu[[#This Row],[Montant TTC 2027]]-(CTu[[#This Row],[Montant Sub AELB 2027]]+CTu[[#This Row],[Montant Sub RPDL 2027]]+CTu[[#This Row],[Montant Sub RCVL 2027]]+CTu[[#This Row],[Montant Sub CD 37 2027]]+CTu[[#This Row],[Montant Sub CD 49 2027]]+CTu[[#This Row],[Montant LIFE 2027]]+CTu[[#This Row],[Montant Sub FPRNM 2027]]+CTu[[#This Row],[Montant FCTVA 2027]]+CTu[[#This Row],[Tiers 2027]]+CTu[[#This Row],[Montant CO MO 2027]]) -> 68000 | CD11: =CTu[[#This Row],[Montant TTC 2028]]-(CTu[[#This Row],[Montant Sub AELB 2028]]+CTu[[#This Row],[Montant Sub RPDL 2028]]+CTu[[#This Row],[Montant Sub RCVL 2028]]+CTu[[#This Row],[Montant Sub CD 37 2028]]+CTu[[#This Row],[Montant Sub CD 49 2028]]+CTu[[#This Row],[Montant LIFE 2028]]+CTu[[#This Row],[Montant Sub FPRNM 2028]]+CTu[[#This Row],[Montant FCTVA 2028]]+CTu[[#This Row],[Tiers 2028]]+CTu[[#This Row],[Montant CO MO 2028]]) -> 0 | CE11: =CTu[[#This Row],[Autofinancement 2026]]+CTu[[#This Row],[Autofinancement 2027]]+CTu[[#This Row],[Autofinancement 2028]] -> 68000
A12: Enjeu_A | B12: A_1 | C12: A10 | D12: AUT | E12: Lit mineur | F12: ATEau | G12: FCT | H12: =IF(CTu[[#This Row],[Montant HT 2026]]>0,"2026",IF(CTu[[#This Row],[Montant HT 2027]]>0,"2027",IF(CTu[[#This Row],[Montant HT 2028]]>0,"2028"))) -> 2028 | J12: 4 | K12: =CONCATENATE(CTu[[#This Row],[Objectifs opérationnels]],"_",VLOOKUP(CTu[[#This Row],[Compartiment]],compartiment[],2,)) -> A10_LMI | L12: =CONCATENATE(CTu[[#This Row],[Objectifs opérationnels]],"_",CTu[[#This Row],[Secteur/MO]],"_",VLOOKUP(CTu[[#This Row],[Compartiment]],compartiment[],2,FALSE),"_",CTu[[#This Row],[N° Action]]) -> A10_AUT_LMI_4 | M12: =IF(CTu[[#This Row],[Année subv]]="","",CONCATENATE(CTu[[#This Row],[Objectifs opérationnels]],"_",CTu[[#This Row],[Secteur/MO]],"_",CTu[[#This Row],[Année subv]],"_",VLOOKUP(CTu[[#This Row],[Compartiment]],compartiment[],2),"_",CTu[[#This Row],[N° Action]])) ->  | N12: Travaux de restauration de la Boire des Roux - phase 2 | O12: De la RD à la diffluence des deux bras | P12: SMBAA | S12: 3 | T12: RC | W12: 283333.3333 | X12: 283333.3333 | Y12: 0 | Z12: 0 | AA12: 340000 | AB12: 340000 | AC12: 0.5 | AD12: =CTu[[#This Row],[Montant TTC 2026]]*CTu[[#This Row],[Taux Sub AELB]] -> 0 | AE12: =CTu[[#This Row],[Montant TTC 2027]]*CTu[[#This Row],[Taux Sub AELB]] -> 0 | AF12: =CTu[[#This Row],[Montant TTC 2028]]*CTu[[#This Row],[Taux Sub AELB]] -> 170000 | AG12: =CTu[[#This Row],[Montant Sub AELB 2026]]+CTu[[#This Row],[Montant Sub AELB 2027]]+CTu[[#This Row],[Montant Sub AELB 2028]] -> 170000 | AH12: 0.3 | AI12: =CTu[[#This Row],[Taux Sub RPDL]]*CTu[[#This Row],[Montant TTC 2026]] -> 0 | AJ12: =CTu[[#This Row],[Taux Sub RPDL]]*CTu[[#This Row],[Montant TTC 2027]] -> 0 | AK12: =CTu[[#This Row],[Taux Sub RPDL]]*CTu[[#This Row],[Montant TTC 2028]] -> 102000 | AL12: =CTu[[#This Row],[Montant Sub RPDL 2026]]+CTu[[#This Row],[Montant Sub RPDL 2027]]+CTu[[#This Row],[Montant Sub RPDL 2028]] -> 102000 | AN12: =CTu[[#This Row],[Taux Sub RCVL]]*CTu[[#This Row],[Montant TTC 2026]] -> 0 | AO12: =CTu[[#This Row],[Taux Sub RCVL]]*CTu[[#This Row],[Montant TTC 2027]] -> 0 | AP12: =CTu[[#This Row],[Taux Sub RCVL]]*CTu[[#This Row],[Montant TTC 2028]] -> 0 | AQ12: =CTu[[#This Row],[Montant Sub RCVL 2026]]+CTu[[#This Row],[Montant Sub RCVL 2027]]+CTu[[#This Row],[Montant Sub RCVL 2028]] -> 0 | AS12: =CTu[[#This Row],[Taux Sub CD 37]]*CTu[[#This Row],[Montant HT 2026]] -> 0 | AT12: =CTu[[#This Row],[Taux Sub CD 37]]*CTu[[#This Row],[Montant HT 2027]] -> 0 | AU12: =CTu[[#This Row],[Taux Sub CD 37]]*CTu[[#This Row],[Montant HT 2028]] -> 0 | AV12: =CTu[[#This Row],[Montant Sub CD 37 2026]]+CTu[[#This Row],[Montant Sub CD 37 2027]]+CTu[[#This Row],[Montant Sub CD 37 2028]] -> 0 | AX12: =CTu[[#This Row],[Taux Sub CD 49]]*CTu[[#This Row],[Montant TTC 2026]] -> 0 | AY12: =CTu[[#This Row],[Taux Sub CD 49]]*CTu[[#This Row],[Montant TTC 2027]] -> 0 | AZ12: =CTu[[#This Row],[Taux Sub CD 49]]*CTu[[#This Row],[Montant TTC 2028]] -> 0 | BA12: =CTu[[#This Row],[Montant Sub CD 49 2026]]+CTu[[#This Row],[Montant Sub CD 49 2027]]+CTu[[#This Row],[Montant Sub CD 49 2028]] -> 0 | BC12: =CTu[[#This Row],[Montant TTC 2026]]*CTu[[#This Row],[Taux LIFE]] -> 0 | BD12: =CTu[[#This Row],[Montant TTC 2027]]*CTu[[#This Row],[Taux LIFE]] -> 0 | BE12: =CTu[[#This Row],[Montant TTC 2028]]*CTu[[#This Row],[Taux LIFE]] -> 0 | BF12: =CTu[[#This Row],[Montant LIFE 2026]]+CTu[[#This Row],[Montant LIFE 2027]]+CTu[[#This Row],[Montant LIFE 2028]] -> 0 | BH12: =CTu[[#This Row],[Taux Sub FPRNM]]*CTu[[#This Row],[Montant HT 2026]] -> 0 | BI12: =CTu[[#This Row],[Taux Sub FPRNM]]*CTu[[#This Row],[Montant HT 2027]] -> 0 | BJ12: =CTu[[#This Row],[Taux Sub FPRNM]]*CTu[[#This Row],[Montant HT 2028]] -> 0 | BK12: =CTu[[#This Row],[Montant Sub FPRNM 2026]]+CTu[[#This Row],[Montant Sub FPRNM 2027]]+CTu[[#This Row],[Montant Sub FPRNM 2028]] -> 0 | BM12: =CTu[[#This Row],[FCTVA]]*CTu[[#This Row],[Montant TTC 2026]] -> 0 | BN12: =CTu[[#This Row],[FCTVA]]*CTu[[#This Row],[Montant TTC 2027]] -> 0 | BO12: =CTu[[#This Row],[FCTVA]]*CTu[[#This Row],[Montant TTC 2028]] -> 0 | BP12: =CTu[[#This Row],[Montant FCTVA 2026]]+CTu[[#This Row],[Montant FCTVA 2027]]+CTu[[#This Row],[Montant FCTVA 2028]] -> 0 | BR12: =CTu[[#This Row],[Taux CO MO]]*CTu[[#This Row],[Montant TTC 2026]] -> 0 | BS12: =CTu[[#This Row],[Taux CO MO]]*CTu[[#This Row],[Montant TTC 2027]] -> 0 | BT12: =CTu[[#This Row],[Taux CO MO]]*CTu[[#This Row],[Montant TTC 2028]] -> 0 | BU12: =CTu[[#This Row],[Montant CO MO 2026]]+CTu[[#This Row],[Montant CO MO 2027]]+CTu[[#This Row],[Montant CO MO 2028]] -> 0 | BW12: =CTu[[#This Row],[Taux Tiers]]*CTu[[#This Row],[Montant TTC 2026]] -> 0 | BX12: =CTu[[#This Row],[Taux Tiers]]*CTu[[#This Row],[Montant TTC 2027]] -> 0 | BY12: =CTu[[#This Row],[Taux Tiers]]*CTu[[#This Row],[Montant TTC 2028]] -> 0 | BZ12: =CTu[[#This Row],[Tiers 2026]]+CTu[[#This Row],[Tiers 2027]]+CTu[[#This Row],[Tiers 2028]] -> 0 | CA12: =100%-CTu[[#This Row],[Taux Sub AELB]]-CTu[[#This Row],[Taux Sub RPDL]]-CTu[[#This Row],[Taux Sub RCVL]]-CTu[[#This Row],[Taux Sub CD 37]]-CTu[[#This Row],[Taux Sub CD 49]]-CTu[[#This Row],[Taux Sub FPRNM]]-CTu[[#This Row],[Taux LIFE]]-CTu[[#This Row],[Taux Tiers]]-CTu[[#This Row],[Taux CO MO]]-CTu[[#This Row],[FCTVA]] -> 0.2 | CB12: =CTu[[#This Row],[Montant TTC 2026]]-(CTu[[#This Row],[Montant Sub AELB 2026]]+CTu[[#This Row],[Montant Sub RPDL 2026]]+CTu[[#This Row],[Montant Sub RCVL 2026]]+CTu[[#This Row],[Montant Sub CD 37 2026]]+CTu[[#This Row],[Montant Sub CD 49 2026]]+CTu[[#This Row],[Montant LIFE 2026]]+CTu[[#This Row],[Montant Sub FPRNM 2026]]+CTu[[#This Row],[Montant FCTVA 2026]]+CTu[[#This Row],[Tiers 2026]]+CTu[[#This Row],[Montant CO MO 2026]]) -> 0 | CC12: =CTu[[#This Row],[Montant TTC 2027]]-(CTu[[#This Row],[Montant Sub AELB 2027]]+CTu[[#This Row],[Montant Sub RPDL 2027]]+CTu[[#This Row],[Montant Sub RCVL 2027]]+CTu[[#This Row],[Montant Sub CD 37 2027]]+CTu[[#This Row],[Montant Sub CD 49 2027]]+CTu[[#This Row],[Montant LIFE 2027]]+CTu[[#This Row],[Montant Sub FPRNM 2027]]+CTu[[#This Row],[Montant FCTVA 2027]]+CTu[[#This Row],[Tiers 2027]]+CTu[[#This Row],[Montant CO MO 2027]]) -> 0 | CD12: =CTu[[#This Row],[Montant TTC 2028]]-(CTu[[#This Row],[Montant Sub AELB 2028]]+CTu[[#This Row],[Montant Sub RPDL 2028]]+CTu[[#This Row],[Montant Sub RCVL 2028]]+CTu[[#This Row],[Montant Sub CD 37 2028]]+CTu[[#This Row],[Montant Sub CD 49 2028]]+CTu[[#This Row],[Montant LIFE 2028]]+CTu[[#This Row],[Montant Sub FPRNM 2028]]+CTu[[#This Row],[Montant FCTVA 2028]]+CTu[[#This Row],[Tiers 2028]]+CTu[[#This Row],[Montant CO MO 2028]]) -> 68000 | CE12: =CTu[[#This Row],[Autofinancement 2026]]+CTu[[#This Row],[Autofinancement 2027]]+CTu[[#This Row],[Autofinancement 2028]] -> 68000
A13: Enjeu_A | B13: A_1 | C13: A10 | D13: BV | E13: Étude | F13: ATEau | G13: FCT | H13: =IF(CTu[[#This Row],[Montant HT 2026]]>0,"2026",IF(CTu[[#This Row],[Montant HT 2027]]>0,"2027",IF(CTu[[#This Row],[Montant HT 2028]]>0,"2028"))) -> 2026 | J13: 1 | K13: =CONCATENATE(CTu[[#This Row],[Objectifs opérationnels]],"_",VLOOKUP(CTu[[#This Row],[Compartiment]],compartiment[],2,)) -> A10_ETU | L13: =CONCATENATE(CTu[[#This Row],[Objectifs opérationnels]],"_",CTu[[#This Row],[Secteur/MO]],"_",VLOOKUP(CTu[[#This Row],[Compartiment]],compartiment[],2,FALSE),"_",CTu[[#This Row],[N° Action]]) -> A10_BV_ETU_1 | M13: =IF(CTu[[#This Row],[Année subv]]="","",CONCATENATE(CTu[[#This Row],[Objectifs opérationnels]],"_",CTu[[#This Row],[Secteur/MO]],"_",CTu[[#This Row],[Année subv]],"_",VLOOKUP(CTu[[#This Row],[Compartiment]],compartiment[],2),"_",CTu[[#This Row],[N° Action]])) ->  | N13: Levés topographiques 37 | O13: Levés topo Changeon - étude des restauration écologique et reconquête des champs d'expansion de crue Gravot | P13: SMBAA | S13: 1 | T13: JBR | U13: 6250 | V13: 10000 | X13: 16250 | Y13: 7500 | Z13: 12000 | AA13: 0 | AB13: 19500 | AC13: 0.5 | AD13: =CTu[[#This Row],[Montant TTC 2026]]*CTu[[#This Row],[Taux Sub AELB]] -> 3750 | AE13: =CTu[[#This Row],[Montant TTC 2027]]*CTu[[#This Row],[Taux Sub AELB]] -> 6000 | AF13: =CTu[[#This Row],[Montant TTC 2028]]*CTu[[#This Row],[Taux Sub AELB]] -> 0 | AG13: =CTu[[#This Row],[Montant Sub AELB 2026]]+CTu[[#This Row],[Montant Sub AELB 2027]]+CTu[[#This Row],[Montant Sub AELB 2028]] -> 9750 | AI13: =CTu[[#This Row],[Taux Sub RPDL]]*CTu[[#This Row],[Montant TTC 2026]] -> 0 | AJ13: =CTu[[#This Row],[Taux Sub RPDL]]*CTu[[#This Row],[Montant TTC 2027]] -> 0 | AK13: =CTu[[#This Row],[Taux Sub RPDL]]*CTu[[#This Row],[Montant TTC 2028]] -> 0 | AL13: =CTu[[#This Row],[Montant Sub RPDL 2026]]+CTu[[#This Row],[Montant Sub RPDL 2027]]+CTu[[#This Row],[Montant Sub RPDL 2028]] -> 0 | AN13: =CTu[[#This Row],[Taux Sub RCVL]]*CTu[[#This Row],[Montant TTC 2026]] -> 0 | AO13: =CTu[[#This Row],[Taux Sub RCVL]]*CTu[[#This Row],[Montant TTC 2027]] -> 0 | AP13: =CTu[[#This Row],[Taux Sub RCVL]]*CTu[[#This Row],[Montant TTC 2028]] -> 0 | AQ13: =CTu[[#This Row],[Montant Sub RCVL 2026]]+CTu[[#This Row],[Montant Sub RCVL 2027]]+CTu[[#This Row],[Montant Sub RCVL 2028]] -> 0 | AR13: 0.3 | AS13: =CTu[[#This Row],[Taux Sub CD 37]]*CTu[[#This Row],[Montant HT 2026]] -> 1875 | AT13: =CTu[[#This Row],[Taux Sub CD 37]]*CTu[[#This Row],[Montant HT 2027]] -> 3000 | AU13: =CTu[[#This Row],[Taux Sub CD 37]]*CTu[[#This Row],[Montant HT 2028]] -> 0 | AV13: =CTu[[#This Row],[Montant Sub CD 37 2026]]+CTu[[#This Row],[Montant Sub CD 37 2027]]+CTu[[#This Row],[Montant Sub CD 37 2028]] -> 4875 | AX13: =CTu[[#This Row],[Taux Sub CD 49]]*CTu[[#This Row],[Montant TTC 2026]] -> 0 | AY13: =CTu[[#This Row],[Taux Sub CD 49]]*CTu[[#This Row],[Montant TTC 2027]] -> 0 | AZ13: =CTu[[#This Row],[Taux Sub CD 49]]*CTu[[#This Row],[Montant TTC 2028]] -> 0 | BA13: =CTu[[#This Row],[Montant Sub CD 49 2026]]+CTu[[#This Row],[Montant Sub CD 49 2027]]+CTu[[#This Row],[Montant Sub CD 49 2028]] -> 0 | BC13: =CTu[[#This Row],[Montant TTC 2026]]*CTu[[#This Row],[Taux LIFE]] -> 0 | BD13: =CTu[[#This Row],[Montant TTC 2027]]*CTu[[#This Row],[Taux LIFE]] -> 0 | BE13: =CTu[[#This Row],[Montant TTC 2028]]*CTu[[#This Row],[Taux LIFE]] -> 0 | BF13: =CTu[[#This Row],[Montant LIFE 2026]]+CTu[[#This Row],[Montant LIFE 2027]]+CTu[[#This Row],[Montant LIFE 2028]] -> 0 | BH13: =CTu[[#This Row],[Taux Sub FPRNM]]*CTu[[#This Row],[Montant HT 2026]] -> 0 | BI13: =CTu[[#This Row],[Taux Sub FPRNM]]*CTu[[#This Row],[Montant HT 2027]] -> 0 | BJ13: =CTu[[#This Row],[Taux Sub FPRNM]]*CTu[[#This Row],[Montant HT 2028]] -> 0 | BK13: =CTu[[#This Row],[Montant Sub FPRNM 2026]]+CTu[[#This Row],[Montant Sub FPRNM 2027]]+CTu[[#This Row],[Montant Sub FPRNM 2028]] -> 0 | BM13: =CTu[[#This Row],[FCTVA]]*CTu[[#This Row],[Montant TTC 2026]] -> 0 | BN13: =CTu[[#This Row],[FCTVA]]*CTu[[#This Row],[Montant TTC 2027]] -> 0 | BO13: =CTu[[#This Row],[FCTVA]]*CTu[[#This Row],[Montant TTC 2028]] -> 0 | BP13: =CTu[[#This Row],[Montant FCTVA 2026]]+CTu[[#This Row],[Montant FCTVA 2027]]+CTu[[#This Row],[Montant FCTVA 2028]] -> 0 | BR13: =CTu[[#This Row],[Taux CO MO]]*CTu[[#This Row],[Montant TTC 2026]] -> 0 | BS13: =CTu[[#This Row],[Taux CO MO]]*CTu[[#This Row],[Montant TTC 2027]] -> 0 | BT13: =CTu[[#This Row],[Taux CO MO]]*CTu[[#This Row],[Montant TTC 2028]] -> 0 | BU13: =CTu[[#This Row],[Montant CO MO 2026]]+CTu[[#This Row],[Montant CO MO 2027]]+CTu[[#This Row],[Montant CO MO 2028]] -> 0 | BW13: =CTu[[#This Row],[Taux Tiers]]*CTu[[#This Row],[Montant TTC 2026]] -> 0 | BX13: =CTu[[#This Row],[Taux Tiers]]*CTu[[#This Row],[Montant TTC 2027]] -> 0 | BY13: =CTu[[#This Row],[Taux Tiers]]*CTu[[#This Row],[Montant TTC 2028]] -> 0 | BZ13: =CTu[[#This Row],[Tiers 2026]]+CTu[[#This Row],[Tiers 2027]]+CTu[[#This Row],[Tiers 2028]] -> 0 | CA13: =100%-CTu[[#This Row],[Taux Sub AELB]]-CTu[[#This Row],[Taux Sub RPDL]]-CTu[[#This Row],[Taux Sub RCVL]]-CTu[[#This Row],[Taux Sub CD 37]]-CTu[[#This Row],[Taux Sub CD 49]]-CTu[[#This Row],[Taux Sub FPRNM]]-CTu[[#This Row],[Taux LIFE]]-CTu[[#This Row],[Taux Tiers]]-CTu[[#This Row],[Taux CO MO]]-CTu[[#This Row],[FCTVA]] -> 0.2 | CB13: =CTu[[#This Row],[Montant TTC 2026]]-(CTu[[#This Row],[Montant Sub AELB 2026]]+CTu[[#This Row],[Montant Sub RPDL 2026]]+CTu[[#This Row],[Montant Sub RCVL 2026]]+CTu[[#This Row],[Montant Sub CD 37 2026]]+CTu[[#This Row],[Montant Sub CD 49 2026]]+CTu[[#This Row],[Montant LIFE 2026]]+CTu[[#This Row],[Montant Sub FPRNM 2026]]+CTu[[#This Row],[Montant FCTVA 2026]]+CTu[[#This Row],[Tiers 2026]]+CTu[[#This Row],[Montant CO MO 2026]]) -> 1875 | CC13: =CTu[[#This Row],[Montant TTC 2027]]-(CTu[[#This Row],[Montant Sub AELB 2027]]+CTu[[#This Row],[Montant Sub RPDL 2027]]+CTu[[#This Row],[Montant Sub RCVL 2027]]+CTu[[#This Row],[Montant Sub CD 37 2027]]+CTu[[#This Row],[Montant Sub CD 49 2027]]+CTu[[#This Row],[Montant LIFE 2027]]+CTu[[#This Row],[Montant Sub FPRNM 2027]]+CTu[[#This Row],[Montant FCTVA 2027]]+CTu[[#This Row],[Tiers 2027]]+CTu[[#This Row],[Montant CO MO 2027]]) -> 3000 | CD13: =CTu[[#This Row],[Montant TTC 2028]]-(CTu[[#This Row],[Montant Sub AELB 2028]]+CTu[[#This Row],[Montant Sub RPDL 2028]]+CTu[[#This Row],[Montant Sub RCVL 2028]]+CTu[[#This Row],[Montant Sub CD 37 2028]]+CTu[[#This Row],[Montant Sub CD 49 2028]]+CTu[[#This Row],[Montant LIFE 2028]]+CTu[[#This Row],[Montant Sub FPRNM 2028]]+CTu[[#This Row],[Montant FCTVA 2028]]+CTu[[#This Row],[Tiers 2028]]+CTu[[#This Row],[Montant CO MO 2028]]) -> 0 | CE13: =CTu[[#This Row],[Autofinancement 2026]]+CTu[[#This Row],[Autofinancement 2027]]+CTu[[#This Row],[Autofinancement 2028]] -> 4875
A14: Enjeu_A | B14: A_1 | C14: A10 | D14: BV | E14: Étude | F14: ATEau | G14: FCT | H14: =IF(CTu[[#This Row],[Montant HT 2026]]>0,"2026",IF(CTu[[#This Row],[Montant HT 2027]]>0,"2027",IF(CTu[[#This Row],[Montant HT 2028]]>0,"2028"))) -> 2026 | J14: 2 | K14: =CONCATENATE(CTu[[#This Row],[Objectifs opérationnels]],"_",VLOOKUP(CTu[[#This Row],[Compartiment]],compartiment[],2,)) -> A10_ETU | L14: =CONCATENATE(CTu[[#This Row],[Objectifs opérationnels]],"_",CTu[[#This Row],[Secteur/MO]],"_",VLOOKUP(CTu[[#This Row],[Compartiment]],compartiment[],2,FALSE),"_",CTu[[#This Row],[N° Action]]) -> A10_BV_ETU_2 | M14: =IF(CTu[[#This Row],[Année subv]]="","",CONCATENATE(CTu[[#This Row],[Objectifs opérationnels]],"_",CTu[[#This Row],[Secteur/MO]],"_",CTu[[#This Row],[Année subv]],"_",VLOOKUP(CTu[[#This Row],[Compartiment]],compartiment[],2),"_",CTu[[#This Row],[N° Action]])) ->  | N14: Inventaires faune Flore 37 | O14: Conventionnement avec associations naturalistes | P14: SMBAA | S14: 1 | T14: JBR | U14: 8000 | V14: 15000 | W14: 0 | X14: 23000 | Y14: 9600 | Z14: 18000 | AA14: 0 | AB14: 27600 | AC14: 0.5 | AD14: =CTu[[#This Row],[Montant TTC 2026]]*CTu[[#This Row],[Taux Sub AELB]] -> 4800 | AE14: =CTu[[#This Row],[Montant TTC 2027]]*CTu[[#This Row],[Taux Sub AELB]] -> 9000 | AF14: =CTu[[#This Row],[Montant TTC 2028]]*CTu[[#This Row],[Taux Sub AELB]] -> 0 | AG14: =CTu[[#This Row],[Montant Sub AELB 2026]]+CTu[[#This Row],[Montant Sub AELB 2027]]+CTu[[#This Row],[Montant Sub AELB 2028]] -> 13800 | AI14: =CTu[[#This Row],[Taux Sub RPDL]]*CTu[[#This Row],[Montant TTC 2026]] -> 0 | AJ14: =CTu[[#This Row],[Taux Sub RPDL]]*CTu[[#This Row],[Montant TTC 2027]] -> 0 | AK14: =CTu[[#This Row],[Taux Sub RPDL]]*CTu[[#This Row],[Montant TTC 2028]] -> 0 | AL14: =CTu[[#This Row],[Montant Sub RPDL 2026]]+CTu[[#This Row],[Montant Sub RPDL 2027]]+CTu[[#This Row],[Montant Sub RPDL 2028]] -> 0 | AN14: =CTu[[#This Row],[Taux Sub RCVL]]*CTu[[#This Row],[Montant TTC 2026]] -> 0 | AO14: =CTu[[#This Row],[Taux Sub RCVL]]*CTu[[#This Row],[Montant TTC 2027]] -> 0 | AP14: =CTu[[#This Row],[Taux Sub RCVL]]*CTu[[#This Row],[Montant TTC 2028]] -> 0 | AQ14: =CTu[[#This Row],[Montant Sub RCVL 2026]]+CTu[[#This Row],[Montant Sub RCVL 2027]]+CTu[[#This Row],[Montant Sub RCVL 2028]] -> 0 | AR14: 0.3 | AS14: =CTu[[#This Row],[Taux Sub CD 37]]*CTu[[#This Row],[Montant HT 2026]] -> 2400 | AT14: =CTu[[#This Row],[Taux Sub CD 37]]*CTu[[#This Row],[Montant HT 2027]] -> 4500 | AU14: =CTu[[#This Row],[Taux Sub CD 37]]*CTu[[#This Row],[Montant HT 2028]] -> 0 | AV14: =CTu[[#This Row],[Montant Sub CD 37 2026]]+CTu[[#This Row],[Montant Sub CD 37 2027]]+CTu[[#This Row],[Montant Sub CD 37 2028]] -> 6900 | AX14: =CTu[[#This Row],[Taux Sub CD 49]]*CTu[[#This Row],[Montant TTC 2026]] -> 0 | AY14: =CTu[[#This Row],[Taux Sub CD 49]]*CTu[[#This Row],[Montant TTC 2027]] -> 0 | AZ14: =CTu[[#This Row],[Taux Sub CD 49]]*CTu[[#This Row],[Montant TTC 2028]] -> 0 | BA14: =CTu[[#This Row],[Montant Sub CD 49 2026]]+CTu[[#This Row],[Montant Sub CD 49 2027]]+CTu[[#This Row],[Montant Sub CD 49 2028]] -> 0 | BC14: =CTu[[#This Row],[Montant TTC 2026]]*CTu[[#This Row],[Taux LIFE]] -> 0 | BD14: =CTu[[#This Row],[Montant TTC 2027]]*CTu[[#This Row],[Taux LIFE]] -> 0 | BE14: =CTu[[#This Row],[Montant TTC 2028]]*CTu[[#This Row],[Taux LIFE]] -> 0 | BF14: =CTu[[#This Row],[Montant LIFE 2026]]+CTu[[#This Row],[Montant LIFE 2027]]+CTu[[#This Row],[Montant LIFE 2028]] -> 0 | BH14: =CTu[[#This Row],[Taux Sub FPRNM]]*CTu[[#This Row],[Montant HT 2026]] -> 0 | BI14: =CTu[[#This Row],[Taux Sub FPRNM]]*CTu[[#This Row],[Montant HT 2027]] -> 0 | BJ14: =CTu[[#This Row],[Taux Sub FPRNM]]*CTu[[#This Row],[Montant HT 2028]] -> 0 | BK14: =CTu[[#This Row],[Montant Sub FPRNM 2026]]+CTu[[#This Row],[Montant Sub FPRNM 2027]]+CTu[[#This Row],[Montant Sub FPRNM 2028]] -> 0 | BM14: =CTu[[#This Row],[FCTVA]]*CTu[[#This Row],[Montant TTC 2026]] -> 0 | BN14: =CTu[[#This Row],[FCTVA]]*CTu[[#This Row],[Montant TTC 2027]] -> 0 | BO14: =CTu[[#This Row],[FCTVA]]*CTu[[#This Row],[Montant TTC 2028]] -> 0 | BP14: =CTu[[#This Row],[Montant FCTVA 2026]]+CTu[[#This Row],[Montant FCTVA 2027]]+CTu[[#This Row],[Montant FCTVA 2028]] -> 0 | BR14: =CTu[[#This Row],[Taux CO MO]]*CTu[[#This Row],[Montant TTC 2026]] -> 0 | BS14: =CTu[[#This Row],[Taux CO MO]]*CTu[[#This Row],[Montant TTC 2027]] -> 0 | BT14: =CTu[[#This Row],[Taux CO MO]]*CTu[[#This Row],[Montant TTC 2028]] -> 0 | BU14: =CTu[[#This Row],[Montant CO MO 2026]]+CTu[[#This Row],[Montant CO MO 2027]]+CTu[[#This Row],[Montant CO MO 2028]] -> 0 | BW14: =CTu[[#This Row],[Taux Tiers]]*CTu[[#This Row],[Montant TTC 2026]] -> 0 | BX14: =CTu[[#This Row],[Taux Tiers]]*CTu[[#This Row],[Montant TTC 2027]] -> 0 | BY14: =CTu[[#This Row],[Taux Tiers]]*CTu[[#This Row],[Montant TTC 2028]] -> 0 | BZ14: =CTu[[#This Row],[Tiers 2026]]+CTu[[#This Row],[Tiers 2027]]+CTu[[#This Row],[Tiers 2028]] -> 0 | CA14: =100%-CTu[[#This Row],[Taux Sub AELB]]-CTu[[#This Row],[Taux Sub RPDL]]-CTu[[#This Row],[Taux Sub RCVL]]-CTu[[#This Row],[Taux Sub CD 37]]-CTu[[#This Row],[Taux Sub CD 49]]-CTu[[#This Row],[Taux Sub FPRNM]]-CTu[[#This Row],[Taux LIFE]]-CTu[[#This Row],[Taux Tiers]]-CTu[[#This Row],[Taux CO MO]]-CTu[[#This Row],[FCTVA]] -> 0.2 | CB14: =CTu[[#This Row],[Montant TTC 2026]]-(CTu[[#This Row],[Montant Sub AELB 2026]]+CTu[[#This Row],[Montant Sub RPDL 2026]]+CTu[[#This Row],[Montant Sub RCVL 2026]]+CTu[[#This Row],[Montant Sub CD 37 2026]]+CTu[[#This Row],[Montant Sub CD 49 2026]]+CTu[[#This Row],[Montant LIFE 2026]]+CTu[[#This Row],[Montant Sub FPRNM 2026]]+CTu[[#This Row],[Montant FCTVA 2026]]+CTu[[#This Row],[Tiers 2026]]+CTu[[#This Row],[Montant CO MO 2026]]) -> 2400 | CC14: =CTu[[#This Row],[Montant TTC 2027]]-(CTu[[#This Row],[Montant Sub AELB 2027]]+CTu[[#This Row],[Montant Sub RPDL 2027]]+CTu[[#This Row],[Montant Sub RCVL 2027]]+CTu[[#This Row],[Montant Sub CD 37 2027]]+CTu[[#This Row],[Montant Sub CD 49 2027]]+CTu[[#This Row],[Montant LIFE 2027]]+CTu[[#This Row],[Montant Sub FPRNM 2027]]+CTu[[#This Row],[Montant FCTVA 2027]]+CTu[[#This Row],[Tiers 2027]]+CTu[[#This Row],[Montant CO MO 2027]]) -> 4500 | CD14: =CTu[[#This Row],[Montant TTC 2028]]-(CTu[[#This Row],[Montant Sub AELB 2028]]+CTu[[#This Row],[Montant Sub RPDL 2028]]+CTu[[#This Row],[Montant Sub RCVL 2028]]+CTu[[#This Row],[Montant Sub CD 37 2028]]+CTu[[#This Row],[Montant Sub CD 49 2028]]+CTu[[#This Row],[Montant LIFE 2028]]+CTu[[#This Row],[Montant Sub FPRNM 2028]]+CTu[[#This Row],[Montant FCTVA 2028]]+CTu[[#This Row],[Tiers 2028]]+CTu[[#This Row],[Montant CO MO 2028]]) -> 0 | CE14: =CTu[[#This Row],[Autofinancement 2026]]+CTu[[#This Row],[Autofinancement 2027]]+CTu[[#This Row],[Autofinancement 2028]] -> 6900
A15: Enjeu_A | B15: A_1 | C15: A10 | D15: BV | E15: Étude | F15: ATEau | G15: FCT | H15: =IF(CTu[[#This Row],[Montant HT 2026]]>0,"2026",IF(CTu[[#This Row],[Montant HT 2027]]>0,"2027",IF(CTu[[#This Row],[Montant HT 2028]]>0,"2028"))) -> 2027 | J15: 3 | K15: =CONCATENATE(CTu[[#This Row],[Objectifs opérationnels]],"_",VLOOKUP(CTu[[#This Row],[Compartiment]],compartiment[],2,)) -> A10_ETU | L15: =CONCATENATE(CTu[[#This Row],[Objectifs opérationnels]],"_",CTu[[#This Row],[Secteur/MO]],"_",VLOOKUP(CTu[[#This Row],[Compartiment]],compartiment[],2,FALSE),"_",CTu[[#This Row],[N° Action]]) -> A10_BV_ETU_3 | M15: =IF(CTu[[#This Row],[Année subv]]="","",CONCATENATE(CTu[[#This Row],[Objectifs opérationnels]],"_",CTu[[#This Row],[Secteur/MO]],"_",CTu[[#This Row],[Année subv]],"_",VLOOKUP(CTu[[#This Row],[Compartiment]],compartiment[],2),"_",CTu[[#This Row],[N° Action]])) ->  | N15: Inventaires faune Flore 49 | O15: Conventionnement avec associations naturalistes | P15: SMBAA | S15: 1 | T15: JBR | V15: 22000 | W15: 21000 | X15: 43000 | Y15: 0 | Z15: 26400 | AA15: 25200 | AB15: 51600 | AC15: 0.5 | AD15: =CTu[[#This Row],[Montant TTC 2026]]*CTu[[#This Row],[Taux Sub AELB]] -> 0 | AE15: =CTu[[#This Row],[Montant TTC 2027]]*CTu[[#This Row],[Taux Sub AELB]] -> 13200 | AF15: =CTu[[#This Row],[Montant TTC 2028]]*CTu[[#This Row],[Taux Sub AELB]] -> 12600 | AG15: =CTu[[#This Row],[Montant Sub AELB 2026]]+CTu[[#This Row],[Montant Sub AELB 2027]]+CTu[[#This Row],[Montant Sub AELB 2028]] -> 25800 | AH15: 0.3 | AI15: =CTu[[#This Row],[Taux Sub RPDL]]*CTu[[#This Row],[Montant TTC 2026]] -> 0 | AJ15: =CTu[[#This Row],[Taux Sub RPDL]]*CTu[[#This Row],[Montant TTC 2027]] -> 7920 | AK15: =CTu[[#This Row],[Taux Sub RPDL]]*CTu[[#This Row],[Montant TTC 2028]] -> 7560 | AL15: =CTu[[#This Row],[Montant Sub RPDL 2026]]+CTu[[#This Row],[Montant Sub RPDL 2027]]+CTu[[#This Row],[Montant Sub RPDL 2028]] -> 15480 | AN15: =CTu[[#This Row],[Taux Sub RCVL]]*CTu[[#This Row],[Montant TTC 2026]] -> 0 | AO15: =CTu[[#This Row],[Taux Sub RCVL]]*CTu[[#This Row],[Montant TTC 2027]] -> 0 | AP15: =CTu[[#This Row],[Taux Sub RCVL]]*CTu[[#This Row],[Montant TTC 2028]] -> 0 | AQ15: =CTu[[#This Row],[Montant Sub RCVL 2026]]+CTu[[#This Row],[Montant Sub RCVL 2027]]+CTu[[#This Row],[Montant Sub RCVL 2028]] -> 0 | AS15: =CTu[[#This Row],[Taux Sub CD 37]]*CTu[[#This Row],[Montant HT 2026]] -> 0 | AT15: =CTu[[#This Row],[Taux Sub CD 37]]*CTu[[#This Row],[Montant HT 2027]] -> 0 | AU15: =CTu[[#This Row],[Taux Sub CD 37]]*CTu[[#This Row],[Montant HT 2028]] -> 0 | AV15: =CTu[[#This Row],[Montant Sub CD 37 2026]]+CTu[[#This Row],[Montant Sub CD 37 2027]]+CTu[[#This Row],[Montant Sub CD 37 2028]] -> 0 | AX15: =CTu[[#This Row],[Taux Sub CD 49]]*CTu[[#This Row],[Montant TTC 2026]] -> 0 | AY15: =CTu[[#This Row],[Taux Sub CD 49]]*CTu[[#This Row],[Montant TTC 2027]] -> 0 | AZ15: =CTu[[#This Row],[Taux Sub CD 49]]*CTu[[#This Row],[Montant TTC 2028]] -> 0 | BA15: =CTu[[#This Row],[Montant Sub CD 49 2026]]+CTu[[#This Row],[Montant Sub CD 49 2027]]+CTu[[#This Row],[Montant Sub CD 49 2028]] -> 0 | BC15: =CTu[[#This Row],[Montant TTC 2026]]*CTu[[#This Row],[Taux LIFE]] -> 0 | BD15: =CTu[[#This Row],[Montant TTC 2027]]*CTu[[#This Row],[Taux LIFE]] -> 0 | BE15: =CTu[[#This Row],[Montant TTC 2028]]*CTu[[#This Row],[Taux LIFE]] -> 0 | BF15: =CTu[[#This Row],[Montant LIFE 2026]]+CTu[[#This Row],[Montant LIFE 2027]]+CTu[[#This Row],[Montant LIFE 2028]] -> 0 | BH15: =CTu[[#This Row],[Taux Sub FPRNM]]*CTu[[#This Row],[Montant HT 2026]] -> 0 | BI15: =CTu[[#This Row],[Taux Sub FPRNM]]*CTu[[#This Row],[Montant HT 2027]] -> 0 | BJ15: =CTu[[#This Row],[Taux Sub FPRNM]]*CTu[[#This Row],[Montant HT 2028]] -> 0 | BK15: =CTu[[#This Row],[Montant Sub FPRNM 2026]]+CTu[[#This Row],[Montant Sub FPRNM 2027]]+CTu[[#This Row],[Montant Sub FPRNM 2028]] -> 0 | BM15: =CTu[[#This Row],[FCTVA]]*CTu[[#This Row],[Montant TTC 2026]] -> 0 | BN15: =CTu[[#This Row],[FCTVA]]*CTu[[#This Row],[Montant TTC 2027]] -> 0 | BO15: =CTu[[#This Row],[FCTVA]]*CTu[[#This Row],[Montant TTC 2028]] -> 0 | BP15: =CTu[[#This Row],[Montant FCTVA 2026]]+CTu[[#This Row],[Montant FCTVA 2027]]+CTu[[#This Row],[Montant FCTVA 2028]] -> 0 | BR15: =CTu[[#This Row],[Taux CO MO]]*CTu[[#This Row],[Montant TTC 2026]] -> 0 | BS15: =CTu[[#This Row],[Taux CO MO]]*CTu[[#This Row],[Montant TTC 2027]] -> 0 | BT15: =CTu[[#This Row],[Taux CO MO]]*CTu[[#This Row],[Montant TTC 2028]] -> 0 | BU15: =CTu[[#This Row],[Montant CO MO 2026]]+CTu[[#This Row],[Montant CO MO 2027]]+CTu[[#This Row],[Montant CO MO 2028]] -> 0 | BW15: =CTu[[#This Row],[Taux Tiers]]*CTu[[#This Row],[Montant TTC 2026]] -> 0 | BX15: =CTu[[#This Row],[Taux Tiers]]*CTu[[#This Row],[Montant TTC 2027]] -> 0 | BY15: =CTu[[#This Row],[Taux Tiers]]*CTu[[#This Row],[Montant TTC 2028]] -> 0 | BZ15: =CTu[[#This Row],[Tiers 2026]]+CTu[[#This Row],[Tiers 2027]]+CTu[[#This Row],[Tiers 2028]] -> 0 | CA15: =100%-CTu[[#This Row],[Taux Sub AELB]]-CTu[[#This Row],[Taux Sub RPDL]]-CTu[[#This Row],[Taux Sub RCVL]]-CTu[[#This Row],[Taux Sub CD 37]]-CTu[[#This Row],[Taux Sub CD 49]]-CTu[[#This Row],[Taux Sub FPRNM]]-CTu[[#This Row],[Taux LIFE]]-CTu[[#This Row],[Taux Tiers]]-CTu[[#This Row],[Taux CO MO]]-CTu[[#This Row],[FCTVA]] -> 0.2 | CB15: =CTu[[#This Row],[Montant TTC 2026]]-(CTu[[#This Row],[Montant Sub AELB 2026]]+CTu[[#This Row],[Montant Sub RPDL 2026]]+CTu[[#This Row],[Montant Sub RCVL 2026]]+CTu[[#This Row],[Montant Sub CD 37 2026]]+CTu[[#This Row],[Montant Sub CD 49 2026]]+CTu[[#This Row],[Montant LIFE 2026]]+CTu[[#This Row],[Montant Sub FPRNM 2026]]+CTu[[#This Row],[Montant FCTVA 2026]]+CTu[[#This Row],[Tiers 2026]]+CTu[[#This Row],[Montant CO MO 2026]]) -> 0 | CC15: =CTu[[#This Row],[Montant TTC 2027]]-(CTu[[#This Row],[Montant Sub AELB 2027]]+CTu[[#This Row],[Montant Sub RPDL 2027]]+CTu[[#This Row],[Montant Sub RCVL 2027]]+CTu[[#This Row],[Montant Sub CD 37 2027]]+CTu[[#This Row],[Montant Sub CD 49 2027]]+CTu[[#This Row],[Montant LIFE 2027]]+CTu[[#This Row],[Montant Sub FPRNM 2027]]+CTu[[#This Row],[Montant FCTVA 2027]]+CTu[[#This Row],[Tiers 2027]]+CTu[[#This Row],[Montant CO MO 2027]]) -> 5280 | CD15: =CTu[[#This Row],[Montant TTC 2028]]-(CTu[[#This Row],[Montant Sub AELB 2028]]+CTu[[#This Row],[Montant Sub RPDL 2028]]+CTu[[#This Row],[Montant Sub RCVL 2028]]+CTu[[#This Row],[Montant Sub CD 37 2028]]+CTu[[#This Row],[Montant Sub CD 49 2028]]+CTu[[#This Row],[Montant LIFE 2028]]+CTu[[#This Row],[Montant Sub FPRNM 2028]]+CTu[[#This Row],[Montant FCTVA 2028]]+CTu[[#This Row],[Tiers 2028]]+CTu[[#This Row],[Montant CO MO 2028]]) -> 5040 | CE15: =CTu[[#This Row],[Autofinancement 2026]]+CTu[[#This Row],[Autofinancement 2027]]+CTu[[#This Row],[Autofinancement 2028]] -> 10320
A16: Enjeu_A | B16: A_1 | C16: A10 | D16: BV | E16: Étude | F16: ATEau | G16: FCT | H16: =IF(CTu[[#This Row],[Montant HT 2026]]>0,"2026",IF(CTu[[#This Row],[Montant HT 2027]]>0,"2027",IF(CTu[[#This Row],[Montant HT 2028]]>0,"2028"))) -> 2027 | J16: 4 | K16: =CONCATENATE(CTu[[#This Row],[Objectifs opérationnels]],"_",VLOOKUP(CTu[[#This Row],[Compartiment]],compartiment[],2,)) -> A10_ETU | L16: =CONCATENATE(CTu[[#This Row],[Objectifs opérationnels]],"_",CTu[[#This Row],[Secteur/MO]],"_",VLOOKUP(CTu[[#This Row],[Compartiment]],compartiment[],2,FALSE),"_",CTu[[#This Row],[N° Action]]) -> A10_BV_ETU_4 | M16: =IF(CTu[[#This Row],[Année subv]]="","",CONCATENATE(CTu[[#This Row],[Objectifs opérationnels]],"_",CTu[[#This Row],[Secteur/MO]],"_",CTu[[#This Row],[Année subv]],"_",VLOOKUP(CTu[[#This Row],[Compartiment]],compartiment[],2),"_",CTu[[#This Row],[N° Action]])) ->  | N16: Topographie 49 | O16: Réalisation de travaux topographiques dans le cadre de la réalisation des études et travaux en Maine et Loire | P16: SMBAA | S16: 1 | T16: RC | U16: 0 | V16: 30000 | W16: 9000 | X16: 39000 | Y16: 0 | Z16: 36000 | AA16: 10800 | AB16: 46800 | AC16: 0.5 | AD16: =CTu[[#This Row],[Montant TTC 2026]]*CTu[[#This Row],[Taux Sub AELB]] -> 0 | AE16: =CTu[[#This Row],[Montant TTC 2027]]*CTu[[#This Row],[Taux Sub AELB]] -> 18000 | AF16: =CTu[[#This Row],[Montant TTC 2028]]*CTu[[#This Row],[Taux Sub AELB]] -> 5400 | AG16: =CTu[[#This Row],[Montant Sub AELB 2026]]+CTu[[#This Row],[Montant Sub AELB 2027]]+CTu[[#This Row],[Montant Sub AELB 2028]] -> 23400 | AH16: 0.3 | AI16: =CTu[[#This Row],[Taux Sub RPDL]]*CTu[[#This Row],[Montant TTC 2026]] -> 0 | AJ16: =CTu[[#This Row],[Taux Sub RPDL]]*CTu[[#This Row],[Montant TTC 2027]] -> 10800 | AK16: =CTu[[#This Row],[Taux Sub RPDL]]*CTu[[#This Row],[Montant TTC 2028]] -> 3240 | AL16: =CTu[[#This Row],[Montant Sub RPDL 2026]]+CTu[[#This Row],[Montant Sub RPDL 2027]]+CTu[[#This Row],[Montant Sub RPDL 2028]] -> 14040 | AN16: =CTu[[#This Row],[Taux Sub RCVL]]*CTu[[#This Row],[Montant TTC 2026]] -> 0 | AO16: =CTu[[#This Row],[Taux Sub RCVL]]*CTu[[#This Row],[Montant TTC 2027]] -> 0 | AP16: =CTu[[#This Row],[Taux Sub RCVL]]*CTu[[#This Row],[Montant TTC 2028]] -> 0 | AQ16: =CTu[[#This Row],[Montant Sub RCVL 2026]]+CTu[[#This Row],[Montant Sub RCVL 2027]]+CTu[[#This Row],[Montant Sub RCVL 2028]] -> 0 | AS16: =CTu[[#This Row],[Taux Sub CD 37]]*CTu[[#This Row],[Montant HT 2026]] -> 0 | AT16: =CTu[[#This Row],[Taux Sub CD 37]]*CTu[[#This Row],[Montant HT 2027]] -> 0 | AU16: =CTu[[#This Row],[Taux Sub CD 37]]*CTu[[#This Row],[Montant HT 2028]] -> 0 | AV16: =CTu[[#This Row],[Montant Sub CD 37 2026]]+CTu[[#This Row],[Montant Sub CD 37 2027]]+CTu[[#This Row],[Montant Sub CD 37 2028]] -> 0 | AX16: =CTu[[#This Row],[Taux Sub CD 49]]*CTu[[#This Row],[Montant TTC 2026]] -> 0 | AY16: =CTu[[#This Row],[Taux Sub CD 49]]*CTu[[#This Row],[Montant TTC 2027]] -> 0 | AZ16: =CTu[[#This Row],[Taux Sub CD 49]]*CTu[[#This Row],[Montant TTC 2028]] -> 0 | BA16: =CTu[[#This Row],[Montant Sub CD 49 2026]]+CTu[[#This Row],[Montant Sub CD 49 2027]]+CTu[[#This Row],[Montant Sub CD 49 2028]] -> 0 | BC16: =CTu[[#This Row],[Montant TTC 2026]]*CTu[[#This Row],[Taux LIFE]] -> 0 | BD16: =CTu[[#This Row],[Montant TTC 2027]]*CTu[[#This Row],[Taux LIFE]] -> 0 | BE16: =CTu[[#This Row],[Montant TTC 2028]]*CTu[[#This Row],[Taux LIFE]] -> 0 | BF16: =CTu[[#This Row],[Montant LIFE 2026]]+CTu[[#This Row],[Montant LIFE 2027]]+CTu[[#This Row],[Montant LIFE 2028]] -> 0 | BH16: =CTu[[#This Row],[Taux Sub FPRNM]]*CTu[[#This Row],[Montant HT 2026]] -> 0 | BI16: =CTu[[#This Row],[Taux Sub FPRNM]]*CTu[[#This Row],[Montant HT 2027]] -> 0 | BJ16: =CTu[[#This Row],[Taux Sub FPRNM]]*CTu[[#This Row],[Montant HT 2028]] -> 0 | BK16: =CTu[[#This Row],[Montant Sub FPRNM 2026]]+CTu[[#This Row],[Montant Sub FPRNM 2027]]+CTu[[#This Row],[Montant Sub FPRNM 2028]] -> 0 | BM16: =CTu[[#This Row],[FCTVA]]*CTu[[#This Row],[Montant TTC 2026]] -> 0 | BN16: =CTu[[#This Row],[FCTVA]]*CTu[[#This Row],[Montant TTC 2027]] -> 0 | BO16: =CTu[[#This Row],[FCTVA]]*CTu[[#This Row],[Montant TTC 2028]] -> 0 | BP16: =CTu[[#This Row],[Montant FCTVA 2026]]+CTu[[#This Row],[Montant FCTVA 2027]]+CTu[[#This Row],[Montant FCTVA 2028]] -> 0 | BR16: =CTu[[#This Row],[Taux CO MO]]*CTu[[#This Row],[Montant TTC 2026]] -> 0 | BS16: =CTu[[#This Row],[Taux CO MO]]*CTu[[#This Row],[Montant TTC 2027]] -> 0 | BT16: =CTu[[#This Row],[Taux CO MO]]*CTu[[#This Row],[Montant TTC 2028]] -> 0 | BU16: =CTu[[#This Row],[Montant CO MO 2026]]+CTu[[#This Row],[Montant CO MO 2027]]+CTu[[#This Row],[Montant CO MO 2028]] -> 0 | BW16: =CTu[[#This Row],[Taux Tiers]]*CTu[[#This Row],[Montant TTC 2026]] -> 0 | BX16: =CTu[[#This Row],[Taux Tiers]]*CTu[[#This Row],[Montant TTC 2027]] -> 0 | BY16: =CTu[[#This Row],[Taux Tiers]]*CTu[[#This Row],[Montant TTC 2028]] -> 0 | BZ16: =CTu[[#This Row],[Tiers 2026]]+CTu[[#This Row],[Tiers 2027]]+CTu[[#This Row],[Tiers 2028]] -> 0 | CA16: =100%-CTu[[#This Row],[Taux Sub AELB]]-CTu[[#This Row],[Taux Sub RPDL]]-CTu[[#This Row],[Taux Sub RCVL]]-CTu[[#This Row],[Taux Sub CD 37]]-CTu[[#This Row],[Taux Sub CD 49]]-CTu[[#This Row],[Taux Sub FPRNM]]-CTu[[#This Row],[Taux LIFE]]-CTu[[#This Row],[Taux Tiers]]-CTu[[#This Row],[Taux CO MO]]-CTu[[#This Row],[FCTVA]] -> 0.2 | CB16: =CTu[[#This Row],[Montant TTC 2026]]-(CTu[[#This Row],[Montant Sub AELB 2026]]+CTu[[#This Row],[Montant Sub RPDL 2026]]+CTu[[#This Row],[Montant Sub RCVL 2026]]+CTu[[#This Row],[Montant Sub CD 37 2026]]+CTu[[#This Row],[Montant Sub CD 49 2026]]+CTu[[#This Row],[Montant LIFE 2026]]+CTu[[#This Row],[Montant Sub FPRNM 2026]]+CTu[[#This Row],[Montant FCTVA 2026]]+CTu[[#This Row],[Tiers 2026]]+CTu[[#This Row],[Montant CO MO 2026]]) -> 0 | CC16: =CTu[[#This Row],[Montant TTC 2027]]-(CTu[[#This Row],[Montant Sub AELB 2027]]+CTu[[#This Row],[Montant Sub RPDL 2027]]+CTu[[#This Row],[Montant Sub RCVL 2027]]+CTu[[#This Row],[Montant Sub CD 37 2027]]+CTu[[#This Row],[Montant Sub CD 49 2027]]+CTu[[#This Row],[Montant LIFE 2027]]+CTu[[#This Row],[Montant Sub FPRNM 2027]]+CTu[[#This Row],[Montant FCTVA 2027]]+CTu[[#This Row],[Tiers 2027]]+CTu[[#This Row],[Montant CO MO 2027]]) -> 7200 | CD16: =CTu[[#This Row],[Montant TTC 2028]]-(CTu[[#This Row],[Montant Sub AELB 2028]]+CTu[[#This Row],[Montant Sub RPDL 2028]]+CTu[[#This Row],[Montant Sub RCVL 2028]]+CTu[[#This Row],[Montant Sub CD 37 2028]]+CTu[[#This Row],[Montant Sub CD 49 2028]]+CTu[[#This Row],[Montant LIFE 2028]]+CTu[[#This Row],[Montant Sub FPRNM 2028]]+CTu[[#This Row],[Montant FCTVA 2028]]+CTu[[#This Row],[Tiers 2028]]+CTu[[#This Row],[Montant CO MO 2028]]) -> 2160 | CE16: =CTu[[#This Row],[Autofinancement 2026]]+CTu[[#This Row],[Autofinancement 2027]]+CTu[[#This Row],[Autofinancement 2028]] -> 9360
A17: Enjeu_A | B17: A_1 | C17: A10 | D17: BV | E17: Indicateur de suivi | F17: ATEau | G17: FCT | H17: =IF(CTu[[#This Row],[Montant HT 2026]]>0,"2026",IF(CTu[[#This Row],[Montant HT 2027]]>0,"2027",IF(CTu[[#This Row],[Montant HT 2028]]>0,"2028"))) -> 2026 | J17: 1 | K17: =CONCATENATE(CTu[[#This Row],[Objectifs opérationnels]],"_",VLOOKUP(CTu[[#This Row],[Compartiment]],compartiment[],2,)) -> A10_IDS | L17: =CONCATENATE(CTu[[#This Row],[Objectifs opérationnels]],"_",CTu[[#This Row],[Secteur/MO]],"_",VLOOKUP(CTu[[#This Row],[Compartiment]],compartiment[],2,FALSE),"_",CTu[[#This Row],[N° Action]]) -> A10_BV_IDS_1 | M17: =IF(CTu[[#This Row],[Année subv]]="","",CONCATENATE(CTu[[#This Row],[Objectifs opérationnels]],"_",CTu[[#This Row],[Secteur/MO]],"_",CTu[[#This Row],[Année subv]],"_",VLOOKUP(CTu[[#This Row],[Compartiment]],compartiment[],2),"_",CTu[[#This Row],[N° Action]])) ->  | N17: Mise en place d'indicateurs de suivis - 37 | O17: Avant - après travaux | P17: SMBAA | S17: 1 | T17: JBR | U17: 13000 | V17: 6500 | W17: 3500 | X17: 23000 | Y17: 15600 | Z17: 7800 | AA17: 4200 | AB17: 27600 | AC17: 0.5 | AD17: =CTu[[#This Row],[Montant TTC 2026]]*CTu[[#This Row],[Taux Sub AELB]] -> 7800 | AE17: =CTu[[#This Row],[Montant TTC 2027]]*CTu[[#This Row],[Taux Sub AELB]] -> 3900 | AF17: =CTu[[#This Row],[Montant TTC 2028]]*CTu[[#This Row],[Taux Sub AELB]] -> 2100 | AG17: =CTu[[#This Row],[Montant Sub AELB 2026]]+CTu[[#This Row],[Montant Sub AELB 2027]]+CTu[[#This Row],[Montant Sub AELB 2028]] -> 13800 | AI17: =CTu[[#This Row],[Taux Sub RPDL]]*CTu[[#This Row],[Montant TTC 2026]] -> 0 | AJ17: =CTu[[#This Row],[Taux Sub RPDL]]*CTu[[#This Row],[Montant TTC 2027]] -> 0 | AK17: =CTu[[#This Row],[Taux Sub RPDL]]*CTu[[#This Row],[Montant TTC 2028]] -> 0 | AL17: =CTu[[#This Row],[Montant Sub RPDL 2026]]+CTu[[#This Row],[Montant Sub RPDL 2027]]+CTu[[#This Row],[Montant Sub RPDL 2028]] -> 0 | AN17: =CTu[[#This Row],[Taux Sub RCVL]]*CTu[[#This Row],[Montant TTC 2026]] -> 0 | AO17: =CTu[[#This Row],[Taux Sub RCVL]]*CTu[[#This Row],[Montant TTC 2027]] -> 0 | AP17: =CTu[[#This Row],[Taux Sub RCVL]]*CTu[[#This Row],[Montant TTC 2028]] -> 0 | AQ17: =CTu[[#This Row],[Montant Sub RCVL 2026]]+CTu[[#This Row],[Montant Sub RCVL 2027]]+CTu[[#This Row],[Montant Sub RCVL 2028]] -> 0 | AR17: 0.3 | AS17: =CTu[[#This Row],[Taux Sub CD 37]]*CTu[[#This Row],[Montant HT 2026]] -> 3900 | AT17: =CTu[[#This Row],[Taux Sub CD 37]]*CTu[[#This Row],[Montant HT 2027]] -> 1950 | AU17: =CTu[[#This Row],[Taux Sub CD 37]]*CTu[[#This Row],[Montant HT 2028]] -> 1050 | AV17: =CTu[[#This Row],[Montant Sub CD 37 2026]]+CTu[[#This Row],[Montant Sub CD 37 2027]]+CTu[[#This Row],[Montant Sub CD 37 2028]] -> 6900 | AX17: =CTu[[#This Row],[Taux Sub CD 49]]*CTu[[#This Row],[Montant TTC 2026]] -> 0 | AY17: =CTu[[#This Row],[Taux Sub CD 49]]*CTu[[#This Row],[Montant TTC 2027]] -> 0 | AZ17: =CTu[[#This Row],[Taux Sub CD 49]]*CTu[[#This Row],[Montant TTC 2028]] -> 0 | BA17: =CTu[[#This Row],[Montant Sub CD 49 2026]]+CTu[[#This Row],[Montant Sub CD 49 2027]]+CTu[[#This Row],[Montant Sub CD 49 2028]] -> 0 | BC17: =CTu[[#This Row],[Montant TTC 2026]]*CTu[[#This Row],[Taux LIFE]] -> 0 | BD17: =CTu[[#This Row],[Montant TTC 2027]]*CTu[[#This Row],[Taux LIFE]] -> 0 | BE17: =CTu[[#This Row],[Montant TTC 2028]]*CTu[[#This Row],[Taux LIFE]] -> 0 | BF17: =CTu[[#This Row],[Montant LIFE 2026]]+CTu[[#This Row],[Montant LIFE 2027]]+CTu[[#This Row],[Montant LIFE 2028]] -> 0 | BH17: =CTu[[#This Row],[Taux Sub FPRNM]]*CTu[[#This Row],[Montant HT 2026]] -> 0 | BI17: =CTu[[#This Row],[Taux Sub FPRNM]]*CTu[[#This Row],[Montant HT 2027]] -> 0 | BJ17: =CTu[[#This Row],[Taux Sub FPRNM]]*CTu[[#This Row],[Montant HT 2028]] -> 0 | BK17: =CTu[[#This Row],[Montant Sub FPRNM 2026]]+CTu[[#This Row],[Montant Sub FPRNM 2027]]+CTu[[#This Row],[Montant Sub FPRNM 2028]] -> 0 | BM17: =CTu[[#This Row],[FCTVA]]*CTu[[#This Row],[Montant TTC 2026]] -> 0 | BN17: =CTu[[#This Row],[FCTVA]]*CTu[[#This Row],[Montant TTC 2027]] -> 0 | BO17: =CTu[[#This Row],[FCTVA]]*CTu[[#This Row],[Montant TTC 2028]] -> 0 | BP17: =CTu[[#This Row],[Montant FCTVA 2026]]+CTu[[#This Row],[Montant FCTVA 2027]]+CTu[[#This Row],[Montant FCTVA 2028]] -> 0 | BR17: =CTu[[#This Row],[Taux CO MO]]*CTu[[#This Row],[Montant TTC 2026]] -> 0 | BS17: =CTu[[#This Row],[Taux CO MO]]*CTu[[#This Row],[Montant TTC 2027]] -> 0 | BT17: =CTu[[#This Row],[Taux CO MO]]*CTu[[#This Row],[Montant TTC 2028]] -> 0 | BU17: =CTu[[#This Row],[Montant CO MO 2026]]+CTu[[#This Row],[Montant CO MO 2027]]+CTu[[#This Row],[Montant CO MO 2028]] -> 0 | BW17: =CTu[[#This Row],[Taux Tiers]]*CTu[[#This Row],[Montant TTC 2026]] -> 0 | BX17: =CTu[[#This Row],[Taux Tiers]]*CTu[[#This Row],[Montant TTC 2027]] -> 0 | BY17: =CTu[[#This Row],[Taux Tiers]]*CTu[[#This Row],[Montant TTC 2028]] -> 0 | BZ17: =CTu[[#This Row],[Tiers 2026]]+CTu[[#This Row],[Tiers 2027]]+CTu[[#This Row],[Tiers 2028]] -> 0 | CA17: =100%-CTu[[#This Row],[Taux Sub AELB]]-CTu[[#This Row],[Taux Sub RPDL]]-CTu[[#This Row],[Taux Sub RCVL]]-CTu[[#This Row],[Taux Sub CD 37]]-CTu[[#This Row],[Taux Sub CD 49]]-CTu[[#This Row],[Taux Sub FPRNM]]-CTu[[#This Row],[Taux LIFE]]-CTu[[#This Row],[Taux Tiers]]-CTu[[#This Row],[Taux CO MO]]-CTu[[#This Row],[FCTVA]] -> 0.2 | CB17: =CTu[[#This Row],[Montant TTC 2026]]-(CTu[[#This Row],[Montant Sub AELB 2026]]+CTu[[#This Row],[Montant Sub RPDL 2026]]+CTu[[#This Row],[Montant Sub RCVL 2026]]+CTu[[#This Row],[Montant Sub CD 37 2026]]+CTu[[#This Row],[Montant Sub CD 49 2026]]+CTu[[#This Row],[Montant LIFE 2026]]+CTu[[#This Row],[Montant Sub FPRNM 2026]]+CTu[[#This Row],[Montant FCTVA 2026]]+CTu[[#This Row],[Tiers 2026]]+CTu[[#This Row],[Montant CO MO 2026]]) -> 3900 | CC17: =CTu[[#This Row],[Montant TTC 2027]]-(CTu[[#This Row],[Montant Sub AELB 2027]]+CTu[[#This Row],[Montant Sub RPDL 2027]]+CTu[[#This Row],[Montant Sub RCVL 2027]]+CTu[[#This Row],[Montant Sub CD 37 2027]]+CTu[[#This Row],[Montant Sub CD 49 2027]]+CTu[[#This Row],[Montant LIFE 2027]]+CTu[[#This Row],[Montant Sub FPRNM 2027]]+CTu[[#This Row],[Montant FCTVA 2027]]+CTu[[#This Row],[Tiers 2027]]+CTu[[#This Row],[Montant CO MO 2027]]) -> 1950 | CD17: =CTu[[#This Row],[Montant TTC 2028]]-(CTu[[#This Row],[Montant Sub AELB 2028]]+CTu[[#This Row],[Montant Sub RPDL 2028]]+CTu[[#This Row],[Montant Sub RCVL 2028]]+CTu[[#This Row],[Montant Sub CD 37 2028]]+CTu[[#This Row],[Montant Sub CD 49 2028]]+CTu[[#This Row],[Montant LIFE 2028]]+CTu[[#This Row],[Montant Sub FPRNM 2028]]+CTu[[#This Row],[Montant FCTVA 2028]]+CTu[[#This Row],[Tiers 2028]]+CTu[[#This Row],[Montant CO MO 2028]]) -> 1050 | CE17: =CTu[[#This Row],[Autofinancement 2026]]+CTu[[#This Row],[Autofinancement 2027]]+CTu[[#This Row],[Autofinancement 2028]] -> 6900
A18: Enjeu_A | B18: A_1 | C18: A10 | D18: BV | E18: Indicateur de suivi | F18: ATEau | G18: FCT | H18: =IF(CTu[[#This Row],[Montant HT 2026]]>0,"2026",IF(CTu[[#This Row],[Montant HT 2027]]>0,"2027",IF(CTu[[#This Row],[Montant HT 2028]]>0,"2028"))) -> 2026 | J18: 2 | K18: =CONCATENATE(CTu[[#This Row],[Objectifs opérationnels]],"_",VLOOKUP(CTu[[#This Row],[Compartiment]],compartiment[],2,)) -> A10_IDS | L18: =CONCATENATE(CTu[[#This Row],[Objectifs opérationnels]],"_",CTu[[#This Row],[Secteur/MO]],"_",VLOOKUP(CTu[[#This Row],[Compartiment]],compartiment[],2,FALSE),"_",CTu[[#This Row],[N° Action]]) -> A10_BV_IDS_2 | M18: =IF(CTu[[#This Row],[Année subv]]="","",CONCATENATE(CTu[[#This Row],[Objectifs opérationnels]],"_",CTu[[#This Row],[Secteur/MO]],"_",CTu[[#This Row],[Année subv]],"_",VLOOKUP(CTu[[#This Row],[Compartiment]],compartiment[],2),"_",CTu[[#This Row],[N° Action]])) ->  | N18: Mise en place d'indicateurs de suivis - 49 | O18: Avant - après travaux | P18: SMBAA | S18: 1 | T18: JBR | U18: 3750 | V18: 23000 | W18: 10500 | X18: 37250 | Y18: 4500 | Z18: 27600 | AA18: 12600 | AB18: 44700 | AC18: 0.5 | AD18: =CTu[[#This Row],[Montant TTC 2026]]*CTu[[#This Row],[Taux Sub AELB]] -> 2250 | AE18: =CTu[[#This Row],[Montant TTC 2027]]*CTu[[#This Row],[Taux Sub AELB]] -> 13800 | AF18: =CTu[[#This Row],[Montant TTC 2028]]*CTu[[#This Row],[Taux Sub AELB]] -> 6300 | AG18: =CTu[[#This Row],[Montant Sub AELB 2026]]+CTu[[#This Row],[Montant Sub AELB 2027]]+CTu[[#This Row],[Montant Sub AELB 2028]] -> 22350 | AH18: 0.3 | AI18: =CTu[[#This Row],[Taux Sub RPDL]]*CTu[[#This Row],[Montant TTC 2026]] -> 1350 | AJ18: =CTu[[#This Row],[Taux Sub RPDL]]*CTu[[#This Row],[Montant TTC 2027]] -> 8280 | AK18: =CTu[[#This Row],[Taux Sub RPDL]]*CTu[[#This Row],[Montant TTC 2028]] -> 3780 | AL18: =CTu[[#This Row],[Montant Sub RPDL 2026]]+CTu[[#This Row],[Montant Sub RPDL 2027]]+CTu[[#This Row],[Montant Sub RPDL 2028]] -> 13410 | AN18: =CTu[[#This Row],[Taux Sub RCVL]]*CTu[[#This Row],[Montant TTC 2026]] -> 0 | AO18: =CTu[[#This Row],[Taux Sub RCVL]]*CTu[[#This Row],[Montant TTC 2027]] -> 0 | AP18: =CTu[[#This Row],[Taux Sub RCVL]]*CTu[[#This Row],[Montant TTC 2028]] -> 0 | AQ18: =CTu[[#This Row],[Montant Sub RCVL 2026]]+CTu[[#This Row],[Montant Sub RCVL 2027]]+CTu[[#This Row],[Montant Sub RCVL 2028]] -> 0 | AS18: =CTu[[#This Row],[Taux Sub CD 37]]*CTu[[#This Row],[Montant HT 2026]] -> 0 | AT18: =CTu[[#This Row],[Taux Sub CD 37]]*CTu[[#This Row],[Montant HT 2027]] -> 0 | AU18: =CTu[[#This Row],[Taux Sub CD 37]]*CTu[[#This Row],[Montant HT 2028]] -> 0 | AV18: =CTu[[#This Row],[Montant Sub CD 37 2026]]+CTu[[#This Row],[Montant Sub CD 37 2027]]+CTu[[#This Row],[Montant Sub CD 37 2028]] -> 0 | AX18: =CTu[[#This Row],[Taux Sub CD 49]]*CTu[[#This Row],[Montant TTC 2026]] -> 0 | AY18: =CTu[[#This Row],[Taux Sub CD 49]]*CTu[[#This Row],[Montant TTC 2027]] -> 0 | AZ18: =CTu[[#This Row],[Taux Sub CD 49]]*CTu[[#This Row],[Montant TTC 2028]] -> 0 | BA18: =CTu[[#This Row],[Montant Sub CD 49 2026]]+CTu[[#This Row],[Montant Sub CD 49 2027]]+CTu[[#This Row],[Montant Sub CD 49 2028]] -> 0 | BC18: =CTu[[#This Row],[Montant TTC 2026]]*CTu[[#This Row],[Taux LIFE]] -> 0 | BD18: =CTu[[#This Row],[Montant TTC 2027]]*CTu[[#This Row],[Taux LIFE]] -> 0 | BE18: =CTu[[#This Row],[Montant TTC 2028]]*CTu[[#This Row],[Taux LIFE]] -> 0 | BF18: =CTu[[#This Row],[Montant LIFE 2026]]+CTu[[#This Row],[Montant LIFE 2027]]+CTu[[#This Row],[Montant LIFE 2028]] -> 0 | BH18: =CTu[[#This Row],[Taux Sub FPRNM]]*CTu[[#This Row],[Montant HT 2026]] -> 0 | BI18: =CTu[[#This Row],[Taux Sub FPRNM]]*CTu[[#This Row],[Montant HT 2027]] -> 0 | BJ18: =CTu[[#This Row],[Taux Sub FPRNM]]*CTu[[#This Row],[Montant HT 2028]] -> 0 | BK18: =CTu[[#This Row],[Montant Sub FPRNM 2026]]+CTu[[#This Row],[Montant Sub FPRNM 2027]]+CTu[[#This Row],[Montant Sub FPRNM 2028]] -> 0 | BM18: =CTu[[#This Row],[FCTVA]]*CTu[[#This Row],[Montant TTC 2026]] -> 0 | BN18: =CTu[[#This Row],[FCTVA]]*CTu[[#This Row],[Montant TTC 2027]] -> 0 | BO18: =CTu[[#This Row],[FCTVA]]*CTu[[#This Row],[Montant TTC 2028]] -> 0 | BP18: =CTu[[#This Row],[Montant FCTVA 2026]]+CTu[[#This Row],[Montant FCTVA 2027]]+CTu[[#This Row],[Montant FCTVA 2028]] -> 0 | BR18: =CTu[[#This Row],[Taux CO MO]]*CTu[[#This Row],[Montant TTC 2026]] -> 0 | BS18: =CTu[[#This Row],[Taux CO MO]]*CTu[[#This Row],[Montant TTC 2027]] -> 0 | BT18: =CTu[[#This Row],[Taux CO MO]]*CTu[[#This Row],[Montant TTC 2028]] -> 0 | BU18: =CTu[[#This Row],[Montant CO MO 2026]]+CTu[[#This Row],[Montant CO MO 2027]]+CTu[[#This Row],[Montant CO MO 2028]] -> 0 | BW18: =CTu[[#This Row],[Taux Tiers]]*CTu[[#This Row],[Montant TTC 2026]] -> 0 | BX18: =CTu[[#This Row],[Taux Tiers]]*CTu[[#This Row],[Montant TTC 2027]] -> 0 | BY18: =CTu[[#This Row],[Taux Tiers]]*CTu[[#This Row],[Montant TTC 2028]] -> 0 | BZ18: =CTu[[#This Row],[Tiers 2026]]+CTu[[#This Row],[Tiers 2027]]+CTu[[#This Row],[Tiers 2028]] -> 0 | CA18: =100%-CTu[[#This Row],[Taux Sub AELB]]-CTu[[#This Row],[Taux Sub RPDL]]-CTu[[#This Row],[Taux Sub RCVL]]-CTu[[#This Row],[Taux Sub CD 37]]-CTu[[#This Row],[Taux Sub CD 49]]-CTu[[#This Row],[Taux Sub FPRNM]]-CTu[[#This Row],[Taux LIFE]]-CTu[[#This Row],[Taux Tiers]]-CTu[[#This Row],[Taux CO MO]]-CTu[[#This Row],[FCTVA]] -> 0.2 | CB18: =CTu[[#This Row],[Montant TTC 2026]]-(CTu[[#This Row],[Montant Sub AELB 2026]]+CTu[[#This Row],[Montant Sub RPDL 2026]]+CTu[[#This Row],[Montant Sub RCVL 2026]]+CTu[[#This Row],[Montant Sub CD 37 2026]]+CTu[[#This Row],[Montant Sub CD 49 2026]]+CTu[[#This Row],[Montant LIFE 2026]]+CTu[[#This Row],[Montant Sub FPRNM 2026]]+CTu[[#This Row],[Montant FCTVA 2026]]+CTu[[#This Row],[Tiers 2026]]+CTu[[#This Row],[Montant CO MO 2026]]) -> 900 | CC18: =CTu[[#This Row],[Montant TTC 2027]]-(CTu[[#This Row],[Montant Sub AELB 2027]]+CTu[[#This Row],[Montant Sub RPDL 2027]]+CTu[[#This Row],[Montant Sub RCVL 2027]]+CTu[[#This Row],[Montant Sub CD 37 2027]]+CTu[[#This Row],[Montant Sub CD 49 2027]]+CTu[[#This Row],[Montant LIFE 2027]]+CTu[[#This Row],[Montant Sub FPRNM 2027]]+CTu[[#This Row],[Montant FCTVA 2027]]+CTu[[#This Row],[Tiers 2027]]+CTu[[#This Row],[Montant CO MO 2027]]) -> 5520 | CD18: =CTu[[#This Row],[Montant TTC 2028]]-(CTu[[#This Row],[Montant Sub AELB 2028]]+CTu[[#This Row],[Montant Sub RPDL 2028]]+CTu[[#This Row],[Montant Sub RCVL 2028]]+CTu[[#This Row],[Montant Sub CD 37 2028]]+CTu[[#This Row],[Montant Sub CD 49 2028]]+CTu[[#This Row],[Montant LIFE 2028]]+CTu[[#This Row],[Montant Sub FPRNM 2028]]+CTu[[#This Row],[Montant FCTVA 2028]]+CTu[[#This Row],[Tiers 2028]]+CTu[[#This Row],[Montant CO MO 2028]]) -> 2520 | CE18: =CTu[[#This Row],[Autofinancement 2026]]+CTu[[#This Row],[Autofinancement 2027]]+CTu[[#This Row],[Autofinancement 2028]] -> 8940
A19: Enjeu_A | B19: A_1 | C19: A10 | D19: BV | E19: Ripisylve | F19: ATEau | G19: FCT | H19: =IF(CTu[[#This Row],[Montant HT 2026]]>0,"2026",IF(CTu[[#This Row],[Montant HT 2027]]>0,"2027",IF(CTu[[#This Row],[Montant HT 2028]]>0,"2028"))) -> 2026 | J19: 1 | K19: =CONCATENATE(CTu[[#This Row],[Objectifs opérationnels]],"_",VLOOKUP(CTu[[#This Row],[Compartiment]],compartiment[],2,)) -> A10_RIPI | L19: =CONCATENATE(CTu[[#This Row],[Objectifs opérationnels]],"_",CTu[[#This Row],[Secteur/MO]],"_",VLOOKUP(CTu[[#This Row],[Compartiment]],compartiment[],2,FALSE),"_",CTu[[#This Row],[N° Action]]) -> A10_BV_RIPI_1 | M19: =IF(CTu[[#This Row],[Année subv]]="","",CONCATENATE(CTu[[#This Row],[Objectifs opérationnels]],"_",CTu[[#This Row],[Secteur/MO]],"_",CTu[[#This Row],[Année subv]],"_",VLOOKUP(CTu[[#This Row],[Compartiment]],compartiment[],2),"_",CTu[[#This Row],[N° Action]])) ->  | N19: Entretien de la végétation préalable aux travaux 37 | O19: Entretien préalable aux travaux et études en année n-1 | P19: SMBAA | S19: 1 | T19: JBR | U19: 10000 | V19: 10000 | W19: 10000 | X19: 30000 | Y19: 12000 | Z19: 12000 | AA19: 12000 | AB19: 36000 | AC19: 0.5 | AD19: =CTu[[#This Row],[Montant TTC 2026]]*CTu[[#This Row],[Taux Sub AELB]] -> 6000 | AE19: =CTu[[#This Row],[Montant TTC 2027]]*CTu[[#This Row],[Taux Sub AELB]] -> 6000 | AF19: =CTu[[#This Row],[Montant TTC 2028]]*CTu[[#This Row],[Taux Sub AELB]] -> 6000 | AG19: =CTu[[#This Row],[Montant Sub AELB 2026]]+CTu[[#This Row],[Montant Sub AELB 2027]]+CTu[[#This Row],[Montant Sub AELB 2028]] -> 18000 | AI19: =CTu[[#This Row],[Taux Sub RPDL]]*CTu[[#This Row],[Montant TTC 2026]] -> 0 | AJ19: =CTu[[#This Row],[Taux Sub RPDL]]*CTu[[#This Row],[Montant TTC 2027]] -> 0 | AK19: =CTu[[#This Row],[Taux Sub RPDL]]*CTu[[#This Row],[Montant TTC 2028]] -> 0 | AL19: =CTu[[#This Row],[Montant Sub RPDL 2026]]+CTu[[#This Row],[Montant Sub RPDL 2027]]+CTu[[#This Row],[Montant Sub RPDL 2028]] -> 0 | AM19: 0.2 | AN19: =CTu[[#This Row],[Taux Sub RCVL]]*CTu[[#This Row],[Montant TTC 2026]] -> 2400 | AO19: =CTu[[#This Row],[Taux Sub RCVL]]*CTu[[#This Row],[Montant TTC 2027]] -> 2400 | AP19: =CTu[[#This Row],[Taux Sub RCVL]]*CTu[[#This Row],[Montant TTC 2028]] -> 2400 | AQ19: =CTu[[#This Row],[Montant Sub RCVL 2026]]+CTu[[#This Row],[Montant Sub RCVL 2027]]+CTu[[#This Row],[Montant Sub RCVL 2028]] -> 7200 | AR19: 0.1 | AS19: =CTu[[#This Row],[Taux Sub CD 37]]*CTu[[#This Row],[Montant HT 2026]] -> 1000 | AT19: =CTu[[#This Row],[Taux Sub CD 37]]*CTu[[#This Row],[Montant HT 2027]] -> 1000 | AU19: =CTu[[#This Row],[Taux Sub CD 37]]*CTu[[#This Row],[Montant HT 2028]] -> 1000 | AV19: =CTu[[#This Row],[Montant Sub CD 37 2026]]+CTu[[#This Row],[Montant Sub CD 37 2027]]+CTu[[#This Row],[Montant Sub CD 37 2028]] -> 3000 | AX19: =CTu[[#This Row],[Taux Sub CD 49]]*CTu[[#This Row],[Montant TTC 2026]] -> 0 | AY19: =CTu[[#This Row],[Taux Sub CD 49]]*CTu[[#This Row],[Montant TTC 2027]] -> 0 | AZ19: =CTu[[#This Row],[Taux Sub CD 49]]*CTu[[#This Row],[Montant TTC 2028]] -> 0 | BA19: =CTu[[#This Row],[Montant Sub CD 49 2026]]+CTu[[#This Row],[Montant Sub CD 49 2027]]+CTu[[#This Row],[Montant Sub CD 49 2028]] -> 0 | BC19: =CTu[[#This Row],[Montant TTC 2026]]*CTu[[#This Row],[Taux LIFE]] -> 0 | BD19: =CTu[[#This Row],[Montant TTC 2027]]*CTu[[#This Row],[Taux LIFE]] -> 0 | BE19: =CTu[[#This Row],[Montant TTC 2028]]*CTu[[#This Row],[Taux LIFE]] -> 0 | BF19: =CTu[[#This Row],[Montant LIFE 2026]]+CTu[[#This Row],[Montant LIFE 2027]]+CTu[[#This Row],[Montant LIFE 2028]] -> 0 | BH19: =CTu[[#This Row],[Taux Sub FPRNM]]*CTu[[#This Row],[Montant HT 2026]] -> 0 | BI19: =CTu[[#This Row],[Taux Sub FPRNM]]*CTu[[#This Row],[Montant HT 2027]] -> 0 | BJ19: =CTu[[#This Row],[Taux Sub FPRNM]]*CTu[[#This Row],[Montant HT 2028]] -> 0 | BK19: =CTu[[#This Row],[Montant Sub FPRNM 2026]]+CTu[[#This Row],[Montant Sub FPRNM 2027]]+CTu[[#This Row],[Montant Sub FPRNM 2028]] -> 0 | BM19: =CTu[[#This Row],[FCTVA]]*CTu[[#This Row],[Montant TTC 2026]] -> 0 | BN19: =CTu[[#This Row],[FCTVA]]*CTu[[#This Row],[Montant TTC 2027]] -> 0 | BO19: =CTu[[#This Row],[FCTVA]]*CTu[[#This Row],[Montant TTC 2028]] -> 0 | BP19: =CTu[[#This Row],[Montant FCTVA 2026]]+CTu[[#This Row],[Montant FCTVA 2027]]+CTu[[#This Row],[Montant FCTVA 2028]] -> 0 | BR19: =CTu[[#This Row],[Taux CO MO]]*CTu[[#This Row],[Montant TTC 2026]] -> 0 | BS19: =CTu[[#This Row],[Taux CO MO]]*CTu[[#This Row],[Montant TTC 2027]] -> 0 | BT19: =CTu[[#This Row],[Taux CO MO]]*CTu[[#This Row],[Montant TTC 2028]] -> 0 | BU19: =CTu[[#This Row],[Montant CO MO 2026]]+CTu[[#This Row],[Montant CO MO 2027]]+CTu[[#This Row],[Montant CO MO 2028]] -> 0 | BW19: =CTu[[#This Row],[Taux Tiers]]*CTu[[#This Row],[Montant TTC 2026]] -> 0 | BX19: =CTu[[#This Row],[Taux Tiers]]*CTu[[#This Row],[Montant TTC 2027]] -> 0 | BY19: =CTu[[#This Row],[Taux Tiers]]*CTu[[#This Row],[Montant TTC 2028]] -> 0 | BZ19: =CTu[[#This Row],[Tiers 2026]]+CTu[[#This Row],[Tiers 2027]]+CTu[[#This Row],[Tiers 2028]] -> 0 | CA19: =100%-CTu[[#This Row],[Taux Sub AELB]]-CTu[[#This Row],[Taux Sub RPDL]]-CTu[[#This Row],[Taux Sub RCVL]]-CTu[[#This Row],[Taux Sub CD 37]]-CTu[[#This Row],[Taux Sub CD 49]]-CTu[[#This Row],[Taux Sub FPRNM]]-CTu[[#This Row],[Taux LIFE]]-CTu[[#This Row],[Taux Tiers]]-CTu[[#This Row],[Taux CO MO]]-CTu[[#This Row],[FCTVA]] -> 0.2 | CB19: =CTu[[#This Row],[Montant TTC 2026]]-(CTu[[#This Row],[Montant Sub AELB 2026]]+CTu[[#This Row],[Montant Sub RPDL 2026]]+CTu[[#This Row],[Montant Sub RCVL 2026]]+CTu[[#This Row],[Montant Sub CD 37 2026]]+CTu[[#This Row],[Montant Sub CD 49 2026]]+CTu[[#This Row],[Montant LIFE 2026]]+CTu[[#This Row],[Montant Sub FPRNM 2026]]+CTu[[#This Row],[Montant FCTVA 2026]]+CTu[[#This Row],[Tiers 2026]]+CTu[[#This Row],[Montant CO MO 2026]]) -> 2600 | CC19: =CTu[[#This Row],[Montant TTC 2027]]-(CTu[[#This Row],[Montant Sub AELB 2027]]+CTu[[#This Row],[Montant Sub RPDL 2027]]+CTu[[#This Row],[Montant Sub RCVL 2027]]+CTu[[#This Row],[Montant Sub CD 37 2027]]+CTu[[#This Row],[Montant Sub CD 49 2027]]+CTu[[#This Row],[Montant LIFE 2027]]+CTu[[#This Row],[Montant Sub FPRNM 2027]]+CTu[[#This Row],[Montant FCTVA 2027]]+CTu[[#This Row],[Tiers 2027]]+CTu[[#This Row],[Montant CO MO 2027]]) -> 2600 | CD19: =CTu[[#This Row],[Montant TTC 2028]]-(CTu[[#This Row],[Montant Sub AELB 2028]]+CTu[[#This Row],[Montant Sub RPDL 2028]]+CTu[[#This Row],[Montant Sub RCVL 2028]]+CTu[[#This Row],[Montant Sub CD 37 2028]]+CTu[[#This Row],[Montant Sub CD 49 2028]]+CTu[[#This Row],[Montant LIFE 2028]]+CTu[[#This Row],[Montant Sub FPRNM 2028]]+CTu[[#This Row],[Montant FCTVA 2028]]+CTu[[#This Row],[Tiers 2028]]+CTu[[#This Row],[Montant CO MO 2028]]) -> 2600 | CE19: =CTu[[#This Row],[Autofinancement 2026]]+CTu[[#This Row],[Autofinancement 2027]]+CTu[[#This Row],[Autofinancement 2028]] -> 7800
A20: Enjeu_A | B20: A_1 | C20: A10 | D20: BV | E20: Ripisylve | F20: ATEau | G20: FCT | H20: =IF(CTu[[#This Row],[Montant HT 2026]]>0,"2026",IF(CTu[[#This Row],[Montant HT 2027]]>0,"2027",IF(CTu[[#This Row],[Montant HT 2028]]>0,"2028"))) -> 2026 | J20: 2 | K20: =CONCATENATE(CTu[[#This Row],[Objectifs opérationnels]],"_",VLOOKUP(CTu[[#This Row],[Compartiment]],compartiment[],2,)) -> A10_RIPI | L20: =CONCATENATE(CTu[[#This Row],[Objectifs opérationnels]],"_",CTu[[#This Row],[Secteur/MO]],"_",VLOOKUP(CTu[[#This Row],[Compartiment]],compartiment[],2,FALSE),"_",CTu[[#This Row],[N° Action]]) -> A10_BV_RIPI_2 | M20: =IF(CTu[[#This Row],[Année subv]]="","",CONCATENATE(CTu[[#This Row],[Objectifs opérationnels]],"_",CTu[[#This Row],[Secteur/MO]],"_",CTu[[#This Row],[Année subv]],"_",VLOOKUP(CTu[[#This Row],[Compartiment]],compartiment[],2),"_",CTu[[#This Row],[N° Action]])) ->  | N20: Entretien de la végétation préalable aux travaux 49 | O20: Entretien préalable aux travaux et études en année n-1 | P20: SMBAA | S20: 1 | T20: OB | U20: 20000 | V20: 20000 | W20: 20000 | X20: 60000 | Y20: 24000 | Z20: 24000 | AA20: 24000 | AB20: 72000 | AC20: 0.5 | AD20: =CTu[[#This Row],[Montant TTC 2026]]*CTu[[#This Row],[Taux Sub AELB]] -> 12000 | AE20: =CTu[[#This Row],[Montant TTC 2027]]*CTu[[#This Row],[Taux Sub AELB]] -> 12000 | AF20: =CTu[[#This Row],[Montant TTC 2028]]*CTu[[#This Row],[Taux Sub AELB]] -> 12000 | AG20: =CTu[[#This Row],[Montant Sub AELB 2026]]+CTu[[#This Row],[Montant Sub AELB 2027]]+CTu[[#This Row],[Montant Sub AELB 2028]] -> 36000 | AH20: 0.3 | AI20: =CTu[[#This Row],[Taux Sub RPDL]]*CTu[[#This Row],[Montant TTC 2026]] -> 7200 | AJ20: =CTu[[#This Row],[Taux Sub RPDL]]*CTu[[#This Row],[Montant TTC 2027]] -> 7200 | AK20: =CTu[[#This Row],[Taux Sub RPDL]]*CTu[[#This Row],[Montant TTC 2028]] -> 7200 | AL20: =CTu[[#This Row],[Montant Sub RPDL 2026]]+CTu[[#This Row],[Montant Sub RPDL 2027]]+CTu[[#This Row],[Montant Sub RPDL 2028]] -> 21600 | AN20: =CTu[[#This Row],[Taux Sub RCVL]]*CTu[[#This Row],[Montant TTC 2026]] -> 0 | AO20: =CTu[[#This Row],[Taux Sub RCVL]]*CTu[[#This Row],[Montant TTC 2027]] -> 0 | AP20: =CTu[[#This Row],[Taux Sub RCVL]]*CTu[[#This Row],[Montant TTC 2028]] -> 0 | AQ20: =CTu[[#This Row],[Montant Sub RCVL 2026]]+CTu[[#This Row],[Montant Sub RCVL 2027]]+CTu[[#This Row],[Montant Sub RCVL 2028]] -> 0 | AS20: =CTu[[#This Row],[Taux Sub CD 37]]*CTu[[#This Row],[Montant HT 2026]] -> 0 | AT20: =CTu[[#This Row],[Taux Sub CD 37]]*CTu[[#This Row],[Montant HT 2027]] -> 0 | AU20: =CTu[[#This Row],[Taux Sub CD 37]]*CTu[[#This Row],[Montant HT 2028]] -> 0 | AV20: =CTu[[#This Row],[Montant Sub CD 37 2026]]+CTu[[#This Row],[Montant Sub CD 37 2027]]+CTu[[#This Row],[Montant Sub CD 37 2028]] -> 0 | AX20: =CTu[[#This Row],[Taux Sub CD 49]]*CTu[[#This Row],[Montant TTC 2026]] -> 0 | AY20: =CTu[[#This Row],[Taux Sub CD 49]]*CTu[[#This Row],[Montant TTC 2027]] -> 0 | AZ20: =CTu[[#This Row],[Taux Sub CD 49]]*CTu[[#This Row],[Montant TTC 2028]] -> 0 | BA20: =CTu[[#This Row],[Montant Sub CD 49 2026]]+CTu[[#This Row],[Montant Sub CD 49 2027]]+CTu[[#This Row],[Montant Sub CD 49 2028]] -> 0 | BC20: =CTu[[#This Row],[Montant TTC 2026]]*CTu[[#This Row],[Taux LIFE]] -> 0 | BD20: =CTu[[#This Row],[Montant TTC 2027]]*CTu[[#This Row],[Taux LIFE]] -> 0 | BE20: =CTu[[#This Row],[Montant TTC 2028]]*CTu[[#This Row],[Taux LIFE]] -> 0 | BF20: =CTu[[#This Row],[Montant LIFE 2026]]+CTu[[#This Row],[Montant LIFE 2027]]+CTu[[#This Row],[Montant LIFE 2028]] -> 0 | BH20: =CTu[[#This Row],[Taux Sub FPRNM]]*CTu[[#This Row],[Montant HT 2026]] -> 0 | BI20: =CTu[[#This Row],[Taux Sub FPRNM]]*CTu[[#This Row],[Montant HT 2027]] -> 0 | BJ20: =CTu[[#This Row],[Taux Sub FPRNM]]*CTu[[#This Row],[Montant HT 2028]] -> 0 | BK20: =CTu[[#This Row],[Montant Sub FPRNM 2026]]+CTu[[#This Row],[Montant Sub FPRNM 2027]]+CTu[[#This Row],[Montant Sub FPRNM 2028]] -> 0 | BM20: =CTu[[#This Row],[FCTVA]]*CTu[[#This Row],[Montant TTC 2026]] -> 0 | BN20: =CTu[[#This Row],[FCTVA]]*CTu[[#This Row],[Montant TTC 2027]] -> 0 | BO20: =CTu[[#This Row],[FCTVA]]*CTu[[#This Row],[Montant TTC 2028]] -> 0 | BP20: =CTu[[#This Row],[Montant FCTVA 2026]]+CTu[[#This Row],[Montant FCTVA 2027]]+CTu[[#This Row],[Montant FCTVA 2028]] -> 0 | BR20: =CTu[[#This Row],[Taux CO MO]]*CTu[[#This Row],[Montant TTC 2026]] -> 0 | BS20: =CTu[[#This Row],[Taux CO MO]]*CTu[[#This Row],[Montant TTC 2027]] -> 0 | BT20: =CTu[[#This Row],[Taux CO MO]]*CTu[[#This Row],[Montant TTC 2028]] -> 0 | BU20: =CTu[[#This Row],[Montant CO MO 2026]]+CTu[[#This Row],[Montant CO MO 2027]]+CTu[[#This Row],[Montant CO MO 2028]] -> 0 | BW20: =CTu[[#This Row],[Taux Tiers]]*CTu[[#This Row],[Montant TTC 2026]] -> 0 | BX20: =CTu[[#This Row],[Taux Tiers]]*CTu[[#This Row],[Montant TTC 2027]] -> 0 | BY20: =CTu[[#This Row],[Taux Tiers]]*CTu[[#This Row],[Montant TTC 2028]] -> 0 | BZ20: =CTu[[#This Row],[Tiers 2026]]+CTu[[#This Row],[Tiers 2027]]+CTu[[#This Row],[Tiers 2028]] -> 0 | CA20: =100%-CTu[[#This Row],[Taux Sub AELB]]-CTu[[#This Row],[Taux Sub RPDL]]-CTu[[#This Row],[Taux Sub RCVL]]-CTu[[#This Row],[Taux Sub CD 37]]-CTu[[#This Row],[Taux Sub CD 49]]-CTu[[#This Row],[Taux Sub FPRNM]]-CTu[[#This Row],[Taux LIFE]]-CTu[[#This Row],[Taux Tiers]]-CTu[[#This Row],[Taux CO MO]]-CTu[[#This Row],[FCTVA]] -> 0.2 | CB20: =CTu[[#This Row],[Montant TTC 2026]]-(CTu[[#This Row],[Montant Sub AELB 2026]]+CTu[[#This Row],[Montant Sub RPDL 2026]]+CTu[[#This Row],[Montant Sub RCVL 2026]]+CTu[[#This Row],[Montant Sub CD 37 2026]]+CTu[[#This Row],[Montant Sub CD 49 2026]]+CTu[[#This Row],[Montant LIFE 2026]]+CTu[[#This Row],[Montant Sub FPRNM 2026]]+CTu[[#This Row],[Montant FCTVA 2026]]+CTu[[#This Row],[Tiers 2026]]+CTu[[#This Row],[Montant CO MO 2026]]) -> 4800 | CC20: =CTu[[#This Row],[Montant TTC 2027]]-(CTu[[#This Row],[Montant Sub AELB 2027]]+CTu[[#This Row],[Montant Sub RPDL 2027]]+CTu[[#This Row],[Montant Sub RCVL 2027]]+CTu[[#This Row],[Montant Sub CD 37 2027]]+CTu[[#This Row],[Montant Sub CD 49 2027]]+CTu[[#This Row],[Montant LIFE 2027]]+CTu[[#This Row],[Montant Sub FPRNM 2027]]+CTu[[#This Row],[Montant FCTVA 2027]]+CTu[[#This Row],[Tiers 2027]]+CTu[[#This Row],[Montant CO MO 2027]]) -> 4800 | CD20: =CTu[[#This Row],[Montant TTC 2028]]-(CTu[[#This Row],[Montant Sub AELB 2028]]+CTu[[#This Row],[Montant Sub RPDL 2028]]+CTu[[#This Row],[Montant Sub RCVL 2028]]+CTu[[#This Row],[Montant Sub CD 37 2028]]+CTu[[#This Row],[Montant Sub CD 49 2028]]+CTu[[#This Row],[Montant LIFE 2028]]+CTu[[#This Row],[Montant Sub FPRNM 2028]]+CTu[[#This Row],[Montant FCTVA 2028]]+CTu[[#This Row],[Tiers 2028]]+CTu[[#This Row],[Montant CO MO 2028]]) -> 4800 | CE20: =CTu[[#This Row],[Autofinancement 2026]]+CTu[[#This Row],[Autofinancement 2027]]+CTu[[#This Row],[Autofinancement 2028]] -> 14400
A21: Enjeu_A | B21: A_1 | C21: A10 | D21: COU | E21: Lit mineur | F21: ATEau | G21: FCT | H21: =IF(CTu[[#This Row],[Montant HT 2026]]>0,"2026",IF(CTu[[#This Row],[Montant HT 2027]]>0,"2027",IF(CTu[[#This Row],[Montant HT 2028]]>0,"2028"))) -> 2026 | J21: 1 | K21: =CONCATENATE(CTu[[#This Row],[Objectifs opérationnels]],"_",VLOOKUP(CTu[[#This Row],[Compartiment]],compartiment[],2,)) -> A10_LMI | L21: =CONCATENATE(CTu[[#This Row],[Objectifs opérationnels]],"_",CTu[[#This Row],[Secteur/MO]],"_",VLOOKUP(CTu[[#This Row],[Compartiment]],compartiment[],2,FALSE),"_",CTu[[#This Row],[N° Action]]) -> A10_COU_LMI_1 | M21: =IF(CTu[[#This Row],[Année subv]]="","",CONCATENATE(CTu[[#This Row],[Objectifs opérationnels]],"_",CTu[[#This Row],[Secteur/MO]],"_",CTu[[#This Row],[Année subv]],"_",VLOOKUP(CTu[[#This Row],[Compartiment]],compartiment[],2),"_",CTu[[#This Row],[N° Action]])) ->  | N21: Travaux pour la renaturation du Tarry entre Jarzé et Fontaine-Milon | O21: De la route des écuries de Chaumont à Jarzé, jusqu'à la route D61 à Fontaine-Milon | P21: SMBAA | S21: 1 | T21: RCH | U21: 208333.3333 | V21: 208333.3333 | X21: 416666.6667 | Y21: 250000 | Z21: 250000 | AA21: 0 | AB21: 500000 | AC21: 0.5 | AD21: =CTu[[#This Row],[Montant TTC 2026]]*CTu[[#This Row],[Taux Sub AELB]] -> 125000 | AE21: =CTu[[#This Row],[Montant TTC 2027]]*CTu[[#This Row],[Taux Sub AELB]] -> 125000 | AF21: =CTu[[#This Row],[Montant TTC 2028]]*CTu[[#This Row],[Taux Sub AELB]] -> 0 | AG21: =CTu[[#This Row],[Montant Sub AELB 2026]]+CTu[[#This Row],[Montant Sub AELB 2027]]+CTu[[#This Row],[Montant Sub AELB 2028]] -> 250000 | AH21: 0.3 | AI21: =CTu[[#This Row],[Taux Sub RPDL]]*CTu[[#This Row],[Montant TTC 2026]] -> 75000 | AJ21: =CTu[[#This Row],[Taux Sub RPDL]]*CTu[[#This Row],[Montant TTC 2027]] -> 75000 | AK21: =CTu[[#This Row],[Taux Sub RPDL]]*CTu[[#This Row],[Montant TTC 2028]] -> 0 | AL21: =CTu[[#This Row],[Montant Sub RPDL 2026]]+CTu[[#This Row],[Montant Sub RPDL 2027]]+CTu[[#This Row],[Montant Sub RPDL 2028]] -> 150000 | AN21: =CTu[[#This Row],[Taux Sub RCVL]]*CTu[[#This Row],[Montant TTC 2026]] -> 0 | AO21: =CTu[[#This Row],[Taux Sub RCVL]]*CTu[[#This Row],[Montant TTC 2027]] -> 0 | AP21: =CTu[[#This Row],[Taux Sub RCVL]]*CTu[[#This Row],[Montant TTC 2028]] -> 0 | AQ21: =CTu[[#This Row],[Montant Sub RCVL 2026]]+CTu[[#This Row],[Montant Sub RCVL 2027]]+CTu[[#This Row],[Montant Sub RCVL 2028]] -> 0 | AS21: =CTu[[#This Row],[Taux Sub CD 37]]*CTu[[#This Row],[Montant HT 2026]] -> 0 | AT21: =CTu[[#This Row],[Taux Sub CD 37]]*CTu[[#This Row],[Montant HT 2027]] -> 0 | AU21: =CTu[[#This Row],[Taux Sub CD 37]]*CTu[[#This Row],[Montant HT 2028]] -> 0 | AV21: =CTu[[#This Row],[Montant Sub CD 37 2026]]+CTu[[#This Row],[Montant Sub CD 37 2027]]+CTu[[#This Row],[Montant Sub CD 37 2028]] -> 0 | AX21: =CTu[[#This Row],[Taux Sub CD 49]]*CTu[[#This Row],[Montant TTC 2026]] -> 0 | AY21: =CTu[[#This Row],[Taux Sub CD 49]]*CTu[[#This Row],[Montant TTC 2027]] -> 0 | AZ21: =CTu[[#This Row],[Taux Sub CD 49]]*CTu[[#This Row],[Montant TTC 2028]] -> 0 | BA21: =CTu[[#This Row],[Montant Sub CD 49 2026]]+CTu[[#This Row],[Montant Sub CD 49 2027]]+CTu[[#This Row],[Montant Sub CD 49 2028]] -> 0 | BC21: =CTu[[#This Row],[Montant TTC 2026]]*CTu[[#This Row],[Taux LIFE]] -> 0 | BD21: =CTu[[#This Row],[Montant TTC 2027]]*CTu[[#This Row],[Taux LIFE]] -> 0 | BE21: =CTu[[#This Row],[Montant TTC 2028]]*CTu[[#This Row],[Taux LIFE]] -> 0 | BF21: =CTu[[#This Row],[Montant LIFE 2026]]+CTu[[#This Row],[Montant LIFE 2027]]+CTu[[#This Row],[Montant LIFE 2028]] -> 0 | BH21: =CTu[[#This Row],[Taux Sub FPRNM]]*CTu[[#This Row],[Montant HT 2026]] -> 0 | BI21: =CTu[[#This Row],[Taux Sub FPRNM]]*CTu[[#This Row],[Montant HT 2027]] -> 0 | BJ21: =CTu[[#This Row],[Taux Sub FPRNM]]*CTu[[#This Row],[Montant HT 2028]] -> 0 | BK21: =CTu[[#This Row],[Montant Sub FPRNM 2026]]+CTu[[#This Row],[Montant Sub FPRNM 2027]]+CTu[[#This Row],[Montant Sub FPRNM 2028]] -> 0 | BM21: =CTu[[#This Row],[FCTVA]]*CTu[[#This Row],[Montant TTC 2026]] -> 0 | BN21: =CTu[[#This Row],[FCTVA]]*CTu[[#This Row],[Montant TTC 2027]] -> 0 | BO21: =CTu[[#This Row],[FCTVA]]*CTu[[#This Row],[Montant TTC 2028]] -> 0 | BP21: =CTu[[#This Row],[Montant FCTVA 2026]]+CTu[[#This Row],[Montant FCTVA 2027]]+CTu[[#This Row],[Montant FCTVA 2028]] -> 0 | BR21: =CTu[[#This Row],[Taux CO MO]]*CTu[[#This Row],[Montant TTC 2026]] -> 0 | BS21: =CTu[[#This Row],[Taux CO MO]]*CTu[[#This Row],[Montant TTC 2027]] -> 0 | BT21: =CTu[[#This Row],[Taux CO MO]]*CTu[[#This Row],[Montant TTC 2028]] -> 0 | BU21: =CTu[[#This Row],[Montant CO MO 2026]]+CTu[[#This Row],[Montant CO MO 2027]]+CTu[[#This Row],[Montant CO MO 2028]] -> 0 | BW21: =CTu[[#This Row],[Taux Tiers]]*CTu[[#This Row],[Montant TTC 2026]] -> 0 | BX21: =CTu[[#This Row],[Taux Tiers]]*CTu[[#This Row],[Montant TTC 2027]] -> 0 | BY21: =CTu[[#This Row],[Taux Tiers]]*CTu[[#This Row],[Montant TTC 2028]] -> 0 | BZ21: =CTu[[#This Row],[Tiers 2026]]+CTu[[#This Row],[Tiers 2027]]+CTu[[#This Row],[Tiers 2028]] -> 0 | CA21: =100%-CTu[[#This Row],[Taux Sub AELB]]-CTu[[#This Row],[Taux Sub RPDL]]-CTu[[#This Row],[Taux Sub RCVL]]-CTu[[#This Row],[Taux Sub CD 37]]-CTu[[#This Row],[Taux Sub CD 49]]-CTu[[#This Row],[Taux Sub FPRNM]]-CTu[[#This Row],[Taux LIFE]]-CTu[[#This Row],[Taux Tiers]]-CTu[[#This Row],[Taux CO MO]]-CTu[[#This Row],[FCTVA]] -> 0.2 | CB21: =CTu[[#This Row],[Montant TTC 2026]]-(CTu[[#This Row],[Montant Sub AELB 2026]]+CTu[[#This Row],[Montant Sub RPDL 2026]]+CTu[[#This Row],[Montant Sub RCVL 2026]]+CTu[[#This Row],[Montant Sub CD 37 2026]]+CTu[[#This Row],[Montant Sub CD 49 2026]]+CTu[[#This Row],[Montant LIFE 2026]]+CTu[[#This Row],[Montant Sub FPRNM 2026]]+CTu[[#This Row],[Montant FCTVA 2026]]+CTu[[#This Row],[Tiers 2026]]+CTu[[#This Row],[Montant CO MO 2026]]) -> 50000 | CC21: =CTu[[#This Row],[Montant TTC 2027]]-(CTu[[#This Row],[Montant Sub AELB 2027]]+CTu[[#This Row],[Montant Sub RPDL 2027]]+CTu[[#This Row],[Montant Sub RCVL 2027]]+CTu[[#This Row],[Montant Sub CD 37 2027]]+CTu[[#This Row],[Montant Sub CD 49 2027]]+CTu[[#This Row],[Montant LIFE 2027]]+CTu[[#This Row],[Montant Sub FPRNM 2027]]+CTu[[#This Row],[Montant FCTVA 2027]]+CTu[[#This Row],[Tiers 2027]]+CTu[[#This Row],[Montant CO MO 2027]]) -> 50000 | CD21: =CTu[[#This Row],[Montant TTC 2028]]-(CTu[[#This Row],[Montant Sub AELB 2028]]+CTu[[#This Row],[Montant Sub RPDL 2028]]+CTu[[#This Row],[Montant Sub RCVL 2028]]+CTu[[#This Row],[Montant Sub CD 37 2028]]+CTu[[#This Row],[Montant Sub CD 49 2028]]+CTu[[#This Row],[Montant LIFE 2028]]+CTu[[#This Row],[Montant Sub FPRNM 2028]]+CTu[[#This Row],[Montant FCTVA 2028]]+CTu[[#This Row],[Tiers 2028]]+CTu[[#This Row],[Montant CO MO 2028]]) -> 0 | CE21: =CTu[[#This Row],[Autofinancement 2026]]+CTu[[#This Row],[Autofinancement 2027]]+CTu[[#This Row],[Autofinancement 2028]] -> 100000
A22: Enjeu_A | B22: A_1 | C22: A10 | D22: COU | E22: Lit mineur | F22: ATEau | G22: FCT | H22: =IF(CTu[[#This Row],[Montant HT 2026]]>0,"2026",IF(CTu[[#This Row],[Montant HT 2027]]>0,"2027",IF(CTu[[#This Row],[Montant HT 2028]]>0,"2028"))) -> 2028 | J22: 2 | K22: =CONCATENATE(CTu[[#This Row],[Objectifs opérationnels]],"_",VLOOKUP(CTu[[#This Row],[Compartiment]],compartiment[],2,)) -> A10_LMI | L22: =CONCATENATE(CTu[[#This Row],[Objectifs opérationnels]],"_",CTu[[#This Row],[Secteur/MO]],"_",VLOOKUP(CTu[[#This Row],[Compartiment]],compartiment[],2,FALSE),"_",CTu[[#This Row],[N° Action]]) -> A10_COU_LMI_2 | M22: =IF(CTu[[#This Row],[Année subv]]="","",CONCATENATE(CTu[[#This Row],[Objectifs opérationnels]],"_",CTu[[#This Row],[Secteur/MO]],"_",CTu[[#This Row],[Année subv]],"_",VLOOKUP(CTu[[#This Row],[Compartiment]],compartiment[],2),"_",CTu[[#This Row],[N° Action]])) ->  | N22: Travaux pour la renaturation du ruisseau des Aulnaies - Partie Aval | O22: 2027 - De la route de la Saint-Gilles à la D347 2028 - de la D347 à | P22: SMBAA | S22: 1 | T22: RCH | W22: 150000 | X22: 150000 | Y22: 0 | Z22: 0 | AA22: 180000 | AB22: 180000 | AC22: 0.5 | AD22: =CTu[[#This Row],[Montant TTC 2026]]*CTu[[#This Row],[Taux Sub AELB]] -> 0 | AE22: =CTu[[#This Row],[Montant TTC 2027]]*CTu[[#This Row],[Taux Sub AELB]] -> 0 | AF22: =CTu[[#This Row],[Montant TTC 2028]]*CTu[[#This Row],[Taux Sub AELB]] -> 90000 | AG22: =CTu[[#This Row],[Montant Sub AELB 2026]]+CTu[[#This Row],[Montant Sub AELB 2027]]+CTu[[#This Row],[Montant Sub AELB 2028]] -> 90000 | AH22: 0.3 | AI22: =CTu[[#This Row],[Taux Sub RPDL]]*CTu[[#This Row],[Montant TTC 2026]] -> 0 | AJ22: =CTu[[#This Row],[Taux Sub RPDL]]*CTu[[#This Row],[Montant TTC 2027]] -> 0 | AK22: =CTu[[#This Row],[Taux Sub RPDL]]*CTu[[#This Row],[Montant TTC 2028]] -> 54000 | AL22: =CTu[[#This Row],[Montant Sub RPDL 2026]]+CTu[[#This Row],[Montant Sub RPDL 2027]]+CTu[[#This Row],[Montant Sub RPDL 2028]] -> 54000 | AN22: =CTu[[#This Row],[Taux Sub RCVL]]*CTu[[#This Row],[Montant TTC 2026]] -> 0 | AO22: =CTu[[#This Row],[Taux Sub RCVL]]*CTu[[#This Row],[Montant TTC 2027]] -> 0 | AP22: =CTu[[#This Row],[Taux Sub RCVL]]*CTu[[#This Row],[Montant TTC 2028]] -> 0 | AQ22: =CTu[[#This Row],[Montant Sub RCVL 2026]]+CTu[[#This Row],[Montant Sub RCVL 2027]]+CTu[[#This Row],[Montant Sub RCVL 2028]] -> 0 | AS22: =CTu[[#This Row],[Taux Sub CD 37]]*CTu[[#This Row],[Montant HT 2026]] -> 0 | AT22: =CTu[[#This Row],[Taux Sub CD 37]]*CTu[[#This Row],[Montant HT 2027]] -> 0 | AU22: =CTu[[#This Row],[Taux Sub CD 37]]*CTu[[#This Row],[Montant HT 2028]] -> 0 | AV22: =CTu[[#This Row],[Montant Sub CD 37 2026]]+CTu[[#This Row],[Montant Sub CD 37 2027]]+CTu[[#This Row],[Montant Sub CD 37 2028]] -> 0 | AX22: =CTu[[#This Row],[Taux Sub CD 49]]*CTu[[#This Row],[Montant TTC 2026]] -> 0 | AY22: =CTu[[#This Row],[Taux Sub CD 49]]*CTu[[#This Row],[Montant TTC 2027]] -> 0 | AZ22: =CTu[[#This Row],[Taux Sub CD 49]]*CTu[[#This Row],[Montant TTC 2028]] -> 0 | BA22: =CTu[[#This Row],[Montant Sub CD 49 2026]]+CTu[[#This Row],[Montant Sub CD 49 2027]]+CTu[[#This Row],[Montant Sub CD 49 2028]] -> 0 | BC22: =CTu[[#This Row],[Montant TTC 2026]]*CTu[[#This Row],[Taux LIFE]] -> 0 | BD22: =CTu[[#This Row],[Montant TTC 2027]]*CTu[[#This Row],[Taux LIFE]] -> 0 | BE22: =CTu[[#This Row],[Montant TTC 2028]]*CTu[[#This Row],[Taux LIFE]] -> 0 | BF22: =CTu[[#This Row],[Montant LIFE 2026]]+CTu[[#This Row],[Montant LIFE 2027]]+CTu[[#This Row],[Montant LIFE 2028]] -> 0 | BH22: =CTu[[#This Row],[Taux Sub FPRNM]]*CTu[[#This Row],[Montant HT 2026]] -> 0 | BI22: =CTu[[#This Row],[Taux Sub FPRNM]]*CTu[[#This Row],[Montant HT 2027]] -> 0 | BJ22: =CTu[[#This Row],[Taux Sub FPRNM]]*CTu[[#This Row],[Montant HT 2028]] -> 0 | BK22: =CTu[[#This Row],[Montant Sub FPRNM 2026]]+CTu[[#This Row],[Montant Sub FPRNM 2027]]+CTu[[#This Row],[Montant Sub FPRNM 2028]] -> 0 | BM22: =CTu[[#This Row],[FCTVA]]*CTu[[#This Row],[Montant TTC 2026]] -> 0 | BN22: =CTu[[#This Row],[FCTVA]]*CTu[[#This Row],[Montant TTC 2027]] -> 0 | BO22: =CTu[[#This Row],[FCTVA]]*CTu[[#This Row],[Montant TTC 2028]] -> 0 | BP22: =CTu[[#This Row],[Montant FCTVA 2026]]+CTu[[#This Row],[Montant FCTVA 2027]]+CTu[[#This Row],[Montant FCTVA 2028]] -> 0 | BR22: =CTu[[#This Row],[Taux CO MO]]*CTu[[#This Row],[Montant TTC 2026]] -> 0 | BS22: =CTu[[#This Row],[Taux CO MO]]*CTu[[#This Row],[Montant TTC 2027]] -> 0 | BT22: =CTu[[#This Row],[Taux CO MO]]*CTu[[#This Row],[Montant TTC 2028]] -> 0 | BU22: =CTu[[#This Row],[Montant CO MO 2026]]+CTu[[#This Row],[Montant CO MO 2027]]+CTu[[#This Row],[Montant CO MO 2028]] -> 0 | BW22: =CTu[[#This Row],[Taux Tiers]]*CTu[[#This Row],[Montant TTC 2026]] -> 0 | BX22: =CTu[[#This Row],[Taux Tiers]]*CTu[[#This Row],[Montant TTC 2027]] -> 0 | BY22: =CTu[[#This Row],[Taux Tiers]]*CTu[[#This Row],[Montant TTC 2028]] -> 0 | BZ22: =CTu[[#This Row],[Tiers 2026]]+CTu[[#This Row],[Tiers 2027]]+CTu[[#This Row],[Tiers 2028]] -> 0 | CA22: =100%-CTu[[#This Row],[Taux Sub AELB]]-CTu[[#This Row],[Taux Sub RPDL]]-CTu[[#This Row],[Taux Sub RCVL]]-CTu[[#This Row],[Taux Sub CD 37]]-CTu[[#This Row],[Taux Sub CD 49]]-CTu[[#This Row],[Taux Sub FPRNM]]-CTu[[#This Row],[Taux LIFE]]-CTu[[#This Row],[Taux Tiers]]-CTu[[#This Row],[Taux CO MO]]-CTu[[#This Row],[FCTVA]] -> 0.2 | CB22: =CTu[[#This Row],[Montant TTC 2026]]-(CTu[[#This Row],[Montant Sub AELB 2026]]+CTu[[#This Row],[Montant Sub RPDL 2026]]+CTu[[#This Row],[Montant Sub RCVL 2026]]+CTu[[#This Row],[Montant Sub CD 37 2026]]+CTu[[#This Row],[Montant Sub CD 49 2026]]+CTu[[#This Row],[Montant LIFE 2026]]+CTu[[#This Row],[Montant Sub FPRNM 2026]]+CTu[[#This Row],[Montant FCTVA 2026]]+CTu[[#This Row],[Tiers 2026]]+CTu[[#This Row],[Montant CO MO 2026]]) -> 0 | CC22: =CTu[[#This Row],[Montant TTC 2027]]-(CTu[[#This Row],[Montant Sub AELB 2027]]+CTu[[#This Row],[Montant Sub RPDL 2027]]+CTu[[#This Row],[Montant Sub RCVL 2027]]+CTu[[#This Row],[Montant Sub CD 37 2027]]+CTu[[#This Row],[Montant Sub CD 49 2027]]+CTu[[#This Row],[Montant LIFE 2027]]+CTu[[#This Row],[Montant Sub FPRNM 2027]]+CTu[[#This Row],[Montant FCTVA 2027]]+CTu[[#This Row],[Tiers 2027]]+CTu[[#This Row],[Montant CO MO 2027]]) -> 0 | CD22: =CTu[[#This Row],[Montant TTC 2028]]-(CTu[[#This Row],[Montant Sub AELB 2028]]+CTu[[#This Row],[Montant Sub RPDL 2028]]+CTu[[#This Row],[Montant Sub RCVL 2028]]+CTu[[#This Row],[Montant Sub CD 37 2028]]+CTu[[#This Row],[Montant Sub CD 49 2028]]+CTu[[#This Row],[Montant LIFE 2028]]+CTu[[#This Row],[Montant Sub FPRNM 2028]]+CTu[[#This Row],[Montant FCTVA 2028]]+CTu[[#This Row],[Tiers 2028]]+CTu[[#This Row],[Montant CO MO 2028]]) -> 36000 | CE22: =CTu[[#This Row],[Autofinancement 2026]]+CTu[[#This Row],[Autofinancement 2027]]+CTu[[#This Row],[Autofinancement 2028]] -> 36000
A23: Enjeu_A | B23: A_1 | C23: A10 | D23: LAT | E23: Étude | F23: ATEau | G23: FCT | H23: =IF(CTu[[#This Row],[Montant HT 2026]]>0,"2026",IF(CTu[[#This Row],[Montant HT 2027]]>0,"2027",IF(CTu[[#This Row],[Montant HT 2028]]>0,"2028"))) -> 2028 | J23: 1 | K23: =CONCATENATE(CTu[[#This Row],[Objectifs opérationnels]],"_",VLOOKUP(CTu[[#This Row],[Compartiment]],compartiment[],2,)) -> A10_ETU | L23: =CONCATENATE(CTu[[#This Row],[Objectifs opérationnels]],"_",CTu[[#This Row],[Secteur/MO]],"_",VLOOKUP(CTu[[#This Row],[Compartiment]],compartiment[],2,FALSE),"_",CTu[[#This Row],[N° Action]]) -> A10_LAT_ETU_1 | M23: =IF(CTu[[#This Row],[Année subv]]="","",CONCATENATE(CTu[[#This Row],[Objectifs opérationnels]],"_",CTu[[#This Row],[Secteur/MO]],"_",CTu[[#This Row],[Année subv]],"_",VLOOKUP(CTu[[#This Row],[Compartiment]],compartiment[],2),"_",CTu[[#This Row],[N° Action]])) ->  | N23: étude Restauration de la continuité écologique entre le Pont des Planches et Monnaie OU de la Charmille à Grange Marie - ME Lathan aval | O23: Restauration du lit, de la continuité et reconnexion au champ majeur 2 ouvrages concernés par site / Environ 2,5 à 3 km (13 € ml) | P23: SMBAA | S23: 1 | T23: OB | W23: 40000 | X23: 40000 | Y23: 0 | Z23: 0 | AA23: 48000 | AB23: 48000 | AC23: 0.5 | AD23: =CTu[[#This Row],[Montant TTC 2026]]*CTu[[#This Row],[Taux Sub AELB]] -> 0 | AE23: =CTu[[#This Row],[Montant TTC 2027]]*CTu[[#This Row],[Taux Sub AELB]] -> 0 | AF23: =CTu[[#This Row],[Montant TTC 2028]]*CTu[[#This Row],[Taux Sub AELB]] -> 24000 | AG23: =CTu[[#This Row],[Montant Sub AELB 2026]]+CTu[[#This Row],[Montant Sub AELB 2027]]+CTu[[#This Row],[Montant Sub AELB 2028]] -> 24000 | AH23: 0.3 | AI23: =CTu[[#This Row],[Taux Sub RPDL]]*CTu[[#This Row],[Montant TTC 2026]] -> 0 | AJ23: =CTu[[#This Row],[Taux Sub RPDL]]*CTu[[#This Row],[Montant TTC 2027]] -> 0 | AK23: =CTu[[#This Row],[Taux Sub RPDL]]*CTu[[#This Row],[Montant TTC 2028]] -> 14400 | AL23: =CTu[[#This Row],[Montant Sub RPDL 2026]]+CTu[[#This Row],[Montant Sub RPDL 2027]]+CTu[[#This Row],[Montant Sub RPDL 2028]] -> 14400 | AN23: =CTu[[#This Row],[Taux Sub RCVL]]*CTu[[#This Row],[Montant TTC 2026]] -> 0 | AO23: =CTu[[#This Row],[Taux Sub RCVL]]*CTu[[#This Row],[Montant TTC 2027]] -> 0 | AP23: =CTu[[#This Row],[Taux Sub RCVL]]*CTu[[#This Row],[Montant TTC 2028]] -> 0 | AQ23: =CTu[[#This Row],[Montant Sub RCVL 2026]]+CTu[[#This Row],[Montant Sub RCVL 2027]]+CTu[[#This Row],[Montant Sub RCVL 2028]] -> 0 | AS23: =CTu[[#This Row],[Taux Sub CD 37]]*CTu[[#This Row],[Montant HT 2026]] -> 0 | AT23: =CTu[[#This Row],[Taux Sub CD 37]]*CTu[[#This Row],[Montant HT 2027]] -> 0 | AU23: =CTu[[#This Row],[Taux Sub CD 37]]*CTu[[#This Row],[Montant HT 2028]] -> 0 | AV23: =CTu[[#This Row],[Montant Sub CD 37 2026]]+CTu[[#This Row],[Montant Sub CD 37 2027]]+CTu[[#This Row],[Montant Sub CD 37 2028]] -> 0 | AX23: =CTu[[#This Row],[Taux Sub CD 49]]*CTu[[#This Row],[Montant TTC 2026]] -> 0 | AY23: =CTu[[#This Row],[Taux Sub CD 49]]*CTu[[#This Row],[Montant TTC 2027]] -> 0 | AZ23: =CTu[[#This Row],[Taux Sub CD 49]]*CTu[[#This Row],[Montant TTC 2028]] -> 0 | BA23: =CTu[[#This Row],[Montant Sub CD 49 2026]]+CTu[[#This Row],[Montant Sub CD 49 2027]]+CTu[[#This Row],[Montant Sub CD 49 2028]] -> 0 | BC23: =CTu[[#This Row],[Montant TTC 2026]]*CTu[[#This Row],[Taux LIFE]] -> 0 | BD23: =CTu[[#This Row],[Montant TTC 2027]]*CTu[[#This Row],[Taux LIFE]] -> 0 | BE23: =CTu[[#This Row],[Montant TTC 2028]]*CTu[[#This Row],[Taux LIFE]] -> 0 | BF23: =CTu[[#This Row],[Montant LIFE 2026]]+CTu[[#This Row],[Montant LIFE 2027]]+CTu[[#This Row],[Montant LIFE 2028]] -> 0 | BH23: =CTu[[#This Row],[Taux Sub FPRNM]]*CTu[[#This Row],[Montant HT 2026]] -> 0 | BI23: =CTu[[#This Row],[Taux Sub FPRNM]]*CTu[[#This Row],[Montant HT 2027]] -> 0 | BJ23: =CTu[[#This Row],[Taux Sub FPRNM]]*CTu[[#This Row],[Montant HT 2028]] -> 0 | BK23: =CTu[[#This Row],[Montant Sub FPRNM 2026]]+CTu[[#This Row],[Montant Sub FPRNM 2027]]+CTu[[#This Row],[Montant Sub FPRNM 2028]] -> 0 | BM23: =CTu[[#This Row],[FCTVA]]*CTu[[#This Row],[Montant TTC 2026]] -> 0 | BN23: =CTu[[#This Row],[FCTVA]]*CTu[[#This Row],[Montant TTC 2027]] -> 0 | BO23: =CTu[[#This Row],[FCTVA]]*CTu[[#This Row],[Montant TTC 2028]] -> 0 | BP23: =CTu[[#This Row],[Montant FCTVA 2026]]+CTu[[#This Row],[Montant FCTVA 2027]]+CTu[[#This Row],[Montant FCTVA 2028]] -> 0 | BR23: =CTu[[#This Row],[Taux CO MO]]*CTu[[#This Row],[Montant TTC 2026]] -> 0 | BS23: =CTu[[#This Row],[Taux CO MO]]*CTu[[#This Row],[Montant TTC 2027]] -> 0 | BT23: =CTu[[#This Row],[Taux CO MO]]*CTu[[#This Row],[Montant TTC 2028]] -> 0 | BU23: =CTu[[#This Row],[Montant CO MO 2026]]+CTu[[#This Row],[Montant CO MO 2027]]+CTu[[#This Row],[Montant CO MO 2028]] -> 0 | BW23: =CTu[[#This Row],[Taux Tiers]]*CTu[[#This Row],[Montant TTC 2026]] -> 0 | BX23: =CTu[[#This Row],[Taux Tiers]]*CTu[[#This Row],[Montant TTC 2027]] -> 0 | BY23: =CTu[[#This Row],[Taux Tiers]]*CTu[[#This Row],[Montant TTC 2028]] -> 0 | BZ23: =CTu[[#This Row],[Tiers 2026]]+CTu[[#This Row],[Tiers 2027]]+CTu[[#This Row],[Tiers 2028]] -> 0 | CA23: =100%-CTu[[#This Row],[Taux Sub AELB]]-CTu[[#This Row],[Taux Sub RPDL]]-CTu[[#This Row],[Taux Sub RCVL]]-CTu[[#This Row],[Taux Sub CD 37]]-CTu[[#This Row],[Taux Sub CD 49]]-CTu[[#This Row],[Taux Sub FPRNM]]-CTu[[#This Row],[Taux LIFE]]-CTu[[#This Row],[Taux Tiers]]-CTu[[#This Row],[Taux CO MO]]-CTu[[#This Row],[FCTVA]] -> 0.2 | CB23: =CTu[[#This Row],[Montant TTC 2026]]-(CTu[[#This Row],[Montant Sub AELB 2026]]+CTu[[#This Row],[Montant Sub RPDL 2026]]+CTu[[#This Row],[Montant Sub RCVL 2026]]+CTu[[#This Row],[Montant Sub CD 37 2026]]+CTu[[#This Row],[Montant Sub CD 49 2026]]+CTu[[#This Row],[Montant LIFE 2026]]+CTu[[#This Row],[Montant Sub FPRNM 2026]]+CTu[[#This Row],[Montant FCTVA 2026]]+CTu[[#This Row],[Tiers 2026]]+CTu[[#This Row],[Montant CO MO 2026]]) -> 0 | CC23: =CTu[[#This Row],[Montant TTC 2027]]-(CTu[[#This Row],[Montant Sub AELB 2027]]+CTu[[#This Row],[Montant Sub RPDL 2027]]+CTu[[#This Row],[Montant Sub RCVL 2027]]+CTu[[#This Row],[Montant Sub CD 37 2027]]+CTu[[#This Row],[Montant Sub CD 49 2027]]+CTu[[#This Row],[Montant LIFE 2027]]+CTu[[#This Row],[Montant Sub FPRNM 2027]]+CTu[[#This Row],[Montant FCTVA 2027]]+CTu[[#This Row],[Tiers 2027]]+CTu[[#This Row],[Montant CO MO 2027]]) -> 0 | CD23: =CTu[[#This Row],[Montant TTC 2028]]-(CTu[[#This Row],[Montant Sub AELB 2028]]+CTu[[#This Row],[Montant Sub RPDL 2028]]+CTu[[#This Row],[Montant Sub RCVL 2028]]+CTu[[#This Row],[Montant Sub CD 37 2028]]+CTu[[#This Row],[Montant Sub CD 49 2028]]+CTu[[#This Row],[Montant LIFE 2028]]+CTu[[#This Row],[Montant Sub FPRNM 2028]]+CTu[[#This Row],[Montant FCTVA 2028]]+CTu[[#This Row],[Tiers 2028]]+CTu[[#This Row],[Montant CO MO 2028]]) -> 9600 | CE23: =CTu[[#This Row],[Autofinancement 2026]]+CTu[[#This Row],[Autofinancement 2027]]+CTu[[#This Row],[Autofinancement 2028]] -> 9600
A24: Enjeu_A | B24: A_1 | C24: A10 | D24: LAT | E24: Étude | F24: ATEau | G24: FCT | H24: =IF(CTu[[#This Row],[Montant HT 2026]]>0,"2026",IF(CTu[[#This Row],[Montant HT 2027]]>0,"2027",IF(CTu[[#This Row],[Montant HT 2028]]>0,"2028"))) -> 2027 | J24: 2 | K24: =CONCATENATE(CTu[[#This Row],[Objectifs opérationnels]],"_",VLOOKUP(CTu[[#This Row],[Compartiment]],compartiment[],2,)) -> A10_ETU | L24: =CONCATENATE(CTu[[#This Row],[Objectifs opérationnels]],"_",CTu[[#This Row],[Secteur/MO]],"_",VLOOKUP(CTu[[#This Row],[Compartiment]],compartiment[],2,FALSE),"_",CTu[[#This Row],[N° Action]]) -> A10_LAT_ETU_2 | M24: =IF(CTu[[#This Row],[Année subv]]="","",CONCATENATE(CTu[[#This Row],[Objectifs opérationnels]],"_",CTu[[#This Row],[Secteur/MO]],"_",CTu[[#This Row],[Année subv]],"_",VLOOKUP(CTu[[#This Row],[Compartiment]],compartiment[],2),"_",CTu[[#This Row],[N° Action]])) ->  | N24: Action LIFE RIVEROLLE - Etude techniques et règlementaires | O24: Selon définition du programme d'action coconstruit avec les participants de l'Audit | P24: SMBAA | S24: 1 | T24: OB | V24: 21500 | X24: 21500 | Y24: 0 | Z24: 25800 | AA24: 0 | AB24: 25800 | AC24: 0.5 | AD24: =CTu[[#This Row],[Montant TTC 2026]]*CTu[[#This Row],[Taux Sub AELB]] -> 0 | AE24: =CTu[[#This Row],[Montant TTC 2027]]*CTu[[#This Row],[Taux Sub AELB]] -> 12900 | AF24: =CTu[[#This Row],[Montant TTC 2028]]*CTu[[#This Row],[Taux Sub AELB]] -> 0 | AG24: =CTu[[#This Row],[Montant Sub AELB 2026]]+CTu[[#This Row],[Montant Sub AELB 2027]]+CTu[[#This Row],[Montant Sub AELB 2028]] -> 12900 | AH24: 0.08 | AI24: =CTu[[#This Row],[Taux Sub RPDL]]*CTu[[#This Row],[Montant TTC 2026]] -> 0 | AJ24: =CTu[[#This Row],[Taux Sub RPDL]]*CTu[[#This Row],[Montant TTC 2027]] -> 2064 | AK24: =CTu[[#This Row],[Taux Sub RPDL]]*CTu[[#This Row],[Montant TTC 2028]] -> 0 | AL24: =CTu[[#This Row],[Montant Sub RPDL 2026]]+CTu[[#This Row],[Montant Sub RPDL 2027]]+CTu[[#This Row],[Montant Sub RPDL 2028]] -> 2064 | AN24: =CTu[[#This Row],[Taux Sub RCVL]]*CTu[[#This Row],[Montant TTC 2026]] -> 0 | AO24: =CTu[[#This Row],[Taux Sub RCVL]]*CTu[[#This Row],[Montant TTC 2027]] -> 0 | AP24: =CTu[[#This Row],[Taux Sub RCVL]]*CTu[[#This Row],[Montant TTC 2028]] -> 0 | AQ24: =CTu[[#This Row],[Montant Sub RCVL 2026]]+CTu[[#This Row],[Montant Sub RCVL 2027]]+CTu[[#This Row],[Montant Sub RCVL 2028]] -> 0 | AS24: =CTu[[#This Row],[Taux Sub CD 37]]*CTu[[#This Row],[Montant HT 2026]] -> 0 | AT24: =CTu[[#This Row],[Taux Sub CD 37]]*CTu[[#This Row],[Montant HT 2027]] -> 0 | AU24: =CTu[[#This Row],[Taux Sub CD 37]]*CTu[[#This Row],[Montant HT 2028]] -> 0 | AV24: =CTu[[#This Row],[Montant Sub CD 37 2026]]+CTu[[#This Row],[Montant Sub CD 37 2027]]+CTu[[#This Row],[Montant Sub CD 37 2028]] -> 0 | AX24: =CTu[[#This Row],[Taux Sub CD 49]]*CTu[[#This Row],[Montant TTC 2026]] -> 0 | AY24: =CTu[[#This Row],[Taux Sub CD 49]]*CTu[[#This Row],[Montant TTC 2027]] -> 0 | AZ24: =CTu[[#This Row],[Taux Sub CD 49]]*CTu[[#This Row],[Montant TTC 2028]] -> 0 | BA24: =CTu[[#This Row],[Montant Sub CD 49 2026]]+CTu[[#This Row],[Montant Sub CD 49 2027]]+CTu[[#This Row],[Montant Sub CD 49 2028]] -> 0 | BB24: 0.22 | BC24: =CTu[[#This Row],[Montant TTC 2026]]*CTu[[#This Row],[Taux LIFE]] -> 0 | BD24: =CTu[[#This Row],[Montant TTC 2027]]*CTu[[#This Row],[Taux LIFE]] -> 5676 | BE24: =CTu[[#This Row],[Montant TTC 2028]]*CTu[[#This Row],[Taux LIFE]] -> 0 | BF24: =CTu[[#This Row],[Montant LIFE 2026]]+CTu[[#This Row],[Montant LIFE 2027]]+CTu[[#This Row],[Montant LIFE 2028]] -> 5676 | BH24: =CTu[[#This Row],[Taux Sub FPRNM]]*CTu[[#This Row],[Montant HT 2026]] -> 0 | BI24: =CTu[[#This Row],[Taux Sub FPRNM]]*CTu[[#This Row],[Montant HT 2027]] -> 0 | BJ24: =CTu[[#This Row],[Taux Sub FPRNM]]*CTu[[#This Row],[Montant HT 2028]] -> 0 | BK24: =CTu[[#This Row],[Montant Sub FPRNM 2026]]+CTu[[#This Row],[Montant Sub FPRNM 2027]]+CTu[[#This Row],[Montant Sub FPRNM 2028]] -> 0 | BM24: =CTu[[#This Row],[FCTVA]]*CTu[[#This Row],[Montant TTC 2026]] -> 0 | BN24: =CTu[[#This Row],[FCTVA]]*CTu[[#This Row],[Montant TTC 2027]] -> 0 | BO24: =CTu[[#This Row],[FCTVA]]*CTu[[#This Row],[Montant TTC 2028]] -> 0 | BP24: =CTu[[#This Row],[Montant FCTVA 2026]]+CTu[[#This Row],[Montant FCTVA 2027]]+CTu[[#This Row],[Montant FCTVA 2028]] -> 0 | BR24: =CTu[[#This Row],[Taux CO MO]]*CTu[[#This Row],[Montant TTC 2026]] -> 0 | BS24: =CTu[[#This Row],[Taux CO MO]]*CTu[[#This Row],[Montant TTC 2027]] -> 0 | BT24: =CTu[[#This Row],[Taux CO MO]]*CTu[[#This Row],[Montant TTC 2028]] -> 0 | BU24: =CTu[[#This Row],[Montant CO MO 2026]]+CTu[[#This Row],[Montant CO MO 2027]]+CTu[[#This Row],[Montant CO MO 2028]] -> 0 | BW24: =CTu[[#This Row],[Taux Tiers]]*CTu[[#This Row],[Montant TTC 2026]] -> 0 | BX24: =CTu[[#This Row],[Taux Tiers]]*CTu[[#This Row],[Montant TTC 2027]] -> 0 | BY24: =CTu[[#This Row],[Taux Tiers]]*CTu[[#This Row],[Montant TTC 2028]] -> 0 | BZ24: =CTu[[#This Row],[Tiers 2026]]+CTu[[#This Row],[Tiers 2027]]+CTu[[#This Row],[Tiers 2028]] -> 0 | CA24: =100%-CTu[[#This Row],[Taux Sub AELB]]-CTu[[#This Row],[Taux Sub RPDL]]-CTu[[#This Row],[Taux Sub RCVL]]-CTu[[#This Row],[Taux Sub CD 37]]-CTu[[#This Row],[Taux Sub CD 49]]-CTu[[#This Row],[Taux Sub FPRNM]]-CTu[[#This Row],[Taux LIFE]]-CTu[[#This Row],[Taux Tiers]]-CTu[[#This Row],[Taux CO MO]]-CTu[[#This Row],[FCTVA]] -> 0.2 | CB24: =CTu[[#This Row],[Montant TTC 2026]]-(CTu[[#This Row],[Montant Sub AELB 2026]]+CTu[[#This Row],[Montant Sub RPDL 2026]]+CTu[[#This Row],[Montant Sub RCVL 2026]]+CTu[[#This Row],[Montant Sub CD 37 2026]]+CTu[[#This Row],[Montant Sub CD 49 2026]]+CTu[[#This Row],[Montant LIFE 2026]]+CTu[[#This Row],[Montant Sub FPRNM 2026]]+CTu[[#This Row],[Montant FCTVA 2026]]+CTu[[#This Row],[Tiers 2026]]+CTu[[#This Row],[Montant CO MO 2026]]) -> 0 | CC24: =CTu[[#This Row],[Montant TTC 2027]]-(CTu[[#This Row],[Montant Sub AELB 2027]]+CTu[[#This Row],[Montant Sub RPDL 2027]]+CTu[[#This Row],[Montant Sub RCVL 2027]]+CTu[[#This Row],[Montant Sub CD 37 2027]]+CTu[[#This Row],[Montant Sub CD 49 2027]]+CTu[[#This Row],[Montant LIFE 2027]]+CTu[[#This Row],[Montant Sub FPRNM 2027]]+CTu[[#This Row],[Montant FCTVA 2027]]+CTu[[#This Row],[Tiers 2027]]+CTu[[#This Row],[Montant CO MO 2027]]) -> 5160 | CD24: =CTu[[#This Row],[Montant TTC 2028]]-(CTu[[#This Row],[Montant Sub AELB 2028]]+CTu[[#This Row],[Montant Sub RPDL 2028]]+CTu[[#This Row],[Montant Sub RCVL 2028]]+CTu[[#This Row],[Montant Sub CD 37 2028]]+CTu[[#This Row],[Montant Sub CD 49 2028]]+CTu[[#This Row],[Montant LIFE 2028]]+CTu[[#This Row],[Montant Sub FPRNM 2028]]+CTu[[#This Row],[Montant FCTVA 2028]]+CTu[[#This Row],[Tiers 2028]]+CTu[[#This Row],[Montant CO MO 2028]]) -> 0 | CE24: =CTu[[#This Row],[Autofinancement 2026]]+CTu[[#This Row],[Autofinancement 2027]]+CTu[[#This Row],[Autofinancement 2028]] -> 5160
A25: Enjeu_A | B25: A_1 | C25: A10 | D25: LAT | E25: Lit mineur | F25: ATEau | G25: FCT | H25: =IF(CTu[[#This Row],[Montant HT 2026]]>0,"2026",IF(CTu[[#This Row],[Montant HT 2027]]>0,"2027",IF(CTu[[#This Row],[Montant HT 2028]]>0,"2028"))) -> 2027 | J25: 1 | K25: =CONCATENATE(CTu[[#This Row],[Objectifs opérationnels]],"_",VLOOKUP(CTu[[#This Row],[Compartiment]],compartiment[],2,)) -> A10_LMI | L25: =CONCATENATE(CTu[[#This Row],[Objectifs opérationnels]],"_",CTu[[#This Row],[Secteur/MO]],"_",VLOOKUP(CTu[[#This Row],[Compartiment]],compartiment[],2,FALSE),"_",CTu[[#This Row],[N° Action]]) -> A10_LAT_LMI_1 | M25: =IF(CTu[[#This Row],[Année subv]]="","",CONCATENATE(CTu[[#This Row],[Objectifs opérationnels]],"_",CTu[[#This Row],[Secteur/MO]],"_",CTu[[#This Row],[Année subv]],"_",VLOOKUP(CTu[[#This Row],[Compartiment]],compartiment[],2),"_",CTu[[#This Row],[N° Action]])) ->  | N25: Lathan - Restauration du Lathan entre la Forterie et le Moulin Cochin | O25: Suite à l'étude en cours sur le Lathan- comprend le lit majeur - Suite à l'avenant de la conventin MAIF, les travaux pourraient être intégrés au mécénat en cours. | P25: SMBAA | S25: 1 | T25: OB | V25: 291666.6667 | X25: 291666.6667 | Y25: 0 | Z25: 350000 | AA25: 0 | AB25: 350000 | AC25: 0.5 | AD25: =CTu[[#This Row],[Montant TTC 2026]]*CTu[[#This Row],[Taux Sub AELB]] -> 0 | AE25: =CTu[[#This Row],[Montant TTC 2027]]*CTu[[#This Row],[Taux Sub AELB]] -> 175000 | AF25: =CTu[[#This Row],[Montant TTC 2028]]*CTu[[#This Row],[Taux Sub AELB]] -> 0 | AG25: =CTu[[#This Row],[Montant Sub AELB 2026]]+CTu[[#This Row],[Montant Sub AELB 2027]]+CTu[[#This Row],[Montant Sub AELB 2028]] -> 175000 | AH25: 0.3 | AI25: =CTu[[#This Row],[Taux Sub RPDL]]*CTu[[#This Row],[Montant TTC 2026]] -> 0 | AJ25: =CTu[[#This Row],[Taux Sub RPDL]]*CTu[[#This Row],[Montant TTC 2027]] -> 105000 | AK25: =CTu[[#This Row],[Taux Sub RPDL]]*CTu[[#This Row],[Montant TTC 2028]] -> 0 | AL25: =CTu[[#This Row],[Montant Sub RPDL 2026]]+CTu[[#This Row],[Montant Sub RPDL 2027]]+CTu[[#This Row],[Montant Sub RPDL 2028]] -> 105000 | AN25: =CTu[[#This Row],[Taux Sub RCVL]]*CTu[[#This Row],[Montant TTC 2026]] -> 0 | AO25: =CTu[[#This Row],[Taux Sub RCVL]]*CTu[[#This Row],[Montant TTC 2027]] -> 0 | AP25: =CTu[[#This Row],[Taux Sub RCVL]]*CTu[[#This Row],[Montant TTC 2028]] -> 0 | AQ25: =CTu[[#This Row],[Montant Sub RCVL 2026]]+CTu[[#This Row],[Montant Sub RCVL 2027]]+CTu[[#This Row],[Montant Sub RCVL 2028]] -> 0 | AS25: =CTu[[#This Row],[Taux Sub CD 37]]*CTu[[#This Row],[Montant HT 2026]] -> 0 | AT25: =CTu[[#This Row],[Taux Sub CD 37]]*CTu[[#This Row],[Montant HT 2027]] -> 0 | AU25: =CTu[[#This Row],[Taux Sub CD 37]]*CTu[[#This Row],[Montant HT 2028]] -> 0 | AV25: =CTu[[#This Row],[Montant Sub CD 37 2026]]+CTu[[#This Row],[Montant Sub CD 37 2027]]+CTu[[#This Row],[Montant Sub CD 37 2028]] -> 0 | AX25: =CTu[[#This Row],[Taux Sub CD 49]]*CTu[[#This Row],[Montant TTC 2026]] -> 0 | AY25: =CTu[[#This Row],[Taux Sub CD 49]]*CTu[[#This Row],[Montant TTC 2027]] -> 0 | AZ25: =CTu[[#This Row],[Taux Sub CD 49]]*CTu[[#This Row],[Montant TTC 2028]] -> 0 | BA25: =CTu[[#This Row],[Montant Sub CD 49 2026]]+CTu[[#This Row],[Montant Sub CD 49 2027]]+CTu[[#This Row],[Montant Sub CD 49 2028]] -> 0 | BC25: =CTu[[#This Row],[Montant TTC 2026]]*CTu[[#This Row],[Taux LIFE]] -> 0 | BD25: =CTu[[#This Row],[Montant TTC 2027]]*CTu[[#This Row],[Taux LIFE]] -> 0 | BE25: =CTu[[#This Row],[Montant TTC 2028]]*CTu[[#This Row],[Taux LIFE]] -> 0 | BF25: =CTu[[#This Row],[Montant LIFE 2026]]+CTu[[#This Row],[Montant LIFE 2027]]+CTu[[#This Row],[Montant LIFE 2028]] -> 0 | BH25: =CTu[[#This Row],[Taux Sub FPRNM]]*CTu[[#This Row],[Montant HT 2026]] -> 0 | BI25: =CTu[[#This Row],[Taux Sub FPRNM]]*CTu[[#This Row],[Montant HT 2027]] -> 0 | BJ25: =CTu[[#This Row],[Taux Sub FPRNM]]*CTu[[#This Row],[Montant HT 2028]] -> 0 | BK25: =CTu[[#This Row],[Montant Sub FPRNM 2026]]+CTu[[#This Row],[Montant Sub FPRNM 2027]]+CTu[[#This Row],[Montant Sub FPRNM 2028]] -> 0 | BM25: =CTu[[#This Row],[FCTVA]]*CTu[[#This Row],[Montant TTC 2026]] -> 0 | BN25: =CTu[[#This Row],[FCTVA]]*CTu[[#This Row],[Montant TTC 2027]] -> 0 | BO25: =CTu[[#This Row],[FCTVA]]*CTu[[#This Row],[Montant TTC 2028]] -> 0 | BP25: =CTu[[#This Row],[Montant FCTVA 2026]]+CTu[[#This Row],[Montant FCTVA 2027]]+CTu[[#This Row],[Montant FCTVA 2028]] -> 0 | BR25: =CTu[[#This Row],[Taux CO MO]]*CTu[[#This Row],[Montant TTC 2026]] -> 0 | BS25: =CTu[[#This Row],[Taux CO MO]]*CTu[[#This Row],[Montant TTC 2027]] -> 0 | BT25: =CTu[[#This Row],[Taux CO MO]]*CTu[[#This Row],[Montant TTC 2028]] -> 0 | BU25: =CTu[[#This Row],[Montant CO MO 2026]]+CTu[[#This Row],[Montant CO MO 2027]]+CTu[[#This Row],[Montant CO MO 2028]] -> 0 | BV25: 0.2 | BW25: =CTu[[#This Row],[Taux Tiers]]*CTu[[#This Row],[Montant TTC 2026]] -> 0 | BX25: =CTu[[#This Row],[Taux Tiers]]*CTu[[#This Row],[Montant TTC 2027]] -> 70000 | BY25: =CTu[[#This Row],[Taux Tiers]]*CTu[[#This Row],[Montant TTC 2028]] -> 0 | BZ25: =CTu[[#This Row],[Tiers 2026]]+CTu[[#This Row],[Tiers 2027]]+CTu[[#This Row],[Tiers 2028]] -> 70000 | CA25: =100%-CTu[[#This Row],[Taux Sub AELB]]-CTu[[#This Row],[Taux Sub RPDL]]-CTu[[#This Row],[Taux Sub RCVL]]-CTu[[#This Row],[Taux Sub CD 37]]-CTu[[#This Row],[Taux Sub CD 49]]-CTu[[#This Row],[Taux Sub FPRNM]]-CTu[[#This Row],[Taux LIFE]]-CTu[[#This Row],[Taux Tiers]]-CTu[[#This Row],[Taux CO MO]]-CTu[[#This Row],[FCTVA]] -> 0 | CB25: =CTu[[#This Row],[Montant TTC 2026]]-(CTu[[#This Row],[Montant Sub AELB 2026]]+CTu[[#This Row],[Montant Sub RPDL 2026]]+CTu[[#This Row],[Montant Sub RCVL 2026]]+CTu[[#This Row],[Montant Sub CD 37 2026]]+CTu[[#This Row],[Montant Sub CD 49 2026]]+CTu[[#This Row],[Montant LIFE 2026]]+CTu[[#This Row],[Montant Sub FPRNM 2026]]+CTu[[#This Row],[Montant FCTVA 2026]]+CTu[[#This Row],[Tiers 2026]]+CTu[[#This Row],[Montant CO MO 2026]]) -> 0 | CC25: =CTu[[#This Row],[Montant TTC 2027]]-(CTu[[#This Row],[Montant Sub AELB 2027]]+CTu[[#This Row],[Montant Sub RPDL 2027]]+CTu[[#This Row],[Montant Sub RCVL 2027]]+CTu[[#This Row],[Montant Sub CD 37 2027]]+CTu[[#This Row],[Montant Sub CD 49 2027]]+CTu[[#This Row],[Montant LIFE 2027]]+CTu[[#This Row],[Montant Sub FPRNM 2027]]+CTu[[#This Row],[Montant FCTVA 2027]]+CTu[[#This Row],[Tiers 2027]]+CTu[[#This Row],[Montant CO MO 2027]]) -> 0 | CD25: =CTu[[#This Row],[Montant TTC 2028]]-(CTu[[#This Row],[Montant Sub AELB 2028]]+CTu[[#This Row],[Montant Sub RPDL 2028]]+CTu[[#This Row],[Montant Sub RCVL 2028]]+CTu[[#This Row],[Montant Sub CD 37 2028]]+CTu[[#This Row],[Montant Sub CD 49 2028]]+CTu[[#This Row],[Montant LIFE 2028]]+CTu[[#This Row],[Montant Sub FPRNM 2028]]+CTu[[#This Row],[Montant FCTVA 2028]]+CTu[[#This Row],[Tiers 2028]]+CTu[[#This Row],[Montant CO MO 2028]]) -> 0 | CE25: =CTu[[#This Row],[Autofinancement 2026]]+CTu[[#This Row],[Autofinancement 2027]]+CTu[[#This Row],[Autofinancement 2028]] -> 0
A26: Enjeu_A | B26: A_1 | C26: A10 | D26: LAT | E26: Lit mineur | F26: ATEau | G26: FCT | H26: =IF(CTu[[#This Row],[Montant HT 2026]]>0,"2026",IF(CTu[[#This Row],[Montant HT 2027]]>0,"2027",IF(CTu[[#This Row],[Montant HT 2028]]>0,"2028"))) -> 2028 | J26: 2 | K26: =CONCATENATE(CTu[[#This Row],[Objectifs opérationnels]],"_",VLOOKUP(CTu[[#This Row],[Compartiment]],compartiment[],2,)) -> A10_LMI | L26: =CONCATENATE(CTu[[#This Row],[Objectifs opérationnels]],"_",CTu[[#This Row],[Secteur/MO]],"_",VLOOKUP(CTu[[#This Row],[Compartiment]],compartiment[],2,FALSE),"_",CTu[[#This Row],[N° Action]]) -> A10_LAT_LMI_2 | M26: =IF(CTu[[#This Row],[Année subv]]="","",CONCATENATE(CTu[[#This Row],[Objectifs opérationnels]],"_",CTu[[#This Row],[Secteur/MO]],"_",CTu[[#This Row],[Année subv]],"_",VLOOKUP(CTu[[#This Row],[Compartiment]],compartiment[],2),"_",CTu[[#This Row],[N° Action]])) ->  | N26: Lathan - Restauration du Lathan entre le Moulin Cochin et Rabion | O26: Suite à l'étude en cours sur le Lathan- comprend le lit majeur Chantreau en année 2029 | P26: SMBAA | S26: 1 | T26: OB | W26: 200000 | X26: 200000 | Y26: 0 | Z26: 0 | AA26: 240000 | AB26: 240000 | AC26: 0.5 | AD26: =CTu[[#This Row],[Montant TTC 2026]]*CTu[[#This Row],[Taux Sub AELB]] -> 0 | AE26: =CTu[[#This Row],[Montant TTC 2027]]*CTu[[#This Row],[Taux Sub AELB]] -> 0 | AF26: =CTu[[#This Row],[Montant TTC 2028]]*CTu[[#This Row],[Taux Sub AELB]] -> 120000 | AG26: =CTu[[#This Row],[Montant Sub AELB 2026]]+CTu[[#This Row],[Montant Sub AELB 2027]]+CTu[[#This Row],[Montant Sub AELB 2028]] -> 120000 | AH26: 0.3 | AI26: =CTu[[#This Row],[Taux Sub RPDL]]*CTu[[#This Row],[Montant TTC 2026]] -> 0 | AJ26: =CTu[[#This Row],[Taux Sub RPDL]]*CTu[[#This Row],[Montant TTC 2027]] -> 0 | AK26: =CTu[[#This Row],[Taux Sub RPDL]]*CTu[[#This Row],[Montant TTC 2028]] -> 72000 | AL26: =CTu[[#This Row],[Montant Sub RPDL 2026]]+CTu[[#This Row],[Montant Sub RPDL 2027]]+CTu[[#This Row],[Montant Sub RPDL 2028]] -> 72000 | AN26: =CTu[[#This Row],[Taux Sub RCVL]]*CTu[[#This Row],[Montant TTC 2026]] -> 0 | AO26: =CTu[[#This Row],[Taux Sub RCVL]]*CTu[[#This Row],[Montant TTC 2027]] -> 0 | AP26: =CTu[[#This Row],[Taux Sub RCVL]]*CTu[[#This Row],[Montant TTC 2028]] -> 0 | AQ26: =CTu[[#This Row],[Montant Sub RCVL 2026]]+CTu[[#This Row],[Montant Sub RCVL 2027]]+CTu[[#This Row],[Montant Sub RCVL 2028]] -> 0 | AS26: =CTu[[#This Row],[Taux Sub CD 37]]*CTu[[#This Row],[Montant HT 2026]] -> 0 | AT26: =CTu[[#This Row],[Taux Sub CD 37]]*CTu[[#This Row],[Montant HT 2027]] -> 0 | AU26: =CTu[[#This Row],[Taux Sub CD 37]]*CTu[[#This Row],[Montant HT 2028]] -> 0 | AV26: =CTu[[#This Row],[Montant Sub CD 37 2026]]+CTu[[#This Row],[Montant Sub CD 37 2027]]+CTu[[#This Row],[Montant Sub CD 37 2028]] -> 0 | AX26: =CTu[[#This Row],[Taux Sub CD 49]]*CTu[[#This Row],[Montant TTC 2026]] -> 0 | AY26: =CTu[[#This Row],[Taux Sub CD 49]]*CTu[[#This Row],[Montant TTC 2027]] -> 0 | AZ26: =CTu[[#This Row],[Taux Sub CD 49]]*CTu[[#This Row],[Montant TTC 2028]] -> 0 | BA26: =CTu[[#This Row],[Montant Sub CD 49 2026]]+CTu[[#This Row],[Montant Sub CD 49 2027]]+CTu[[#This Row],[Montant Sub CD 49 2028]] -> 0 | BC26: =CTu[[#This Row],[Montant TTC 2026]]*CTu[[#This Row],[Taux LIFE]] -> 0 | BD26: =CTu[[#This Row],[Montant TTC 2027]]*CTu[[#This Row],[Taux LIFE]] -> 0 | BE26: =CTu[[#This Row],[Montant TTC 2028]]*CTu[[#This Row],[Taux LIFE]] -> 0 | BF26: =CTu[[#This Row],[Montant LIFE 2026]]+CTu[[#This Row],[Montant LIFE 2027]]+CTu[[#This Row],[Montant LIFE 2028]] -> 0 | BH26: =CTu[[#This Row],[Taux Sub FPRNM]]*CTu[[#This Row],[Montant HT 2026]] -> 0 | BI26: =CTu[[#This Row],[Taux Sub FPRNM]]*CTu[[#This Row],[Montant HT 2027]] -> 0 | BJ26: =CTu[[#This Row],[Taux Sub FPRNM]]*CTu[[#This Row],[Montant HT 2028]] -> 0 | BK26: =CTu[[#This Row],[Montant Sub FPRNM 2026]]+CTu[[#This Row],[Montant Sub FPRNM 2027]]+CTu[[#This Row],[Montant Sub FPRNM 2028]] -> 0 | BM26: =CTu[[#This Row],[FCTVA]]*CTu[[#This Row],[Montant TTC 2026]] -> 0 | BN26: =CTu[[#This Row],[FCTVA]]*CTu[[#This Row],[Montant TTC 2027]] -> 0 | BO26: =CTu[[#This Row],[FCTVA]]*CTu[[#This Row],[Montant TTC 2028]] -> 0 | BP26: =CTu[[#This Row],[Montant FCTVA 2026]]+CTu[[#This Row],[Montant FCTVA 2027]]+CTu[[#This Row],[Montant FCTVA 2028]] -> 0 | BR26: =CTu[[#This Row],[Taux CO MO]]*CTu[[#This Row],[Montant TTC 2026]] -> 0 | BS26: =CTu[[#This Row],[Taux CO MO]]*CTu[[#This Row],[Montant TTC 2027]] -> 0 | BT26: =CTu[[#This Row],[Taux CO MO]]*CTu[[#This Row],[Montant TTC 2028]] -> 0 | BU26: =CTu[[#This Row],[Montant CO MO 2026]]+CTu[[#This Row],[Montant CO MO 2027]]+CTu[[#This Row],[Montant CO MO 2028]] -> 0 | BW26: =CTu[[#This Row],[Taux Tiers]]*CTu[[#This Row],[Montant TTC 2026]] -> 0 | BX26: =CTu[[#This Row],[Taux Tiers]]*CTu[[#This Row],[Montant TTC 2027]] -> 0 | BY26: =CTu[[#This Row],[Taux Tiers]]*CTu[[#This Row],[Montant TTC 2028]] -> 0 | BZ26: =CTu[[#This Row],[Tiers 2026]]+CTu[[#This Row],[Tiers 2027]]+CTu[[#This Row],[Tiers 2028]] -> 0 | CA26: =100%-CTu[[#This Row],[Taux Sub AELB]]-CTu[[#This Row],[Taux Sub RPDL]]-CTu[[#This Row],[Taux Sub RCVL]]-CTu[[#This Row],[Taux Sub CD 37]]-CTu[[#This Row],[Taux Sub CD 49]]-CTu[[#This Row],[Taux Sub FPRNM]]-CTu[[#This Row],[Taux LIFE]]-CTu[[#This Row],[Taux Tiers]]-CTu[[#This Row],[Taux CO MO]]-CTu[[#This Row],[FCTVA]] -> 0.2 | CB26: =CTu[[#This Row],[Montant TTC 2026]]-(CTu[[#This Row],[Montant Sub AELB 2026]]+CTu[[#This Row],[Montant Sub RPDL 2026]]+CTu[[#This Row],[Montant Sub RCVL 2026]]+CTu[[#This Row],[Montant Sub CD 37 2026]]+CTu[[#This Row],[Montant Sub CD 49 2026]]+CTu[[#This Row],[Montant LIFE 2026]]+CTu[[#This Row],[Montant Sub FPRNM 2026]]+CTu[[#This Row],[Montant FCTVA 2026]]+CTu[[#This Row],[Tiers 2026]]+CTu[[#This Row],[Montant CO MO 2026]]) -> 0 | CC26: =CTu[[#This Row],[Montant TTC 2027]]-(CTu[[#This Row],[Montant Sub AELB 2027]]+CTu[[#This Row],[Montant Sub RPDL 2027]]+CTu[[#This Row],[Montant Sub RCVL 2027]]+CTu[[#This Row],[Montant Sub CD 37 2027]]+CTu[[#This Row],[Montant Sub CD 49 2027]]+CTu[[#This Row],[Montant LIFE 2027]]+CTu[[#This Row],[Montant Sub FPRNM 2027]]+CTu[[#This Row],[Montant FCTVA 2027]]+CTu[[#This Row],[Tiers 2027]]+CTu[[#This Row],[Montant CO MO 2027]]) -> 0 | CD26: =CTu[[#This Row],[Montant TTC 2028]]-(CTu[[#This Row],[Montant Sub AELB 2028]]+CTu[[#This Row],[Montant Sub RPDL 2028]]+CTu[[#This Row],[Montant Sub RCVL 2028]]+CTu[[#This Row],[Montant Sub CD 37 2028]]+CTu[[#This Row],[Montant Sub CD 49 2028]]+CTu[[#This Row],[Montant LIFE 2028]]+CTu[[#This Row],[Montant Sub FPRNM 2028]]+CTu[[#This Row],[Montant FCTVA 2028]]+CTu[[#This Row],[Tiers 2028]]+CTu[[#This Row],[Montant CO MO 2028]]) -> 48000 | CE26: =CTu[[#This Row],[Autofinancement 2026]]+CTu[[#This Row],[Autofinancement 2027]]+CTu[[#This Row],[Autofinancement 2028]] -> 48000
A27: Enjeu_A | B27: A_1 | C27: A10 | D27: LAT | E27: Lit mineur | F27: ATEau | G27: FCT | H27: =IF(CTu[[#This Row],[Montant HT 2026]]>0,"2026",IF(CTu[[#This Row],[Montant HT 2027]]>0,"2027",IF(CTu[[#This Row],[Montant HT 2028]]>0,"2028"))) -> 2028 | J27: 3 | K27: =CONCATENATE(CTu[[#This Row],[Objectifs opérationnels]],"_",VLOOKUP(CTu[[#This Row],[Compartiment]],compartiment[],2,)) -> A10_LMI | L27: =CONCATENATE(CTu[[#This Row],[Objectifs opérationnels]],"_",CTu[[#This Row],[Secteur/MO]],"_",VLOOKUP(CTu[[#This Row],[Compartiment]],compartiment[],2,FALSE),"_",CTu[[#This Row],[N° Action]]) -> A10_LAT_LMI_3 | M27: =IF(CTu[[#This Row],[Année subv]]="","",CONCATENATE(CTu[[#This Row],[Objectifs opérationnels]],"_",CTu[[#This Row],[Secteur/MO]],"_",CTu[[#This Row],[Année subv]],"_",VLOOKUP(CTu[[#This Row],[Compartiment]],compartiment[],2),"_",CTu[[#This Row],[N° Action]])) ->  | N27: Action LIFE RIVEROLLE - Restauration du cours d'eau de la Riverolle | O27: Selon définition du programme d'action coconstruit avec les participant de l'Audit | P27: SMBAA | S27: 1 | T27: OB | W27: 45833.33 | X27: 45833.33 | Y27: 0 | Z27: 0 | AA27: 54999.996 | AB27: 54999.996 | AC27: 0.5 | AD27: =CTu[[#This Row],[Montant TTC 2026]]*CTu[[#This Row],[Taux Sub AELB]] -> 0 | AE27: =CTu[[#This Row],[Montant TTC 2027]]*CTu[[#This Row],[Taux Sub AELB]] -> 0 | AF27: =CTu[[#This Row],[Montant TTC 2028]]*CTu[[#This Row],[Taux Sub AELB]] -> 27499.998 | AG27: =CTu[[#This Row],[Montant Sub AELB 2026]]+CTu[[#This Row],[Montant Sub AELB 2027]]+CTu[[#This Row],[Montant Sub AELB 2028]] -> 27499.998 | AH27: 0.08 | AI27: =CTu[[#This Row],[Taux Sub RPDL]]*CTu[[#This Row],[Montant TTC 2026]] -> 0 | AJ27: =CTu[[#This Row],[Taux Sub RPDL]]*CTu[[#This Row],[Montant TTC 2027]] -> 0 | AK27: =CTu[[#This Row],[Taux Sub RPDL]]*CTu[[#This Row],[Montant TTC 2028]] -> 4399.99968 | AL27: =CTu[[#This Row],[Montant Sub RPDL 2026]]+CTu[[#This Row],[Montant Sub RPDL 2027]]+CTu[[#This Row],[Montant Sub RPDL 2028]] -> 4399.99968 | AN27: =CTu[[#This Row],[Taux Sub RCVL]]*CTu[[#This Row],[Montant TTC 2026]] -> 0 | AO27: =CTu[[#This Row],[Taux Sub RCVL]]*CTu[[#This Row],[Montant TTC 2027]] -> 0 | AP27: =CTu[[#This Row],[Taux Sub RCVL]]*CTu[[#This Row],[Montant TTC 2028]] -> 0 | AQ27: =CTu[[#This Row],[Montant Sub RCVL 2026]]+CTu[[#This Row],[Montant Sub RCVL 2027]]+CTu[[#This Row],[Montant Sub RCVL 2028]] -> 0 | AS27: =CTu[[#This Row],[Taux Sub CD 37]]*CTu[[#This Row],[Montant HT 2026]] -> 0 | AT27: =CTu[[#This Row],[Taux Sub CD 37]]*CTu[[#This Row],[Montant HT 2027]] -> 0 | AU27: =CTu[[#This Row],[Taux Sub CD 37]]*CTu[[#This Row],[Montant HT 2028]] -> 0 | AV27: =CTu[[#This Row],[Montant Sub CD 37 2026]]+CTu[[#This Row],[Montant Sub CD 37 2027]]+CTu[[#This Row],[Montant Sub CD 37 2028]] -> 0 | AX27: =CTu[[#This Row],[Taux Sub CD 49]]*CTu[[#This Row],[Montant TTC 2026]] -> 0 | AY27: =CTu[[#This Row],[Taux Sub CD 49]]*CTu[[#This Row],[Montant TTC 2027]] -> 0 | AZ27: =CTu[[#This Row],[Taux Sub CD 49]]*CTu[[#This Row],[Montant TTC 2028]] -> 0 | BA27: =CTu[[#This Row],[Montant Sub CD 49 2026]]+CTu[[#This Row],[Montant Sub CD 49 2027]]+CTu[[#This Row],[Montant Sub CD 49 2028]] -> 0 | BB27: 0.22 | BC27: =CTu[[#This Row],[Montant TTC 2026]]*CTu[[#This Row],[Taux LIFE]] -> 0 | BD27: =CTu[[#This Row],[Montant TTC 2027]]*CTu[[#This Row],[Taux LIFE]] -> 0 | BE27: =CTu[[#This Row],[Montant TTC 2028]]*CTu[[#This Row],[Taux LIFE]] -> 12099.99912 | BF27: =CTu[[#This Row],[Montant LIFE 2026]]+CTu[[#This Row],[Montant LIFE 2027]]+CTu[[#This Row],[Montant LIFE 2028]] -> 12099.99912 | BH27: =CTu[[#This Row],[Taux Sub FPRNM]]*CTu[[#This Row],[Montant HT 2026]] -> 0 | BI27: =CTu[[#This Row],[Taux Sub FPRNM]]*CTu[[#This Row],[Montant HT 2027]] -> 0 | BJ27: =CTu[[#This Row],[Taux Sub FPRNM]]*CTu[[#This Row],[Montant HT 2028]] -> 0 | BK27: =CTu[[#This Row],[Montant Sub FPRNM 2026]]+CTu[[#This Row],[Montant Sub FPRNM 2027]]+CTu[[#This Row],[Montant Sub FPRNM 2028]] -> 0 | BM27: =CTu[[#This Row],[FCTVA]]*CTu[[#This Row],[Montant TTC 2026]] -> 0 | BN27: =CTu[[#This Row],[FCTVA]]*CTu[[#This Row],[Montant TTC 2027]] -> 0 | BO27: =CTu[[#This Row],[FCTVA]]*CTu[[#This Row],[Montant TTC 2028]] -> 0 | BP27: =CTu[[#This Row],[Montant FCTVA 2026]]+CTu[[#This Row],[Montant FCTVA 2027]]+CTu[[#This Row],[Montant FCTVA 2028]] -> 0 | BR27: =CTu[[#This Row],[Taux CO MO]]*CTu[[#This Row],[Montant TTC 2026]] -> 0 | BS27: =CTu[[#This Row],[Taux CO MO]]*CTu[[#This Row],[Montant TTC 2027]] -> 0 | BT27: =CTu[[#This Row],[Taux CO MO]]*CTu[[#This Row],[Montant TTC 2028]] -> 0 | BU27: =CTu[[#This Row],[Montant CO MO 2026]]+CTu[[#This Row],[Montant CO MO 2027]]+CTu[[#This Row],[Montant CO MO 2028]] -> 0 | BW27: =CTu[[#This Row],[Taux Tiers]]*CTu[[#This Row],[Montant TTC 2026]] -> 0 | BX27: =CTu[[#This Row],[Taux Tiers]]*CTu[[#This Row],[Montant TTC 2027]] -> 0 | BY27: =CTu[[#This Row],[Taux Tiers]]*CTu[[#This Row],[Montant TTC 2028]] -> 0 | BZ27: =CTu[[#This Row],[Tiers 2026]]+CTu[[#This Row],[Tiers 2027]]+CTu[[#This Row],[Tiers 2028]] -> 0 | CA27: =100%-CTu[[#This Row],[Taux Sub AELB]]-CTu[[#This Row],[Taux Sub RPDL]]-CTu[[#This Row],[Taux Sub RCVL]]-CTu[[#This Row],[Taux Sub CD 37]]-CTu[[#This Row],[Taux Sub CD 49]]-CTu[[#This Row],[Taux Sub FPRNM]]-CTu[[#This Row],[Taux LIFE]]-CTu[[#This Row],[Taux Tiers]]-CTu[[#This Row],[Taux CO MO]]-CTu[[#This Row],[FCTVA]] -> 0.2 | CB27: =CTu[[#This Row],[Montant TTC 2026]]-(CTu[[#This Row],[Montant Sub AELB 2026]]+CTu[[#This Row],[Montant Sub RPDL 2026]]+CTu[[#This Row],[Montant Sub RCVL 2026]]+CTu[[#This Row],[Montant Sub CD 37 2026]]+CTu[[#This Row],[Montant Sub CD 49 2026]]+CTu[[#This Row],[Montant LIFE 2026]]+CTu[[#This Row],[Montant Sub FPRNM 2026]]+CTu[[#This Row],[Montant FCTVA 2026]]+CTu[[#This Row],[Tiers 2026]]+CTu[[#This Row],[Montant CO MO 2026]]) -> 0 | CC27: =CTu[[#This Row],[Montant TTC 2027]]-(CTu[[#This Row],[Montant Sub AELB 2027]]+CTu[[#This Row],[Montant Sub RPDL 2027]]+CTu[[#This Row],[Montant Sub RCVL 2027]]+CTu[[#This Row],[Montant Sub CD 37 2027]]+CTu[[#This Row],[Montant Sub CD 49 2027]]+CTu[[#This Row],[Montant LIFE 2027]]+CTu[[#This Row],[Montant Sub FPRNM 2027]]+CTu[[#This Row],[Montant FCTVA 2027]]+CTu[[#This Row],[Tiers 2027]]+CTu[[#This Row],[Montant CO MO 2027]]) -> 0 | CD27: =CTu[[#This Row],[Montant TTC 2028]]-(CTu[[#This Row],[Montant Sub AELB 2028]]+CTu[[#This Row],[Montant Sub RPDL 2028]]+CTu[[#This Row],[Montant Sub RCVL 2028]]+CTu[[#This Row],[Montant Sub CD 37 2028]]+CTu[[#This Row],[Montant Sub CD 49 2028]]+CTu[[#This Row],[Montant LIFE 2028]]+CTu[[#This Row],[Montant Sub FPRNM 2028]]+CTu[[#This Row],[Montant FCTVA 2028]]+CTu[[#This Row],[Tiers 2028]]+CTu[[#This Row],[Montant CO MO 2028]]) -> 10999.9992 | CE27: =CTu[[#This Row],[Autofinancement 2026]]+CTu[[#This Row],[Autofinancement 2027]]+CTu[[#This Row],[Autofinancement 2028]] -> 10999.9992
A28: Enjeu_A | B28: A_1 | C28: A10 | D28: LAT | E28: Lit mineur | F28: ATEau | G28: FCT | H28: =IF(CTu[[#This Row],[Montant HT 2026]]>0,"2026",IF(CTu[[#This Row],[Montant HT 2027]]>0,"2027",IF(CTu[[#This Row],[Montant HT 2028]]>0,"2028"))) -> 2028 | J28: 4 | K28: =CONCATENATE(CTu[[#This Row],[Objectifs opérationnels]],"_",VLOOKUP(CTu[[#This Row],[Compartiment]],compartiment[],2,)) -> A10_LMI | L28: =CONCATENATE(CTu[[#This Row],[Objectifs opérationnels]],"_",CTu[[#This Row],[Secteur/MO]],"_",VLOOKUP(CTu[[#This Row],[Compartiment]],compartiment[],2,FALSE),"_",CTu[[#This Row],[N° Action]]) -> A10_LAT_LMI_4 | M28: =IF(CTu[[#This Row],[Année subv]]="","",CONCATENATE(CTu[[#This Row],[Objectifs opérationnels]],"_",CTu[[#This Row],[Secteur/MO]],"_",CTu[[#This Row],[Année subv]],"_",VLOOKUP(CTu[[#This Row],[Compartiment]],compartiment[],2),"_",CTu[[#This Row],[N° Action]])) ->  | N28: Restauration du Graboteau aval - continuité écologique - connectivité zones humides et tourbières | O28: Comprend potentiellement l'arasement d'un plan d'eau | P28: SMBAA | S28: 3 | T28: OB | W28: 116666.6667 | X28: 116666.6667 | Y28: 0 | Z28: 0 | AA28: 140000 | AB28: 140000 | AC28: 0.5 | AD28: =CTu[[#This Row],[Montant TTC 2026]]*CTu[[#This Row],[Taux Sub AELB]] -> 0 | AE28: =CTu[[#This Row],[Montant TTC 2027]]*CTu[[#This Row],[Taux Sub AELB]] -> 0 | AF28: =CTu[[#This Row],[Montant TTC 2028]]*CTu[[#This Row],[Taux Sub AELB]] -> 70000 | AG28: =CTu[[#This Row],[Montant Sub AELB 2026]]+CTu[[#This Row],[Montant Sub AELB 2027]]+CTu[[#This Row],[Montant Sub AELB 2028]] -> 70000 | AH28: 0.3 | AI28: =CTu[[#This Row],[Taux Sub RPDL]]*CTu[[#This Row],[Montant TTC 2026]] -> 0 | AJ28: =CTu[[#This Row],[Taux Sub RPDL]]*CTu[[#This Row],[Montant TTC 2027]] -> 0 | AK28: =CTu[[#This Row],[Taux Sub RPDL]]*CTu[[#This Row],[Montant TTC 2028]] -> 42000 | AL28: =CTu[[#This Row],[Montant Sub RPDL 2026]]+CTu[[#This Row],[Montant Sub RPDL 2027]]+CTu[[#This Row],[Montant Sub RPDL 2028]] -> 42000 | AN28: =CTu[[#This Row],[Taux Sub RCVL]]*CTu[[#This Row],[Montant TTC 2026]] -> 0 | AO28: =CTu[[#This Row],[Taux Sub RCVL]]*CTu[[#This Row],[Montant TTC 2027]] -> 0 | AP28: =CTu[[#This Row],[Taux Sub RCVL]]*CTu[[#This Row],[Montant TTC 2028]] -> 0 | AQ28: =CTu[[#This Row],[Montant Sub RCVL 2026]]+CTu[[#This Row],[Montant Sub RCVL 2027]]+CTu[[#This Row],[Montant Sub RCVL 2028]] -> 0 | AS28: =CTu[[#This Row],[Taux Sub CD 37]]*CTu[[#This Row],[Montant HT 2026]] -> 0 | AT28: =CTu[[#This Row],[Taux Sub CD 37]]*CTu[[#This Row],[Montant HT 2027]] -> 0 | AU28: =CTu[[#This Row],[Taux Sub CD 37]]*CTu[[#This Row],[Montant HT 2028]] -> 0 | AV28: =CTu[[#This Row],[Montant Sub CD 37 2026]]+CTu[[#This Row],[Montant Sub CD 37 2027]]+CTu[[#This Row],[Montant Sub CD 37 2028]] -> 0 | AX28: =CTu[[#This Row],[Taux Sub CD 49]]*CTu[[#This Row],[Montant TTC 2026]] -> 0 | AY28: =CTu[[#This Row],[Taux Sub CD 49]]*CTu[[#This Row],[Montant TTC 2027]] -> 0 | AZ28: =CTu[[#This Row],[Taux Sub CD 49]]*CTu[[#This Row],[Montant TTC 2028]] -> 0 | BA28: =CTu[[#This Row],[Montant Sub CD 49 2026]]+CTu[[#This Row],[Montant Sub CD 49 2027]]+CTu[[#This Row],[Montant Sub CD 49 2028]] -> 0 | BC28: =CTu[[#This Row],[Montant TTC 2026]]*CTu[[#This Row],[Taux LIFE]] -> 0 | BD28: =CTu[[#This Row],[Montant TTC 2027]]*CTu[[#This Row],[Taux LIFE]] -> 0 | BE28: =CTu[[#This Row],[Montant TTC 2028]]*CTu[[#This Row],[Taux LIFE]] -> 0 | BF28: =CTu[[#This Row],[Montant LIFE 2026]]+CTu[[#This Row],[Montant LIFE 2027]]+CTu[[#This Row],[Montant LIFE 2028]] -> 0 | BH28: =CTu[[#This Row],[Taux Sub FPRNM]]*CTu[[#This Row],[Montant HT 2026]] -> 0 | BI28: =CTu[[#This Row],[Taux Sub FPRNM]]*CTu[[#This Row],[Montant HT 2027]] -> 0 | BJ28: =CTu[[#This Row],[Taux Sub FPRNM]]*CTu[[#This Row],[Montant HT 2028]] -> 0 | BK28: =CTu[[#This Row],[Montant Sub FPRNM 2026]]+CTu[[#This Row],[Montant Sub FPRNM 2027]]+CTu[[#This Row],[Montant Sub FPRNM 2028]] -> 0 | BM28: =CTu[[#This Row],[FCTVA]]*CTu[[#This Row],[Montant TTC 2026]] -> 0 | BN28: =CTu[[#This Row],[FCTVA]]*CTu[[#This Row],[Montant TTC 2027]] -> 0 | BO28: =CTu[[#This Row],[FCTVA]]*CTu[[#This Row],[Montant TTC 2028]] -> 0 | BP28: =CTu[[#This Row],[Montant FCTVA 2026]]+CTu[[#This Row],[Montant FCTVA 2027]]+CTu[[#This Row],[Montant FCTVA 2028]] -> 0 | BR28: =CTu[[#This Row],[Taux CO MO]]*CTu[[#This Row],[Montant TTC 2026]] -> 0 | BS28: =CTu[[#This Row],[Taux CO MO]]*CTu[[#This Row],[Montant TTC 2027]] -> 0 | BT28: =CTu[[#This Row],[Taux CO MO]]*CTu[[#This Row],[Montant TTC 2028]] -> 0 | BU28: =CTu[[#This Row],[Montant CO MO 2026]]+CTu[[#This Row],[Montant CO MO 2027]]+CTu[[#This Row],[Montant CO MO 2028]] -> 0 | BW28: =CTu[[#This Row],[Taux Tiers]]*CTu[[#This Row],[Montant TTC 2026]] -> 0 | BX28: =CTu[[#This Row],[Taux Tiers]]*CTu[[#This Row],[Montant TTC 2027]] -> 0 | BY28: =CTu[[#This Row],[Taux Tiers]]*CTu[[#This Row],[Montant TTC 2028]] -> 0 | BZ28: =CTu[[#This Row],[Tiers 2026]]+CTu[[#This Row],[Tiers 2027]]+CTu[[#This Row],[Tiers 2028]] -> 0 | CA28: =100%-CTu[[#This Row],[Taux Sub AELB]]-CTu[[#This Row],[Taux Sub RPDL]]-CTu[[#This Row],[Taux Sub RCVL]]-CTu[[#This Row],[Taux Sub CD 37]]-CTu[[#This Row],[Taux Sub CD 49]]-CTu[[#This Row],[Taux Sub FPRNM]]-CTu[[#This Row],[Taux LIFE]]-CTu[[#This Row],[Taux Tiers]]-CTu[[#This Row],[Taux CO MO]]-CTu[[#This Row],[FCTVA]] -> 0.2 | CB28: =CTu[[#This Row],[Montant TTC 2026]]-(CTu[[#This Row],[Montant Sub AELB 2026]]+CTu[[#This Row],[Montant Sub RPDL 2026]]+CTu[[#This Row],[Montant Sub RCVL 2026]]+CTu[[#This Row],[Montant Sub CD 37 2026]]+CTu[[#This Row],[Montant Sub CD 49 2026]]+CTu[[#This Row],[Montant LIFE 2026]]+CTu[[#This Row],[Montant Sub FPRNM 2026]]+CTu[[#This Row],[Montant FCTVA 2026]]+CTu[[#This Row],[Tiers 2026]]+CTu[[#This Row],[Montant CO MO 2026]]) -> 0 | CC28: =CTu[[#This Row],[Montant TTC 2027]]-(CTu[[#This Row],[Montant Sub AELB 2027]]+CTu[[#This Row],[Montant Sub RPDL 2027]]+CTu[[#This Row],[Montant Sub RCVL 2027]]+CTu[[#This Row],[Montant Sub CD 37 2027]]+CTu[[#This Row],[Montant Sub CD 49 2027]]+CTu[[#This Row],[Montant LIFE 2027]]+CTu[[#This Row],[Montant Sub FPRNM 2027]]+CTu[[#This Row],[Montant FCTVA 2027]]+CTu[[#This Row],[Tiers 2027]]+CTu[[#This Row],[Montant CO MO 2027]]) -> 0 | CD28: =CTu[[#This Row],[Montant TTC 2028]]-(CTu[[#This Row],[Montant Sub AELB 2028]]+CTu[[#This Row],[Montant Sub RPDL 2028]]+CTu[[#This Row],[Montant Sub RCVL 2028]]+CTu[[#This Row],[Montant Sub CD 37 2028]]+CTu[[#This Row],[Montant Sub CD 49 2028]]+CTu[[#This Row],[Montant LIFE 2028]]+CTu[[#This Row],[Montant Sub FPRNM 2028]]+CTu[[#This Row],[Montant FCTVA 2028]]+CTu[[#This Row],[Tiers 2028]]+CTu[[#This Row],[Montant CO MO 2028]]) -> 28000 | CE28: =CTu[[#This Row],[Autofinancement 2026]]+CTu[[#This Row],[Autofinancement 2027]]+CTu[[#This Row],[Autofinancement 2028]] -> 28000
A29: Enjeu_A | B29: A_1 | C29: A10 | D29: TOUR | E29: Lit mineur | F29: ATEau | G29: FCT | H29: =IF(CTu[[#This Row],[Montant HT 2026]]>0,"2026",IF(CTu[[#This Row],[Montant HT 2027]]>0,"2027",IF(CTu[[#This Row],[Montant HT 2028]]>0,"2028"))) -> 2027 | J29: 1 | K29: =CONCATENATE(CTu[[#This Row],[Objectifs opérationnels]],"_",VLOOKUP(CTu[[#This Row],[Compartiment]],compartiment[],2,)) -> A10_LMI | L29: =CONCATENATE(CTu[[#This Row],[Objectifs opérationnels]],"_",CTu[[#This Row],[Secteur/MO]],"_",VLOOKUP(CTu[[#This Row],[Compartiment]],compartiment[],2,FALSE),"_",CTu[[#This Row],[N° Action]]) -> A10_TOUR_LMI_1 | M29: =IF(CTu[[#This Row],[Année subv]]="","",CONCATENATE(CTu[[#This Row],[Objectifs opérationnels]],"_",CTu[[#This Row],[Secteur/MO]],"_",CTu[[#This Row],[Année subv]],"_",VLOOKUP(CTu[[#This Row],[Compartiment]],compartiment[],2),"_",CTu[[#This Row],[N° Action]])) ->  | N29: Changeon - restauration écologique et reconquête des champs d'expansion de crue | O29: De l'aval du bourg de Gizeux à la Brosse Objectif ralentir le transit de l'eau Mise en place de suivi piezo Suivi habitats - espèces dans ZEC ou lit majeur impacté pour calcul montant, coeficient de 0,6 : différence de proportion entre Lathan et Changeon + croisement avec augmentation du montant des travaux du Changeon en 2022 Action sur moulin Rouget peut y être inégrée Mécénat indispensable pour réaliser les travaux - Travaux en 3 phases, dernière en 2029 | P29: SMBAA | S29: 1 | T29: JBR | V29: 250000 | W29: 250000 | X29: 500000 | Y29: 0 | Z29: 300000 | AA29: 300000 | AB29: 600000 | AC29: 0.5 | AD29: =CTu[[#This Row],[Montant TTC 2026]]*CTu[[#This Row],[Taux Sub AELB]] -> 0 | AE29: =CTu[[#This Row],[Montant TTC 2027]]*CTu[[#This Row],[Taux Sub AELB]] -> 150000 | AF29: =CTu[[#This Row],[Montant TTC 2028]]*CTu[[#This Row],[Taux Sub AELB]] -> 150000 | AG29: =CTu[[#This Row],[Montant Sub AELB 2026]]+CTu[[#This Row],[Montant Sub AELB 2027]]+CTu[[#This Row],[Montant Sub AELB 2028]] -> 300000 | AI29: =CTu[[#This Row],[Taux Sub RPDL]]*CTu[[#This Row],[Montant TTC 2026]] -> 0 | AJ29: =CTu[[#This Row],[Taux Sub RPDL]]*CTu[[#This Row],[Montant TTC 2027]] -> 0 | AK29: =CTu[[#This Row],[Taux Sub RPDL]]*CTu[[#This Row],[Montant TTC 2028]] -> 0 | AL29: =CTu[[#This Row],[Montant Sub RPDL 2026]]+CTu[[#This Row],[Montant Sub RPDL 2027]]+CTu[[#This Row],[Montant Sub RPDL 2028]] -> 0 | AM29: 0.2 | AN29: =CTu[[#This Row],[Taux Sub RCVL]]*CTu[[#This Row],[Montant TTC 2026]] -> 0 | AO29: =CTu[[#This Row],[Taux Sub RCVL]]*CTu[[#This Row],[Montant TTC 2027]] -> 60000 | AP29: =CTu[[#This Row],[Taux Sub RCVL]]*CTu[[#This Row],[Montant TTC 2028]] -> 60000 | AQ29: =CTu[[#This Row],[Montant Sub RCVL 2026]]+CTu[[#This Row],[Montant Sub RCVL 2027]]+CTu[[#This Row],[Montant Sub RCVL 2028]] -> 120000 | AR29: 0.1 | AS29: =CTu[[#This Row],[Taux Sub CD 37]]*CTu[[#This Row],[Montant HT 2026]] -> 0 | AT29: =CTu[[#This Row],[Taux Sub CD 37]]*CTu[[#This Row],[Montant HT 2027]] -> 25000 | AU29: =CTu[[#This Row],[Taux Sub CD 37]]*CTu[[#This Row],[Montant HT 2028]] -> 25000 | AV29: =CTu[[#This Row],[Montant Sub CD 37 2026]]+CTu[[#This Row],[Montant Sub CD 37 2027]]+CTu[[#This Row],[Montant Sub CD 37 2028]] -> 50000 | AX29: =CTu[[#This Row],[Taux Sub CD 49]]*CTu[[#This Row],[Montant TTC 2026]] -> 0 | AY29: =CTu[[#This Row],[Taux Sub CD 49]]*CTu[[#This Row],[Montant TTC 2027]] -> 0 | AZ29: =CTu[[#This Row],[Taux Sub CD 49]]*CTu[[#This Row],[Montant TTC 2028]] -> 0 | BA29: =CTu[[#This Row],[Montant Sub CD 49 2026]]+CTu[[#This Row],[Montant Sub CD 49 2027]]+CTu[[#This Row],[Montant Sub CD 49 2028]] -> 0 | BC29: =CTu[[#This Row],[Montant TTC 2026]]*CTu[[#This Row],[Taux LIFE]] -> 0 | BD29: =CTu[[#This Row],[Montant TTC 2027]]*CTu[[#This Row],[Taux LIFE]] -> 0 | BE29: =CTu[[#This Row],[Montant TTC 2028]]*CTu[[#This Row],[Taux LIFE]] -> 0 | BF29: =CTu[[#This Row],[Montant LIFE 2026]]+CTu[[#This Row],[Montant LIFE 2027]]+CTu[[#This Row],[Montant LIFE 2028]] -> 0 | BH29: =CTu[[#This Row],[Taux Sub FPRNM]]*CTu[[#This Row],[Montant HT 2026]] -> 0 | BI29: =CTu[[#This Row],[Taux Sub FPRNM]]*CTu[[#This Row],[Montant HT 2027]] -> 0 | BJ29: =CTu[[#This Row],[Taux Sub FPRNM]]*CTu[[#This Row],[Montant HT 2028]] -> 0 | BK29: =CTu[[#This Row],[Montant Sub FPRNM 2026]]+CTu[[#This Row],[Montant Sub FPRNM 2027]]+CTu[[#This Row],[Montant Sub FPRNM 2028]] -> 0 | BL29: 0.01665 | BM29: =CTu[[#This Row],[FCTVA]]*CTu[[#This Row],[Montant TTC 2026]] -> 0 | BN29: =CTu[[#This Row],[FCTVA]]*CTu[[#This Row],[Montant TTC 2027]] -> 4995 | BO29: =CTu[[#This Row],[FCTVA]]*CTu[[#This Row],[Montant TTC 2028]] -> 4995 | BP29: =CTu[[#This Row],[Montant FCTVA 2026]]+CTu[[#This Row],[Montant FCTVA 2027]]+CTu[[#This Row],[Montant FCTVA 2028]] -> 9990 | BR29: =CTu[[#This Row],[Taux CO MO]]*CTu[[#This Row],[Montant TTC 2026]] -> 0 | BS29: =CTu[[#This Row],[Taux CO MO]]*CTu[[#This Row],[Montant TTC 2027]] -> 0 | BT29: =CTu[[#This Row],[Taux CO MO]]*CTu[[#This Row],[Montant TTC 2028]] -> 0 | BU29: =CTu[[#This Row],[Montant CO MO 2026]]+CTu[[#This Row],[Montant CO MO 2027]]+CTu[[#This Row],[Montant CO MO 2028]] -> 0 | BV29: 0.2 | BW29: =CTu[[#This Row],[Taux Tiers]]*CTu[[#This Row],[Montant TTC 2026]] -> 0 | BX29: =CTu[[#This Row],[Taux Tiers]]*CTu[[#This Row],[Montant TTC 2027]] -> 60000 | BY29: =CTu[[#This Row],[Taux Tiers]]*CTu[[#This Row],[Montant TTC 2028]] -> 60000 | BZ29: =CTu[[#This Row],[Tiers 2026]]+CTu[[#This Row],[Tiers 2027]]+CTu[[#This Row],[Tiers 2028]] -> 120000 | CA29: =100%-CTu[[#This Row],[Taux Sub AELB]]-CTu[[#This Row],[Taux Sub RPDL]]-CTu[[#This Row],[Taux Sub RCVL]]-CTu[[#This Row],[Taux Sub CD 37]]-CTu[[#This Row],[Taux Sub CD 49]]-CTu[[#This Row],[Taux Sub FPRNM]]-CTu[[#This Row],[Taux LIFE]]-CTu[[#This Row],[Taux Tiers]]-CTu[[#This Row],[Taux CO MO]]-CTu[[#This Row],[FCTVA]] -> -0.01665 | CB29: =CTu[[#This Row],[Montant TTC 2026]]-(CTu[[#This Row],[Montant Sub AELB 2026]]+CTu[[#This Row],[Montant Sub RPDL 2026]]+CTu[[#This Row],[Montant Sub RCVL 2026]]+CTu[[#This Row],[Montant Sub CD 37 2026]]+CTu[[#This Row],[Montant Sub CD 49 2026]]+CTu[[#This Row],[Montant LIFE 2026]]+CTu[[#This Row],[Montant Sub FPRNM 2026]]+CTu[[#This Row],[Montant FCTVA 2026]]+CTu[[#This Row],[Tiers 2026]]+CTu[[#This Row],[Montant CO MO 2026]]) -> 0 | CC29: =CTu[[#This Row],[Montant TTC 2027]]-(CTu[[#This Row],[Montant Sub AELB 2027]]+CTu[[#This Row],[Montant Sub RPDL 2027]]+CTu[[#This Row],[Montant Sub RCVL 2027]]+CTu[[#This Row],[Montant Sub CD 37 2027]]+CTu[[#This Row],[Montant Sub CD 49 2027]]+CTu[[#This Row],[Montant LIFE 2027]]+CTu[[#This Row],[Montant Sub FPRNM 2027]]+CTu[[#This Row],[Montant FCTVA 2027]]+CTu[[#This Row],[Tiers 2027]]+CTu[[#This Row],[Montant CO MO 2027]]) -> 5 | CD29: =CTu[[#This Row],[Montant TTC 2028]]-(CTu[[#This Row],[Montant Sub AELB 2028]]+CTu[[#This Row],[Montant Sub RPDL 2028]]+CTu[[#This Row],[Montant Sub RCVL 2028]]+CTu[[#This Row],[Montant Sub CD 37 2028]]+CTu[[#This Row],[Montant Sub CD 49 2028]]+CTu[[#This Row],[Montant LIFE 2028]]+CTu[[#This Row],[Montant Sub FPRNM 2028]]+CTu[[#This Row],[Montant FCTVA 2028]]+CTu[[#This Row],[Tiers 2028]]+CTu[[#This Row],[Montant CO MO 2028]]) -> 5 | CE29: =CTu[[#This Row],[Autofinancement 2026]]+CTu[[#This Row],[Autofinancement 2027]]+CTu[[#This Row],[Autofinancement 2028]] -> 10
A30: Enjeu_A | B30: A_1 | C30: A10 | D30: TOUR | E30: Lit mineur | F30: ATEau | G30: FCT | H30: =IF(CTu[[#This Row],[Montant HT 2026]]>0,"2026",IF(CTu[[#This Row],[Montant HT 2027]]>0,"2027",IF(CTu[[#This Row],[Montant HT 2028]]>0,"2028"))) -> 2027 | J30: 2 | K30: =CONCATENATE(CTu[[#This Row],[Objectifs opérationnels]],"_",VLOOKUP(CTu[[#This Row],[Compartiment]],compartiment[],2,)) -> A10_LMI | L30: =CONCATENATE(CTu[[#This Row],[Objectifs opérationnels]],"_",CTu[[#This Row],[Secteur/MO]],"_",VLOOKUP(CTu[[#This Row],[Compartiment]],compartiment[],2,FALSE),"_",CTu[[#This Row],[N° Action]]) -> A10_TOUR_LMI_2 | M30: =IF(CTu[[#This Row],[Année subv]]="","",CONCATENATE(CTu[[#This Row],[Objectifs opérationnels]],"_",CTu[[#This Row],[Secteur/MO]],"_",CTu[[#This Row],[Année subv]],"_",VLOOKUP(CTu[[#This Row],[Compartiment]],compartiment[],2),"_",CTu[[#This Row],[N° Action]])) ->  | N30: Restauration du lit en amont des moulin Boutard et Bertrand | O30: suite travaux de restauration de la continuité écologique Possibilité de cumuler actions avec restauration continuité du Grand moulin Etude interne | P30: SMBAA | S30: 1 | T30: JBR | V30: 25000 | X30: 25000 | Y30: 0 | Z30: 30000 | AA30: 0 | AB30: 30000 | AC30: 0.5 | AD30: =CTu[[#This Row],[Montant TTC 2026]]*CTu[[#This Row],[Taux Sub AELB]] -> 0 | AE30: =CTu[[#This Row],[Montant TTC 2027]]*CTu[[#This Row],[Taux Sub AELB]] -> 15000 | AF30: =CTu[[#This Row],[Montant TTC 2028]]*CTu[[#This Row],[Taux Sub AELB]] -> 0 | AG30: =CTu[[#This Row],[Montant Sub AELB 2026]]+CTu[[#This Row],[Montant Sub AELB 2027]]+CTu[[#This Row],[Montant Sub AELB 2028]] -> 15000 | AI30: =CTu[[#This Row],[Taux Sub RPDL]]*CTu[[#This Row],[Montant TTC 2026]] -> 0 | AJ30: =CTu[[#This Row],[Taux Sub RPDL]]*CTu[[#This Row],[Montant TTC 2027]] -> 0 | AK30: =CTu[[#This Row],[Taux Sub RPDL]]*CTu[[#This Row],[Montant TTC 2028]] -> 0 | AL30: =CTu[[#This Row],[Montant Sub RPDL 2026]]+CTu[[#This Row],[Montant Sub RPDL 2027]]+CTu[[#This Row],[Montant Sub RPDL 2028]] -> 0 | AM30: 0.2 | AN30: =CTu[[#This Row],[Taux Sub RCVL]]*CTu[[#This Row],[Montant TTC 2026]] -> 0 | AO30: =CTu[[#This Row],[Taux Sub RCVL]]*CTu[[#This Row],[Montant TTC 2027]] -> 6000 | AP30: =CTu[[#This Row],[Taux Sub RCVL]]*CTu[[#This Row],[Montant TTC 2028]] -> 0 | AQ30: =CTu[[#This Row],[Montant Sub RCVL 2026]]+CTu[[#This Row],[Montant Sub RCVL 2027]]+CTu[[#This Row],[Montant Sub RCVL 2028]] -> 6000 | AR30: 0.1 | AS30: =CTu[[#This Row],[Taux Sub CD 37]]*CTu[[#This Row],[Montant HT 2026]] -> 0 | AT30: =CTu[[#This Row],[Taux Sub CD 37]]*CTu[[#This Row],[Montant HT 2027]] -> 2500 | AU30: =CTu[[#This Row],[Taux Sub CD 37]]*CTu[[#This Row],[Montant HT 2028]] -> 0 | AV30: =CTu[[#This Row],[Montant Sub CD 37 2026]]+CTu[[#This Row],[Montant Sub CD 37 2027]]+CTu[[#This Row],[Montant Sub CD 37 2028]] -> 2500 | AX30: =CTu[[#This Row],[Taux Sub CD 49]]*CTu[[#This Row],[Montant TTC 2026]] -> 0 | AY30: =CTu[[#This Row],[Taux Sub CD 49]]*CTu[[#This Row],[Montant TTC 2027]] -> 0 | AZ30: =CTu[[#This Row],[Taux Sub CD 49]]*CTu[[#This Row],[Montant TTC 2028]] -> 0 | BA30: =CTu[[#This Row],[Montant Sub CD 49 2026]]+CTu[[#This Row],[Montant Sub CD 49 2027]]+CTu[[#This Row],[Montant Sub CD 49 2028]] -> 0 | BC30: =CTu[[#This Row],[Montant TTC 2026]]*CTu[[#This Row],[Taux LIFE]] -> 0 | BD30: =CTu[[#This Row],[Montant TTC 2027]]*CTu[[#This Row],[Taux LIFE]] -> 0 | BE30: =CTu[[#This Row],[Montant TTC 2028]]*CTu[[#This Row],[Taux LIFE]] -> 0 | BF30: =CTu[[#This Row],[Montant LIFE 2026]]+CTu[[#This Row],[Montant LIFE 2027]]+CTu[[#This Row],[Montant LIFE 2028]] -> 0 | BH30: =CTu[[#This Row],[Taux Sub FPRNM]]*CTu[[#This Row],[Montant HT 2026]] -> 0 | BI30: =CTu[[#This Row],[Taux Sub FPRNM]]*CTu[[#This Row],[Montant HT 2027]] -> 0 | BJ30: =CTu[[#This Row],[Taux Sub FPRNM]]*CTu[[#This Row],[Montant HT 2028]] -> 0 | BK30: =CTu[[#This Row],[Montant Sub FPRNM 2026]]+CTu[[#This Row],[Montant Sub FPRNM 2027]]+CTu[[#This Row],[Montant Sub FPRNM 2028]] -> 0 | BM30: =CTu[[#This Row],[FCTVA]]*CTu[[#This Row],[Montant TTC 2026]] -> 0 | BN30: =CTu[[#This Row],[FCTVA]]*CTu[[#This Row],[Montant TTC 2027]] -> 0 | BO30: =CTu[[#This Row],[FCTVA]]*CTu[[#This Row],[Montant TTC 2028]] -> 0 | BP30: =CTu[[#This Row],[Montant FCTVA 2026]]+CTu[[#This Row],[Montant FCTVA 2027]]+CTu[[#This Row],[Montant FCTVA 2028]] -> 0 | BR30: =CTu[[#This Row],[Taux CO MO]]*CTu[[#This Row],[Montant TTC 2026]] -> 0 | BS30: =CTu[[#This Row],[Taux CO MO]]*CTu[[#This Row],[Montant TTC 2027]] -> 0 | BT30: =CTu[[#This Row],[Taux CO MO]]*CTu[[#This Row],[Montant TTC 2028]] -> 0 | BU30: =CTu[[#This Row],[Montant CO MO 2026]]+CTu[[#This Row],[Montant CO MO 2027]]+CTu[[#This Row],[Montant CO MO 2028]] -> 0 | BW30: =CTu[[#This Row],[Taux Tiers]]*CTu[[#This Row],[Montant TTC 2026]] -> 0 | BX30: =CTu[[#This Row],[Taux Tiers]]*CTu[[#This Row],[Montant TTC 2027]] -> 0 | BY30: =CTu[[#This Row],[Taux Tiers]]*CTu[[#This Row],[Montant TTC 2028]] -> 0 | BZ30: =CTu[[#This Row],[Tiers 2026]]+CTu[[#This Row],[Tiers 2027]]+CTu[[#This Row],[Tiers 2028]] -> 0 | CA30: =100%-CTu[[#This Row],[Taux Sub AELB]]-CTu[[#This Row],[Taux Sub RPDL]]-CTu[[#This Row],[Taux Sub RCVL]]-CTu[[#This Row],[Taux Sub CD 37]]-CTu[[#This Row],[Taux Sub CD 49]]-CTu[[#This Row],[Taux Sub FPRNM]]-CTu[[#This Row],[Taux LIFE]]-CTu[[#This Row],[Taux Tiers]]-CTu[[#This Row],[Taux CO MO]]-CTu[[#This Row],[FCTVA]] -> 0.2 | CB30: =CTu[[#This Row],[Montant TTC 2026]]-(CTu[[#This Row],[Montant Sub AELB 2026]]+CTu[[#This Row],[Montant Sub RPDL 2026]]+CTu[[#This Row],[Montant Sub RCVL 2026]]+CTu[[#This Row],[Montant Sub CD 37 2026]]+CTu[[#This Row],[Montant Sub CD 49 2026]]+CTu[[#This Row],[Montant LIFE 2026]]+CTu[[#This Row],[Montant Sub FPRNM 2026]]+CTu[[#This Row],[Montant FCTVA 2026]]+CTu[[#This Row],[Tiers 2026]]+CTu[[#This Row],[Montant CO MO 2026]]) -> 0 | CC30: =CTu[[#This Row],[Montant TTC 2027]]-(CTu[[#This Row],[Montant Sub AELB 2027]]+CTu[[#This Row],[Montant Sub RPDL 2027]]+CTu[[#This Row],[Montant Sub RCVL 2027]]+CTu[[#This Row],[Montant Sub CD 37 2027]]+CTu[[#This Row],[Montant Sub CD 49 2027]]+CTu[[#This Row],[Montant LIFE 2027]]+CTu[[#This Row],[Montant Sub FPRNM 2027]]+CTu[[#This Row],[Montant FCTVA 2027]]+CTu[[#This Row],[Tiers 2027]]+CTu[[#This Row],[Montant CO MO 2027]]) -> 6500 | CD30: =CTu[[#This Row],[Montant TTC 2028]]-(CTu[[#This Row],[Montant Sub AELB 2028]]+CTu[[#This Row],[Montant Sub RPDL 2028]]+CTu[[#This Row],[Montant Sub RCVL 2028]]+CTu[[#This Row],[Montant Sub CD 37 2028]]+CTu[[#This Row],[Montant Sub CD 49 2028]]+CTu[[#This Row],[Montant LIFE 2028]]+CTu[[#This Row],[Montant Sub FPRNM 2028]]+CTu[[#This Row],[Montant FCTVA 2028]]+CTu[[#This Row],[Tiers 2028]]+CTu[[#This Row],[Montant CO MO 2028]]) -> 0 | CE30: =CTu[[#This Row],[Autofinancement 2026]]+CTu[[#This Row],[Autofinancement 2027]]+CTu[[#This Row],[Autofinancement 2028]] -> 6500
A31: Enjeu_A | B31: A_1 | C31: A11 | D31: AUT | E31: Continuité écologique | F31: ATEau | G31: FCT | H31: =IF(CTu[[#This Row],[Montant HT 2026]]>0,"2026",IF(CTu[[#This Row],[Montant HT 2027]]>0,"2027",IF(CTu[[#This Row],[Montant HT 2028]]>0,"2028"))) -> 2028 | J31: 1 | K31: =CONCATENATE(CTu[[#This Row],[Objectifs opérationnels]],"_",VLOOKUP(CTu[[#This Row],[Compartiment]],compartiment[],2,)) -> A11_CON | L31: =CONCATENATE(CTu[[#This Row],[Objectifs opérationnels]],"_",CTu[[#This Row],[Secteur/MO]],"_",VLOOKUP(CTu[[#This Row],[Compartiment]],compartiment[],2,FALSE),"_",CTu[[#This Row],[N° Action]]) -> A11_AUT_CON_1 | M31: =IF(CTu[[#This Row],[Année subv]]="","",CONCATENATE(CTu[[#This Row],[Objectifs opérationnels]],"_",CTu[[#This Row],[Secteur/MO]],"_",CTu[[#This Row],[Année subv]],"_",VLOOKUP(CTu[[#This Row],[Compartiment]],compartiment[],2),"_",CTu[[#This Row],[N° Action]])) ->  | N31: Travaux de restauration de la continuité écologique au droit du Moulin de Cravant sur le ruisseau de l'Automne | O31: Contournement d'ouvrage vers le fond de vallée et restauration du lit mineur - Travaux de restauration du lit effectuées en amont et en avl du site | P31: SMBAA | S31: 1 | T31: RC | W31: 62500 | X31: 62500 | Y31: 0 | Z31: 0 | AA31: 75000 | AB31: 75000 | AC31: 0.5 | AD31: =CTu[[#This Row],[Montant TTC 2026]]*CTu[[#This Row],[Taux Sub AELB]] -> 0 | AE31: =CTu[[#This Row],[Montant TTC 2027]]*CTu[[#This Row],[Taux Sub AELB]] -> 0 | AF31: =CTu[[#This Row],[Montant TTC 2028]]*CTu[[#This Row],[Taux Sub AELB]] -> 37500 | AG31: =CTu[[#This Row],[Montant Sub AELB 2026]]+CTu[[#This Row],[Montant Sub AELB 2027]]+CTu[[#This Row],[Montant Sub AELB 2028]] -> 37500 | AH31: 0.3 | AI31: =CTu[[#This Row],[Taux Sub RPDL]]*CTu[[#This Row],[Montant TTC 2026]] -> 0 | AJ31: =CTu[[#This Row],[Taux Sub RPDL]]*CTu[[#This Row],[Montant TTC 2027]] -> 0 | AK31: =CTu[[#This Row],[Taux Sub RPDL]]*CTu[[#This Row],[Montant TTC 2028]] -> 22500 | AL31: =CTu[[#This Row],[Montant Sub RPDL 2026]]+CTu[[#This Row],[Montant Sub RPDL 2027]]+CTu[[#This Row],[Montant Sub RPDL 2028]] -> 22500 | AN31: =CTu[[#This Row],[Taux Sub RCVL]]*CTu[[#This Row],[Montant TTC 2026]] -> 0 | AO31: =CTu[[#This Row],[Taux Sub RCVL]]*CTu[[#This Row],[Montant TTC 2027]] -> 0 | AP31: =CTu[[#This Row],[Taux Sub RCVL]]*CTu[[#This Row],[Montant TTC 2028]] -> 0 | AQ31: =CTu[[#This Row],[Montant Sub RCVL 2026]]+CTu[[#This Row],[Montant Sub RCVL 2027]]+CTu[[#This Row],[Montant Sub RCVL 2028]] -> 0 | AS31: =CTu[[#This Row],[Taux Sub CD 37]]*CTu[[#This Row],[Montant HT 2026]] -> 0 | AT31: =CTu[[#This Row],[Taux Sub CD 37]]*CTu[[#This Row],[Montant HT 2027]] -> 0 | AU31: =CTu[[#This Row],[Taux Sub CD 37]]*CTu[[#This Row],[Montant HT 2028]] -> 0 | AV31: =CTu[[#This Row],[Montant Sub CD 37 2026]]+CTu[[#This Row],[Montant Sub CD 37 2027]]+CTu[[#This Row],[Montant Sub CD 37 2028]] -> 0 | AX31: =CTu[[#This Row],[Taux Sub CD 49]]*CTu[[#This Row],[Montant TTC 2026]] -> 0 | AY31: =CTu[[#This Row],[Taux Sub CD 49]]*CTu[[#This Row],[Montant TTC 2027]] -> 0 | AZ31: =CTu[[#This Row],[Taux Sub CD 49]]*CTu[[#This Row],[Montant TTC 2028]] -> 0 | BA31: =CTu[[#This Row],[Montant Sub CD 49 2026]]+CTu[[#This Row],[Montant Sub CD 49 2027]]+CTu[[#This Row],[Montant Sub CD 49 2028]] -> 0 | BC31: =CTu[[#This Row],[Montant TTC 2026]]*CTu[[#This Row],[Taux LIFE]] -> 0 | BD31: =CTu[[#This Row],[Montant TTC 2027]]*CTu[[#This Row],[Taux LIFE]] -> 0 | BE31: =CTu[[#This Row],[Montant TTC 2028]]*CTu[[#This Row],[Taux LIFE]] -> 0 | BF31: =CTu[[#This Row],[Montant LIFE 2026]]+CTu[[#This Row],[Montant LIFE 2027]]+CTu[[#This Row],[Montant LIFE 2028]] -> 0 | BH31: =CTu[[#This Row],[Taux Sub FPRNM]]*CTu[[#This Row],[Montant HT 2026]] -> 0 | BI31: =CTu[[#This Row],[Taux Sub FPRNM]]*CTu[[#This Row],[Montant HT 2027]] -> 0 | BJ31: =CTu[[#This Row],[Taux Sub FPRNM]]*CTu[[#This Row],[Montant HT 2028]] -> 0 | BK31: =CTu[[#This Row],[Montant Sub FPRNM 2026]]+CTu[[#This Row],[Montant Sub FPRNM 2027]]+CTu[[#This Row],[Montant Sub FPRNM 2028]] -> 0 | BM31: =CTu[[#This Row],[FCTVA]]*CTu[[#This Row],[Montant TTC 2026]] -> 0 | BN31: =CTu[[#This Row],[FCTVA]]*CTu[[#This Row],[Montant TTC 2027]] -> 0 | BO31: =CTu[[#This Row],[FCTVA]]*CTu[[#This Row],[Montant TTC 2028]] -> 0 | BP31: =CTu[[#This Row],[Montant FCTVA 2026]]+CTu[[#This Row],[Montant FCTVA 2027]]+CTu[[#This Row],[Montant FCTVA 2028]] -> 0 | BR31: =CTu[[#This Row],[Taux CO MO]]*CTu[[#This Row],[Montant TTC 2026]] -> 0 | BS31: =CTu[[#This Row],[Taux CO MO]]*CTu[[#This Row],[Montant TTC 2027]] -> 0 | BT31: =CTu[[#This Row],[Taux CO MO]]*CTu[[#This Row],[Montant TTC 2028]] -> 0 | BU31: =CTu[[#This Row],[Montant CO MO 2026]]+CTu[[#This Row],[Montant CO MO 2027]]+CTu[[#This Row],[Montant CO MO 2028]] -> 0 | BW31: =CTu[[#This Row],[Taux Tiers]]*CTu[[#This Row],[Montant TTC 2026]] -> 0 | BX31: =CTu[[#This Row],[Taux Tiers]]*CTu[[#This Row],[Montant TTC 2027]] -> 0 | BY31: =CTu[[#This Row],[Taux Tiers]]*CTu[[#This Row],[Montant TTC 2028]] -> 0 | BZ31: =CTu[[#This Row],[Tiers 2026]]+CTu[[#This Row],[Tiers 2027]]+CTu[[#This Row],[Tiers 2028]] -> 0 | CA31: =100%-CTu[[#This Row],[Taux Sub AELB]]-CTu[[#This Row],[Taux Sub RPDL]]-CTu[[#This Row],[Taux Sub RCVL]]-CTu[[#This Row],[Taux Sub CD 37]]-CTu[[#This Row],[Taux Sub CD 49]]-CTu[[#This Row],[Taux Sub FPRNM]]-CTu[[#This Row],[Taux LIFE]]-CTu[[#This Row],[Taux Tiers]]-CTu[[#This Row],[Taux CO MO]]-CTu[[#This Row],[FCTVA]] -> 0.2 | CB31: =CTu[[#This Row],[Montant TTC 2026]]-(CTu[[#This Row],[Montant Sub AELB 2026]]+CTu[[#This Row],[Montant Sub RPDL 2026]]+CTu[[#This Row],[Montant Sub RCVL 2026]]+CTu[[#This Row],[Montant Sub CD 37 2026]]+CTu[[#This Row],[Montant Sub CD 49 2026]]+CTu[[#This Row],[Montant LIFE 2026]]+CTu[[#This Row],[Montant Sub FPRNM 2026]]+CTu[[#This Row],[Montant FCTVA 2026]]+CTu[[#This Row],[Tiers 2026]]+CTu[[#This Row],[Montant CO MO 2026]]) -> 0 | CC31: =CTu[[#This Row],[Montant TTC 2027]]-(CTu[[#This Row],[Montant Sub AELB 2027]]+CTu[[#This Row],[Montant Sub RPDL 2027]]+CTu[[#This Row],[Montant Sub RCVL 2027]]+CTu[[#This Row],[Montant Sub CD 37 2027]]+CTu[[#This Row],[Montant Sub CD 49 2027]]+CTu[[#This Row],[Montant LIFE 2027]]+CTu[[#This Row],[Montant Sub FPRNM 2027]]+CTu[[#This Row],[Montant FCTVA 2027]]+CTu[[#This Row],[Tiers 2027]]+CTu[[#This Row],[Montant CO MO 2027]]) -> 0 | CD31: =CTu[[#This Row],[Montant TTC 2028]]-(CTu[[#This Row],[Montant Sub AELB 2028]]+CTu[[#This Row],[Montant Sub RPDL 2028]]+CTu[[#This Row],[Montant Sub RCVL 2028]]+CTu[[#This Row],[Montant Sub CD 37 2028]]+CTu[[#This Row],[Montant Sub CD 49 2028]]+CTu[[#This Row],[Montant LIFE 2028]]+CTu[[#This Row],[Montant Sub FPRNM 2028]]+CTu[[#This Row],[Montant FCTVA 2028]]+CTu[[#This Row],[Tiers 2028]]+CTu[[#This Row],[Montant CO MO 2028]]) -> 15000 | CE31: =CTu[[#This Row],[Autofinancement 2026]]+CTu[[#This Row],[Autofinancement 2027]]+CTu[[#This Row],[Autofinancement 2028]] -> 15000
A32: Enjeu_A | B32: A_1 | C32: A11 | D32: AUT | E32: Étude | F32: ATEau | G32: FCT | H32: =IF(CTu[[#This Row],[Montant HT 2026]]>0,"2026",IF(CTu[[#This Row],[Montant HT 2027]]>0,"2027",IF(CTu[[#This Row],[Montant HT 2028]]>0,"2028"))) -> 2027 | J32: 1 | K32: =CONCATENATE(CTu[[#This Row],[Objectifs opérationnels]],"_",VLOOKUP(CTu[[#This Row],[Compartiment]],compartiment[],2,)) -> A11_ETU | L32: =CONCATENATE(CTu[[#This Row],[Objectifs opérationnels]],"_",CTu[[#This Row],[Secteur/MO]],"_",VLOOKUP(CTu[[#This Row],[Compartiment]],compartiment[],2,FALSE),"_",CTu[[#This Row],[N° Action]]) -> A11_AUT_ETU_1 | M32: =IF(CTu[[#This Row],[Année subv]]="","",CONCATENATE(CTu[[#This Row],[Objectifs opérationnels]],"_",CTu[[#This Row],[Secteur/MO]],"_",CTu[[#This Row],[Année subv]],"_",VLOOKUP(CTu[[#This Row],[Compartiment]],compartiment[],2),"_",CTu[[#This Row],[N° Action]])) ->  | N32: Etude pour la restauration de la continuité écologique sur le plan d'eau de la Fortunerie - Ruisseau de l'Automne | O32: Contournement du bras du moulin de Cravant par le plan d'eau de la Fortunerie- propriétaire du plan d'eau intéressé par la démarche. Restauration du lit à intégrer. | P32: SMBAA | S32: 1 | T32: RC | V32: 18750 | X32: 18750 | Y32: 0 | Z32: 22500 | AA32: 0 | AB32: 22500 | AC32: 0.5 | AD32: =CTu[[#This Row],[Montant TTC 2026]]*CTu[[#This Row],[Taux Sub AELB]] -> 0 | AE32: =CTu[[#This Row],[Montant TTC 2027]]*CTu[[#This Row],[Taux Sub AELB]] -> 11250 | AF32: =CTu[[#This Row],[Montant TTC 2028]]*CTu[[#This Row],[Taux Sub AELB]] -> 0 | AG32: =CTu[[#This Row],[Montant Sub AELB 2026]]+CTu[[#This Row],[Montant Sub AELB 2027]]+CTu[[#This Row],[Montant Sub AELB 2028]] -> 11250 | AH32: 0.3 | AI32: =CTu[[#This Row],[Taux Sub RPDL]]*CTu[[#This Row],[Montant TTC 2026]] -> 0 | AJ32: =CTu[[#This Row],[Taux Sub RPDL]]*CTu[[#This Row],[Montant TTC 2027]] -> 6750 | AK32: =CTu[[#This Row],[Taux Sub RPDL]]*CTu[[#This Row],[Montant TTC 2028]] -> 0 | AL32: =CTu[[#This Row],[Montant Sub RPDL 2026]]+CTu[[#This Row],[Montant Sub RPDL 2027]]+CTu[[#This Row],[Montant Sub RPDL 2028]] -> 6750 | AN32: =CTu[[#This Row],[Taux Sub RCVL]]*CTu[[#This Row],[Montant TTC 2026]] -> 0 | AO32: =CTu[[#This Row],[Taux Sub RCVL]]*CTu[[#This Row],[Montant TTC 2027]] -> 0 | AP32: =CTu[[#This Row],[Taux Sub RCVL]]*CTu[[#This Row],[Montant TTC 2028]] -> 0 | AQ32: =CTu[[#This Row],[Montant Sub RCVL 2026]]+CTu[[#This Row],[Montant Sub RCVL 2027]]+CTu[[#This Row],[Montant Sub RCVL 2028]] -> 0 | AS32: =CTu[[#This Row],[Taux Sub CD 37]]*CTu[[#This Row],[Montant HT 2026]] -> 0 | AT32: =CTu[[#This Row],[Taux Sub CD 37]]*CTu[[#This Row],[Montant HT 2027]] -> 0 | AU32: =CTu[[#This Row],[Taux Sub CD 37]]*CTu[[#This Row],[Montant HT 2028]] -> 0 | AV32: =CTu[[#This Row],[Montant Sub CD 37 2026]]+CTu[[#This Row],[Montant Sub CD 37 2027]]+CTu[[#This Row],[Montant Sub CD 37 2028]] -> 0 | AX32: =CTu[[#This Row],[Taux Sub CD 49]]*CTu[[#This Row],[Montant TTC 2026]] -> 0 | AY32: =CTu[[#This Row],[Taux Sub CD 49]]*CTu[[#This Row],[Montant TTC 2027]] -> 0 | AZ32: =CTu[[#This Row],[Taux Sub CD 49]]*CTu[[#This Row],[Montant TTC 2028]] -> 0 | BA32: =CTu[[#This Row],[Montant Sub CD 49 2026]]+CTu[[#This Row],[Montant Sub CD 49 2027]]+CTu[[#This Row],[Montant Sub CD 49 2028]] -> 0 | BC32: =CTu[[#This Row],[Montant TTC 2026]]*CTu[[#This Row],[Taux LIFE]] -> 0 | BD32: =CTu[[#This Row],[Montant TTC 2027]]*CTu[[#This Row],[Taux LIFE]] -> 0 | BE32: =CTu[[#This Row],[Montant TTC 2028]]*CTu[[#This Row],[Taux LIFE]] -> 0 | BF32: =CTu[[#This Row],[Montant LIFE 2026]]+CTu[[#This Row],[Montant LIFE 2027]]+CTu[[#This Row],[Montant LIFE 2028]] -> 0 | BH32: =CTu[[#This Row],[Taux Sub FPRNM]]*CTu[[#This Row],[Montant HT 2026]] -> 0 | BI32: =CTu[[#This Row],[Taux Sub FPRNM]]*CTu[[#This Row],[Montant HT 2027]] -> 0 | BJ32: =CTu[[#This Row],[Taux Sub FPRNM]]*CTu[[#This Row],[Montant HT 2028]] -> 0 | BK32: =CTu[[#This Row],[Montant Sub FPRNM 2026]]+CTu[[#This Row],[Montant Sub FPRNM 2027]]+CTu[[#This Row],[Montant Sub FPRNM 2028]] -> 0 | BM32: =CTu[[#This Row],[FCTVA]]*CTu[[#This Row],[Montant TTC 2026]] -> 0 | BN32: =CTu[[#This Row],[FCTVA]]*CTu[[#This Row],[Montant TTC 2027]] -> 0 | BO32: =CTu[[#This Row],[FCTVA]]*CTu[[#This Row],[Montant TTC 2028]] -> 0 | BP32: =CTu[[#This Row],[Montant FCTVA 2026]]+CTu[[#This Row],[Montant FCTVA 2027]]+CTu[[#This Row],[Montant FCTVA 2028]] -> 0 | BR32: =CTu[[#This Row],[Taux CO MO]]*CTu[[#This Row],[Montant TTC 2026]] -> 0 | BS32: =CTu[[#This Row],[Taux CO MO]]*CTu[[#This Row],[Montant TTC 2027]] -> 0 | BT32: =CTu[[#This Row],[Taux CO MO]]*CTu[[#This Row],[Montant TTC 2028]] -> 0 | BU32: =CTu[[#This Row],[Montant CO MO 2026]]+CTu[[#This Row],[Montant CO MO 2027]]+CTu[[#This Row],[Montant CO MO 2028]] -> 0 | BW32: =CTu[[#This Row],[Taux Tiers]]*CTu[[#This Row],[Montant TTC 2026]] -> 0 | BX32: =CTu[[#This Row],[Taux Tiers]]*CTu[[#This Row],[Montant TTC 2027]] -> 0 | BY32: =CTu[[#This Row],[Taux Tiers]]*CTu[[#This Row],[Montant TTC 2028]] -> 0 | BZ32: =CTu[[#This Row],[Tiers 2026]]+CTu[[#This Row],[Tiers 2027]]+CTu[[#This Row],[Tiers 2028]] -> 0 | CA32: =100%-CTu[[#This Row],[Taux Sub AELB]]-CTu[[#This Row],[Taux Sub RPDL]]-CTu[[#This Row],[Taux Sub RCVL]]-CTu[[#This Row],[Taux Sub CD 37]]-CTu[[#This Row],[Taux Sub CD 49]]-CTu[[#This Row],[Taux Sub FPRNM]]-CTu[[#This Row],[Taux LIFE]]-CTu[[#This Row],[Taux Tiers]]-CTu[[#This Row],[Taux CO MO]]-CTu[[#This Row],[FCTVA]] -> 0.2 | CB32: =CTu[[#This Row],[Montant TTC 2026]]-(CTu[[#This Row],[Montant Sub AELB 2026]]+CTu[[#This Row],[Montant Sub RPDL 2026]]+CTu[[#This Row],[Montant Sub RCVL 2026]]+CTu[[#This Row],[Montant Sub CD 37 2026]]+CTu[[#This Row],[Montant Sub CD 49 2026]]+CTu[[#This Row],[Montant LIFE 2026]]+CTu[[#This Row],[Montant Sub FPRNM 2026]]+CTu[[#This Row],[Montant FCTVA 2026]]+CTu[[#This Row],[Tiers 2026]]+CTu[[#This Row],[Montant CO MO 2026]]) -> 0 | CC32: =CTu[[#This Row],[Montant TTC 2027]]-(CTu[[#This Row],[Montant Sub AELB 2027]]+CTu[[#This Row],[Montant Sub RPDL 2027]]+CTu[[#This Row],[Montant Sub RCVL 2027]]+CTu[[#This Row],[Montant Sub CD 37 2027]]+CTu[[#This Row],[Montant Sub CD 49 2027]]+CTu[[#This Row],[Montant LIFE 2027]]+CTu[[#This Row],[Montant Sub FPRNM 2027]]+CTu[[#This Row],[Montant FCTVA 2027]]+CTu[[#This Row],[Tiers 2027]]+CTu[[#This Row],[Montant CO MO 2027]]) -> 4500 | CD32: =CTu[[#This Row],[Montant TTC 2028]]-(CTu[[#This Row],[Montant Sub AELB 2028]]+CTu[[#This Row],[Montant Sub RPDL 2028]]+CTu[[#This Row],[Montant Sub RCVL 2028]]+CTu[[#This Row],[Montant Sub CD 37 2028]]+CTu[[#This Row],[Montant Sub CD 49 2028]]+CTu[[#This Row],[Montant LIFE 2028]]+CTu[[#This Row],[Montant Sub FPRNM 2028]]+CTu[[#This Row],[Montant FCTVA 2028]]+CTu[[#This Row],[Tiers 2028]]+CTu[[#This Row],[Montant CO MO 2028]]) -> 0 | CE32: =CTu[[#This Row],[Autofinancement 2026]]+CTu[[#This Row],[Autofinancement 2027]]+CTu[[#This Row],[Autofinancement 2028]] -> 4500
A33: Enjeu_A | B33: A_1 | C33: A11 | D33: COU | E33: Continuité écologique | F33: ATEau | G33: FCT | H33: =IF(CTu[[#This Row],[Montant HT 2026]]>0,"2026",IF(CTu[[#This Row],[Montant HT 2027]]>0,"2027",IF(CTu[[#This Row],[Montant HT 2028]]>0,"2028"))) -> 2028 | J33: 1 | K33: =CONCATENATE(CTu[[#This Row],[Objectifs opérationnels]],"_",VLOOKUP(CTu[[#This Row],[Compartiment]],compartiment[],2,)) -> A11_CON | L33: =CONCATENATE(CTu[[#This Row],[Objectifs opérationnels]],"_",CTu[[#This Row],[Secteur/MO]],"_",VLOOKUP(CTu[[#This Row],[Compartiment]],compartiment[],2,FALSE),"_",CTu[[#This Row],[N° Action]]) -> A11_COU_CON_1 | M33: =IF(CTu[[#This Row],[Année subv]]="","",CONCATENATE(CTu[[#This Row],[Objectifs opérationnels]],"_",CTu[[#This Row],[Secteur/MO]],"_",CTu[[#This Row],[Année subv]],"_",VLOOKUP(CTu[[#This Row],[Compartiment]],compartiment[],2),"_",CTu[[#This Row],[N° Action]])) ->  | N33: Amélioration de la continuité écologique et de la répartition du répartiteur de Gée | O33: Réalisation de mesures de débits préalables pour suivre l'évolution de la franchissabilité et garantir une bonne répartition | P33: SMBAA | S33: 2 | T33: RCH | W33: 10000 | X33: 10000 | Y33: 0 | Z33: 0 | AA33: 12000 | AB33: 12000 | AC33: 0.5 | AD33: =CTu[[#This Row],[Montant TTC 2026]]*CTu[[#This Row],[Taux Sub AELB]] -> 0 | AE33: =CTu[[#This Row],[Montant TTC 2027]]*CTu[[#This Row],[Taux Sub AELB]] -> 0 | AF33: =CTu[[#This Row],[Montant TTC 2028]]*CTu[[#This Row],[Taux Sub AELB]] -> 6000 | AG33: =CTu[[#This Row],[Montant Sub AELB 2026]]+CTu[[#This Row],[Montant Sub AELB 2027]]+CTu[[#This Row],[Montant Sub AELB 2028]] -> 6000 | AH33: 0.3 | AI33: =CTu[[#This Row],[Taux Sub RPDL]]*CTu[[#This Row],[Montant TTC 2026]] -> 0 | AJ33: =CTu[[#This Row],[Taux Sub RPDL]]*CTu[[#This Row],[Montant TTC 2027]] -> 0 | AK33: =CTu[[#This Row],[Taux Sub RPDL]]*CTu[[#This Row],[Montant TTC 2028]] -> 3600 | AL33: =CTu[[#This Row],[Montant Sub RPDL 2026]]+CTu[[#This Row],[Montant Sub RPDL 2027]]+CTu[[#This Row],[Montant Sub RPDL 2028]] -> 3600 | AN33: =CTu[[#This Row],[Taux Sub RCVL]]*CTu[[#This Row],[Montant TTC 2026]] -> 0 | AO33: =CTu[[#This Row],[Taux Sub RCVL]]*CTu[[#This Row],[Montant TTC 2027]] -> 0 | AP33: =CTu[[#This Row],[Taux Sub RCVL]]*CTu[[#This Row],[Montant TTC 2028]] -> 0 | AQ33: =CTu[[#This Row],[Montant Sub RCVL 2026]]+CTu[[#This Row],[Montant Sub RCVL 2027]]+CTu[[#This Row],[Montant Sub RCVL 2028]] -> 0 | AS33: =CTu[[#This Row],[Taux Sub CD 37]]*CTu[[#This Row],[Montant HT 2026]] -> 0 | AT33: =CTu[[#This Row],[Taux Sub CD 37]]*CTu[[#This Row],[Montant HT 2027]] -> 0 | AU33: =CTu[[#This Row],[Taux Sub CD 37]]*CTu[[#This Row],[Montant HT 2028]] -> 0 | AV33: =CTu[[#This Row],[Montant Sub CD 37 2026]]+CTu[[#This Row],[Montant Sub CD 37 2027]]+CTu[[#This Row],[Montant Sub CD 37 2028]] -> 0 | AX33: =CTu[[#This Row],[Taux Sub CD 49]]*CTu[[#This Row],[Montant TTC 2026]] -> 0 | AY33: =CTu[[#This Row],[Taux Sub CD 49]]*CTu[[#This Row],[Montant TTC 2027]] -> 0 | AZ33: =CTu[[#This Row],[Taux Sub CD 49]]*CTu[[#This Row],[Montant TTC 2028]] -> 0 | BA33: =CTu[[#This Row],[Montant Sub CD 49 2026]]+CTu[[#This Row],[Montant Sub CD 49 2027]]+CTu[[#This Row],[Montant Sub CD 49 2028]] -> 0 | BC33: =CTu[[#This Row],[Montant TTC 2026]]*CTu[[#This Row],[Taux LIFE]] -> 0 | BD33: =CTu[[#This Row],[Montant TTC 2027]]*CTu[[#This Row],[Taux LIFE]] -> 0 | BE33: =CTu[[#This Row],[Montant TTC 2028]]*CTu[[#This Row],[Taux LIFE]] -> 0 | BF33: =CTu[[#This Row],[Montant LIFE 2026]]+CTu[[#This Row],[Montant LIFE 2027]]+CTu[[#This Row],[Montant LIFE 2028]] -> 0 | BH33: =CTu[[#This Row],[Taux Sub FPRNM]]*CTu[[#This Row],[Montant HT 2026]] -> 0 | BI33: =CTu[[#This Row],[Taux Sub FPRNM]]*CTu[[#This Row],[Montant HT 2027]] -> 0 | BJ33: =CTu[[#This Row],[Taux Sub FPRNM]]*CTu[[#This Row],[Montant HT 2028]] -> 0 | BK33: =CTu[[#This Row],[Montant Sub FPRNM 2026]]+CTu[[#This Row],[Montant Sub FPRNM 2027]]+CTu[[#This Row],[Montant Sub FPRNM 2028]] -> 0 | BM33: =CTu[[#This Row],[FCTVA]]*CTu[[#This Row],[Montant TTC 2026]] -> 0 | BN33: =CTu[[#This Row],[FCTVA]]*CTu[[#This Row],[Montant TTC 2027]] -> 0 | BO33: =CTu[[#This Row],[FCTVA]]*CTu[[#This Row],[Montant TTC 2028]] -> 0 | BP33: =CTu[[#This Row],[Montant FCTVA 2026]]+CTu[[#This Row],[Montant FCTVA 2027]]+CTu[[#This Row],[Montant FCTVA 2028]] -> 0 | BR33: =CTu[[#This Row],[Taux CO MO]]*CTu[[#This Row],[Montant TTC 2026]] -> 0 | BS33: =CTu[[#This Row],[Taux CO MO]]*CTu[[#This Row],[Montant TTC 2027]] -> 0 | BT33: =CTu[[#This Row],[Taux CO MO]]*CTu[[#This Row],[Montant TTC 2028]] -> 0 | BU33: =CTu[[#This Row],[Montant CO MO 2026]]+CTu[[#This Row],[Montant CO MO 2027]]+CTu[[#This Row],[Montant CO MO 2028]] -> 0 | BW33: =CTu[[#This Row],[Taux Tiers]]*CTu[[#This Row],[Montant TTC 2026]] -> 0 | BX33: =CTu[[#This Row],[Taux Tiers]]*CTu[[#This Row],[Montant TTC 2027]] -> 0 | BY33: =CTu[[#This Row],[Taux Tiers]]*CTu[[#This Row],[Montant TTC 2028]] -> 0 | BZ33: =CTu[[#This Row],[Tiers 2026]]+CTu[[#This Row],[Tiers 2027]]+CTu[[#This Row],[Tiers 2028]] -> 0 | CA33: =100%-CTu[[#This Row],[Taux Sub AELB]]-CTu[[#This Row],[Taux Sub RPDL]]-CTu[[#This Row],[Taux Sub RCVL]]-CTu[[#This Row],[Taux Sub CD 37]]-CTu[[#This Row],[Taux Sub CD 49]]-CTu[[#This Row],[Taux Sub FPRNM]]-CTu[[#This Row],[Taux LIFE]]-CTu[[#This Row],[Taux Tiers]]-CTu[[#This Row],[Taux CO MO]]-CTu[[#This Row],[FCTVA]] -> 0.2 | CB33: =CTu[[#This Row],[Montant TTC 2026]]-(CTu[[#This Row],[Montant Sub AELB 2026]]+CTu[[#This Row],[Montant Sub RPDL 2026]]+CTu[[#This Row],[Montant Sub RCVL 2026]]+CTu[[#This Row],[Montant Sub CD 37 2026]]+CTu[[#This Row],[Montant Sub CD 49 2026]]+CTu[[#This Row],[Montant LIFE 2026]]+CTu[[#This Row],[Montant Sub FPRNM 2026]]+CTu[[#This Row],[Montant FCTVA 2026]]+CTu[[#This Row],[Tiers 2026]]+CTu[[#This Row],[Montant CO MO 2026]]) -> 0 | CC33: =CTu[[#This Row],[Montant TTC 2027]]-(CTu[[#This Row],[Montant Sub AELB 2027]]+CTu[[#This Row],[Montant Sub RPDL 2027]]+CTu[[#This Row],[Montant Sub RCVL 2027]]+CTu[[#This Row],[Montant Sub CD 37 2027]]+CTu[[#This Row],[Montant Sub CD 49 2027]]+CTu[[#This Row],[Montant LIFE 2027]]+CTu[[#This Row],[Montant Sub FPRNM 2027]]+CTu[[#This Row],[Montant FCTVA 2027]]+CTu[[#This Row],[Tiers 2027]]+CTu[[#This Row],[Montant CO MO 2027]]) -> 0 | CD33: =CTu[[#This Row],[Montant TTC 2028]]-(CTu[[#This Row],[Montant Sub AELB 2028]]+CTu[[#This Row],[Montant Sub RPDL 2028]]+CTu[[#This Row],[Montant Sub RCVL 2028]]+CTu[[#This Row],[Montant Sub CD 37 2028]]+CTu[[#This Row],[Montant Sub CD 49 2028]]+CTu[[#This Row],[Montant LIFE 2028]]+CTu[[#This Row],[Montant Sub FPRNM 2028]]+CTu[[#This Row],[Montant FCTVA 2028]]+CTu[[#This Row],[Tiers 2028]]+CTu[[#This Row],[Montant CO MO 2028]]) -> 2400 | CE33: =CTu[[#This Row],[Autofinancement 2026]]+CTu[[#This Row],[Autofinancement 2027]]+CTu[[#This Row],[Autofinancement 2028]] -> 2400
A34: Enjeu_A | B34: A_1 | C34: A11 | D34: LAT | E34: Continuité écologique | F34: ATEau | G34: FCT | H34: =IF(CTu[[#This Row],[Montant HT 2026]]>0,"2026",IF(CTu[[#This Row],[Montant HT 2027]]>0,"2027",IF(CTu[[#This Row],[Montant HT 2028]]>0,"2028"))) -> 2026 | J34: 1 | K34: =CONCATENATE(CTu[[#This Row],[Objectifs opérationnels]],"_",VLOOKUP(CTu[[#This Row],[Compartiment]],compartiment[],2,)) -> A11_CON | L34: =CONCATENATE(CTu[[#This Row],[Objectifs opérationnels]],"_",CTu[[#This Row],[Secteur/MO]],"_",VLOOKUP(CTu[[#This Row],[Compartiment]],compartiment[],2,FALSE),"_",CTu[[#This Row],[N° Action]]) -> A11_LAT_CON_1 | M34: =IF(CTu[[#This Row],[Année subv]]="","",CONCATENATE(CTu[[#This Row],[Objectifs opérationnels]],"_",CTu[[#This Row],[Secteur/MO]],"_",CTu[[#This Row],[Année subv]],"_",VLOOKUP(CTu[[#This Row],[Compartiment]],compartiment[],2),"_",CTu[[#This Row],[N° Action]])) ->  | N34: Travaux de restauration de la continuité écologique du Lathan à Chanteloup | O34: Travaux au moulin de chanteloup - en attente du passage en CS au mois de Mars 2026 | P34: SMBAA | S34: 1 | T34: RC | U34: 350000 | X34: 350000 | Y34: 420000 | Z34: 0 | AA34: 0 | AB34: 420000 | AC34: 0.5 | AD34: =CTu[[#This Row],[Montant TTC 2026]]*CTu[[#This Row],[Taux Sub AELB]] -> 210000 | AE34: =CTu[[#This Row],[Montant TTC 2027]]*CTu[[#This Row],[Taux Sub AELB]] -> 0 | AF34: =CTu[[#This Row],[Montant TTC 2028]]*CTu[[#This Row],[Taux Sub AELB]] -> 0 | AG34: =CTu[[#This Row],[Montant Sub AELB 2026]]+CTu[[#This Row],[Montant Sub AELB 2027]]+CTu[[#This Row],[Montant Sub AELB 2028]] -> 210000 | AH34: 0.3 | AI34: =CTu[[#This Row],[Taux Sub RPDL]]*CTu[[#This Row],[Montant TTC 2026]] -> 126000 | AJ34: =CTu[[#This Row],[Taux Sub RPDL]]*CTu[[#This Row],[Montant TTC 2027]] -> 0 | AK34: =CTu[[#This Row],[Taux Sub RPDL]]*CTu[[#This Row],[Montant TTC 2028]] -> 0 | AL34: =CTu[[#This Row],[Montant Sub RPDL 2026]]+CTu[[#This Row],[Montant Sub RPDL 2027]]+CTu[[#This Row],[Montant Sub RPDL 2028]] -> 126000 | AN34: =CTu[[#This Row],[Taux Sub RCVL]]*CTu[[#This Row],[Montant TTC 2026]] -> 0 | AO34: =CTu[[#This Row],[Taux Sub RCVL]]*CTu[[#This Row],[Montant TTC 2027]] -> 0 | AP34: =CTu[[#This Row],[Taux Sub RCVL]]*CTu[[#This Row],[Montant TTC 2028]] -> 0 | AQ34: =CTu[[#This Row],[Montant Sub RCVL 2026]]+CTu[[#This Row],[Montant Sub RCVL 2027]]+CTu[[#This Row],[Montant Sub RCVL 2028]] -> 0 | AS34: =CTu[[#This Row],[Taux Sub CD 37]]*CTu[[#This Row],[Montant HT 2026]] -> 0 | AT34: =CTu[[#This Row],[Taux Sub CD 37]]*CTu[[#This Row],[Montant HT 2027]] -> 0 | AU34: =CTu[[#This Row],[Taux Sub CD 37]]*CTu[[#This Row],[Montant HT 2028]] -> 0 | AV34: =CTu[[#This Row],[Montant Sub CD 37 2026]]+CTu[[#This Row],[Montant Sub CD 37 2027]]+CTu[[#This Row],[Montant Sub CD 37 2028]] -> 0 | AX34: =CTu[[#This Row],[Taux Sub CD 49]]*CTu[[#This Row],[Montant TTC 2026]] -> 0 | AY34: =CTu[[#This Row],[Taux Sub CD 49]]*CTu[[#This Row],[Montant TTC 2027]] -> 0 | AZ34: =CTu[[#This Row],[Taux Sub CD 49]]*CTu[[#This Row],[Montant TTC 2028]] -> 0 | BA34: =CTu[[#This Row],[Montant Sub CD 49 2026]]+CTu[[#This Row],[Montant Sub CD 49 2027]]+CTu[[#This Row],[Montant Sub CD 49 2028]] -> 0 | BC34: =CTu[[#This Row],[Montant TTC 2026]]*CTu[[#This Row],[Taux LIFE]] -> 0 | BD34: =CTu[[#This Row],[Montant TTC 2027]]*CTu[[#This Row],[Taux LIFE]] -> 0 | BE34: =CTu[[#This Row],[Montant TTC 2028]]*CTu[[#This Row],[Taux LIFE]] -> 0 | BF34: =CTu[[#This Row],[Montant LIFE 2026]]+CTu[[#This Row],[Montant LIFE 2027]]+CTu[[#This Row],[Montant LIFE 2028]] -> 0 | BH34: =CTu[[#This Row],[Taux Sub FPRNM]]*CTu[[#This Row],[Montant HT 2026]] -> 0 | BI34: =CTu[[#This Row],[Taux Sub FPRNM]]*CTu[[#This Row],[Montant HT 2027]] -> 0 | BJ34: =CTu[[#This Row],[Taux Sub FPRNM]]*CTu[[#This Row],[Montant HT 2028]] -> 0 | BK34: =CTu[[#This Row],[Montant Sub FPRNM 2026]]+CTu[[#This Row],[Montant Sub FPRNM 2027]]+CTu[[#This Row],[Montant Sub FPRNM 2028]] -> 0 | BM34: =CTu[[#This Row],[FCTVA]]*CTu[[#This Row],[Montant TTC 2026]] -> 0 | BN34: =CTu[[#This Row],[FCTVA]]*CTu[[#This Row],[Montant TTC 2027]] -> 0 | BO34: =CTu[[#This Row],[FCTVA]]*CTu[[#This Row],[Montant TTC 2028]] -> 0 | BP34: =CTu[[#This Row],[Montant FCTVA 2026]]+CTu[[#This Row],[Montant FCTVA 2027]]+CTu[[#This Row],[Montant FCTVA 2028]] -> 0 | BR34: =CTu[[#This Row],[Taux CO MO]]*CTu[[#This Row],[Montant TTC 2026]] -> 0 | BS34: =CTu[[#This Row],[Taux CO MO]]*CTu[[#This Row],[Montant TTC 2027]] -> 0 | BT34: =CTu[[#This Row],[Taux CO MO]]*CTu[[#This Row],[Montant TTC 2028]] -> 0 | BU34: =CTu[[#This Row],[Montant CO MO 2026]]+CTu[[#This Row],[Montant CO MO 2027]]+CTu[[#This Row],[Montant CO MO 2028]] -> 0 | BV34: 0.2 | BW34: =CTu[[#This Row],[Taux Tiers]]*CTu[[#This Row],[Montant TTC 2026]] -> 84000 | BX34: =CTu[[#This Row],[Taux Tiers]]*CTu[[#This Row],[Montant TTC 2027]] -> 0 | BY34: =CTu[[#This Row],[Taux Tiers]]*CTu[[#This Row],[Montant TTC 2028]] -> 0 | BZ34: =CTu[[#This Row],[Tiers 2026]]+CTu[[#This Row],[Tiers 2027]]+CTu[[#This Row],[Tiers 2028]] -> 84000 | CA34: =100%-CTu[[#This Row],[Taux Sub AELB]]-CTu[[#This Row],[Taux Sub RPDL]]-CTu[[#This Row],[Taux Sub RCVL]]-CTu[[#This Row],[Taux Sub CD 37]]-CTu[[#This Row],[Taux Sub CD 49]]-CTu[[#This Row],[Taux Sub FPRNM]]-CTu[[#This Row],[Taux LIFE]]-CTu[[#This Row],[Taux Tiers]]-CTu[[#This Row],[Taux CO MO]]-CTu[[#This Row],[FCTVA]] -> 0 | CB34: =CTu[[#This Row],[Montant TTC 2026]]-(CTu[[#This Row],[Montant Sub AELB 2026]]+CTu[[#This Row],[Montant Sub RPDL 2026]]+CTu[[#This Row],[Montant Sub RCVL 2026]]+CTu[[#This Row],[Montant Sub CD 37 2026]]+CTu[[#This Row],[Montant Sub CD 49 2026]]+CTu[[#This Row],[Montant LIFE 2026]]+CTu[[#This Row],[Montant Sub FPRNM 2026]]+CTu[[#This Row],[Montant FCTVA 2026]]+CTu[[#This Row],[Tiers 2026]]+CTu[[#This Row],[Montant CO MO 2026]]) -> 0 | CC34: =CTu[[#This Row],[Montant TTC 2027]]-(CTu[[#This Row],[Montant Sub AELB 2027]]+CTu[[#This Row],[Montant Sub RPDL 2027]]+CTu[[#This Row],[Montant Sub RCVL 2027]]+CTu[[#This Row],[Montant Sub CD 37 2027]]+CTu[[#This Row],[Montant Sub CD 49 2027]]+CTu[[#This Row],[Montant LIFE 2027]]+CTu[[#This Row],[Montant Sub FPRNM 2027]]+CTu[[#This Row],[Montant FCTVA 2027]]+CTu[[#This Row],[Tiers 2027]]+CTu[[#This Row],[Montant CO MO 2027]]) -> 0 | CD34: =CTu[[#This Row],[Montant TTC 2028]]-(CTu[[#This Row],[Montant Sub AELB 2028]]+CTu[[#This Row],[Montant Sub RPDL 2028]]+CTu[[#This Row],[Montant Sub RCVL 2028]]+CTu[[#This Row],[Montant Sub CD 37 2028]]+CTu[[#This Row],[Montant Sub CD 49 2028]]+CTu[[#This Row],[Montant LIFE 2028]]+CTu[[#This Row],[Montant Sub FPRNM 2028]]+CTu[[#This Row],[Montant FCTVA 2028]]+CTu[[#This Row],[Tiers 2028]]+CTu[[#This Row],[Montant CO MO 2028]]) -> 0 | CE34: =CTu[[#This Row],[Autofinancement 2026]]+CTu[[#This Row],[Autofinancement 2027]]+CTu[[#This Row],[Autofinancement 2028]] -> 0
A35: Enjeu_A | B35: A_1 | C35: A11 | D35: LAT | E35: Continuité écologique | F35: ATEau | G35: FCT | H35: =IF(CTu[[#This Row],[Montant HT 2026]]>0,"2026",IF(CTu[[#This Row],[Montant HT 2027]]>0,"2027",IF(CTu[[#This Row],[Montant HT 2028]]>0,"2028"))) -> 2028 | J35: 2 | K35: =CONCATENATE(CTu[[#This Row],[Objectifs opérationnels]],"_",VLOOKUP(CTu[[#This Row],[Compartiment]],compartiment[],2,)) -> A11_CON | L35: =CONCATENATE(CTu[[#This Row],[Objectifs opérationnels]],"_",CTu[[#This Row],[Secteur/MO]],"_",VLOOKUP(CTu[[#This Row],[Compartiment]],compartiment[],2,FALSE),"_",CTu[[#This Row],[N° Action]]) -> A11_LAT_CON_2 | M35: =IF(CTu[[#This Row],[Année subv]]="","",CONCATENATE(CTu[[#This Row],[Objectifs opérationnels]],"_",CTu[[#This Row],[Secteur/MO]],"_",CTu[[#This Row],[Année subv]],"_",VLOOKUP(CTu[[#This Row],[Compartiment]],compartiment[],2),"_",CTu[[#This Row],[N° Action]])) ->  | N35: Travaux de restauration de la continuité écologique sur la Curée amont | O35: Suite à l'étude menée en interne en 2026 - Attention pas de financements! ME non prioritaire / Uniquement la création de radiers pour compenser la perte des ouvrages (5) | P35: SMBAA | S35: 2 | T35: RC | W35: 20833.33333 | X35: 20833.33333 | Y35: 0 | Z35: 0 | AA35: 25000 | AB35: 25000 | AC35: 0 | AD35: =CTu[[#This Row],[Montant TTC 2026]]*CTu[[#This Row],[Taux Sub AELB]] -> 0 | AE35: =CTu[[#This Row],[Montant TTC 2027]]*CTu[[#This Row],[Taux Sub AELB]] -> 0 | AF35: =CTu[[#This Row],[Montant TTC 2028]]*CTu[[#This Row],[Taux Sub AELB]] -> 0 | AG35: =CTu[[#This Row],[Montant Sub AELB 2026]]+CTu[[#This Row],[Montant Sub AELB 2027]]+CTu[[#This Row],[Montant Sub AELB 2028]] -> 0 | AH35: 0 | AI35: =CTu[[#This Row],[Taux Sub RPDL]]*CTu[[#This Row],[Montant TTC 2026]] -> 0 | AJ35: =CTu[[#This Row],[Taux Sub RPDL]]*CTu[[#This Row],[Montant TTC 2027]] -> 0 | AK35: =CTu[[#This Row],[Taux Sub RPDL]]*CTu[[#This Row],[Montant TTC 2028]] -> 0 | AL35: =CTu[[#This Row],[Montant Sub RPDL 2026]]+CTu[[#This Row],[Montant Sub RPDL 2027]]+CTu[[#This Row],[Montant Sub RPDL 2028]] -> 0 | AN35: =CTu[[#This Row],[Taux Sub RCVL]]*CTu[[#This Row],[Montant TTC 2026]] -> 0 | AO35: =CTu[[#This Row],[Taux Sub RCVL]]*CTu[[#This Row],[Montant TTC 2027]] -> 0 | AP35: =CTu[[#This Row],[Taux Sub RCVL]]*CTu[[#This Row],[Montant TTC 2028]] -> 0 | AQ35: =CTu[[#This Row],[Montant Sub RCVL 2026]]+CTu[[#This Row],[Montant Sub RCVL 2027]]+CTu[[#This Row],[Montant Sub RCVL 2028]] -> 0 | AS35: =CTu[[#This Row],[Taux Sub CD 37]]*CTu[[#This Row],[Montant HT 2026]] -> 0 | AT35: =CTu[[#This Row],[Taux Sub CD 37]]*CTu[[#This Row],[Montant HT 2027]] -> 0 | AU35: =CTu[[#This Row],[Taux Sub CD 37]]*CTu[[#This Row],[Montant HT 2028]] -> 0 | AV35: =CTu[[#This Row],[Montant Sub CD 37 2026]]+CTu[[#This Row],[Montant Sub CD 37 2027]]+CTu[[#This Row],[Montant Sub CD 37 2028]] -> 0 | AX35: =CTu[[#This Row],[Taux Sub CD 49]]*CTu[[#This Row],[Montant TTC 2026]] -> 0 | AY35: =CTu[[#This Row],[Taux Sub CD 49]]*CTu[[#This Row],[Montant TTC 2027]] -> 0 | AZ35: =CTu[[#This Row],[Taux Sub CD 49]]*CTu[[#This Row],[Montant TTC 2028]] -> 0 | BA35: =CTu[[#This Row],[Montant Sub CD 49 2026]]+CTu[[#This Row],[Montant Sub CD 49 2027]]+CTu[[#This Row],[Montant Sub CD 49 2028]] -> 0 | BC35: =CTu[[#This Row],[Montant TTC 2026]]*CTu[[#This Row],[Taux LIFE]] -> 0 | BD35: =CTu[[#This Row],[Montant TTC 2027]]*CTu[[#This Row],[Taux LIFE]] -> 0 | BE35: =CTu[[#This Row],[Montant TTC 2028]]*CTu[[#This Row],[Taux LIFE]] -> 0 | BF35: =CTu[[#This Row],[Montant LIFE 2026]]+CTu[[#This Row],[Montant LIFE 2027]]+CTu[[#This Row],[Montant LIFE 2028]] -> 0 | BH35: =CTu[[#This Row],[Taux Sub FPRNM]]*CTu[[#This Row],[Montant HT 2026]] -> 0 | BI35: =CTu[[#This Row],[Taux Sub FPRNM]]*CTu[[#This Row],[Montant HT 2027]] -> 0 | BJ35: =CTu[[#This Row],[Taux Sub FPRNM]]*CTu[[#This Row],[Montant HT 2028]] -> 0 | BK35: =CTu[[#This Row],[Montant Sub FPRNM 2026]]+CTu[[#This Row],[Montant Sub FPRNM 2027]]+CTu[[#This Row],[Montant Sub FPRNM 2028]] -> 0 | BM35: =CTu[[#This Row],[FCTVA]]*CTu[[#This Row],[Montant TTC 2026]] -> 0 | BN35: =CTu[[#This Row],[FCTVA]]*CTu[[#This Row],[Montant TTC 2027]] -> 0 | BO35: =CTu[[#This Row],[FCTVA]]*CTu[[#This Row],[Montant TTC 2028]] -> 0 | BP35: =CTu[[#This Row],[Montant FCTVA 2026]]+CTu[[#This Row],[Montant FCTVA 2027]]+CTu[[#This Row],[Montant FCTVA 2028]] -> 0 | BR35: =CTu[[#This Row],[Taux CO MO]]*CTu[[#This Row],[Montant TTC 2026]] -> 0 | BS35: =CTu[[#This Row],[Taux CO MO]]*CTu[[#This Row],[Montant TTC 2027]] -> 0 | BT35: =CTu[[#This Row],[Taux CO MO]]*CTu[[#This Row],[Montant TTC 2028]] -> 0 | BU35: =CTu[[#This Row],[Montant CO MO 2026]]+CTu[[#This Row],[Montant CO MO 2027]]+CTu[[#This Row],[Montant CO MO 2028]] -> 0 | BW35: =CTu[[#This Row],[Taux Tiers]]*CTu[[#This Row],[Montant TTC 2026]] -> 0 | BX35: =CTu[[#This Row],[Taux Tiers]]*CTu[[#This Row],[Montant TTC 2027]] -> 0 | BY35: =CTu[[#This Row],[Taux Tiers]]*CTu[[#This Row],[Montant TTC 2028]] -> 0 | BZ35: =CTu[[#This Row],[Tiers 2026]]+CTu[[#This Row],[Tiers 2027]]+CTu[[#This Row],[Tiers 2028]] -> 0 | CA35: =100%-CTu[[#This Row],[Taux Sub AELB]]-CTu[[#This Row],[Taux Sub RPDL]]-CTu[[#This Row],[Taux Sub RCVL]]-CTu[[#This Row],[Taux Sub CD 37]]-CTu[[#This Row],[Taux Sub CD 49]]-CTu[[#This Row],[Taux Sub FPRNM]]-CTu[[#This Row],[Taux LIFE]]-CTu[[#This Row],[Taux Tiers]]-CTu[[#This Row],[Taux CO MO]]-CTu[[#This Row],[FCTVA]] -> 1 | CB35: =CTu[[#This Row],[Montant TTC 2026]]-(CTu[[#This Row],[Montant Sub AELB 2026]]+CTu[[#This Row],[Montant Sub RPDL 2026]]+CTu[[#This Row],[Montant Sub RCVL 2026]]+CTu[[#This Row],[Montant Sub CD 37 2026]]+CTu[[#This Row],[Montant Sub CD 49 2026]]+CTu[[#This Row],[Montant LIFE 2026]]+CTu[[#This Row],[Montant Sub FPRNM 2026]]+CTu[[#This Row],[Montant FCTVA 2026]]+CTu[[#This Row],[Tiers 2026]]+CTu[[#This Row],[Montant CO MO 2026]]) -> 0 | CC35: =CTu[[#This Row],[Montant TTC 2027]]-(CTu[[#This Row],[Montant Sub AELB 2027]]+CTu[[#This Row],[Montant Sub RPDL 2027]]+CTu[[#This Row],[Montant Sub RCVL 2027]]+CTu[[#This Row],[Montant Sub CD 37 2027]]+CTu[[#This Row],[Montant Sub CD 49 2027]]+CTu[[#This Row],[Montant LIFE 2027]]+CTu[[#This Row],[Montant Sub FPRNM 2027]]+CTu[[#This Row],[Montant FCTVA 2027]]+CTu[[#This Row],[Tiers 2027]]+CTu[[#This Row],[Montant CO MO 2027]]) -> 0 | CD35: =CTu[[#This Row],[Montant TTC 2028]]-(CTu[[#This Row],[Montant Sub AELB 2028]]+CTu[[#This Row],[Montant Sub RPDL 2028]]+CTu[[#This Row],[Montant Sub RCVL 2028]]+CTu[[#This Row],[Montant Sub CD 37 2028]]+CTu[[#This Row],[Montant Sub CD 49 2028]]+CTu[[#This Row],[Montant LIFE 2028]]+CTu[[#This Row],[Montant Sub FPRNM 2028]]+CTu[[#This Row],[Montant FCTVA 2028]]+CTu[[#This Row],[Tiers 2028]]+CTu[[#This Row],[Montant CO MO 2028]]) -> 25000 | CE35: =CTu[[#This Row],[Autofinancement 2026]]+CTu[[#This Row],[Autofinancement 2027]]+CTu[[#This Row],[Autofinancement 2028]] -> 25000
A36: Enjeu_A | B36: A_1 | C36: A11 | D36: LAT | E36: Étude | F36: ATEau | G36: FCT | H36: =IF(CTu[[#This Row],[Montant HT 2026]]>0,"2026",IF(CTu[[#This Row],[Montant HT 2027]]>0,"2027",IF(CTu[[#This Row],[Montant HT 2028]]>0,"2028"))) -> FALSE | J36: 1 | K36: =CONCATENATE(CTu[[#This Row],[Objectifs opérationnels]],"_",VLOOKUP(CTu[[#This Row],[Compartiment]],compartiment[],2,)) -> A11_ETU | L36: =CONCATENATE(CTu[[#This Row],[Objectifs opérationnels]],"_",CTu[[#This Row],[Secteur/MO]],"_",VLOOKUP(CTu[[#This Row],[Compartiment]],compartiment[],2,FALSE),"_",CTu[[#This Row],[N° Action]]) -> A11_LAT_ETU_1 | M36: =IF(CTu[[#This Row],[Année subv]]="","",CONCATENATE(CTu[[#This Row],[Objectifs opérationnels]],"_",CTu[[#This Row],[Secteur/MO]],"_",CTu[[#This Row],[Année subv]],"_",VLOOKUP(CTu[[#This Row],[Compartiment]],compartiment[],2),"_",CTu[[#This Row],[N° Action]])) ->  | N36: Etude pour a restauration de la continuité écologique et du lit mineur sur le cours d'eau de la Curée amont | O36: Etude menée en interne - données topographiques a prévoir | P36: SMBAA | S36: 2 | T36: RC | U36: 0 | V36: 0 | W36: 0 | X36: 0 | Y36: 0 | Z36: 0 | AA36: 0 | AB36: 0 | AD36: =CTu[[#This Row],[Montant TTC 2026]]*CTu[[#This Row],[Taux Sub AELB]] -> 0 | AE36: =CTu[[#This Row],[Montant TTC 2027]]*CTu[[#This Row],[Taux Sub AELB]] -> 0 | AF36: =CTu[[#This Row],[Montant TTC 2028]]*CTu[[#This Row],[Taux Sub AELB]] -> 0 | AG36: =CTu[[#This Row],[Montant Sub AELB 2026]]+CTu[[#This Row],[Montant Sub AELB 2027]]+CTu[[#This Row],[Montant Sub AELB 2028]] -> 0 | AI36: =CTu[[#This Row],[Taux Sub RPDL]]*CTu[[#This Row],[Montant TTC 2026]] -> 0 | AJ36: =CTu[[#This Row],[Taux Sub RPDL]]*CTu[[#This Row],[Montant TTC 2027]] -> 0 | AK36: =CTu[[#This Row],[Taux Sub RPDL]]*CTu[[#This Row],[Montant TTC 2028]] -> 0 | AL36: =CTu[[#This Row],[Montant Sub RPDL 2026]]+CTu[[#This Row],[Montant Sub RPDL 2027]]+CTu[[#This Row],[Montant Sub RPDL 2028]] -> 0 | AN36: =CTu[[#This Row],[Taux Sub RCVL]]*CTu[[#This Row],[Montant TTC 2026]] -> 0 | AO36: =CTu[[#This Row],[Taux Sub RCVL]]*CTu[[#This Row],[Montant TTC 2027]] -> 0 | AP36: =CTu[[#This Row],[Taux Sub RCVL]]*CTu[[#This Row],[Montant TTC 2028]] -> 0 | AQ36: =CTu[[#This Row],[Montant Sub RCVL 2026]]+CTu[[#This Row],[Montant Sub RCVL 2027]]+CTu[[#This Row],[Montant Sub RCVL 2028]] -> 0 | AS36: =CTu[[#This Row],[Taux Sub CD 37]]*CTu[[#This Row],[Montant HT 2026]] -> 0 | AT36: =CTu[[#This Row],[Taux Sub CD 37]]*CTu[[#This Row],[Montant HT 2027]] -> 0 | AU36: =CTu[[#This Row],[Taux Sub CD 37]]*CTu[[#This Row],[Montant HT 2028]] -> 0 | AV36: =CTu[[#This Row],[Montant Sub CD 37 2026]]+CTu[[#This Row],[Montant Sub CD 37 2027]]+CTu[[#This Row],[Montant Sub CD 37 2028]] -> 0 | AX36: =CTu[[#This Row],[Taux Sub CD 49]]*CTu[[#This Row],[Montant TTC 2026]] -> 0 | AY36: =CTu[[#This Row],[Taux Sub CD 49]]*CTu[[#This Row],[Montant TTC 2027]] -> 0 | AZ36: =CTu[[#This Row],[Taux Sub CD 49]]*CTu[[#This Row],[Montant TTC 2028]] -> 0 | BA36: =CTu[[#This Row],[Montant Sub CD 49 2026]]+CTu[[#This Row],[Montant Sub CD 49 2027]]+CTu[[#This Row],[Montant Sub CD 49 2028]] -> 0 | BC36: =CTu[[#This Row],[Montant TTC 2026]]*CTu[[#This Row],[Taux LIFE]] -> 0 | BD36: =CTu[[#This Row],[Montant TTC 2027]]*CTu[[#This Row],[Taux LIFE]] -> 0 | BE36: =CTu[[#This Row],[Montant TTC 2028]]*CTu[[#This Row],[Taux LIFE]] -> 0 | BF36: =CTu[[#This Row],[Montant LIFE 2026]]+CTu[[#This Row],[Montant LIFE 2027]]+CTu[[#This Row],[Montant LIFE 2028]] -> 0 | BH36: =CTu[[#This Row],[Taux Sub FPRNM]]*CTu[[#This Row],[Montant HT 2026]] -> 0 | BI36: =CTu[[#This Row],[Taux Sub FPRNM]]*CTu[[#This Row],[Montant HT 2027]] -> 0 | BJ36: =CTu[[#This Row],[Taux Sub FPRNM]]*CTu[[#This Row],[Montant HT 2028]] -> 0 | BK36: =CTu[[#This Row],[Montant Sub FPRNM 2026]]+CTu[[#This Row],[Montant Sub FPRNM 2027]]+CTu[[#This Row],[Montant Sub FPRNM 2028]] -> 0 | BM36: =CTu[[#This Row],[FCTVA]]*CTu[[#This Row],[Montant TTC 2026]] -> 0 | BN36: =CTu[[#This Row],[FCTVA]]*CTu[[#This Row],[Montant TTC 2027]] -> 0 | BO36: =CTu[[#This Row],[FCTVA]]*CTu[[#This Row],[Montant TTC 2028]] -> 0 | BP36: =CTu[[#This Row],[Montant FCTVA 2026]]+CTu[[#This Row],[Montant FCTVA 2027]]+CTu[[#This Row],[Montant FCTVA 2028]] -> 0 | BR36: =CTu[[#This Row],[Taux CO MO]]*CTu[[#This Row],[Montant TTC 2026]] -> 0 | BS36: =CTu[[#This Row],[Taux CO MO]]*CTu[[#This Row],[Montant TTC 2027]] -> 0 | BT36: =CTu[[#This Row],[Taux CO MO]]*CTu[[#This Row],[Montant TTC 2028]] -> 0 | BU36: =CTu[[#This Row],[Montant CO MO 2026]]+CTu[[#This Row],[Montant CO MO 2027]]+CTu[[#This Row],[Montant CO MO 2028]] -> 0 | BW36: =CTu[[#This Row],[Taux Tiers]]*CTu[[#This Row],[Montant TTC 2026]] -> 0 | BX36: =CTu[[#This Row],[Taux Tiers]]*CTu[[#This Row],[Montant TTC 2027]] -> 0 | BY36: =CTu[[#This Row],[Taux Tiers]]*CTu[[#This Row],[Montant TTC 2028]] -> 0 | BZ36: =CTu[[#This Row],[Tiers 2026]]+CTu[[#This Row],[Tiers 2027]]+CTu[[#This Row],[Tiers 2028]] -> 0 | CA36: =100%-CTu[[#This Row],[Taux Sub AELB]]-CTu[[#This Row],[Taux Sub RPDL]]-CTu[[#This Row],[Taux Sub RCVL]]-CTu[[#This Row],[Taux Sub CD 37]]-CTu[[#This Row],[Taux Sub CD 49]]-CTu[[#This Row],[Taux Sub FPRNM]]-CTu[[#This Row],[Taux LIFE]]-CTu[[#This Row],[Taux Tiers]]-CTu[[#This Row],[Taux CO MO]]-CTu[[#This Row],[FCTVA]] -> 1 | CB36: =CTu[[#This Row],[Montant TTC 2026]]-(CTu[[#This Row],[Montant Sub AELB 2026]]+CTu[[#This Row],[Montant Sub RPDL 2026]]+CTu[[#This Row],[Montant Sub RCVL 2026]]+CTu[[#This Row],[Montant Sub CD 37 2026]]+CTu[[#This Row],[Montant Sub CD 49 2026]]+CTu[[#This Row],[Montant LIFE 2026]]+CTu[[#This Row],[Montant Sub FPRNM 2026]]+CTu[[#This Row],[Montant FCTVA 2026]]+CTu[[#This Row],[Tiers 2026]]+CTu[[#This Row],[Montant CO MO 2026]]) -> 0 | CC36: =CTu[[#This Row],[Montant TTC 2027]]-(CTu[[#This Row],[Montant Sub AELB 2027]]+CTu[[#This Row],[Montant Sub RPDL 2027]]+CTu[[#This Row],[Montant Sub RCVL 2027]]+CTu[[#This Row],[Montant Sub CD 37 2027]]+CTu[[#This Row],[Montant Sub CD 49 2027]]+CTu[[#This Row],[Montant LIFE 2027]]+CTu[[#This Row],[Montant Sub FPRNM 2027]]+CTu[[#This Row],[Montant FCTVA 2027]]+CTu[[#This Row],[Tiers 2027]]+CTu[[#This Row],[Montant CO MO 2027]]) -> 0 | CD36: =CTu[[#This Row],[Montant TTC 2028]]-(CTu[[#This Row],[Montant Sub AELB 2028]]+CTu[[#This Row],[Montant Sub RPDL 2028]]+CTu[[#This Row],[Montant Sub RCVL 2028]]+CTu[[#This Row],[Montant Sub CD 37 2028]]+CTu[[#This Row],[Montant Sub CD 49 2028]]+CTu[[#This Row],[Montant LIFE 2028]]+CTu[[#This Row],[Montant Sub FPRNM 2028]]+CTu[[#This Row],[Montant FCTVA 2028]]+CTu[[#This Row],[Tiers 2028]]+CTu[[#This Row],[Montant CO MO 2028]]) -> 0 | CE36: =CTu[[#This Row],[Autofinancement 2026]]+CTu[[#This Row],[Autofinancement 2027]]+CTu[[#This Row],[Autofinancement 2028]] -> 0
A37: Enjeu_A | B37: A_1 | C37: A11 | D37: SYD | E37: Étude | F37: ATEau | G37: FCT | H37: =IF(CTu[[#This Row],[Montant HT 2026]]>0,"2026",IF(CTu[[#This Row],[Montant HT 2027]]>0,"2027",IF(CTu[[#This Row],[Montant HT 2028]]>0,"2028"))) -> 2026 | J37: 1 | K37: =CONCATENATE(CTu[[#This Row],[Objectifs opérationnels]],"_",VLOOKUP(CTu[[#This Row],[Compartiment]],compartiment[],2,)) -> A11_ETU | L37: =CONCATENATE(CTu[[#This Row],[Objectifs opérationnels]],"_",CTu[[#This Row],[Secteur/MO]],"_",VLOOKUP(CTu[[#This Row],[Compartiment]],compartiment[],2,FALSE),"_",CTu[[#This Row],[N° Action]]) -> A11_SYD_ETU_1 | M37: =IF(CTu[[#This Row],[Année subv]]="","",CONCATENATE(CTu[[#This Row],[Objectifs opérationnels]],"_",CTu[[#This Row],[Secteur/MO]],"_",CTu[[#This Row],[Année subv]],"_",VLOOKUP(CTu[[#This Row],[Compartiment]],compartiment[],2),"_",CTu[[#This Row],[N° Action]])) ->  | N37: SYDEVA - Etudes complémentaires Continuité écologique des ouvrages de l'Authion en liste 2 | O37: • Etudes géotechniques au droit des ouvrages en 2026 ; • Etude d’impact des solutions techniques d’aménagement du Pont Bourguignon sur le système d’endiguement de la Loire. (Le Pont Bourguignon en fait partie intégrante) 2026/2027 ; • Phase de maîtrise d’œuvre pour la direction et éxécution des travaux (DET, VISA, AOR) en 2028 ; | P37: SYDEVA | S37: 1 | T37: RC | U37: 27777.77778 | V37: 27777.77778 | W37: 27777.77778 | X37: 83333.33333 | Y37: 33333.33333 | Z37: 33333.33333 | AA37: 33333.33333 | AB37: 100000 | AC37: 0.5 | AD37: =CTu[[#This Row],[Montant TTC 2026]]*CTu[[#This Row],[Taux Sub AELB]] -> 16666.66667 | AE37: =CTu[[#This Row],[Montant TTC 2027]]*CTu[[#This Row],[Taux Sub AELB]] -> 16666.66667 | AF37: =CTu[[#This Row],[Montant TTC 2028]]*CTu[[#This Row],[Taux Sub AELB]] -> 16666.66667 | AG37: =CTu[[#This Row],[Montant Sub AELB 2026]]+CTu[[#This Row],[Montant Sub AELB 2027]]+CTu[[#This Row],[Montant Sub AELB 2028]] -> 50000 | AH37: 0.3 | AI37: =CTu[[#This Row],[Taux Sub RPDL]]*CTu[[#This Row],[Montant TTC 2026]] -> 10000 | AJ37: =CTu[[#This Row],[Taux Sub RPDL]]*CTu[[#This Row],[Montant TTC 2027]] -> 10000 | AK37: =CTu[[#This Row],[Taux Sub RPDL]]*CTu[[#This Row],[Montant TTC 2028]] -> 10000 | AL37: =CTu[[#This Row],[Montant Sub RPDL 2026]]+CTu[[#This Row],[Montant Sub RPDL 2027]]+CTu[[#This Row],[Montant Sub RPDL 2028]] -> 30000 | AN37: =CTu[[#This Row],[Taux Sub RCVL]]*CTu[[#This Row],[Montant TTC 2026]] -> 0 | AO37: =CTu[[#This Row],[Taux Sub RCVL]]*CTu[[#This Row],[Montant TTC 2027]] -> 0 | AP37: =CTu[[#This Row],[Taux Sub RCVL]]*CTu[[#This Row],[Montant TTC 2028]] -> 0 | AQ37: =CTu[[#This Row],[Montant Sub RCVL 2026]]+CTu[[#This Row],[Montant Sub RCVL 2027]]+CTu[[#This Row],[Montant Sub RCVL 2028]] -> 0 | AS37: =CTu[[#This Row],[Taux Sub CD 37]]*CTu[[#This Row],[Montant HT 2026]] -> 0 | AT37: =CTu[[#This Row],[Taux Sub CD 37]]*CTu[[#This Row],[Montant HT 2027]] -> 0 | AU37: =CTu[[#This Row],[Taux Sub CD 37]]*CTu[[#This Row],[Montant HT 2028]] -> 0 | AV37: =CTu[[#This Row],[Montant Sub CD 37 2026]]+CTu[[#This Row],[Montant Sub CD 37 2027]]+CTu[[#This Row],[Montant Sub CD 37 2028]] -> 0 | AX37: =CTu[[#This Row],[Taux Sub CD 49]]*CTu[[#This Row],[Montant TTC 2026]] -> 0 | AY37: =CTu[[#This Row],[Taux Sub CD 49]]*CTu[[#This Row],[Montant TTC 2027]] -> 0 | AZ37: =CTu[[#This Row],[Taux Sub CD 49]]*CTu[[#This Row],[Montant TTC 2028]] -> 0 | BA37: =CTu[[#This Row],[Montant Sub CD 49 2026]]+CTu[[#This Row],[Montant Sub CD 49 2027]]+CTu[[#This Row],[Montant Sub CD 49 2028]] -> 0 | BC37: =CTu[[#This Row],[Montant TTC 2026]]*CTu[[#This Row],[Taux LIFE]] -> 0 | BD37: =CTu[[#This Row],[Montant TTC 2027]]*CTu[[#This Row],[Taux LIFE]] -> 0 | BE37: =CTu[[#This Row],[Montant TTC 2028]]*CTu[[#This Row],[Taux LIFE]] -> 0 | BF37: =CTu[[#This Row],[Montant LIFE 2026]]+CTu[[#This Row],[Montant LIFE 2027]]+CTu[[#This Row],[Montant LIFE 2028]] -> 0 | BH37: =CTu[[#This Row],[Taux Sub FPRNM]]*CTu[[#This Row],[Montant HT 2026]] -> 0 | BI37: =CTu[[#This Row],[Taux Sub FPRNM]]*CTu[[#This Row],[Montant HT 2027]] -> 0 | BJ37: =CTu[[#This Row],[Taux Sub FPRNM]]*CTu[[#This Row],[Montant HT 2028]] -> 0 | BK37: =CTu[[#This Row],[Montant Sub FPRNM 2026]]+CTu[[#This Row],[Montant Sub FPRNM 2027]]+CTu[[#This Row],[Montant Sub FPRNM 2028]] -> 0 | BM37: =CTu[[#This Row],[FCTVA]]*CTu[[#This Row],[Montant TTC 2026]] -> 0 | BN37: =CTu[[#This Row],[FCTVA]]*CTu[[#This Row],[Montant TTC 2027]] -> 0 | BO37: =CTu[[#This Row],[FCTVA]]*CTu[[#This Row],[Montant TTC 2028]] -> 0 | BP37: =CTu[[#This Row],[Montant FCTVA 2026]]+CTu[[#This Row],[Montant FCTVA 2027]]+CTu[[#This Row],[Montant FCTVA 2028]] -> 0 | BR37: =CTu[[#This Row],[Taux CO MO]]*CTu[[#This Row],[Montant TTC 2026]] -> 0 | BS37: =CTu[[#This Row],[Taux CO MO]]*CTu[[#This Row],[Montant TTC 2027]] -> 0 | BT37: =CTu[[#This Row],[Taux CO MO]]*CTu[[#This Row],[Montant TTC 2028]] -> 0 | BU37: =CTu[[#This Row],[Montant CO MO 2026]]+CTu[[#This Row],[Montant CO MO 2027]]+CTu[[#This Row],[Montant CO MO 2028]] -> 0 | BW37: =CTu[[#This Row],[Taux Tiers]]*CTu[[#This Row],[Montant TTC 2026]] -> 0 | BX37: =CTu[[#This Row],[Taux Tiers]]*CTu[[#This Row],[Montant TTC 2027]] -> 0 | BY37: =CTu[[#This Row],[Taux Tiers]]*CTu[[#This Row],[Montant TTC 2028]] -> 0 | BZ37: =CTu[[#This Row],[Tiers 2026]]+CTu[[#This Row],[Tiers 2027]]+CTu[[#This Row],[Tiers 2028]] -> 0 | CA37: =100%-CTu[[#This Row],[Taux Sub AELB]]-CTu[[#This Row],[Taux Sub RPDL]]-CTu[[#This Row],[Taux Sub RCVL]]-CTu[[#This Row],[Taux Sub CD 37]]-CTu[[#This Row],[Taux Sub CD 49]]-CTu[[#This Row],[Taux Sub FPRNM]]-CTu[[#This Row],[Taux LIFE]]-CTu[[#This Row],[Taux Tiers]]-CTu[[#This Row],[Taux CO MO]]-CTu[[#This Row],[FCTVA]] -> 0.2 | CB37: =CTu[[#This Row],[Montant TTC 2026]]-(CTu[[#This Row],[Montant Sub AELB 2026]]+CTu[[#This Row],[Montant Sub RPDL 2026]]+CTu[[#This Row],[Montant Sub RCVL 2026]]+CTu[[#This Row],[Montant Sub CD 37 2026]]+CTu[[#This Row],[Montant Sub CD 49 2026]]+CTu[[#This Row],[Montant LIFE 2026]]+CTu[[#This Row],[Montant Sub FPRNM 2026]]+CTu[[#This Row],[Montant FCTVA 2026]]+CTu[[#This Row],[Tiers 2026]]+CTu[[#This Row],[Montant CO MO 2026]]) -> 6666.666667 | CC37: =CTu[[#This Row],[Montant TTC 2027]]-(CTu[[#This Row],[Montant Sub AELB 2027]]+CTu[[#This Row],[Montant Sub RPDL 2027]]+CTu[[#This Row],[Montant Sub RCVL 2027]]+CTu[[#This Row],[Montant Sub CD 37 2027]]+CTu[[#This Row],[Montant Sub CD 49 2027]]+CTu[[#This Row],[Montant LIFE 2027]]+CTu[[#This Row],[Montant Sub FPRNM 2027]]+CTu[[#This Row],[Montant FCTVA 2027]]+CTu[[#This Row],[Tiers 2027]]+CTu[[#This Row],[Montant CO MO 2027]]) -> 6666.666667 | CD37: =CTu[[#This Row],[Montant TTC 2028]]-(CTu[[#This Row],[Montant Sub AELB 2028]]+CTu[[#This Row],[Montant Sub RPDL 2028]]+CTu[[#This Row],[Montant Sub RCVL 2028]]+CTu[[#This Row],[Montant Sub CD 37 2028]]+CTu[[#This Row],[Montant Sub CD 49 2028]]+CTu[[#This Row],[Montant LIFE 2028]]+CTu[[#This Row],[Montant Sub FPRNM 2028]]+CTu[[#This Row],[Montant FCTVA 2028]]+CTu[[#This Row],[Tiers 2028]]+CTu[[#This Row],[Montant CO MO 2028]]) -> 6666.666667 | CE37: =CTu[[#This Row],[Autofinancement 2026]]+CTu[[#This Row],[Autofinancement 2027]]+CTu[[#This Row],[Autofinancement 2028]] -> 20000
A38: Enjeu_A | B38: A_1 | C38: A11 | D38: TOUR | E38: Continuité écologique | F38: ATEau | G38: FCT | H38: =IF(CTu[[#This Row],[Montant HT 2026]]>0,"2026",IF(CTu[[#This Row],[Montant HT 2027]]>0,"2027",IF(CTu[[#This Row],[Montant HT 2028]]>0,"2028"))) -> 2028 | J38: 1 | K38: =CONCATENATE(CTu[[#This Row],[Objectifs opérationnels]],"_",VLOOKUP(CTu[[#This Row],[Compartiment]],compartiment[],2,)) -> A11_CON | L38: =CONCATENATE(CTu[[#This Row],[Objectifs opérationnels]],"_",CTu[[#This Row],[Secteur/MO]],"_",VLOOKUP(CTu[[#This Row],[Compartiment]],compartiment[],2,FALSE),"_",CTu[[#This Row],[N° Action]]) -> A11_TOUR_CON_1 | M38: =IF(CTu[[#This Row],[Année subv]]="","",CONCATENATE(CTu[[#This Row],[Objectifs opérationnels]],"_",CTu[[#This Row],[Secteur/MO]],"_",CTu[[#This Row],[Année subv]],"_",VLOOKUP(CTu[[#This Row],[Compartiment]],compartiment[],2),"_",CTu[[#This Row],[N° Action]])) ->  | N38: Restauration continuité écologique du Grand moulin | O38: Dernier moulin entre centre-ville de Bourgueil et moulin Scée Possibilité de cumuler actions avec restauration amont M. Boutard et Bertrand Concertation compliquée propriétaire et ARCA | P38: SMBAA | S38: 2 | T38: JBR | W38: 67083.33 | X38: 67083.33 | Y38: 0 | Z38: 0 | AA38: 80499.996 | AB38: 80499.996 | AC38: 0.5 | AD38: =CTu[[#This Row],[Montant TTC 2026]]*CTu[[#This Row],[Taux Sub AELB]] -> 0 | AE38: =CTu[[#This Row],[Montant TTC 2027]]*CTu[[#This Row],[Taux Sub AELB]] -> 0 | AF38: =CTu[[#This Row],[Montant TTC 2028]]*CTu[[#This Row],[Taux Sub AELB]] -> 40249.998 | AG38: =CTu[[#This Row],[Montant Sub AELB 2026]]+CTu[[#This Row],[Montant Sub AELB 2027]]+CTu[[#This Row],[Montant Sub AELB 2028]] -> 40249.998 | AI38: =CTu[[#This Row],[Taux Sub RPDL]]*CTu[[#This Row],[Montant TTC 2026]] -> 0 | AJ38: =CTu[[#This Row],[Taux Sub RPDL]]*CTu[[#This Row],[Montant TTC 2027]] -> 0 | AK38: =CTu[[#This Row],[Taux Sub RPDL]]*CTu[[#This Row],[Montant TTC 2028]] -> 0 | AL38: =CTu[[#This Row],[Montant Sub RPDL 2026]]+CTu[[#This Row],[Montant Sub RPDL 2027]]+CTu[[#This Row],[Montant Sub RPDL 2028]] -> 0 | AM38: 0.2 | AN38: =CTu[[#This Row],[Taux Sub RCVL]]*CTu[[#This Row],[Montant TTC 2026]] -> 0 | AO38: =CTu[[#This Row],[Taux Sub RCVL]]*CTu[[#This Row],[Montant TTC 2027]] -> 0 | AP38: =CTu[[#This Row],[Taux Sub RCVL]]*CTu[[#This Row],[Montant TTC 2028]] -> 16099.9992 | AQ38: =CTu[[#This Row],[Montant Sub RCVL 2026]]+CTu[[#This Row],[Montant Sub RCVL 2027]]+CTu[[#This Row],[Montant Sub RCVL 2028]] -> 16099.9992 | AR38: 0.1 | AS38: =CTu[[#This Row],[Taux Sub CD 37]]*CTu[[#This Row],[Montant HT 2026]] -> 0 | AT38: =CTu[[#This Row],[Taux Sub CD 37]]*CTu[[#This Row],[Montant HT 2027]] -> 0 | AU38: =CTu[[#This Row],[Taux Sub CD 37]]*CTu[[#This Row],[Montant HT 2028]] -> 6708.333 | AV38: =CTu[[#This Row],[Montant Sub CD 37 2026]]+CTu[[#This Row],[Montant Sub CD 37 2027]]+CTu[[#This Row],[Montant Sub CD 37 2028]] -> 6708.333 | AX38: =CTu[[#This Row],[Taux Sub CD 49]]*CTu[[#This Row],[Montant TTC 2026]] -> 0 | AY38: =CTu[[#This Row],[Taux Sub CD 49]]*CTu[[#This Row],[Montant TTC 2027]] -> 0 | AZ38: =CTu[[#This Row],[Taux Sub CD 49]]*CTu[[#This Row],[Montant TTC 2028]] -> 0 | BA38: =CTu[[#This Row],[Montant Sub CD 49 2026]]+CTu[[#This Row],[Montant Sub CD 49 2027]]+CTu[[#This Row],[Montant Sub CD 49 2028]] -> 0 | BC38: =CTu[[#This Row],[Montant TTC 2026]]*CTu[[#This Row],[Taux LIFE]] -> 0 | BD38: =CTu[[#This Row],[Montant TTC 2027]]*CTu[[#This Row],[Taux LIFE]] -> 0 | BE38: =CTu[[#This Row],[Montant TTC 2028]]*CTu[[#This Row],[Taux LIFE]] -> 0 | BF38: =CTu[[#This Row],[Montant LIFE 2026]]+CTu[[#This Row],[Montant LIFE 2027]]+CTu[[#This Row],[Montant LIFE 2028]] -> 0 | BH38: =CTu[[#This Row],[Taux Sub FPRNM]]*CTu[[#This Row],[Montant HT 2026]] -> 0 | BI38: =CTu[[#This Row],[Taux Sub FPRNM]]*CTu[[#This Row],[Montant HT 2027]] -> 0 | BJ38: =CTu[[#This Row],[Taux Sub FPRNM]]*CTu[[#This Row],[Montant HT 2028]] -> 0 | BK38: =CTu[[#This Row],[Montant Sub FPRNM 2026]]+CTu[[#This Row],[Montant Sub FPRNM 2027]]+CTu[[#This Row],[Montant Sub FPRNM 2028]] -> 0 | BM38: =CTu[[#This Row],[FCTVA]]*CTu[[#This Row],[Montant TTC 2026]] -> 0 | BN38: =CTu[[#This Row],[FCTVA]]*CTu[[#This Row],[Montant TTC 2027]] -> 0 | BO38: =CTu[[#This Row],[FCTVA]]*CTu[[#This Row],[Montant TTC 2028]] -> 0 | BP38: =CTu[[#This Row],[Montant FCTVA 2026]]+CTu[[#This Row],[Montant FCTVA 2027]]+CTu[[#This Row],[Montant FCTVA 2028]] -> 0 | BR38: =CTu[[#This Row],[Taux CO MO]]*CTu[[#This Row],[Montant TTC 2026]] -> 0 | BS38: =CTu[[#This Row],[Taux CO MO]]*CTu[[#This Row],[Montant TTC 2027]] -> 0 | BT38: =CTu[[#This Row],[Taux CO MO]]*CTu[[#This Row],[Montant TTC 2028]] -> 0 | BU38: =CTu[[#This Row],[Montant CO MO 2026]]+CTu[[#This Row],[Montant CO MO 2027]]+CTu[[#This Row],[Montant CO MO 2028]] -> 0 | BW38: =CTu[[#This Row],[Taux Tiers]]*CTu[[#This Row],[Montant TTC 2026]] -> 0 | BX38: =CTu[[#This Row],[Taux Tiers]]*CTu[[#This Row],[Montant TTC 2027]] -> 0 | BY38: =CTu[[#This Row],[Taux Tiers]]*CTu[[#This Row],[Montant TTC 2028]] -> 0 | BZ38: =CTu[[#This Row],[Tiers 2026]]+CTu[[#This Row],[Tiers 2027]]+CTu[[#This Row],[Tiers 2028]] -> 0 | CA38: =100%-CTu[[#This Row],[Taux Sub AELB]]-CTu[[#This Row],[Taux Sub RPDL]]-CTu[[#This Row],[Taux Sub RCVL]]-CTu[[#This Row],[Taux Sub CD 37]]-CTu[[#This Row],[Taux Sub CD 49]]-CTu[[#This Row],[Taux Sub FPRNM]]-CTu[[#This Row],[Taux LIFE]]-CTu[[#This Row],[Taux Tiers]]-CTu[[#This Row],[Taux CO MO]]-CTu[[#This Row],[FCTVA]] -> 0.2 | CB38: =CTu[[#This Row],[Montant TTC 2026]]-(CTu[[#This Row],[Montant Sub AELB 2026]]+CTu[[#This Row],[Montant Sub RPDL 2026]]+CTu[[#This Row],[Montant Sub RCVL 2026]]+CTu[[#This Row],[Montant Sub CD 37 2026]]+CTu[[#This Row],[Montant Sub CD 49 2026]]+CTu[[#This Row],[Montant LIFE 2026]]+CTu[[#This Row],[Montant Sub FPRNM 2026]]+CTu[[#This Row],[Montant FCTVA 2026]]+CTu[[#This Row],[Tiers 2026]]+CTu[[#This Row],[Montant CO MO 2026]]) -> 0 | CC38: =CTu[[#This Row],[Montant TTC 2027]]-(CTu[[#This Row],[Montant Sub AELB 2027]]+CTu[[#This Row],[Montant Sub RPDL 2027]]+CTu[[#This Row],[Montant Sub RCVL 2027]]+CTu[[#This Row],[Montant Sub CD 37 2027]]+CTu[[#This Row],[Montant Sub CD 49 2027]]+CTu[[#This Row],[Montant LIFE 2027]]+CTu[[#This Row],[Montant Sub FPRNM 2027]]+CTu[[#This Row],[Montant FCTVA 2027]]+CTu[[#This Row],[Tiers 2027]]+CTu[[#This Row],[Montant CO MO 2027]]) -> 0 | CD38: =CTu[[#This Row],[Montant TTC 2028]]-(CTu[[#This Row],[Montant Sub AELB 2028]]+CTu[[#This Row],[Montant Sub RPDL 2028]]+CTu[[#This Row],[Montant Sub RCVL 2028]]+CTu[[#This Row],[Montant Sub CD 37 2028]]+CTu[[#This Row],[Montant Sub CD 49 2028]]+CTu[[#This Row],[Montant LIFE 2028]]+CTu[[#This Row],[Montant Sub FPRNM 2028]]+CTu[[#This Row],[Montant FCTVA 2028]]+CTu[[#This Row],[Tiers 2028]]+CTu[[#This Row],[Montant CO MO 2028]]) -> 17441.6658 | CE38: =CTu[[#This Row],[Autofinancement 2026]]+CTu[[#This Row],[Autofinancement 2027]]+CTu[[#This Row],[Autofinancement 2028]] -> 17441.6658
A39: Enjeu_A | B39: A_1 | C39: A11 | D39: TOUR | E39: Étude | F39: ATEau | G39: FCT | H39: =IF(CTu[[#This Row],[Montant HT 2026]]>0,"2026",IF(CTu[[#This Row],[Montant HT 2027]]>0,"2027",IF(CTu[[#This Row],[Montant HT 2028]]>0,"2028"))) -> 2028 | J39: 1 | K39: =CONCATENATE(CTu[[#This Row],[Objectifs opérationnels]],"_",VLOOKUP(CTu[[#This Row],[Compartiment]],compartiment[],2,)) -> A11_ETU | L39: =CONCATENATE(CTu[[#This Row],[Objectifs opérationnels]],"_",CTu[[#This Row],[Secteur/MO]],"_",VLOOKUP(CTu[[#This Row],[Compartiment]],compartiment[],2,FALSE),"_",CTu[[#This Row],[N° Action]]) -> A11_TOUR_ETU_1 | M39: =IF(CTu[[#This Row],[Année subv]]="","",CONCATENATE(CTu[[#This Row],[Objectifs opérationnels]],"_",CTu[[#This Row],[Secteur/MO]],"_",CTu[[#This Row],[Année subv]],"_",VLOOKUP(CTu[[#This Row],[Compartiment]],compartiment[],2),"_",CTu[[#This Row],[N° Action]])) ->  | N39: Etude continuité écologique du Grand moulin | O39: Dernier moulin entre centre-ville de Bourgueil et moulin Scée Concertation compliqué propriétaire et ARCA Attente réalisation du chantier sur le moulin Boutard pour montrer au propriétaire | P39: SMBAA | S39: 1 | T39: JBR | W39: 13750 | X39: 13750 | Y39: 0 | Z39: 0 | AA39: 16500 | AB39: 16500 | AC39: 0.5 | AD39: =CTu[[#This Row],[Montant TTC 2026]]*CTu[[#This Row],[Taux Sub AELB]] -> 0 | AE39: =CTu[[#This Row],[Montant TTC 2027]]*CTu[[#This Row],[Taux Sub AELB]] -> 0 | AF39: =CTu[[#This Row],[Montant TTC 2028]]*CTu[[#This Row],[Taux Sub AELB]] -> 8250 | AG39: =CTu[[#This Row],[Montant Sub AELB 2026]]+CTu[[#This Row],[Montant Sub AELB 2027]]+CTu[[#This Row],[Montant Sub AELB 2028]] -> 8250 | AI39: =CTu[[#This Row],[Taux Sub RPDL]]*CTu[[#This Row],[Montant TTC 2026]] -> 0 | AJ39: =CTu[[#This Row],[Taux Sub RPDL]]*CTu[[#This Row],[Montant TTC 2027]] -> 0 | AK39: =CTu[[#This Row],[Taux Sub RPDL]]*CTu[[#This Row],[Montant TTC 2028]] -> 0 | AL39: =CTu[[#This Row],[Montant Sub RPDL 2026]]+CTu[[#This Row],[Montant Sub RPDL 2027]]+CTu[[#This Row],[Montant Sub RPDL 2028]] -> 0 | AN39: =CTu[[#This Row],[Taux Sub RCVL]]*CTu[[#This Row],[Montant TTC 2026]] -> 0 | AO39: =CTu[[#This Row],[Taux Sub RCVL]]*CTu[[#This Row],[Montant TTC 2027]] -> 0 | AP39: =CTu[[#This Row],[Taux Sub RCVL]]*CTu[[#This Row],[Montant TTC 2028]] -> 0 | AQ39: =CTu[[#This Row],[Montant Sub RCVL 2026]]+CTu[[#This Row],[Montant Sub RCVL 2027]]+CTu[[#This Row],[Montant Sub RCVL 2028]] -> 0 | AR39: 0.3 | AS39: =CTu[[#This Row],[Taux Sub CD 37]]*CTu[[#This Row],[Montant HT 2026]] -> 0 | AT39: =CTu[[#This Row],[Taux Sub CD 37]]*CTu[[#This Row],[Montant HT 2027]] -> 0 | AU39: =CTu[[#This Row],[Taux Sub CD 37]]*CTu[[#This Row],[Montant HT 2028]] -> 4125 | AV39: =CTu[[#This Row],[Montant Sub CD 37 2026]]+CTu[[#This Row],[Montant Sub CD 37 2027]]+CTu[[#This Row],[Montant Sub CD 37 2028]] -> 4125 | AX39: =CTu[[#This Row],[Taux Sub CD 49]]*CTu[[#This Row],[Montant TTC 2026]] -> 0 | AY39: =CTu[[#This Row],[Taux Sub CD 49]]*CTu[[#This Row],[Montant TTC 2027]] -> 0 | AZ39: =CTu[[#This Row],[Taux Sub CD 49]]*CTu[[#This Row],[Montant TTC 2028]] -> 0 | BA39: =CTu[[#This Row],[Montant Sub CD 49 2026]]+CTu[[#This Row],[Montant Sub CD 49 2027]]+CTu[[#This Row],[Montant Sub CD 49 2028]] -> 0 | BC39: =CTu[[#This Row],[Montant TTC 2026]]*CTu[[#This Row],[Taux LIFE]] -> 0 | BD39: =CTu[[#This Row],[Montant TTC 2027]]*CTu[[#This Row],[Taux LIFE]] -> 0 | BE39: =CTu[[#This Row],[Montant TTC 2028]]*CTu[[#This Row],[Taux LIFE]] -> 0 | BF39: =CTu[[#This Row],[Montant LIFE 2026]]+CTu[[#This Row],[Montant LIFE 2027]]+CTu[[#This Row],[Montant LIFE 2028]] -> 0 | BH39: =CTu[[#This Row],[Taux Sub FPRNM]]*CTu[[#This Row],[Montant HT 2026]] -> 0 | BI39: =CTu[[#This Row],[Taux Sub FPRNM]]*CTu[[#This Row],[Montant HT 2027]] -> 0 | BJ39: =CTu[[#This Row],[Taux Sub FPRNM]]*CTu[[#This Row],[Montant HT 2028]] -> 0 | BK39: =CTu[[#This Row],[Montant Sub FPRNM 2026]]+CTu[[#This Row],[Montant Sub FPRNM 2027]]+CTu[[#This Row],[Montant Sub FPRNM 2028]] -> 0 | BM39: =CTu[[#This Row],[FCTVA]]*CTu[[#This Row],[Montant TTC 2026]] -> 0 | BN39: =CTu[[#This Row],[FCTVA]]*CTu[[#This Row],[Montant TTC 2027]] -> 0 | BO39: =CTu[[#This Row],[FCTVA]]*CTu[[#This Row],[Montant TTC 2028]] -> 0 | BP39: =CTu[[#This Row],[Montant FCTVA 2026]]+CTu[[#This Row],[Montant FCTVA 2027]]+CTu[[#This Row],[Montant FCTVA 2028]] -> 0 | BR39: =CTu[[#This Row],[Taux CO MO]]*CTu[[#This Row],[Montant TTC 2026]] -> 0 | BS39: =CTu[[#This Row],[Taux CO MO]]*CTu[[#This Row],[Montant TTC 2027]] -> 0 | BT39: =CTu[[#This Row],[Taux CO MO]]*CTu[[#This Row],[Montant TTC 2028]] -> 0 | BU39: =CTu[[#This Row],[Montant CO MO 2026]]+CTu[[#This Row],[Montant CO MO 2027]]+CTu[[#This Row],[Montant CO MO 2028]] -> 0 | BW39: =CTu[[#This Row],[Taux Tiers]]*CTu[[#This Row],[Montant TTC 2026]] -> 0 | BX39: =CTu[[#This Row],[Taux Tiers]]*CTu[[#This Row],[Montant TTC 2027]] -> 0 | BY39: =CTu[[#This Row],[Taux Tiers]]*CTu[[#This Row],[Montant TTC 2028]] -> 0 | BZ39: =CTu[[#This Row],[Tiers 2026]]+CTu[[#This Row],[Tiers 2027]]+CTu[[#This Row],[Tiers 2028]] -> 0 | CA39: =100%-CTu[[#This Row],[Taux Sub AELB]]-CTu[[#This Row],[Taux Sub RPDL]]-CTu[[#This Row],[Taux Sub RCVL]]-CTu[[#This Row],[Taux Sub CD 37]]-CTu[[#This Row],[Taux Sub CD 49]]-CTu[[#This Row],[Taux Sub FPRNM]]-CTu[[#This Row],[Taux LIFE]]-CTu[[#This Row],[Taux Tiers]]-CTu[[#This Row],[Taux CO MO]]-CTu[[#This Row],[FCTVA]] -> 0.2 | CB39: =CTu[[#This Row],[Montant TTC 2026]]-(CTu[[#This Row],[Montant Sub AELB 2026]]+CTu[[#This Row],[Montant Sub RPDL 2026]]+CTu[[#This Row],[Montant Sub RCVL 2026]]+CTu[[#This Row],[Montant Sub CD 37 2026]]+CTu[[#This Row],[Montant Sub CD 49 2026]]+CTu[[#This Row],[Montant LIFE 2026]]+CTu[[#This Row],[Montant Sub FPRNM 2026]]+CTu[[#This Row],[Montant FCTVA 2026]]+CTu[[#This Row],[Tiers 2026]]+CTu[[#This Row],[Montant CO MO 2026]]) -> 0 | CC39: =CTu[[#This Row],[Montant TTC 2027]]-(CTu[[#This Row],[Montant Sub AELB 2027]]+CTu[[#This Row],[Montant Sub RPDL 2027]]+CTu[[#This Row],[Montant Sub RCVL 2027]]+CTu[[#This Row],[Montant Sub CD 37 2027]]+CTu[[#This Row],[Montant Sub CD 49 2027]]+CTu[[#This Row],[Montant LIFE 2027]]+CTu[[#This Row],[Montant Sub FPRNM 2027]]+CTu[[#This Row],[Montant FCTVA 2027]]+CTu[[#This Row],[Tiers 2027]]+CTu[[#This Row],[Montant CO MO 2027]]) -> 0 | CD39: =CTu[[#This Row],[Montant TTC 2028]]-(CTu[[#This Row],[Montant Sub AELB 2028]]+CTu[[#This Row],[Montant Sub RPDL 2028]]+CTu[[#This Row],[Montant Sub RCVL 2028]]+CTu[[#This Row],[Montant Sub CD 37 2028]]+CTu[[#This Row],[Montant Sub CD 49 2028]]+CTu[[#This Row],[Montant LIFE 2028]]+CTu[[#This Row],[Montant Sub FPRNM 2028]]+CTu[[#This Row],[Montant FCTVA 2028]]+CTu[[#This Row],[Tiers 2028]]+CTu[[#This Row],[Montant CO MO 2028]]) -> 4125 | CE39: =CTu[[#This Row],[Autofinancement 2026]]+CTu[[#This Row],[Autofinancement 2027]]+CTu[[#This Row],[Autofinancement 2028]] -> 4125
A40: Enjeu_A | B40: A_1 | C40: A12 | D40: AUT | E40: Étude | F40: ATEau | G40: FCT | H40: =IF(CTu[[#This Row],[Montant HT 2026]]>0,"2026",IF(CTu[[#This Row],[Montant HT 2027]]>0,"2027",IF(CTu[[#This Row],[Montant HT 2028]]>0,"2028"))) -> 2027 | J40: 1 | K40: =CONCATENATE(CTu[[#This Row],[Objectifs opérationnels]],"_",VLOOKUP(CTu[[#This Row],[Compartiment]],compartiment[],2,)) -> A12_ETU | L40: =CONCATENATE(CTu[[#This Row],[Objectifs opérationnels]],"_",CTu[[#This Row],[Secteur/MO]],"_",VLOOKUP(CTu[[#This Row],[Compartiment]],compartiment[],2,FALSE),"_",CTu[[#This Row],[N° Action]]) -> A12_AUT_ETU_1 | M40: =IF(CTu[[#This Row],[Année subv]]="","",CONCATENATE(CTu[[#This Row],[Objectifs opérationnels]],"_",CTu[[#This Row],[Secteur/MO]],"_",CTu[[#This Row],[Année subv]],"_",VLOOKUP(CTu[[#This Row],[Compartiment]],compartiment[],2),"_",CTu[[#This Row],[N° Action]])) ->  | N40: Etude pour la restauration du ruisseau des Loges en amont du plan d'eau de la Breille les pins | O40: Etude lit mineur, ralentissement du cycle de l'eau et plans d'eauv --> Diagnostic mené en interne en 2026 et étude à suivre | P40: SMBAA | S40: 1 | T40: RC | V40: 26666.66667 | X40: 26666.66667 | Y40: 0 | Z40: 32000 | AA40: 0 | AB40: 32000 | AC40: 0.5 | AD40: =CTu[[#This Row],[Montant TTC 2026]]*CTu[[#This Row],[Taux Sub AELB]] -> 0 | AE40: =CTu[[#This Row],[Montant TTC 2027]]*CTu[[#This Row],[Taux Sub AELB]] -> 16000 | AF40: =CTu[[#This Row],[Montant TTC 2028]]*CTu[[#This Row],[Taux Sub AELB]] -> 0 | AG40: =CTu[[#This Row],[Montant Sub AELB 2026]]+CTu[[#This Row],[Montant Sub AELB 2027]]+CTu[[#This Row],[Montant Sub AELB 2028]] -> 16000 | AH40: 0.3 | AI40: =CTu[[#This Row],[Taux Sub RPDL]]*CTu[[#This Row],[Montant TTC 2026]] -> 0 | AJ40: =CTu[[#This Row],[Taux Sub RPDL]]*CTu[[#This Row],[Montant TTC 2027]] -> 9600 | AK40: =CTu[[#This Row],[Taux Sub RPDL]]*CTu[[#This Row],[Montant TTC 2028]] -> 0 | AL40: =CTu[[#This Row],[Montant Sub RPDL 2026]]+CTu[[#This Row],[Montant Sub RPDL 2027]]+CTu[[#This Row],[Montant Sub RPDL 2028]] -> 9600 | AN40: =CTu[[#This Row],[Taux Sub RCVL]]*CTu[[#This Row],[Montant TTC 2026]] -> 0 | AO40: =CTu[[#This Row],[Taux Sub RCVL]]*CTu[[#This Row],[Montant TTC 2027]] -> 0 | AP40: =CTu[[#This Row],[Taux Sub RCVL]]*CTu[[#This Row],[Montant TTC 2028]] -> 0 | AQ40: =CTu[[#This Row],[Montant Sub RCVL 2026]]+CTu[[#This Row],[Montant Sub RCVL 2027]]+CTu[[#This Row],[Montant Sub RCVL 2028]] -> 0 | AS40: =CTu[[#This Row],[Taux Sub CD 37]]*CTu[[#This Row],[Montant HT 2026]] -> 0 | AT40: =CTu[[#This Row],[Taux Sub CD 37]]*CTu[[#This Row],[Montant HT 2027]] -> 0 | AU40: =CTu[[#This Row],[Taux Sub CD 37]]*CTu[[#This Row],[Montant HT 2028]] -> 0 | AV40: =CTu[[#This Row],[Montant Sub CD 37 2026]]+CTu[[#This Row],[Montant Sub CD 37 2027]]+CTu[[#This Row],[Montant Sub CD 37 2028]] -> 0 | AX40: =CTu[[#This Row],[Taux Sub CD 49]]*CTu[[#This Row],[Montant TTC 2026]] -> 0 | AY40: =CTu[[#This Row],[Taux Sub CD 49]]*CTu[[#This Row],[Montant TTC 2027]] -> 0 | AZ40: =CTu[[#This Row],[Taux Sub CD 49]]*CTu[[#This Row],[Montant TTC 2028]] -> 0 | BA40: =CTu[[#This Row],[Montant Sub CD 49 2026]]+CTu[[#This Row],[Montant Sub CD 49 2027]]+CTu[[#This Row],[Montant Sub CD 49 2028]] -> 0 | BC40: =CTu[[#This Row],[Montant TTC 2026]]*CTu[[#This Row],[Taux LIFE]] -> 0 | BD40: =CTu[[#This Row],[Montant TTC 2027]]*CTu[[#This Row],[Taux LIFE]] -> 0 | BE40: =CTu[[#This Row],[Montant TTC 2028]]*CTu[[#This Row],[Taux LIFE]] -> 0 | BF40: =CTu[[#This Row],[Montant LIFE 2026]]+CTu[[#This Row],[Montant LIFE 2027]]+CTu[[#This Row],[Montant LIFE 2028]] -> 0 | BH40: =CTu[[#This Row],[Taux Sub FPRNM]]*CTu[[#This Row],[Montant HT 2026]] -> 0 | BI40: =CTu[[#This Row],[Taux Sub FPRNM]]*CTu[[#This Row],[Montant HT 2027]] -> 0 | BJ40: =CTu[[#This Row],[Taux Sub FPRNM]]*CTu[[#This Row],[Montant HT 2028]] -> 0 | BK40: =CTu[[#This Row],[Montant Sub FPRNM 2026]]+CTu[[#This Row],[Montant Sub FPRNM 2027]]+CTu[[#This Row],[Montant Sub FPRNM 2028]] -> 0 | BM40: =CTu[[#This Row],[FCTVA]]*CTu[[#This Row],[Montant TTC 2026]] -> 0 | BN40: =CTu[[#This Row],[FCTVA]]*CTu[[#This Row],[Montant TTC 2027]] -> 0 | BO40: =CTu[[#This Row],[FCTVA]]*CTu[[#This Row],[Montant TTC 2028]] -> 0 | BP40: =CTu[[#This Row],[Montant FCTVA 2026]]+CTu[[#This Row],[Montant FCTVA 2027]]+CTu[[#This Row],[Montant FCTVA 2028]] -> 0 | BR40: =CTu[[#This Row],[Taux CO MO]]*CTu[[#This Row],[Montant TTC 2026]] -> 0 | BS40: =CTu[[#This Row],[Taux CO MO]]*CTu[[#This Row],[Montant TTC 2027]] -> 0 | BT40: =CTu[[#This Row],[Taux CO MO]]*CTu[[#This Row],[Montant TTC 2028]] -> 0 | BU40: =CTu[[#This Row],[Montant CO MO 2026]]+CTu[[#This Row],[Montant CO MO 2027]]+CTu[[#This Row],[Montant CO MO 2028]] -> 0 | BW40: =CTu[[#This Row],[Taux Tiers]]*CTu[[#This Row],[Montant TTC 2026]] -> 0 | BX40: =CTu[[#This Row],[Taux Tiers]]*CTu[[#This Row],[Montant TTC 2027]] -> 0 | BY40: =CTu[[#This Row],[Taux Tiers]]*CTu[[#This Row],[Montant TTC 2028]] -> 0 | BZ40: =CTu[[#This Row],[Tiers 2026]]+CTu[[#This Row],[Tiers 2027]]+CTu[[#This Row],[Tiers 2028]] -> 0 | CA40: =100%-CTu[[#This Row],[Taux Sub AELB]]-CTu[[#This Row],[Taux Sub RPDL]]-CTu[[#This Row],[Taux Sub RCVL]]-CTu[[#This Row],[Taux Sub CD 37]]-CTu[[#This Row],[Taux Sub CD 49]]-CTu[[#This Row],[Taux Sub FPRNM]]-CTu[[#This Row],[Taux LIFE]]-CTu[[#This Row],[Taux Tiers]]-CTu[[#This Row],[Taux CO MO]]-CTu[[#This Row],[FCTVA]] -> 0.2 | CB40: =CTu[[#This Row],[Montant TTC 2026]]-(CTu[[#This Row],[Montant Sub AELB 2026]]+CTu[[#This Row],[Montant Sub RPDL 2026]]+CTu[[#This Row],[Montant Sub RCVL 2026]]+CTu[[#This Row],[Montant Sub CD 37 2026]]+CTu[[#This Row],[Montant Sub CD 49 2026]]+CTu[[#This Row],[Montant LIFE 2026]]+CTu[[#This Row],[Montant Sub FPRNM 2026]]+CTu[[#This Row],[Montant FCTVA 2026]]+CTu[[#This Row],[Tiers 2026]]+CTu[[#This Row],[Montant CO MO 2026]]) -> 0 | CC40: =CTu[[#This Row],[Montant TTC 2027]]-(CTu[[#This Row],[Montant Sub AELB 2027]]+CTu[[#This Row],[Montant Sub RPDL 2027]]+CTu[[#This Row],[Montant Sub RCVL 2027]]+CTu[[#This Row],[Montant Sub CD 37 2027]]+CTu[[#This Row],[Montant Sub CD 49 2027]]+CTu[[#This Row],[Montant LIFE 2027]]+CTu[[#This Row],[Montant Sub FPRNM 2027]]+CTu[[#This Row],[Montant FCTVA 2027]]+CTu[[#This Row],[Tiers 2027]]+CTu[[#This Row],[Montant CO MO 2027]]) -> 6400 | CD40: =CTu[[#This Row],[Montant TTC 2028]]-(CTu[[#This Row],[Montant Sub AELB 2028]]+CTu[[#This Row],[Montant Sub RPDL 2028]]+CTu[[#This Row],[Montant Sub RCVL 2028]]+CTu[[#This Row],[Montant Sub CD 37 2028]]+CTu[[#This Row],[Montant Sub CD 49 2028]]+CTu[[#This Row],[Montant LIFE 2028]]+CTu[[#This Row],[Montant Sub FPRNM 2028]]+CTu[[#This Row],[Montant FCTVA 2028]]+CTu[[#This Row],[Tiers 2028]]+CTu[[#This Row],[Montant CO MO 2028]]) -> 0 | CE40: =CTu[[#This Row],[Autofinancement 2026]]+CTu[[#This Row],[Autofinancement 2027]]+CTu[[#This Row],[Autofinancement 2028]] -> 6400
A41: Enjeu_A | B41: A_1 | C41: A12 | D41: COU | E41: Étude | F41: ATEau | G41: FCT | H41: =IF(CTu[[#This Row],[Montant HT 2026]]>0,"2026",IF(CTu[[#This Row],[Montant HT 2027]]>0,"2027",IF(CTu[[#This Row],[Montant HT 2028]]>0,"2028"))) -> 2026 | J41: 1 | K41: =CONCATENATE(CTu[[#This Row],[Objectifs opérationnels]],"_",VLOOKUP(CTu[[#This Row],[Compartiment]],compartiment[],2,)) -> A12_ETU | L41: =CONCATENATE(CTu[[#This Row],[Objectifs opérationnels]],"_",CTu[[#This Row],[Secteur/MO]],"_",VLOOKUP(CTu[[#This Row],[Compartiment]],compartiment[],2,FALSE),"_",CTu[[#This Row],[N° Action]]) -> A12_COU_ETU_1 | M41: =IF(CTu[[#This Row],[Année subv]]="","",CONCATENATE(CTu[[#This Row],[Objectifs opérationnels]],"_",CTu[[#This Row],[Secteur/MO]],"_",CTu[[#This Row],[Année subv]],"_",VLOOKUP(CTu[[#This Row],[Compartiment]],compartiment[],2),"_",CTu[[#This Row],[N° Action]])) ->  | N41: Diagnostic têtes de bassin versant - Couasnon Amont | O41: De la source du Couasnon à Vieil Baugé (affluents compris) | P41: SMBAA | S41: 1 | T41: RCH | U41: 33333.33333 | X41: =SUM(U41:W41) -> 33333.33333 | Y41: =U41*1.2 -> 40000 | Z41: =V41*1.2 -> 0 | AA41: =W41*1.2 -> 0 | AB41: =SUM(Y41:AA41) -> 40000 | AC41: 0.5 | AD41: =CTu[[#This Row],[Montant TTC 2026]]*CTu[[#This Row],[Taux Sub AELB]] -> 20000 | AE41: =CTu[[#This Row],[Montant TTC 2027]]*CTu[[#This Row],[Taux Sub AELB]] -> 0 | AF41: =CTu[[#This Row],[Montant TTC 2028]]*CTu[[#This Row],[Taux Sub AELB]] -> 0 | AG41: =CTu[[#This Row],[Montant Sub AELB 2026]]+CTu[[#This Row],[Montant Sub AELB 2027]]+CTu[[#This Row],[Montant Sub AELB 2028]] -> 20000 | AH41: 0.3 | AI41: =CTu[[#This Row],[Taux Sub RPDL]]*CTu[[#This Row],[Montant TTC 2026]] -> 12000 | AJ41: =CTu[[#This Row],[Taux Sub RPDL]]*CTu[[#This Row],[Montant TTC 2027]] -> 0 | AK41: =CTu[[#This Row],[Taux Sub RPDL]]*CTu[[#This Row],[Montant TTC 2028]] -> 0 | AL41: =CTu[[#This Row],[Montant Sub RPDL 2026]]+CTu[[#This Row],[Montant Sub RPDL 2027]]+CTu[[#This Row],[Montant Sub RPDL 2028]] -> 12000 | AN41: =CTu[[#This Row],[Taux Sub RCVL]]*CTu[[#This Row],[Montant TTC 2026]] -> 0 | AO41: =CTu[[#This Row],[Taux Sub RCVL]]*CTu[[#This Row],[Montant TTC 2027]] -> 0 | AP41: =CTu[[#This Row],[Taux Sub RCVL]]*CTu[[#This Row],[Montant TTC 2028]] -> 0 | AQ41: =CTu[[#This Row],[Montant Sub RCVL 2026]]+CTu[[#This Row],[Montant Sub RCVL 2027]]+CTu[[#This Row],[Montant Sub RCVL 2028]] -> 0 | AS41: =CTu[[#This Row],[Taux Sub CD 37]]*CTu[[#This Row],[Montant HT 2026]] -> 0 | AT41: =CTu[[#This Row],[Taux Sub CD 37]]*CTu[[#This Row],[Montant HT 2027]] -> 0 | AU41: =CTu[[#This Row],[Taux Sub CD 37]]*CTu[[#This Row],[Montant HT 2028]] -> 0 | AV41: =CTu[[#This Row],[Montant Sub CD 37 2026]]+CTu[[#This Row],[Montant Sub CD 37 2027]]+CTu[[#This Row],[Montant Sub CD 37 2028]] -> 0 | AX41: =CTu[[#This Row],[Taux Sub CD 49]]*CTu[[#This Row],[Montant TTC 2026]] -> 0 | AY41: =CTu[[#This Row],[Taux Sub CD 49]]*CTu[[#This Row],[Montant TTC 2027]] -> 0 | AZ41: =CTu[[#This Row],[Taux Sub CD 49]]*CTu[[#This Row],[Montant TTC 2028]] -> 0 | BA41: =CTu[[#This Row],[Montant Sub CD 49 2026]]+CTu[[#This Row],[Montant Sub CD 49 2027]]+CTu[[#This Row],[Montant Sub CD 49 2028]] -> 0 | BC41: =CTu[[#This Row],[Montant TTC 2026]]*CTu[[#This Row],[Taux LIFE]] -> 0 | BD41: =CTu[[#This Row],[Montant TTC 2027]]*CTu[[#This Row],[Taux LIFE]] -> 0 | BE41: =CTu[[#This Row],[Montant TTC 2028]]*CTu[[#This Row],[Taux LIFE]] -> 0 | BF41: =CTu[[#This Row],[Montant LIFE 2026]]+CTu[[#This Row],[Montant LIFE 2027]]+CTu[[#This Row],[Montant LIFE 2028]] -> 0 | BH41: =CTu[[#This Row],[Taux Sub FPRNM]]*CTu[[#This Row],[Montant HT 2026]] -> 0 | BI41: =CTu[[#This Row],[Taux Sub FPRNM]]*CTu[[#This Row],[Montant HT 2027]] -> 0 | BJ41: =CTu[[#This Row],[Taux Sub FPRNM]]*CTu[[#This Row],[Montant HT 2028]] -> 0 | BK41: =CTu[[#This Row],[Montant Sub FPRNM 2026]]+CTu[[#This Row],[Montant Sub FPRNM 2027]]+CTu[[#This Row],[Montant Sub FPRNM 2028]] -> 0 | BM41: =CTu[[#This Row],[FCTVA]]*CTu[[#This Row],[Montant TTC 2026]] -> 0 | BN41: =CTu[[#This Row],[FCTVA]]*CTu[[#This Row],[Montant TTC 2027]] -> 0 | BO41: =CTu[[#This Row],[FCTVA]]*CTu[[#This Row],[Montant TTC 2028]] -> 0 | BP41: =CTu[[#This Row],[Montant FCTVA 2026]]+CTu[[#This Row],[Montant FCTVA 2027]]+CTu[[#This Row],[Montant FCTVA 2028]] -> 0 | BR41: =CTu[[#This Row],[Taux CO MO]]*CTu[[#This Row],[Montant TTC 2026]] -> 0 | BS41: =CTu[[#This Row],[Taux CO MO]]*CTu[[#This Row],[Montant TTC 2027]] -> 0 | BT41: =CTu[[#This Row],[Taux CO MO]]*CTu[[#This Row],[Montant TTC 2028]] -> 0 | BU41: =CTu[[#This Row],[Montant CO MO 2026]]+CTu[[#This Row],[Montant CO MO 2027]]+CTu[[#This Row],[Montant CO MO 2028]] -> 0 | BW41: =CTu[[#This Row],[Taux Tiers]]*CTu[[#This Row],[Montant TTC 2026]] -> 0 | BX41: =CTu[[#This Row],[Taux Tiers]]*CTu[[#This Row],[Montant TTC 2027]] -> 0 | BY41: =CTu[[#This Row],[Taux Tiers]]*CTu[[#This Row],[Montant TTC 2028]] -> 0 | BZ41: =CTu[[#This Row],[Tiers 2026]]+CTu[[#This Row],[Tiers 2027]]+CTu[[#This Row],[Tiers 2028]] -> 0 | CA41: =100%-CTu[[#This Row],[Taux Sub AELB]]-CTu[[#This Row],[Taux Sub RPDL]]-CTu[[#This Row],[Taux Sub RCVL]]-CTu[[#This Row],[Taux Sub CD 37]]-CTu[[#This Row],[Taux Sub CD 49]]-CTu[[#This Row],[Taux Sub FPRNM]]-CTu[[#This Row],[Taux LIFE]]-CTu[[#This Row],[Taux Tiers]]-CTu[[#This Row],[Taux CO MO]]-CTu[[#This Row],[FCTVA]] -> 0.2 | CB41: =CTu[[#This Row],[Montant TTC 2026]]-(CTu[[#This Row],[Montant Sub AELB 2026]]+CTu[[#This Row],[Montant Sub RPDL 2026]]+CTu[[#This Row],[Montant Sub RCVL 2026]]+CTu[[#This Row],[Montant Sub CD 37 2026]]+CTu[[#This Row],[Montant Sub CD 49 2026]]+CTu[[#This Row],[Montant LIFE 2026]]+CTu[[#This Row],[Montant Sub FPRNM 2026]]+CTu[[#This Row],[Montant FCTVA 2026]]+CTu[[#This Row],[Tiers 2026]]+CTu[[#This Row],[Montant CO MO 2026]]) -> 8000 | CC41: =CTu[[#This Row],[Montant TTC 2027]]-(CTu[[#This Row],[Montant Sub AELB 2027]]+CTu[[#This Row],[Montant Sub RPDL 2027]]+CTu[[#This Row],[Montant Sub RCVL 2027]]+CTu[[#This Row],[Montant Sub CD 37 2027]]+CTu[[#This Row],[Montant Sub CD 49 2027]]+CTu[[#This Row],[Montant LIFE 2027]]+CTu[[#This Row],[Montant Sub FPRNM 2027]]+CTu[[#This Row],[Montant FCTVA 2027]]+CTu[[#This Row],[Tiers 2027]]+CTu[[#This Row],[Montant CO MO 2027]]) -> 0 | CD41: =CTu[[#This Row],[Montant TTC 2028]]-(CTu[[#This Row],[Montant Sub AELB 2028]]+CTu[[#This Row],[Montant Sub RPDL 2028]]+CTu[[#This Row],[Montant Sub RCVL 2028]]+CTu[[#This Row],[Montant Sub CD 37 2028]]+CTu[[#This Row],[Montant Sub CD 49 2028]]+CTu[[#This Row],[Montant LIFE 2028]]+CTu[[#This Row],[Montant Sub FPRNM 2028]]+CTu[[#This Row],[Montant FCTVA 2028]]+CTu[[#This Row],[Tiers 2028]]+CTu[[#This Row],[Montant CO MO 2028]]) -> 0 | CE41: =CTu[[#This Row],[Autofinancement 2026]]+CTu[[#This Row],[Autofinancement 2027]]+CTu[[#This Row],[Autofinancement 2028]] -> 8000
A42: Enjeu_A | B42: A_1 | C42: A12 | D42: COU | E42: Étude | F42: ATEau | G42: FCT | H42: =IF(CTu[[#This Row],[Montant HT 2026]]>0,"2026",IF(CTu[[#This Row],[Montant HT 2027]]>0,"2027",IF(CTu[[#This Row],[Montant HT 2028]]>0,"2028"))) -> 2027 | J42: 2 | K42: =CONCATENATE(CTu[[#This Row],[Objectifs opérationnels]],"_",VLOOKUP(CTu[[#This Row],[Compartiment]],compartiment[],2,)) -> A12_ETU | L42: =CONCATENATE(CTu[[#This Row],[Objectifs opérationnels]],"_",CTu[[#This Row],[Secteur/MO]],"_",VLOOKUP(CTu[[#This Row],[Compartiment]],compartiment[],2,FALSE),"_",CTu[[#This Row],[N° Action]]) -> A12_COU_ETU_2 | M42: =IF(CTu[[#This Row],[Année subv]]="","",CONCATENATE(CTu[[#This Row],[Objectifs opérationnels]],"_",CTu[[#This Row],[Secteur/MO]],"_",CTu[[#This Row],[Année subv]],"_",VLOOKUP(CTu[[#This Row],[Compartiment]],compartiment[],2),"_",CTu[[#This Row],[N° Action]])) ->  | N42: Etudes techniques et règlementaires - Couasnon amont | O42: Suite au diagnostic et à la concertation menée localement - Etude technique dimensionnée pour 5 km de CE environ | P42: SMBAA | S42: 1 | T42: RCH | V42: 50000 | X42: 50000 | Y42: 0 | Z42: 60000 | AA42: 0 | AB42: 60000 | AC42: 0.5 | AD42: =CTu[[#This Row],[Montant TTC 2026]]*CTu[[#This Row],[Taux Sub AELB]] -> 0 | AE42: =CTu[[#This Row],[Montant TTC 2027]]*CTu[[#This Row],[Taux Sub AELB]] -> 30000 | AF42: =CTu[[#This Row],[Montant TTC 2028]]*CTu[[#This Row],[Taux Sub AELB]] -> 0 | AG42: =CTu[[#This Row],[Montant Sub AELB 2026]]+CTu[[#This Row],[Montant Sub AELB 2027]]+CTu[[#This Row],[Montant Sub AELB 2028]] -> 30000 | AH42: 0.3 | AI42: =CTu[[#This Row],[Taux Sub RPDL]]*CTu[[#This Row],[Montant TTC 2026]] -> 0 | AJ42: =CTu[[#This Row],[Taux Sub RPDL]]*CTu[[#This Row],[Montant TTC 2027]] -> 18000 | AK42: =CTu[[#This Row],[Taux Sub RPDL]]*CTu[[#This Row],[Montant TTC 2028]] -> 0 | AL42: =CTu[[#This Row],[Montant Sub RPDL 2026]]+CTu[[#This Row],[Montant Sub RPDL 2027]]+CTu[[#This Row],[Montant Sub RPDL 2028]] -> 18000 | AN42: =CTu[[#This Row],[Taux Sub RCVL]]*CTu[[#This Row],[Montant TTC 2026]] -> 0 | AO42: =CTu[[#This Row],[Taux Sub RCVL]]*CTu[[#This Row],[Montant TTC 2027]] -> 0 | AP42: =CTu[[#This Row],[Taux Sub RCVL]]*CTu[[#This Row],[Montant TTC 2028]] -> 0 | AQ42: =CTu[[#This Row],[Montant Sub RCVL 2026]]+CTu[[#This Row],[Montant Sub RCVL 2027]]+CTu[[#This Row],[Montant Sub RCVL 2028]] -> 0 | AS42: =CTu[[#This Row],[Taux Sub CD 37]]*CTu[[#This Row],[Montant HT 2026]] -> 0 | AT42: =CTu[[#This Row],[Taux Sub CD 37]]*CTu[[#This Row],[Montant HT 2027]] -> 0 | AU42: =CTu[[#This Row],[Taux Sub CD 37]]*CTu[[#This Row],[Montant HT 2028]] -> 0 | AV42: =CTu[[#This Row],[Montant Sub CD 37 2026]]+CTu[[#This Row],[Montant Sub CD 37 2027]]+CTu[[#This Row],[Montant Sub CD 37 2028]] -> 0 | AX42: =CTu[[#This Row],[Taux Sub CD 49]]*CTu[[#This Row],[Montant TTC 2026]] -> 0 | AY42: =CTu[[#This Row],[Taux Sub CD 49]]*CTu[[#This Row],[Montant TTC 2027]] -> 0 | AZ42: =CTu[[#This Row],[Taux Sub CD 49]]*CTu[[#This Row],[Montant TTC 2028]] -> 0 | BA42: =CTu[[#This Row],[Montant Sub CD 49 2026]]+CTu[[#This Row],[Montant Sub CD 49 2027]]+CTu[[#This Row],[Montant Sub CD 49 2028]] -> 0 | BC42: =CTu[[#This Row],[Montant TTC 2026]]*CTu[[#This Row],[Taux LIFE]] -> 0 | BD42: =CTu[[#This Row],[Montant TTC 2027]]*CTu[[#This Row],[Taux LIFE]] -> 0 | BE42: =CTu[[#This Row],[Montant TTC 2028]]*CTu[[#This Row],[Taux LIFE]] -> 0 | BF42: =CTu[[#This Row],[Montant LIFE 2026]]+CTu[[#This Row],[Montant LIFE 2027]]+CTu[[#This Row],[Montant LIFE 2028]] -> 0 | BH42: =CTu[[#This Row],[Taux Sub FPRNM]]*CTu[[#This Row],[Montant HT 2026]] -> 0 | BI42: =CTu[[#This Row],[Taux Sub FPRNM]]*CTu[[#This Row],[Montant HT 2027]] -> 0 | BJ42: =CTu[[#This Row],[Taux Sub FPRNM]]*CTu[[#This Row],[Montant HT 2028]] -> 0 | BK42: =CTu[[#This Row],[Montant Sub FPRNM 2026]]+CTu[[#This Row],[Montant Sub FPRNM 2027]]+CTu[[#This Row],[Montant Sub FPRNM 2028]] -> 0 | BM42: =CTu[[#This Row],[FCTVA]]*CTu[[#This Row],[Montant TTC 2026]] -> 0 | BN42: =CTu[[#This Row],[FCTVA]]*CTu[[#This Row],[Montant TTC 2027]] -> 0 | BO42: =CTu[[#This Row],[FCTVA]]*CTu[[#This Row],[Montant TTC 2028]] -> 0 | BP42: =CTu[[#This Row],[Montant FCTVA 2026]]+CTu[[#This Row],[Montant FCTVA 2027]]+CTu[[#This Row],[Montant FCTVA 2028]] -> 0 | BR42: =CTu[[#This Row],[Taux CO MO]]*CTu[[#This Row],[Montant TTC 2026]] -> 0 | BS42: =CTu[[#This Row],[Taux CO MO]]*CTu[[#This Row],[Montant TTC 2027]] -> 0 | BT42: =CTu[[#This Row],[Taux CO MO]]*CTu[[#This Row],[Montant TTC 2028]] -> 0 | BU42: =CTu[[#This Row],[Montant CO MO 2026]]+CTu[[#This Row],[Montant CO MO 2027]]+CTu[[#This Row],[Montant CO MO 2028]] -> 0 | BW42: =CTu[[#This Row],[Taux Tiers]]*CTu[[#This Row],[Montant TTC 2026]] -> 0 | BX42: =CTu[[#This Row],[Taux Tiers]]*CTu[[#This Row],[Montant TTC 2027]] -> 0 | BY42: =CTu[[#This Row],[Taux Tiers]]*CTu[[#This Row],[Montant TTC 2028]] -> 0 | BZ42: =CTu[[#This Row],[Tiers 2026]]+CTu[[#This Row],[Tiers 2027]]+CTu[[#This Row],[Tiers 2028]] -> 0 | CA42: =100%-CTu[[#This Row],[Taux Sub AELB]]-CTu[[#This Row],[Taux Sub RPDL]]-CTu[[#This Row],[Taux Sub RCVL]]-CTu[[#This Row],[Taux Sub CD 37]]-CTu[[#This Row],[Taux Sub CD 49]]-CTu[[#This Row],[Taux Sub FPRNM]]-CTu[[#This Row],[Taux LIFE]]-CTu[[#This Row],[Taux Tiers]]-CTu[[#This Row],[Taux CO MO]]-CTu[[#This Row],[FCTVA]] -> 0.2 | CB42: =CTu[[#This Row],[Montant TTC 2026]]-(CTu[[#This Row],[Montant Sub AELB 2026]]+CTu[[#This Row],[Montant Sub RPDL 2026]]+CTu[[#This Row],[Montant Sub RCVL 2026]]+CTu[[#This Row],[Montant Sub CD 37 2026]]+CTu[[#This Row],[Montant Sub CD 49 2026]]+CTu[[#This Row],[Montant LIFE 2026]]+CTu[[#This Row],[Montant Sub FPRNM 2026]]+CTu[[#This Row],[Montant FCTVA 2026]]+CTu[[#This Row],[Tiers 2026]]+CTu[[#This Row],[Montant CO MO 2026]]) -> 0 | CC42: =CTu[[#This Row],[Montant TTC 2027]]-(CTu[[#This Row],[Montant Sub AELB 2027]]+CTu[[#This Row],[Montant Sub RPDL 2027]]+CTu[[#This Row],[Montant Sub RCVL 2027]]+CTu[[#This Row],[Montant Sub CD 37 2027]]+CTu[[#This Row],[Montant Sub CD 49 2027]]+CTu[[#This Row],[Montant LIFE 2027]]+CTu[[#This Row],[Montant Sub FPRNM 2027]]+CTu[[#This Row],[Montant FCTVA 2027]]+CTu[[#This Row],[Tiers 2027]]+CTu[[#This Row],[Montant CO MO 2027]]) -> 12000 | CD42: =CTu[[#This Row],[Montant TTC 2028]]-(CTu[[#This Row],[Montant Sub AELB 2028]]+CTu[[#This Row],[Montant Sub RPDL 2028]]+CTu[[#This Row],[Montant Sub RCVL 2028]]+CTu[[#This Row],[Montant Sub CD 37 2028]]+CTu[[#This Row],[Montant Sub CD 49 2028]]+CTu[[#This Row],[Montant LIFE 2028]]+CTu[[#This Row],[Montant Sub FPRNM 2028]]+CTu[[#This Row],[Montant FCTVA 2028]]+CTu[[#This Row],[Tiers 2028]]+CTu[[#This Row],[Montant CO MO 2028]]) -> 0 | CE42: =CTu[[#This Row],[Autofinancement 2026]]+CTu[[#This Row],[Autofinancement 2027]]+CTu[[#This Row],[Autofinancement 2028]] -> 12000
A43: Enjeu_A | B43: A_1 | C43: A12 | D43: LAT | E43: Étude | F43: ATEau | G43: FCT | H43: =IF(CTu[[#This Row],[Montant HT 2026]]>0,"2026",IF(CTu[[#This Row],[Montant HT 2027]]>0,"2027",IF(CTu[[#This Row],[Montant HT 2028]]>0,"2028"))) -> 2027 | J43: 1 | K43: =CONCATENATE(CTu[[#This Row],[Objectifs opérationnels]],"_",VLOOKUP(CTu[[#This Row],[Compartiment]],compartiment[],2,)) -> A12_ETU | L43: =CONCATENATE(CTu[[#This Row],[Objectifs opérationnels]],"_",CTu[[#This Row],[Secteur/MO]],"_",VLOOKUP(CTu[[#This Row],[Compartiment]],compartiment[],2,FALSE),"_",CTu[[#This Row],[N° Action]]) -> A12_LAT_ETU_1 | M43: =IF(CTu[[#This Row],[Année subv]]="","",CONCATENATE(CTu[[#This Row],[Objectifs opérationnels]],"_",CTu[[#This Row],[Secteur/MO]],"_",CTu[[#This Row],[Année subv]],"_",VLOOKUP(CTu[[#This Row],[Compartiment]],compartiment[],2),"_",CTu[[#This Row],[N° Action]])) ->  | N43: Etude pour la restauration des têtes de bassin versant sur la commission Lathan (Pont ménard, Ville au Fourrier, Douère, …) | O43: projet sur tête de cours d'eau Etude de prédiagnostic réalisé en interne 2026 sur 10 km - lancement d'une étude pour la phase AVP-PRO-DLE sur 3 km (13 € ml) Installer 1 piézos | P43: SMBAA | S43: 1 | T43: OB | V43: 40000 | X43: 40000 | Y43: 0 | Z43: 48000 | AA43: 0 | AB43: 48000 | AC43: 0.5 | AD43: =CTu[[#This Row],[Montant TTC 2026]]*CTu[[#This Row],[Taux Sub AELB]] -> 0 | AE43: =CTu[[#This Row],[Montant TTC 2027]]*CTu[[#This Row],[Taux Sub AELB]] -> 24000 | AF43: =CTu[[#This Row],[Montant TTC 2028]]*CTu[[#This Row],[Taux Sub AELB]] -> 0 | AG43: =CTu[[#This Row],[Montant Sub AELB 2026]]+CTu[[#This Row],[Montant Sub AELB 2027]]+CTu[[#This Row],[Montant Sub AELB 2028]] -> 24000 | AH43: 0.3 | AI43: =CTu[[#This Row],[Taux Sub RPDL]]*CTu[[#This Row],[Montant TTC 2026]] -> 0 | AJ43: =CTu[[#This Row],[Taux Sub RPDL]]*CTu[[#This Row],[Montant TTC 2027]] -> 14400 | AK43: =CTu[[#This Row],[Taux Sub RPDL]]*CTu[[#This Row],[Montant TTC 2028]] -> 0 | AL43: =CTu[[#This Row],[Montant Sub RPDL 2026]]+CTu[[#This Row],[Montant Sub RPDL 2027]]+CTu[[#This Row],[Montant Sub RPDL 2028]] -> 14400 | AN43: =CTu[[#This Row],[Taux Sub RCVL]]*CTu[[#This Row],[Montant TTC 2026]] -> 0 | AO43: =CTu[[#This Row],[Taux Sub RCVL]]*CTu[[#This Row],[Montant TTC 2027]] -> 0 | AP43: =CTu[[#This Row],[Taux Sub RCVL]]*CTu[[#This Row],[Montant TTC 2028]] -> 0 | AQ43: =CTu[[#This Row],[Montant Sub RCVL 2026]]+CTu[[#This Row],[Montant Sub RCVL 2027]]+CTu[[#This Row],[Montant Sub RCVL 2028]] -> 0 | AS43: =CTu[[#This Row],[Taux Sub CD 37]]*CTu[[#This Row],[Montant HT 2026]] -> 0 | AT43: =CTu[[#This Row],[Taux Sub CD 37]]*CTu[[#This Row],[Montant HT 2027]] -> 0 | AU43: =CTu[[#This Row],[Taux Sub CD 37]]*CTu[[#This Row],[Montant HT 2028]] -> 0 | AV43: =CTu[[#This Row],[Montant Sub CD 37 2026]]+CTu[[#This Row],[Montant Sub CD 37 2027]]+CTu[[#This Row],[Montant Sub CD 37 2028]] -> 0 | AX43: =CTu[[#This Row],[Taux Sub CD 49]]*CTu[[#This Row],[Montant TTC 2026]] -> 0 | AY43: =CTu[[#This Row],[Taux Sub CD 49]]*CTu[[#This Row],[Montant TTC 2027]] -> 0 | AZ43: =CTu[[#This Row],[Taux Sub CD 49]]*CTu[[#This Row],[Montant TTC 2028]] -> 0 | BA43: =CTu[[#This Row],[Montant Sub CD 49 2026]]+CTu[[#This Row],[Montant Sub CD 49 2027]]+CTu[[#This Row],[Montant Sub CD 49 2028]] -> 0 | BC43: =CTu[[#This Row],[Montant TTC 2026]]*CTu[[#This Row],[Taux LIFE]] -> 0 | BD43: =CTu[[#This Row],[Montant TTC 2027]]*CTu[[#This Row],[Taux LIFE]] -> 0 | BE43: =CTu[[#This Row],[Montant TTC 2028]]*CTu[[#This Row],[Taux LIFE]] -> 0 | BF43: =CTu[[#This Row],[Montant LIFE 2026]]+CTu[[#This Row],[Montant LIFE 2027]]+CTu[[#This Row],[Montant LIFE 2028]] -> 0 | BH43: =CTu[[#This Row],[Taux Sub FPRNM]]*CTu[[#This Row],[Montant HT 2026]] -> 0 | BI43: =CTu[[#This Row],[Taux Sub FPRNM]]*CTu[[#This Row],[Montant HT 2027]] -> 0 | BJ43: =CTu[[#This Row],[Taux Sub FPRNM]]*CTu[[#This Row],[Montant HT 2028]] -> 0 | BK43: =CTu[[#This Row],[Montant Sub FPRNM 2026]]+CTu[[#This Row],[Montant Sub FPRNM 2027]]+CTu[[#This Row],[Montant Sub FPRNM 2028]] -> 0 | BM43: =CTu[[#This Row],[FCTVA]]*CTu[[#This Row],[Montant TTC 2026]] -> 0 | BN43: =CTu[[#This Row],[FCTVA]]*CTu[[#This Row],[Montant TTC 2027]] -> 0 | BO43: =CTu[[#This Row],[FCTVA]]*CTu[[#This Row],[Montant TTC 2028]] -> 0 | BP43: =CTu[[#This Row],[Montant FCTVA 2026]]+CTu[[#This Row],[Montant FCTVA 2027]]+CTu[[#This Row],[Montant FCTVA 2028]] -> 0 | BR43: =CTu[[#This Row],[Taux CO MO]]*CTu[[#This Row],[Montant TTC 2026]] -> 0 | BS43: =CTu[[#This Row],[Taux CO MO]]*CTu[[#This Row],[Montant TTC 2027]] -> 0 | BT43: =CTu[[#This Row],[Taux CO MO]]*CTu[[#This Row],[Montant TTC 2028]] -> 0 | BU43: =CTu[[#This Row],[Montant CO MO 2026]]+CTu[[#This Row],[Montant CO MO 2027]]+CTu[[#This Row],[Montant CO MO 2028]] -> 0 | BW43: =CTu[[#This Row],[Taux Tiers]]*CTu[[#This Row],[Montant TTC 2026]] -> 0 | BX43: =CTu[[#This Row],[Taux Tiers]]*CTu[[#This Row],[Montant TTC 2027]] -> 0 | BY43: =CTu[[#This Row],[Taux Tiers]]*CTu[[#This Row],[Montant TTC 2028]] -> 0 | BZ43: =CTu[[#This Row],[Tiers 2026]]+CTu[[#This Row],[Tiers 2027]]+CTu[[#This Row],[Tiers 2028]] -> 0 | CA43: =100%-CTu[[#This Row],[Taux Sub AELB]]-CTu[[#This Row],[Taux Sub RPDL]]-CTu[[#This Row],[Taux Sub RCVL]]-CTu[[#This Row],[Taux Sub CD 37]]-CTu[[#This Row],[Taux Sub CD 49]]-CTu[[#This Row],[Taux Sub FPRNM]]-CTu[[#This Row],[Taux LIFE]]-CTu[[#This Row],[Taux Tiers]]-CTu[[#This Row],[Taux CO MO]]-CTu[[#This Row],[FCTVA]] -> 0.2 | CB43: =CTu[[#This Row],[Montant TTC 2026]]-(CTu[[#This Row],[Montant Sub AELB 2026]]+CTu[[#This Row],[Montant Sub RPDL 2026]]+CTu[[#This Row],[Montant Sub RCVL 2026]]+CTu[[#This Row],[Montant Sub CD 37 2026]]+CTu[[#This Row],[Montant Sub CD 49 2026]]+CTu[[#This Row],[Montant LIFE 2026]]+CTu[[#This Row],[Montant Sub FPRNM 2026]]+CTu[[#This Row],[Montant FCTVA 2026]]+CTu[[#This Row],[Tiers 2026]]+CTu[[#This Row],[Montant CO MO 2026]]) -> 0 | CC43: =CTu[[#This Row],[Montant TTC 2027]]-(CTu[[#This Row],[Montant Sub AELB 2027]]+CTu[[#This Row],[Montant Sub RPDL 2027]]+CTu[[#This Row],[Montant Sub RCVL 2027]]+CTu[[#This Row],[Montant Sub CD 37 2027]]+CTu[[#This Row],[Montant Sub CD 49 2027]]+CTu[[#This Row],[Montant LIFE 2027]]+CTu[[#This Row],[Montant Sub FPRNM 2027]]+CTu[[#This Row],[Montant FCTVA 2027]]+CTu[[#This Row],[Tiers 2027]]+CTu[[#This Row],[Montant CO MO 2027]]) -> 9600 | CD43: =CTu[[#This Row],[Montant TTC 2028]]-(CTu[[#This Row],[Montant Sub AELB 2028]]+CTu[[#This Row],[Montant Sub RPDL 2028]]+CTu[[#This Row],[Montant Sub RCVL 2028]]+CTu[[#This Row],[Montant Sub CD 37 2028]]+CTu[[#This Row],[Montant Sub CD 49 2028]]+CTu[[#This Row],[Montant LIFE 2028]]+CTu[[#This Row],[Montant Sub FPRNM 2028]]+CTu[[#This Row],[Montant FCTVA 2028]]+CTu[[#This Row],[Tiers 2028]]+CTu[[#This Row],[Montant CO MO 2028]]) -> 0 | CE43: =CTu[[#This Row],[Autofinancement 2026]]+CTu[[#This Row],[Autofinancement 2027]]+CTu[[#This Row],[Autofinancement 2028]] -> 9600
A44: Enjeu_A | B44: A_1 | C44: A12 | D44: LAT | E44: Étude | F44: ATEau | G44: FCT | H44: =IF(CTu[[#This Row],[Montant HT 2026]]>0,"2026",IF(CTu[[#This Row],[Montant HT 2027]]>0,"2027",IF(CTu[[#This Row],[Montant HT 2028]]>0,"2028"))) -> 2027 | J44: 2 | K44: =CONCATENATE(CTu[[#This Row],[Objectifs opérationnels]],"_",VLOOKUP(CTu[[#This Row],[Compartiment]],compartiment[],2,)) -> A12_ETU | L44: =CONCATENATE(CTu[[#This Row],[Objectifs opérationnels]],"_",CTu[[#This Row],[Secteur/MO]],"_",VLOOKUP(CTu[[#This Row],[Compartiment]],compartiment[],2,FALSE),"_",CTu[[#This Row],[N° Action]]) -> A12_LAT_ETU_2 | M44: =IF(CTu[[#This Row],[Année subv]]="","",CONCATENATE(CTu[[#This Row],[Objectifs opérationnels]],"_",CTu[[#This Row],[Secteur/MO]],"_",CTu[[#This Row],[Année subv]],"_",VLOOKUP(CTu[[#This Row],[Compartiment]],compartiment[],2),"_",CTu[[#This Row],[N° Action]])) ->  | N44: Etude pour la restauration du Graboteau aval, continuité écologique - connectivité zones humides et tourbières | O44: Suite aux travaux réalisés en 2021 sur la partie amont du Graboteau | P44: SMBAA | S44: 3 | T44: OB | V44: 20000 | X44: 20000 | Y44: 0 | Z44: 24000 | AA44: 0 | AB44: 24000 | AC44: 0.5 | AD44: =CTu[[#This Row],[Montant TTC 2026]]*CTu[[#This Row],[Taux Sub AELB]] -> 0 | AE44: =CTu[[#This Row],[Montant TTC 2027]]*CTu[[#This Row],[Taux Sub AELB]] -> 12000 | AF44: =CTu[[#This Row],[Montant TTC 2028]]*CTu[[#This Row],[Taux Sub AELB]] -> 0 | AG44: =CTu[[#This Row],[Montant Sub AELB 2026]]+CTu[[#This Row],[Montant Sub AELB 2027]]+CTu[[#This Row],[Montant Sub AELB 2028]] -> 12000 | AH44: 0.3 | AI44: =CTu[[#This Row],[Taux Sub RPDL]]*CTu[[#This Row],[Montant TTC 2026]] -> 0 | AJ44: =CTu[[#This Row],[Taux Sub RPDL]]*CTu[[#This Row],[Montant TTC 2027]] -> 7200 | AK44: =CTu[[#This Row],[Taux Sub RPDL]]*CTu[[#This Row],[Montant TTC 2028]] -> 0 | AL44: =CTu[[#This Row],[Montant Sub RPDL 2026]]+CTu[[#This Row],[Montant Sub RPDL 2027]]+CTu[[#This Row],[Montant Sub RPDL 2028]] -> 7200 | AN44: =CTu[[#This Row],[Taux Sub RCVL]]*CTu[[#This Row],[Montant TTC 2026]] -> 0 | AO44: =CTu[[#This Row],[Taux Sub RCVL]]*CTu[[#This Row],[Montant TTC 2027]] -> 0 | AP44: =CTu[[#This Row],[Taux Sub RCVL]]*CTu[[#This Row],[Montant TTC 2028]] -> 0 | AQ44: =CTu[[#This Row],[Montant Sub RCVL 2026]]+CTu[[#This Row],[Montant Sub RCVL 2027]]+CTu[[#This Row],[Montant Sub RCVL 2028]] -> 0 | AS44: =CTu[[#This Row],[Taux Sub CD 37]]*CTu[[#This Row],[Montant HT 2026]] -> 0 | AT44: =CTu[[#This Row],[Taux Sub CD 37]]*CTu[[#This Row],[Montant HT 2027]] -> 0 | AU44: =CTu[[#This Row],[Taux Sub CD 37]]*CTu[[#This Row],[Montant HT 2028]] -> 0 | AV44: =CTu[[#This Row],[Montant Sub CD 37 2026]]+CTu[[#This Row],[Montant Sub CD 37 2027]]+CTu[[#This Row],[Montant Sub CD 37 2028]] -> 0 | AX44: =CTu[[#This Row],[Taux Sub CD 49]]*CTu[[#This Row],[Montant TTC 2026]] -> 0 | AY44: =CTu[[#This Row],[Taux Sub CD 49]]*CTu[[#This Row],[Montant TTC 2027]] -> 0 | AZ44: =CTu[[#This Row],[Taux Sub CD 49]]*CTu[[#This Row],[Montant TTC 2028]] -> 0 | BA44: =CTu[[#This Row],[Montant Sub CD 49 2026]]+CTu[[#This Row],[Montant Sub CD 49 2027]]+CTu[[#This Row],[Montant Sub CD 49 2028]] -> 0 | BC44: =CTu[[#This Row],[Montant TTC 2026]]*CTu[[#This Row],[Taux LIFE]] -> 0 | BD44: =CTu[[#This Row],[Montant TTC 2027]]*CTu[[#This Row],[Taux LIFE]] -> 0 | BE44: =CTu[[#This Row],[Montant TTC 2028]]*CTu[[#This Row],[Taux LIFE]] -> 0 | BF44: =CTu[[#This Row],[Montant LIFE 2026]]+CTu[[#This Row],[Montant LIFE 2027]]+CTu[[#This Row],[Montant LIFE 2028]] -> 0 | BH44: =CTu[[#This Row],[Taux Sub FPRNM]]*CTu[[#This Row],[Montant HT 2026]] -> 0 | BI44: =CTu[[#This Row],[Taux Sub FPRNM]]*CTu[[#This Row],[Montant HT 2027]] -> 0 | BJ44: =CTu[[#This Row],[Taux Sub FPRNM]]*CTu[[#This Row],[Montant HT 2028]] -> 0 | BK44: =CTu[[#This Row],[Montant Sub FPRNM 2026]]+CTu[[#This Row],[Montant Sub FPRNM 2027]]+CTu[[#This Row],[Montant Sub FPRNM 2028]] -> 0 | BM44: =CTu[[#This Row],[FCTVA]]*CTu[[#This Row],[Montant TTC 2026]] -> 0 | BN44: =CTu[[#This Row],[FCTVA]]*CTu[[#This Row],[Montant TTC 2027]] -> 0 | BO44: =CTu[[#This Row],[FCTVA]]*CTu[[#This Row],[Montant TTC 2028]] -> 0 | BP44: =CTu[[#This Row],[Montant FCTVA 2026]]+CTu[[#This Row],[Montant FCTVA 2027]]+CTu[[#This Row],[Montant FCTVA 2028]] -> 0 | BR44: =CTu[[#This Row],[Taux CO MO]]*CTu[[#This Row],[Montant TTC 2026]] -> 0 | BS44: =CTu[[#This Row],[Taux CO MO]]*CTu[[#This Row],[Montant TTC 2027]] -> 0 | BT44: =CTu[[#This Row],[Taux CO MO]]*CTu[[#This Row],[Montant TTC 2028]] -> 0 | BU44: =CTu[[#This Row],[Montant CO MO 2026]]+CTu[[#This Row],[Montant CO MO 2027]]+CTu[[#This Row],[Montant CO MO 2028]] -> 0 | BW44: =CTu[[#This Row],[Taux Tiers]]*CTu[[#This Row],[Montant TTC 2026]] -> 0 | BX44: =CTu[[#This Row],[Taux Tiers]]*CTu[[#This Row],[Montant TTC 2027]] -> 0 | BY44: =CTu[[#This Row],[Taux Tiers]]*CTu[[#This Row],[Montant TTC 2028]] -> 0 | BZ44: =CTu[[#This Row],[Tiers 2026]]+CTu[[#This Row],[Tiers 2027]]+CTu[[#This Row],[Tiers 2028]] -> 0 | CA44: =100%-CTu[[#This Row],[Taux Sub AELB]]-CTu[[#This Row],[Taux Sub RPDL]]-CTu[[#This Row],[Taux Sub RCVL]]-CTu[[#This Row],[Taux Sub CD 37]]-CTu[[#This Row],[Taux Sub CD 49]]-CTu[[#This Row],[Taux Sub FPRNM]]-CTu[[#This Row],[Taux LIFE]]-CTu[[#This Row],[Taux Tiers]]-CTu[[#This Row],[Taux CO MO]]-CTu[[#This Row],[FCTVA]] -> 0.2 | CB44: =CTu[[#This Row],[Montant TTC 2026]]-(CTu[[#This Row],[Montant Sub AELB 2026]]+CTu[[#This Row],[Montant Sub RPDL 2026]]+CTu[[#This Row],[Montant Sub RCVL 2026]]+CTu[[#This Row],[Montant Sub CD 37 2026]]+CTu[[#This Row],[Montant Sub CD 49 2026]]+CTu[[#This Row],[Montant LIFE 2026]]+CTu[[#This Row],[Montant Sub FPRNM 2026]]+CTu[[#This Row],[Montant FCTVA 2026]]+CTu[[#This Row],[Tiers 2026]]+CTu[[#This Row],[Montant CO MO 2026]]) -> 0 | CC44: =CTu[[#This Row],[Montant TTC 2027]]-(CTu[[#This Row],[Montant Sub AELB 2027]]+CTu[[#This Row],[Montant Sub RPDL 2027]]+CTu[[#This Row],[Montant Sub RCVL 2027]]+CTu[[#This Row],[Montant Sub CD 37 2027]]+CTu[[#This Row],[Montant Sub CD 49 2027]]+CTu[[#This Row],[Montant LIFE 2027]]+CTu[[#This Row],[Montant Sub FPRNM 2027]]+CTu[[#This Row],[Montant FCTVA 2027]]+CTu[[#This Row],[Tiers 2027]]+CTu[[#This Row],[Montant CO MO 2027]]) -> 4800 | CD44: =CTu[[#This Row],[Montant TTC 2028]]-(CTu[[#This Row],[Montant Sub AELB 2028]]+CTu[[#This Row],[Montant Sub RPDL 2028]]+CTu[[#This Row],[Montant Sub RCVL 2028]]+CTu[[#This Row],[Montant Sub CD 37 2028]]+CTu[[#This Row],[Montant Sub CD 49 2028]]+CTu[[#This Row],[Montant LIFE 2028]]+CTu[[#This Row],[Montant Sub FPRNM 2028]]+CTu[[#This Row],[Montant FCTVA 2028]]+CTu[[#This Row],[Tiers 2028]]+CTu[[#This Row],[Montant CO MO 2028]]) -> 0 | CE44: =CTu[[#This Row],[Autofinancement 2026]]+CTu[[#This Row],[Autofinancement 2027]]+CTu[[#This Row],[Autofinancement 2028]] -> 4800
A45: Enjeu_A | B45: A_1 | C45: A12 | D45: TOUR | E45: Étude | F45: ATEau | G45: FCT | H45: =IF(CTu[[#This Row],[Montant HT 2026]]>0,"2026",IF(CTu[[#This Row],[Montant HT 2027]]>0,"2027",IF(CTu[[#This Row],[Montant HT 2028]]>0,"2028"))) -> 2027 | J45: 1 | K45: =CONCATENATE(CTu[[#This Row],[Objectifs opérationnels]],"_",VLOOKUP(CTu[[#This Row],[Compartiment]],compartiment[],2,)) -> A12_ETU | L45: =CONCATENATE(CTu[[#This Row],[Objectifs opérationnels]],"_",CTu[[#This Row],[Secteur/MO]],"_",VLOOKUP(CTu[[#This Row],[Compartiment]],compartiment[],2,FALSE),"_",CTu[[#This Row],[N° Action]]) -> A12_TOUR_ETU_1 | M45: =IF(CTu[[#This Row],[Année subv]]="","",CONCATENATE(CTu[[#This Row],[Objectifs opérationnels]],"_",CTu[[#This Row],[Secteur/MO]],"_",CTu[[#This Row],[Année subv]],"_",VLOOKUP(CTu[[#This Row],[Compartiment]],compartiment[],2),"_",CTu[[#This Row],[N° Action]])) ->  | N45: Changeon - étude des restauration écologique et reconquête des champs d'expansion de crue | O45: De la Briche à l'aval du bourg de Gizeux Linéaire à afiner et stratégie à discuter Sonde piezo à ajouter 4 KM | P45: SMBAA | S45: 1 | T45: JBR | V45: 43333.33333 | X45: 43333.33333 | Y45: 0 | Z45: 52000 | AA45: 0 | AB45: 52000 | AC45: 0.5 | AD45: =CTu[[#This Row],[Montant TTC 2026]]*CTu[[#This Row],[Taux Sub AELB]] -> 0 | AE45: =CTu[[#This Row],[Montant TTC 2027]]*CTu[[#This Row],[Taux Sub AELB]] -> 26000 | AF45: =CTu[[#This Row],[Montant TTC 2028]]*CTu[[#This Row],[Taux Sub AELB]] -> 0 | AG45: =CTu[[#This Row],[Montant Sub AELB 2026]]+CTu[[#This Row],[Montant Sub AELB 2027]]+CTu[[#This Row],[Montant Sub AELB 2028]] -> 26000 | AI45: =CTu[[#This Row],[Taux Sub RPDL]]*CTu[[#This Row],[Montant TTC 2026]] -> 0 | AJ45: =CTu[[#This Row],[Taux Sub RPDL]]*CTu[[#This Row],[Montant TTC 2027]] -> 0 | AK45: =CTu[[#This Row],[Taux Sub RPDL]]*CTu[[#This Row],[Montant TTC 2028]] -> 0 | AL45: =CTu[[#This Row],[Montant Sub RPDL 2026]]+CTu[[#This Row],[Montant Sub RPDL 2027]]+CTu[[#This Row],[Montant Sub RPDL 2028]] -> 0 | AN45: =CTu[[#This Row],[Taux Sub RCVL]]*CTu[[#This Row],[Montant TTC 2026]] -> 0 | AO45: =CTu[[#This Row],[Taux Sub RCVL]]*CTu[[#This Row],[Montant TTC 2027]] -> 0 | AP45: =CTu[[#This Row],[Taux Sub RCVL]]*CTu[[#This Row],[Montant TTC 2028]] -> 0 | AQ45: =CTu[[#This Row],[Montant Sub RCVL 2026]]+CTu[[#This Row],[Montant Sub RCVL 2027]]+CTu[[#This Row],[Montant Sub RCVL 2028]] -> 0 | AR45: 0.3 | AS45: =CTu[[#This Row],[Taux Sub CD 37]]*CTu[[#This Row],[Montant HT 2026]] -> 0 | AT45: =CTu[[#This Row],[Taux Sub CD 37]]*CTu[[#This Row],[Montant HT 2027]] -> 13000 | AU45: =CTu[[#This Row],[Taux Sub CD 37]]*CTu[[#This Row],[Montant HT 2028]] -> 0 | AV45: =CTu[[#This Row],[Montant Sub CD 37 2026]]+CTu[[#This Row],[Montant Sub CD 37 2027]]+CTu[[#This Row],[Montant Sub CD 37 2028]] -> 13000 | AX45: =CTu[[#This Row],[Taux Sub CD 49]]*CTu[[#This Row],[Montant TTC 2026]] -> 0 | AY45: =CTu[[#This Row],[Taux Sub CD 49]]*CTu[[#This Row],[Montant TTC 2027]] -> 0 | AZ45: =CTu[[#This Row],[Taux Sub CD 49]]*CTu[[#This Row],[Montant TTC 2028]] -> 0 | BA45: =CTu[[#This Row],[Montant Sub CD 49 2026]]+CTu[[#This Row],[Montant Sub CD 49 2027]]+CTu[[#This Row],[Montant Sub CD 49 2028]] -> 0 | BC45: =CTu[[#This Row],[Montant TTC 2026]]*CTu[[#This Row],[Taux LIFE]] -> 0 | BD45: =CTu[[#This Row],[Montant TTC 2027]]*CTu[[#This Row],[Taux LIFE]] -> 0 | BE45: =CTu[[#This Row],[Montant TTC 2028]]*CTu[[#This Row],[Taux LIFE]] -> 0 | BF45: =CTu[[#This Row],[Montant LIFE 2026]]+CTu[[#This Row],[Montant LIFE 2027]]+CTu[[#This Row],[Montant LIFE 2028]] -> 0 | BH45: =CTu[[#This Row],[Taux Sub FPRNM]]*CTu[[#This Row],[Montant HT 2026]] -> 0 | BI45: =CTu[[#This Row],[Taux Sub FPRNM]]*CTu[[#This Row],[Montant HT 2027]] -> 0 | BJ45: =CTu[[#This Row],[Taux Sub FPRNM]]*CTu[[#This Row],[Montant HT 2028]] -> 0 | BK45: =CTu[[#This Row],[Montant Sub FPRNM 2026]]+CTu[[#This Row],[Montant Sub FPRNM 2027]]+CTu[[#This Row],[Montant Sub FPRNM 2028]] -> 0 | BM45: =CTu[[#This Row],[FCTVA]]*CTu[[#This Row],[Montant TTC 2026]] -> 0 | BN45: =CTu[[#This Row],[FCTVA]]*CTu[[#This Row],[Montant TTC 2027]] -> 0 | BO45: =CTu[[#This Row],[FCTVA]]*CTu[[#This Row],[Montant TTC 2028]] -> 0 | BP45: =CTu[[#This Row],[Montant FCTVA 2026]]+CTu[[#This Row],[Montant FCTVA 2027]]+CTu[[#This Row],[Montant FCTVA 2028]] -> 0 | BR45: =CTu[[#This Row],[Taux CO MO]]*CTu[[#This Row],[Montant TTC 2026]] -> 0 | BS45: =CTu[[#This Row],[Taux CO MO]]*CTu[[#This Row],[Montant TTC 2027]] -> 0 | BT45: =CTu[[#This Row],[Taux CO MO]]*CTu[[#This Row],[Montant TTC 2028]] -> 0 | BU45: =CTu[[#This Row],[Montant CO MO 2026]]+CTu[[#This Row],[Montant CO MO 2027]]+CTu[[#This Row],[Montant CO MO 2028]] -> 0 | BW45: =CTu[[#This Row],[Taux Tiers]]*CTu[[#This Row],[Montant TTC 2026]] -> 0 | BX45: =CTu[[#This Row],[Taux Tiers]]*CTu[[#This Row],[Montant TTC 2027]] -> 0 | BY45: =CTu[[#This Row],[Taux Tiers]]*CTu[[#This Row],[Montant TTC 2028]] -> 0 | BZ45: =CTu[[#This Row],[Tiers 2026]]+CTu[[#This Row],[Tiers 2027]]+CTu[[#This Row],[Tiers 2028]] -> 0 | CA45: =100%-CTu[[#This Row],[Taux Sub AELB]]-CTu[[#This Row],[Taux Sub RPDL]]-CTu[[#This Row],[Taux Sub RCVL]]-CTu[[#This Row],[Taux Sub CD 37]]-CTu[[#This Row],[Taux Sub CD 49]]-CTu[[#This Row],[Taux Sub FPRNM]]-CTu[[#This Row],[Taux LIFE]]-CTu[[#This Row],[Taux Tiers]]-CTu[[#This Row],[Taux CO MO]]-CTu[[#This Row],[FCTVA]] -> 0.2 | CB45: =CTu[[#This Row],[Montant TTC 2026]]-(CTu[[#This Row],[Montant Sub AELB 2026]]+CTu[[#This Row],[Montant Sub RPDL 2026]]+CTu[[#This Row],[Montant Sub RCVL 2026]]+CTu[[#This Row],[Montant Sub CD 37 2026]]+CTu[[#This Row],[Montant Sub CD 49 2026]]+CTu[[#This Row],[Montant LIFE 2026]]+CTu[[#This Row],[Montant Sub FPRNM 2026]]+CTu[[#This Row],[Montant FCTVA 2026]]+CTu[[#This Row],[Tiers 2026]]+CTu[[#This Row],[Montant CO MO 2026]]) -> 0 | CC45: =CTu[[#This Row],[Montant TTC 2027]]-(CTu[[#This Row],[Montant Sub AELB 2027]]+CTu[[#This Row],[Montant Sub RPDL 2027]]+CTu[[#This Row],[Montant Sub RCVL 2027]]+CTu[[#This Row],[Montant Sub CD 37 2027]]+CTu[[#This Row],[Montant Sub CD 49 2027]]+CTu[[#This Row],[Montant LIFE 2027]]+CTu[[#This Row],[Montant Sub FPRNM 2027]]+CTu[[#This Row],[Montant FCTVA 2027]]+CTu[[#This Row],[Tiers 2027]]+CTu[[#This Row],[Montant CO MO 2027]]) -> 13000 | CD45: =CTu[[#This Row],[Montant TTC 2028]]-(CTu[[#This Row],[Montant Sub AELB 2028]]+CTu[[#This Row],[Montant Sub RPDL 2028]]+CTu[[#This Row],[Montant Sub RCVL 2028]]+CTu[[#This Row],[Montant Sub CD 37 2028]]+CTu[[#This Row],[Montant Sub CD 49 2028]]+CTu[[#This Row],[Montant LIFE 2028]]+CTu[[#This Row],[Montant Sub FPRNM 2028]]+CTu[[#This Row],[Montant FCTVA 2028]]+CTu[[#This Row],[Tiers 2028]]+CTu[[#This Row],[Montant CO MO 2028]]) -> 0 | CE45: =CTu[[#This Row],[Autofinancement 2026]]+CTu[[#This Row],[Autofinancement 2027]]+CTu[[#This Row],[Autofinancement 2028]] -> 13000
A46: Enjeu_A | B46: A_1 | C46: A13 | D46: AUT | E46: Lit mineur | F46: ATEau | G46: FCT | H46: =IF(CTu[[#This Row],[Montant HT 2026]]>0,"2026",IF(CTu[[#This Row],[Montant HT 2027]]>0,"2027",IF(CTu[[#This Row],[Montant HT 2028]]>0,"2028"))) -> 2028 | J46: 1 | K46: =CONCATENATE(CTu[[#This Row],[Objectifs opérationnels]],"_",VLOOKUP(CTu[[#This Row],[Compartiment]],compartiment[],2,)) -> A13_LMI | L46: =CONCATENATE(CTu[[#This Row],[Objectifs opérationnels]],"_",CTu[[#This Row],[Secteur/MO]],"_",VLOOKUP(CTu[[#This Row],[Compartiment]],compartiment[],2,FALSE),"_",CTu[[#This Row],[N° Action]]) -> A13_AUT_LMI_1 | M46: =IF(CTu[[#This Row],[Année subv]]="","",CONCATENATE(CTu[[#This Row],[Objectifs opérationnels]],"_",CTu[[#This Row],[Secteur/MO]],"_",CTu[[#This Row],[Année subv]],"_",VLOOKUP(CTu[[#This Row],[Compartiment]],compartiment[],2),"_",CTu[[#This Row],[N° Action]])) ->  | N46: Travaux de restauration de la tête de bassin versant du ruisseau des Loges | O46: Lit mineur / Plan d'eau sur cours / ZH | P46: SMBAA | S46: 1 | T46: RC | W46: 68958.33333 | X46: 68958.33333 | Y46: 0 | Z46: 0 | AA46: 82750 | AB46: 82750 | AC46: 0.5 | AD46: =CTu[[#This Row],[Montant TTC 2026]]*CTu[[#This Row],[Taux Sub AELB]] -> 0 | AE46: =CTu[[#This Row],[Montant TTC 2027]]*CTu[[#This Row],[Taux Sub AELB]] -> 0 | AF46: =CTu[[#This Row],[Montant TTC 2028]]*CTu[[#This Row],[Taux Sub AELB]] -> 41375 | AG46: =CTu[[#This Row],[Montant Sub AELB 2026]]+CTu[[#This Row],[Montant Sub AELB 2027]]+CTu[[#This Row],[Montant Sub AELB 2028]] -> 41375 | AH46: 0.3 | AI46: =CTu[[#This Row],[Taux Sub RPDL]]*CTu[[#This Row],[Montant TTC 2026]] -> 0 | AJ46: =CTu[[#This Row],[Taux Sub RPDL]]*CTu[[#This Row],[Montant TTC 2027]] -> 0 | AK46: =CTu[[#This Row],[Taux Sub RPDL]]*CTu[[#This Row],[Montant TTC 2028]] -> 24825 | AL46: =CTu[[#This Row],[Montant Sub RPDL 2026]]+CTu[[#This Row],[Montant Sub RPDL 2027]]+CTu[[#This Row],[Montant Sub RPDL 2028]] -> 24825 | AN46: =CTu[[#This Row],[Taux Sub RCVL]]*CTu[[#This Row],[Montant TTC 2026]] -> 0 | AO46: =CTu[[#This Row],[Taux Sub RCVL]]*CTu[[#This Row],[Montant TTC 2027]] -> 0 | AP46: =CTu[[#This Row],[Taux Sub RCVL]]*CTu[[#This Row],[Montant TTC 2028]] -> 0 | AQ46: =CTu[[#This Row],[Montant Sub RCVL 2026]]+CTu[[#This Row],[Montant Sub RCVL 2027]]+CTu[[#This Row],[Montant Sub RCVL 2028]] -> 0 | AS46: =CTu[[#This Row],[Taux Sub CD 37]]*CTu[[#This Row],[Montant HT 2026]] -> 0 | AT46: =CTu[[#This Row],[Taux Sub CD 37]]*CTu[[#This Row],[Montant HT 2027]] -> 0 | AU46: =CTu[[#This Row],[Taux Sub CD 37]]*CTu[[#This Row],[Montant HT 2028]] -> 0 | AV46: =CTu[[#This Row],[Montant Sub CD 37 2026]]+CTu[[#This Row],[Montant Sub CD 37 2027]]+CTu[[#This Row],[Montant Sub CD 37 2028]] -> 0 | AX46: =CTu[[#This Row],[Taux Sub CD 49]]*CTu[[#This Row],[Montant TTC 2026]] -> 0 | AY46: =CTu[[#This Row],[Taux Sub CD 49]]*CTu[[#This Row],[Montant TTC 2027]] -> 0 | AZ46: =CTu[[#This Row],[Taux Sub CD 49]]*CTu[[#This Row],[Montant TTC 2028]] -> 0 | BA46: =CTu[[#This Row],[Montant Sub CD 49 2026]]+CTu[[#This Row],[Montant Sub CD 49 2027]]+CTu[[#This Row],[Montant Sub CD 49 2028]] -> 0 | BC46: =CTu[[#This Row],[Montant TTC 2026]]*CTu[[#This Row],[Taux LIFE]] -> 0 | BD46: =CTu[[#This Row],[Montant TTC 2027]]*CTu[[#This Row],[Taux LIFE]] -> 0 | BE46: =CTu[[#This Row],[Montant TTC 2028]]*CTu[[#This Row],[Taux LIFE]] -> 0 | BF46: =CTu[[#This Row],[Montant LIFE 2026]]+CTu[[#This Row],[Montant LIFE 2027]]+CTu[[#This Row],[Montant LIFE 2028]] -> 0 | BH46: =CTu[[#This Row],[Taux Sub FPRNM]]*CTu[[#This Row],[Montant HT 2026]] -> 0 | BI46: =CTu[[#This Row],[Taux Sub FPRNM]]*CTu[[#This Row],[Montant HT 2027]] -> 0 | BJ46: =CTu[[#This Row],[Taux Sub FPRNM]]*CTu[[#This Row],[Montant HT 2028]] -> 0 | BK46: =CTu[[#This Row],[Montant Sub FPRNM 2026]]+CTu[[#This Row],[Montant Sub FPRNM 2027]]+CTu[[#This Row],[Montant Sub FPRNM 2028]] -> 0 | BM46: =CTu[[#This Row],[FCTVA]]*CTu[[#This Row],[Montant TTC 2026]] -> 0 | BN46: =CTu[[#This Row],[FCTVA]]*CTu[[#This Row],[Montant TTC 2027]] -> 0 | BO46: =CTu[[#This Row],[FCTVA]]*CTu[[#This Row],[Montant TTC 2028]] -> 0 | BP46: =CTu[[#This Row],[Montant FCTVA 2026]]+CTu[[#This Row],[Montant FCTVA 2027]]+CTu[[#This Row],[Montant FCTVA 2028]] -> 0 | BR46: =CTu[[#This Row],[Taux CO MO]]*CTu[[#This Row],[Montant TTC 2026]] -> 0 | BS46: =CTu[[#This Row],[Taux CO MO]]*CTu[[#This Row],[Montant TTC 2027]] -> 0 | BT46: =CTu[[#This Row],[Taux CO MO]]*CTu[[#This Row],[Montant TTC 2028]] -> 0 | BU46: =CTu[[#This Row],[Montant CO MO 2026]]+CTu[[#This Row],[Montant CO MO 2027]]+CTu[[#This Row],[Montant CO MO 2028]] -> 0 | BW46: =CTu[[#This Row],[Taux Tiers]]*CTu[[#This Row],[Montant TTC 2026]] -> 0 | BX46: =CTu[[#This Row],[Taux Tiers]]*CTu[[#This Row],[Montant TTC 2027]] -> 0 | BY46: =CTu[[#This Row],[Taux Tiers]]*CTu[[#This Row],[Montant TTC 2028]] -> 0 | BZ46: =CTu[[#This Row],[Tiers 2026]]+CTu[[#This Row],[Tiers 2027]]+CTu[[#This Row],[Tiers 2028]] -> 0 | CA46: =100%-CTu[[#This Row],[Taux Sub AELB]]-CTu[[#This Row],[Taux Sub RPDL]]-CTu[[#This Row],[Taux Sub RCVL]]-CTu[[#This Row],[Taux Sub CD 37]]-CTu[[#This Row],[Taux Sub CD 49]]-CTu[[#This Row],[Taux Sub FPRNM]]-CTu[[#This Row],[Taux LIFE]]-CTu[[#This Row],[Taux Tiers]]-CTu[[#This Row],[Taux CO MO]]-CTu[[#This Row],[FCTVA]] -> 0.2 | CB46: =CTu[[#This Row],[Montant TTC 2026]]-(CTu[[#This Row],[Montant Sub AELB 2026]]+CTu[[#This Row],[Montant Sub RPDL 2026]]+CTu[[#This Row],[Montant Sub RCVL 2026]]+CTu[[#This Row],[Montant Sub CD 37 2026]]+CTu[[#This Row],[Montant Sub CD 49 2026]]+CTu[[#This Row],[Montant LIFE 2026]]+CTu[[#This Row],[Montant Sub FPRNM 2026]]+CTu[[#This Row],[Montant FCTVA 2026]]+CTu[[#This Row],[Tiers 2026]]+CTu[[#This Row],[Montant CO MO 2026]]) -> 0 | CC46: =CTu[[#This Row],[Montant TTC 2027]]-(CTu[[#This Row],[Montant Sub AELB 2027]]+CTu[[#This Row],[Montant Sub RPDL 2027]]+CTu[[#This Row],[Montant Sub RCVL 2027]]+CTu[[#This Row],[Montant Sub CD 37 2027]]+CTu[[#This Row],[Montant Sub CD 49 2027]]+CTu[[#This Row],[Montant LIFE 2027]]+CTu[[#This Row],[Montant Sub FPRNM 2027]]+CTu[[#This Row],[Montant FCTVA 2027]]+CTu[[#This Row],[Tiers 2027]]+CTu[[#This Row],[Montant CO MO 2027]]) -> 0 | CD46: =CTu[[#This Row],[Montant TTC 2028]]-(CTu[[#This Row],[Montant Sub AELB 2028]]+CTu[[#This Row],[Montant Sub RPDL 2028]]+CTu[[#This Row],[Montant Sub RCVL 2028]]+CTu[[#This Row],[Montant Sub CD 37 2028]]+CTu[[#This Row],[Montant Sub CD 49 2028]]+CTu[[#This Row],[Montant LIFE 2028]]+CTu[[#This Row],[Montant Sub FPRNM 2028]]+CTu[[#This Row],[Montant FCTVA 2028]]+CTu[[#This Row],[Tiers 2028]]+CTu[[#This Row],[Montant CO MO 2028]]) -> 16550 | CE46: =CTu[[#This Row],[Autofinancement 2026]]+CTu[[#This Row],[Autofinancement 2027]]+CTu[[#This Row],[Autofinancement 2028]] -> 16550
A47: Enjeu_A | B47: A_1 | C47: A13 | D47: COU | E47: Lit mineur | F47: ATEau | G47: FCT | H47: =IF(CTu[[#This Row],[Montant HT 2026]]>0,"2026",IF(CTu[[#This Row],[Montant HT 2027]]>0,"2027",IF(CTu[[#This Row],[Montant HT 2028]]>0,"2028"))) -> 2028 | J47: 1 | K47: =CONCATENATE(CTu[[#This Row],[Objectifs opérationnels]],"_",VLOOKUP(CTu[[#This Row],[Compartiment]],compartiment[],2,)) -> A13_LMI | L47: =CONCATENATE(CTu[[#This Row],[Objectifs opérationnels]],"_",CTu[[#This Row],[Secteur/MO]],"_",VLOOKUP(CTu[[#This Row],[Compartiment]],compartiment[],2,FALSE),"_",CTu[[#This Row],[N° Action]]) -> A13_COU_LMI_1 | M47: =IF(CTu[[#This Row],[Année subv]]="","",CONCATENATE(CTu[[#This Row],[Objectifs opérationnels]],"_",CTu[[#This Row],[Secteur/MO]],"_",CTu[[#This Row],[Année subv]],"_",VLOOKUP(CTu[[#This Row],[Compartiment]],compartiment[],2),"_",CTu[[#This Row],[N° Action]])) ->  | N47: Travaux de restauration de cours d'eau et recharge des nappes phréatiques | O47: Masse d'eau du Couasnon amont | P47: SMBAA | S47: 2 | T47: RCH | W47: 208333.3333 | X47: 208333.3333 | Y47: 0 | Z47: 0 | AA47: 250000 | AB47: 250000 | AC47: 0.5 | AD47: =CTu[[#This Row],[Montant TTC 2026]]*CTu[[#This Row],[Taux Sub AELB]] -> 0 | AE47: =CTu[[#This Row],[Montant TTC 2027]]*CTu[[#This Row],[Taux Sub AELB]] -> 0 | AF47: =CTu[[#This Row],[Montant TTC 2028]]*CTu[[#This Row],[Taux Sub AELB]] -> 125000 | AG47: =CTu[[#This Row],[Montant Sub AELB 2026]]+CTu[[#This Row],[Montant Sub AELB 2027]]+CTu[[#This Row],[Montant Sub AELB 2028]] -> 125000 | AH47: 0.3 | AI47: =CTu[[#This Row],[Taux Sub RPDL]]*CTu[[#This Row],[Montant TTC 2026]] -> 0 | AJ47: =CTu[[#This Row],[Taux Sub RPDL]]*CTu[[#This Row],[Montant TTC 2027]] -> 0 | AK47: =CTu[[#This Row],[Taux Sub RPDL]]*CTu[[#This Row],[Montant TTC 2028]] -> 75000 | AL47: =CTu[[#This Row],[Montant Sub RPDL 2026]]+CTu[[#This Row],[Montant Sub RPDL 2027]]+CTu[[#This Row],[Montant Sub RPDL 2028]] -> 75000 | AN47: =CTu[[#This Row],[Taux Sub RCVL]]*CTu[[#This Row],[Montant TTC 2026]] -> 0 | AO47: =CTu[[#This Row],[Taux Sub RCVL]]*CTu[[#This Row],[Montant TTC 2027]] -> 0 | AP47: =CTu[[#This Row],[Taux Sub RCVL]]*CTu[[#This Row],[Montant TTC 2028]] -> 0 | AQ47: =CTu[[#This Row],[Montant Sub RCVL 2026]]+CTu[[#This Row],[Montant Sub RCVL 2027]]+CTu[[#This Row],[Montant Sub RCVL 2028]] -> 0 | AS47: =CTu[[#This Row],[Taux Sub CD 37]]*CTu[[#This Row],[Montant HT 2026]] -> 0 | AT47: =CTu[[#This Row],[Taux Sub CD 37]]*CTu[[#This Row],[Montant HT 2027]] -> 0 | AU47: =CTu[[#This Row],[Taux Sub CD 37]]*CTu[[#This Row],[Montant HT 2028]] -> 0 | AV47: =CTu[[#This Row],[Montant Sub CD 37 2026]]+CTu[[#This Row],[Montant Sub CD 37 2027]]+CTu[[#This Row],[Montant Sub CD 37 2028]] -> 0 | AX47: =CTu[[#This Row],[Taux Sub CD 49]]*CTu[[#This Row],[Montant TTC 2026]] -> 0 | AY47: =CTu[[#This Row],[Taux Sub CD 49]]*CTu[[#This Row],[Montant TTC 2027]] -> 0 | AZ47: =CTu[[#This Row],[Taux Sub CD 49]]*CTu[[#This Row],[Montant TTC 2028]] -> 0 | BA47: =CTu[[#This Row],[Montant Sub CD 49 2026]]+CTu[[#This Row],[Montant Sub CD 49 2027]]+CTu[[#This Row],[Montant Sub CD 49 2028]] -> 0 | BC47: =CTu[[#This Row],[Montant TTC 2026]]*CTu[[#This Row],[Taux LIFE]] -> 0 | BD47: =CTu[[#This Row],[Montant TTC 2027]]*CTu[[#This Row],[Taux LIFE]] -> 0 | BE47: =CTu[[#This Row],[Montant TTC 2028]]*CTu[[#This Row],[Taux LIFE]] -> 0 | BF47: =CTu[[#This Row],[Montant LIFE 2026]]+CTu[[#This Row],[Montant LIFE 2027]]+CTu[[#This Row],[Montant LIFE 2028]] -> 0 | BH47: =CTu[[#This Row],[Taux Sub FPRNM]]*CTu[[#This Row],[Montant HT 2026]] -> 0 | BI47: =CTu[[#This Row],[Taux Sub FPRNM]]*CTu[[#This Row],[Montant HT 2027]] -> 0 | BJ47: =CTu[[#This Row],[Taux Sub FPRNM]]*CTu[[#This Row],[Montant HT 2028]] -> 0 | BK47: =CTu[[#This Row],[Montant Sub FPRNM 2026]]+CTu[[#This Row],[Montant Sub FPRNM 2027]]+CTu[[#This Row],[Montant Sub FPRNM 2028]] -> 0 | BM47: =CTu[[#This Row],[FCTVA]]*CTu[[#This Row],[Montant TTC 2026]] -> 0 | BN47: =CTu[[#This Row],[FCTVA]]*CTu[[#This Row],[Montant TTC 2027]] -> 0 | BO47: =CTu[[#This Row],[FCTVA]]*CTu[[#This Row],[Montant TTC 2028]] -> 0 | BP47: =CTu[[#This Row],[Montant FCTVA 2026]]+CTu[[#This Row],[Montant FCTVA 2027]]+CTu[[#This Row],[Montant FCTVA 2028]] -> 0 | BR47: =CTu[[#This Row],[Taux CO MO]]*CTu[[#This Row],[Montant TTC 2026]] -> 0 | BS47: =CTu[[#This Row],[Taux CO MO]]*CTu[[#This Row],[Montant TTC 2027]] -> 0 | BT47: =CTu[[#This Row],[Taux CO MO]]*CTu[[#This Row],[Montant TTC 2028]] -> 0 | BU47: =CTu[[#This Row],[Montant CO MO 2026]]+CTu[[#This Row],[Montant CO MO 2027]]+CTu[[#This Row],[Montant CO MO 2028]] -> 0 | BW47: =CTu[[#This Row],[Taux Tiers]]*CTu[[#This Row],[Montant TTC 2026]] -> 0 | BX47: =CTu[[#This Row],[Taux Tiers]]*CTu[[#This Row],[Montant TTC 2027]] -> 0 | BY47: =CTu[[#This Row],[Taux Tiers]]*CTu[[#This Row],[Montant TTC 2028]] -> 0 | BZ47: =CTu[[#This Row],[Tiers 2026]]+CTu[[#This Row],[Tiers 2027]]+CTu[[#This Row],[Tiers 2028]] -> 0 | CA47: =100%-CTu[[#This Row],[Taux Sub AELB]]-CTu[[#This Row],[Taux Sub RPDL]]-CTu[[#This Row],[Taux Sub RCVL]]-CTu[[#This Row],[Taux Sub CD 37]]-CTu[[#This Row],[Taux Sub CD 49]]-CTu[[#This Row],[Taux Sub FPRNM]]-CTu[[#This Row],[Taux LIFE]]-CTu[[#This Row],[Taux Tiers]]-CTu[[#This Row],[Taux CO MO]]-CTu[[#This Row],[FCTVA]] -> 0.2 | CB47: =CTu[[#This Row],[Montant TTC 2026]]-(CTu[[#This Row],[Montant Sub AELB 2026]]+CTu[[#This Row],[Montant Sub RPDL 2026]]+CTu[[#This Row],[Montant Sub RCVL 2026]]+CTu[[#This Row],[Montant Sub CD 37 2026]]+CTu[[#This Row],[Montant Sub CD 49 2026]]+CTu[[#This Row],[Montant LIFE 2026]]+CTu[[#This Row],[Montant Sub FPRNM 2026]]+CTu[[#This Row],[Montant FCTVA 2026]]+CTu[[#This Row],[Tiers 2026]]+CTu[[#This Row],[Montant CO MO 2026]]) -> 0 | CC47: =CTu[[#This Row],[Montant TTC 2027]]-(CTu[[#This Row],[Montant Sub AELB 2027]]+CTu[[#This Row],[Montant Sub RPDL 2027]]+CTu[[#This Row],[Montant Sub RCVL 2027]]+CTu[[#This Row],[Montant Sub CD 37 2027]]+CTu[[#This Row],[Montant Sub CD 49 2027]]+CTu[[#This Row],[Montant LIFE 2027]]+CTu[[#This Row],[Montant Sub FPRNM 2027]]+CTu[[#This Row],[Montant FCTVA 2027]]+CTu[[#This Row],[Tiers 2027]]+CTu[[#This Row],[Montant CO MO 2027]]) -> 0 | CD47: =CTu[[#This Row],[Montant TTC 2028]]-(CTu[[#This Row],[Montant Sub AELB 2028]]+CTu[[#This Row],[Montant Sub RPDL 2028]]+CTu[[#This Row],[Montant Sub RCVL 2028]]+CTu[[#This Row],[Montant Sub CD 37 2028]]+CTu[[#This Row],[Montant Sub CD 49 2028]]+CTu[[#This Row],[Montant LIFE 2028]]+CTu[[#This Row],[Montant Sub FPRNM 2028]]+CTu[[#This Row],[Montant FCTVA 2028]]+CTu[[#This Row],[Tiers 2028]]+CTu[[#This Row],[Montant CO MO 2028]]) -> 50000 | CE47: =CTu[[#This Row],[Autofinancement 2026]]+CTu[[#This Row],[Autofinancement 2027]]+CTu[[#This Row],[Autofinancement 2028]] -> 50000
A48: Enjeu_A | B48: A_1 | C48: A13 | D48: LAT | E48: Lit mineur | F48: ATEau | G48: FCT | H48: =IF(CTu[[#This Row],[Montant HT 2026]]>0,"2026",IF(CTu[[#This Row],[Montant HT 2027]]>0,"2027",IF(CTu[[#This Row],[Montant HT 2028]]>0,"2028"))) -> 2028 | J48: 1 | K48: =CONCATENATE(CTu[[#This Row],[Objectifs opérationnels]],"_",VLOOKUP(CTu[[#This Row],[Compartiment]],compartiment[],2,)) -> A13_LMI | L48: =CONCATENATE(CTu[[#This Row],[Objectifs opérationnels]],"_",CTu[[#This Row],[Secteur/MO]],"_",VLOOKUP(CTu[[#This Row],[Compartiment]],compartiment[],2,FALSE),"_",CTu[[#This Row],[N° Action]]) -> A13_LAT_LMI_1 | M48: =IF(CTu[[#This Row],[Année subv]]="","",CONCATENATE(CTu[[#This Row],[Objectifs opérationnels]],"_",CTu[[#This Row],[Secteur/MO]],"_",CTu[[#This Row],[Année subv]],"_",VLOOKUP(CTu[[#This Row],[Compartiment]],compartiment[],2),"_",CTu[[#This Row],[N° Action]])) ->  | N48: Travaux de restauration des têtes de bassin versant sur la commission Lathan | O48: Suite à l'étude menée en 2027 - Travaux sur 3 km - 1,5 km sur 2028 et 1,5 km sur 2029 | P48: SMBAA | S48: 1 | T48: OB | W48: 50000 | X48: 50000 | Y48: 0 | Z48: 0 | AA48: 60000 | AB48: 60000 | AC48: 0.5 | AD48: =CTu[[#This Row],[Montant TTC 2026]]*CTu[[#This Row],[Taux Sub AELB]] -> 0 | AE48: =CTu[[#This Row],[Montant TTC 2027]]*CTu[[#This Row],[Taux Sub AELB]] -> 0 | AF48: =CTu[[#This Row],[Montant TTC 2028]]*CTu[[#This Row],[Taux Sub AELB]] -> 30000 | AG48: =CTu[[#This Row],[Montant Sub AELB 2026]]+CTu[[#This Row],[Montant Sub AELB 2027]]+CTu[[#This Row],[Montant Sub AELB 2028]] -> 30000 | AH48: 0.3 | AI48: =CTu[[#This Row],[Taux Sub RPDL]]*CTu[[#This Row],[Montant TTC 2026]] -> 0 | AJ48: =CTu[[#This Row],[Taux Sub RPDL]]*CTu[[#This Row],[Montant TTC 2027]] -> 0 | AK48: =CTu[[#This Row],[Taux Sub RPDL]]*CTu[[#This Row],[Montant TTC 2028]] -> 18000 | AL48: =CTu[[#This Row],[Montant Sub RPDL 2026]]+CTu[[#This Row],[Montant Sub RPDL 2027]]+CTu[[#This Row],[Montant Sub RPDL 2028]] -> 18000 | AN48: =CTu[[#This Row],[Taux Sub RCVL]]*CTu[[#This Row],[Montant TTC 2026]] -> 0 | AO48: =CTu[[#This Row],[Taux Sub RCVL]]*CTu[[#This Row],[Montant TTC 2027]] -> 0 | AP48: =CTu[[#This Row],[Taux Sub RCVL]]*CTu[[#This Row],[Montant TTC 2028]] -> 0 | AQ48: =CTu[[#This Row],[Montant Sub RCVL 2026]]+CTu[[#This Row],[Montant Sub RCVL 2027]]+CTu[[#This Row],[Montant Sub RCVL 2028]] -> 0 | AS48: =CTu[[#This Row],[Taux Sub CD 37]]*CTu[[#This Row],[Montant HT 2026]] -> 0 | AT48: =CTu[[#This Row],[Taux Sub CD 37]]*CTu[[#This Row],[Montant HT 2027]] -> 0 | AU48: =CTu[[#This Row],[Taux Sub CD 37]]*CTu[[#This Row],[Montant HT 2028]] -> 0 | AV48: =CTu[[#This Row],[Montant Sub CD 37 2026]]+CTu[[#This Row],[Montant Sub CD 37 2027]]+CTu[[#This Row],[Montant Sub CD 37 2028]] -> 0 | AX48: =CTu[[#This Row],[Taux Sub CD 49]]*CTu[[#This Row],[Montant TTC 2026]] -> 0 | AY48: =CTu[[#This Row],[Taux Sub CD 49]]*CTu[[#This Row],[Montant TTC 2027]] -> 0 | AZ48: =CTu[[#This Row],[Taux Sub CD 49]]*CTu[[#This Row],[Montant TTC 2028]] -> 0 | BA48: =CTu[[#This Row],[Montant Sub CD 49 2026]]+CTu[[#This Row],[Montant Sub CD 49 2027]]+CTu[[#This Row],[Montant Sub CD 49 2028]] -> 0 | BC48: =CTu[[#This Row],[Montant TTC 2026]]*CTu[[#This Row],[Taux LIFE]] -> 0 | BD48: =CTu[[#This Row],[Montant TTC 2027]]*CTu[[#This Row],[Taux LIFE]] -> 0 | BE48: =CTu[[#This Row],[Montant TTC 2028]]*CTu[[#This Row],[Taux LIFE]] -> 0 | BF48: =CTu[[#This Row],[Montant LIFE 2026]]+CTu[[#This Row],[Montant LIFE 2027]]+CTu[[#This Row],[Montant LIFE 2028]] -> 0 | BH48: =CTu[[#This Row],[Taux Sub FPRNM]]*CTu[[#This Row],[Montant HT 2026]] -> 0 | BI48: =CTu[[#This Row],[Taux Sub FPRNM]]*CTu[[#This Row],[Montant HT 2027]] -> 0 | BJ48: =CTu[[#This Row],[Taux Sub FPRNM]]*CTu[[#This Row],[Montant HT 2028]] -> 0 | BK48: =CTu[[#This Row],[Montant Sub FPRNM 2026]]+CTu[[#This Row],[Montant Sub FPRNM 2027]]+CTu[[#This Row],[Montant Sub FPRNM 2028]] -> 0 | BM48: =CTu[[#This Row],[FCTVA]]*CTu[[#This Row],[Montant TTC 2026]] -> 0 | BN48: =CTu[[#This Row],[FCTVA]]*CTu[[#This Row],[Montant TTC 2027]] -> 0 | BO48: =CTu[[#This Row],[FCTVA]]*CTu[[#This Row],[Montant TTC 2028]] -> 0 | BP48: =CTu[[#This Row],[Montant FCTVA 2026]]+CTu[[#This Row],[Montant FCTVA 2027]]+CTu[[#This Row],[Montant FCTVA 2028]] -> 0 | BR48: =CTu[[#This Row],[Taux CO MO]]*CTu[[#This Row],[Montant TTC 2026]] -> 0 | BS48: =CTu[[#This Row],[Taux CO MO]]*CTu[[#This Row],[Montant TTC 2027]] -> 0 | BT48: =CTu[[#This Row],[Taux CO MO]]*CTu[[#This Row],[Montant TTC 2028]] -> 0 | BU48: =CTu[[#This Row],[Montant CO MO 2026]]+CTu[[#This Row],[Montant CO MO 2027]]+CTu[[#This Row],[Montant CO MO 2028]] -> 0 | BW48: =CTu[[#This Row],[Taux Tiers]]*CTu[[#This Row],[Montant TTC 2026]] -> 0 | BX48: =CTu[[#This Row],[Taux Tiers]]*CTu[[#This Row],[Montant TTC 2027]] -> 0 | BY48: =CTu[[#This Row],[Taux Tiers]]*CTu[[#This Row],[Montant TTC 2028]] -> 0 | BZ48: =CTu[[#This Row],[Tiers 2026]]+CTu[[#This Row],[Tiers 2027]]+CTu[[#This Row],[Tiers 2028]] -> 0 | CA48: =100%-CTu[[#This Row],[Taux Sub AELB]]-CTu[[#This Row],[Taux Sub RPDL]]-CTu[[#This Row],[Taux Sub RCVL]]-CTu[[#This Row],[Taux Sub CD 37]]-CTu[[#This Row],[Taux Sub CD 49]]-CTu[[#This Row],[Taux Sub FPRNM]]-CTu[[#This Row],[Taux LIFE]]-CTu[[#This Row],[Taux Tiers]]-CTu[[#This Row],[Taux CO MO]]-CTu[[#This Row],[FCTVA]] -> 0.2 | CB48: =CTu[[#This Row],[Montant TTC 2026]]-(CTu[[#This Row],[Montant Sub AELB 2026]]+CTu[[#This Row],[Montant Sub RPDL 2026]]+CTu[[#This Row],[Montant Sub RCVL 2026]]+CTu[[#This Row],[Montant Sub CD 37 2026]]+CTu[[#This Row],[Montant Sub CD 49 2026]]+CTu[[#This Row],[Montant LIFE 2026]]+CTu[[#This Row],[Montant Sub FPRNM 2026]]+CTu[[#This Row],[Montant FCTVA 2026]]+CTu[[#This Row],[Tiers 2026]]+CTu[[#This Row],[Montant CO MO 2026]]) -> 0 | CC48: =CTu[[#This Row],[Montant TTC 2027]]-(CTu[[#This Row],[Montant Sub AELB 2027]]+CTu[[#This Row],[Montant Sub RPDL 2027]]+CTu[[#This Row],[Montant Sub RCVL 2027]]+CTu[[#This Row],[Montant Sub CD 37 2027]]+CTu[[#This Row],[Montant Sub CD 49 2027]]+CTu[[#This Row],[Montant LIFE 2027]]+CTu[[#This Row],[Montant Sub FPRNM 2027]]+CTu[[#This Row],[Montant FCTVA 2027]]+CTu[[#This Row],[Tiers 2027]]+CTu[[#This Row],[Montant CO MO 2027]]) -> 0 | CD48: =CTu[[#This Row],[Montant TTC 2028]]-(CTu[[#This Row],[Montant Sub AELB 2028]]+CTu[[#This Row],[Montant Sub RPDL 2028]]+CTu[[#This Row],[Montant Sub RCVL 2028]]+CTu[[#This Row],[Montant Sub CD 37 2028]]+CTu[[#This Row],[Montant Sub CD 49 2028]]+CTu[[#This Row],[Montant LIFE 2028]]+CTu[[#This Row],[Montant Sub FPRNM 2028]]+CTu[[#This Row],[Montant FCTVA 2028]]+CTu[[#This Row],[Tiers 2028]]+CTu[[#This Row],[Montant CO MO 2028]]) -> 12000 | CE48: =CTu[[#This Row],[Autofinancement 2026]]+CTu[[#This Row],[Autofinancement 2027]]+CTu[[#This Row],[Autofinancement 2028]] -> 12000
A49: Enjeu_A | B49: A_1 | C49: A13 | D49: TOUR | E49: Lit mineur | F49: ATEau | G49: FCT | H49: =IF(CTu[[#This Row],[Montant HT 2026]]>0,"2026",IF(CTu[[#This Row],[Montant HT 2027]]>0,"2027",IF(CTu[[#This Row],[Montant HT 2028]]>0,"2028"))) -> 2028 | J49: 1 | K49: =CONCATENATE(CTu[[#This Row],[Objectifs opérationnels]],"_",VLOOKUP(CTu[[#This Row],[Compartiment]],compartiment[],2,)) -> A13_LMI | L49: =CONCATENATE(CTu[[#This Row],[Objectifs opérationnels]],"_",CTu[[#This Row],[Secteur/MO]],"_",VLOOKUP(CTu[[#This Row],[Compartiment]],compartiment[],2,FALSE),"_",CTu[[#This Row],[N° Action]]) -> A13_TOUR_LMI_1 | M49: =IF(CTu[[#This Row],[Année subv]]="","",CONCATENATE(CTu[[#This Row],[Objectifs opérationnels]],"_",CTu[[#This Row],[Secteur/MO]],"_",CTu[[#This Row],[Année subv]],"_",VLOOKUP(CTu[[#This Row],[Compartiment]],compartiment[],2),"_",CTu[[#This Row],[N° Action]])) ->  | N49: Restauration du Gravot | O49: Du pont de la route de Courléon au moulin de Gravot Etude en interne Proposition d'installer 1 à 2 piezo pour le suivi de hauteur de la nappe alluviale | P49: SMBAA | S49: 1 | T49: JBR | W49: 37500 | X49: 37500 | Y49: 0 | Z49: 0 | AA49: 45000 | AB49: 45000 | AC49: 0.5 | AD49: =CTu[[#This Row],[Montant TTC 2026]]*CTu[[#This Row],[Taux Sub AELB]] -> 0 | AE49: =CTu[[#This Row],[Montant TTC 2027]]*CTu[[#This Row],[Taux Sub AELB]] -> 0 | AF49: =CTu[[#This Row],[Montant TTC 2028]]*CTu[[#This Row],[Taux Sub AELB]] -> 22500 | AG49: =CTu[[#This Row],[Montant Sub AELB 2026]]+CTu[[#This Row],[Montant Sub AELB 2027]]+CTu[[#This Row],[Montant Sub AELB 2028]] -> 22500 | AI49: =CTu[[#This Row],[Taux Sub RPDL]]*CTu[[#This Row],[Montant TTC 2026]] -> 0 | AJ49: =CTu[[#This Row],[Taux Sub RPDL]]*CTu[[#This Row],[Montant TTC 2027]] -> 0 | AK49: =CTu[[#This Row],[Taux Sub RPDL]]*CTu[[#This Row],[Montant TTC 2028]] -> 0 | AL49: =CTu[[#This Row],[Montant Sub RPDL 2026]]+CTu[[#This Row],[Montant Sub RPDL 2027]]+CTu[[#This Row],[Montant Sub RPDL 2028]] -> 0 | AM49: 0.2 | AN49: =CTu[[#This Row],[Taux Sub RCVL]]*CTu[[#This Row],[Montant TTC 2026]] -> 0 | AO49: =CTu[[#This Row],[Taux Sub RCVL]]*CTu[[#This Row],[Montant TTC 2027]] -> 0 | AP49: =CTu[[#This Row],[Taux Sub RCVL]]*CTu[[#This Row],[Montant TTC 2028]] -> 9000 | AQ49: =CTu[[#This Row],[Montant Sub RCVL 2026]]+CTu[[#This Row],[Montant Sub RCVL 2027]]+CTu[[#This Row],[Montant Sub RCVL 2028]] -> 9000 | AR49: 0.1 | AS49: =CTu[[#This Row],[Taux Sub CD 37]]*CTu[[#This Row],[Montant HT 2026]] -> 0 | AT49: =CTu[[#This Row],[Taux Sub CD 37]]*CTu[[#This Row],[Montant HT 2027]] -> 0 | AU49: =CTu[[#This Row],[Taux Sub CD 37]]*CTu[[#This Row],[Montant HT 2028]] -> 3750 | AV49: =CTu[[#This Row],[Montant Sub CD 37 2026]]+CTu[[#This Row],[Montant Sub CD 37 2027]]+CTu[[#This Row],[Montant Sub CD 37 2028]] -> 3750 | AX49: =CTu[[#This Row],[Taux Sub CD 49]]*CTu[[#This Row],[Montant TTC 2026]] -> 0 | AY49: =CTu[[#This Row],[Taux Sub CD 49]]*CTu[[#This Row],[Montant TTC 2027]] -> 0 | AZ49: =CTu[[#This Row],[Taux Sub CD 49]]*CTu[[#This Row],[Montant TTC 2028]] -> 0 | BA49: =CTu[[#This Row],[Montant Sub CD 49 2026]]+CTu[[#This Row],[Montant Sub CD 49 2027]]+CTu[[#This Row],[Montant Sub CD 49 2028]] -> 0 | BC49: =CTu[[#This Row],[Montant TTC 2026]]*CTu[[#This Row],[Taux LIFE]] -> 0 | BD49: =CTu[[#This Row],[Montant TTC 2027]]*CTu[[#This Row],[Taux LIFE]] -> 0 | BE49: =CTu[[#This Row],[Montant TTC 2028]]*CTu[[#This Row],[Taux LIFE]] -> 0 | BF49: =CTu[[#This Row],[Montant LIFE 2026]]+CTu[[#This Row],[Montant LIFE 2027]]+CTu[[#This Row],[Montant LIFE 2028]] -> 0 | BH49: =CTu[[#This Row],[Taux Sub FPRNM]]*CTu[[#This Row],[Montant HT 2026]] -> 0 | BI49: =CTu[[#This Row],[Taux Sub FPRNM]]*CTu[[#This Row],[Montant HT 2027]] -> 0 | BJ49: =CTu[[#This Row],[Taux Sub FPRNM]]*CTu[[#This Row],[Montant HT 2028]] -> 0 | BK49: =CTu[[#This Row],[Montant Sub FPRNM 2026]]+CTu[[#This Row],[Montant Sub FPRNM 2027]]+CTu[[#This Row],[Montant Sub FPRNM 2028]] -> 0 | BM49: =CTu[[#This Row],[FCTVA]]*CTu[[#This Row],[Montant TTC 2026]] -> 0 | BN49: =CTu[[#This Row],[FCTVA]]*CTu[[#This Row],[Montant TTC 2027]] -> 0 | BO49: =CTu[[#This Row],[FCTVA]]*CTu[[#This Row],[Montant TTC 2028]] -> 0 | BP49: =CTu[[#This Row],[Montant FCTVA 2026]]+CTu[[#This Row],[Montant FCTVA 2027]]+CTu[[#This Row],[Montant FCTVA 2028]] -> 0 | BR49: =CTu[[#This Row],[Taux CO MO]]*CTu[[#This Row],[Montant TTC 2026]] -> 0 | BS49: =CTu[[#This Row],[Taux CO MO]]*CTu[[#This Row],[Montant TTC 2027]] -> 0 | BT49: =CTu[[#This Row],[Taux CO MO]]*CTu[[#This Row],[Montant TTC 2028]] -> 0 | BU49: =CTu[[#This Row],[Montant CO MO 2026]]+CTu[[#This Row],[Montant CO MO 2027]]+CTu[[#This Row],[Montant CO MO 2028]] -> 0 | BW49: =CTu[[#This Row],[Taux Tiers]]*CTu[[#This Row],[Montant TTC 2026]] -> 0 | BX49: =CTu[[#This Row],[Taux Tiers]]*CTu[[#This Row],[Montant TTC 2027]] -> 0 | BY49: =CTu[[#This Row],[Taux Tiers]]*CTu[[#This Row],[Montant TTC 2028]] -> 0 | BZ49: =CTu[[#This Row],[Tiers 2026]]+CTu[[#This Row],[Tiers 2027]]+CTu[[#This Row],[Tiers 2028]] -> 0 | CA49: =100%-CTu[[#This Row],[Taux Sub AELB]]-CTu[[#This Row],[Taux Sub RPDL]]-CTu[[#This Row],[Taux Sub RCVL]]-CTu[[#This Row],[Taux Sub CD 37]]-CTu[[#This Row],[Taux Sub CD 49]]-CTu[[#This Row],[Taux Sub FPRNM]]-CTu[[#This Row],[Taux LIFE]]-CTu[[#This Row],[Taux Tiers]]-CTu[[#This Row],[Taux CO MO]]-CTu[[#This Row],[FCTVA]] -> 0.2 | CB49: =CTu[[#This Row],[Montant TTC 2026]]-(CTu[[#This Row],[Montant Sub AELB 2026]]+CTu[[#This Row],[Montant Sub RPDL 2026]]+CTu[[#This Row],[Montant Sub RCVL 2026]]+CTu[[#This Row],[Montant Sub CD 37 2026]]+CTu[[#This Row],[Montant Sub CD 49 2026]]+CTu[[#This Row],[Montant LIFE 2026]]+CTu[[#This Row],[Montant Sub FPRNM 2026]]+CTu[[#This Row],[Montant FCTVA 2026]]+CTu[[#This Row],[Tiers 2026]]+CTu[[#This Row],[Montant CO MO 2026]]) -> 0 | CC49: =CTu[[#This Row],[Montant TTC 2027]]-(CTu[[#This Row],[Montant Sub AELB 2027]]+CTu[[#This Row],[Montant Sub RPDL 2027]]+CTu[[#This Row],[Montant Sub RCVL 2027]]+CTu[[#This Row],[Montant Sub CD 37 2027]]+CTu[[#This Row],[Montant Sub CD 49 2027]]+CTu[[#This Row],[Montant LIFE 2027]]+CTu[[#This Row],[Montant Sub FPRNM 2027]]+CTu[[#This Row],[Montant FCTVA 2027]]+CTu[[#This Row],[Tiers 2027]]+CTu[[#This Row],[Montant CO MO 2027]]) -> 0 | CD49: =CTu[[#This Row],[Montant TTC 2028]]-(CTu[[#This Row],[Montant Sub AELB 2028]]+CTu[[#This Row],[Montant Sub RPDL 2028]]+CTu[[#This Row],[Montant Sub RCVL 2028]]+CTu[[#This Row],[Montant Sub CD 37 2028]]+CTu[[#This Row],[Montant Sub CD 49 2028]]+CTu[[#This Row],[Montant LIFE 2028]]+CTu[[#This Row],[Montant Sub FPRNM 2028]]+CTu[[#This Row],[Montant FCTVA 2028]]+CTu[[#This Row],[Tiers 2028]]+CTu[[#This Row],[Montant CO MO 2028]]) -> 9750 | CE49: =CTu[[#This Row],[Autofinancement 2026]]+CTu[[#This Row],[Autofinancement 2027]]+CTu[[#This Row],[Autofinancement 2028]] -> 9750
A50: Enjeu_A | B50: A_1 | C50: A13 | D50: TOUR | E50: Lit mineur | F50: ATEau | G50: FCT | H50: =IF(CTu[[#This Row],[Montant HT 2026]]>0,"2026",IF(CTu[[#This Row],[Montant HT 2027]]>0,"2027",IF(CTu[[#This Row],[Montant HT 2028]]>0,"2028"))) -> 2026 | J50: 2 | K50: =CONCATENATE(CTu[[#This Row],[Objectifs opérationnels]],"_",VLOOKUP(CTu[[#This Row],[Compartiment]],compartiment[],2,)) -> A13_LMI | L50: =CONCATENATE(CTu[[#This Row],[Objectifs opérationnels]],"_",CTu[[#This Row],[Secteur/MO]],"_",VLOOKUP(CTu[[#This Row],[Compartiment]],compartiment[],2,FALSE),"_",CTu[[#This Row],[N° Action]]) -> A13_TOUR_LMI_2 | M50: =IF(CTu[[#This Row],[Année subv]]="","",CONCATENATE(CTu[[#This Row],[Objectifs opérationnels]],"_",CTu[[#This Row],[Secteur/MO]],"_",CTu[[#This Row],[Année subv]],"_",VLOOKUP(CTu[[#This Row],[Compartiment]],compartiment[],2),"_",CTu[[#This Row],[N° Action]])) ->  | N50: Restauration Low-tech des têtes de bassin versant des affluents du Changeon | O50: mise en place de tronçons test (exemple affluents du Changeon : Chaumont et Saint Gilles) + têtes BV affluents | P50: SMBAA | S50: 1 | T50: JBR | U50: 12500 | X50: 12500 | Y50: 15000 | Z50: 0 | AA50: 0 | AB50: 15000 | AC50: 0.5 | AD50: =CTu[[#This Row],[Montant TTC 2026]]*CTu[[#This Row],[Taux Sub AELB]] -> 7500 | AE50: =CTu[[#This Row],[Montant TTC 2027]]*CTu[[#This Row],[Taux Sub AELB]] -> 0 | AF50: =CTu[[#This Row],[Montant TTC 2028]]*CTu[[#This Row],[Taux Sub AELB]] -> 0 | AG50: =CTu[[#This Row],[Montant Sub AELB 2026]]+CTu[[#This Row],[Montant Sub AELB 2027]]+CTu[[#This Row],[Montant Sub AELB 2028]] -> 7500 | AI50: =CTu[[#This Row],[Taux Sub RPDL]]*CTu[[#This Row],[Montant TTC 2026]] -> 0 | AJ50: =CTu[[#This Row],[Taux Sub RPDL]]*CTu[[#This Row],[Montant TTC 2027]] -> 0 | AK50: =CTu[[#This Row],[Taux Sub RPDL]]*CTu[[#This Row],[Montant TTC 2028]] -> 0 | AL50: =CTu[[#This Row],[Montant Sub RPDL 2026]]+CTu[[#This Row],[Montant Sub RPDL 2027]]+CTu[[#This Row],[Montant Sub RPDL 2028]] -> 0 | AM50: 0.2 | AN50: =CTu[[#This Row],[Taux Sub RCVL]]*CTu[[#This Row],[Montant TTC 2026]] -> 3000 | AO50: =CTu[[#This Row],[Taux Sub RCVL]]*CTu[[#This Row],[Montant TTC 2027]] -> 0 | AP50: =CTu[[#This Row],[Taux Sub RCVL]]*CTu[[#This Row],[Montant TTC 2028]] -> 0 | AQ50: =CTu[[#This Row],[Montant Sub RCVL 2026]]+CTu[[#This Row],[Montant Sub RCVL 2027]]+CTu[[#This Row],[Montant Sub RCVL 2028]] -> 3000 | AR50: 0.1 | AS50: =CTu[[#This Row],[Taux Sub CD 37]]*CTu[[#This Row],[Montant HT 2026]] -> 1250 | AT50: =CTu[[#This Row],[Taux Sub CD 37]]*CTu[[#This Row],[Montant HT 2027]] -> 0 | AU50: =CTu[[#This Row],[Taux Sub CD 37]]*CTu[[#This Row],[Montant HT 2028]] -> 0 | AV50: =CTu[[#This Row],[Montant Sub CD 37 2026]]+CTu[[#This Row],[Montant Sub CD 37 2027]]+CTu[[#This Row],[Montant Sub CD 37 2028]] -> 1250 | AX50: =CTu[[#This Row],[Taux Sub CD 49]]*CTu[[#This Row],[Montant TTC 2026]] -> 0 | AY50: =CTu[[#This Row],[Taux Sub CD 49]]*CTu[[#This Row],[Montant TTC 2027]] -> 0 | AZ50: =CTu[[#This Row],[Taux Sub CD 49]]*CTu[[#This Row],[Montant TTC 2028]] -> 0 | BA50: =CTu[[#This Row],[Montant Sub CD 49 2026]]+CTu[[#This Row],[Montant Sub CD 49 2027]]+CTu[[#This Row],[Montant Sub CD 49 2028]] -> 0 | BC50: =CTu[[#This Row],[Montant TTC 2026]]*CTu[[#This Row],[Taux LIFE]] -> 0 | BD50: =CTu[[#This Row],[Montant TTC 2027]]*CTu[[#This Row],[Taux LIFE]] -> 0 | BE50: =CTu[[#This Row],[Montant TTC 2028]]*CTu[[#This Row],[Taux LIFE]] -> 0 | BF50: =CTu[[#This Row],[Montant LIFE 2026]]+CTu[[#This Row],[Montant LIFE 2027]]+CTu[[#This Row],[Montant LIFE 2028]] -> 0 | BH50: =CTu[[#This Row],[Taux Sub FPRNM]]*CTu[[#This Row],[Montant HT 2026]] -> 0 | BI50: =CTu[[#This Row],[Taux Sub FPRNM]]*CTu[[#This Row],[Montant HT 2027]] -> 0 | BJ50: =CTu[[#This Row],[Taux Sub FPRNM]]*CTu[[#This Row],[Montant HT 2028]] -> 0 | BK50: =CTu[[#This Row],[Montant Sub FPRNM 2026]]+CTu[[#This Row],[Montant Sub FPRNM 2027]]+CTu[[#This Row],[Montant Sub FPRNM 2028]] -> 0 | BM50: =CTu[[#This Row],[FCTVA]]*CTu[[#This Row],[Montant TTC 2026]] -> 0 | BN50: =CTu[[#This Row],[FCTVA]]*CTu[[#This Row],[Montant TTC 2027]] -> 0 | BO50: =CTu[[#This Row],[FCTVA]]*CTu[[#This Row],[Montant TTC 2028]] -> 0 | BP50: =CTu[[#This Row],[Montant FCTVA 2026]]+CTu[[#This Row],[Montant FCTVA 2027]]+CTu[[#This Row],[Montant FCTVA 2028]] -> 0 | BR50: =CTu[[#This Row],[Taux CO MO]]*CTu[[#This Row],[Montant TTC 2026]] -> 0 | BS50: =CTu[[#This Row],[Taux CO MO]]*CTu[[#This Row],[Montant TTC 2027]] -> 0 | BT50: =CTu[[#This Row],[Taux CO MO]]*CTu[[#This Row],[Montant TTC 2028]] -> 0 | BU50: =CTu[[#This Row],[Montant CO MO 2026]]+CTu[[#This Row],[Montant CO MO 2027]]+CTu[[#This Row],[Montant CO MO 2028]] -> 0 | BW50: =CTu[[#This Row],[Taux Tiers]]*CTu[[#This Row],[Montant TTC 2026]] -> 0 | BX50: =CTu[[#This Row],[Taux Tiers]]*CTu[[#This Row],[Montant TTC 2027]] -> 0 | BY50: =CTu[[#This Row],[Taux Tiers]]*CTu[[#This Row],[Montant TTC 2028]] -> 0 | BZ50: =CTu[[#This Row],[Tiers 2026]]+CTu[[#This Row],[Tiers 2027]]+CTu[[#This Row],[Tiers 2028]] -> 0 | CA50: =100%-CTu[[#This Row],[Taux Sub AELB]]-CTu[[#This Row],[Taux Sub RPDL]]-CTu[[#This Row],[Taux Sub RCVL]]-CTu[[#This Row],[Taux Sub CD 37]]-CTu[[#This Row],[Taux Sub CD 49]]-CTu[[#This Row],[Taux Sub FPRNM]]-CTu[[#This Row],[Taux LIFE]]-CTu[[#This Row],[Taux Tiers]]-CTu[[#This Row],[Taux CO MO]]-CTu[[#This Row],[FCTVA]] -> 0.2 | CB50: =CTu[[#This Row],[Montant TTC 2026]]-(CTu[[#This Row],[Montant Sub AELB 2026]]+CTu[[#This Row],[Montant Sub RPDL 2026]]+CTu[[#This Row],[Montant Sub RCVL 2026]]+CTu[[#This Row],[Montant Sub CD 37 2026]]+CTu[[#This Row],[Montant Sub CD 49 2026]]+CTu[[#This Row],[Montant LIFE 2026]]+CTu[[#This Row],[Montant Sub FPRNM 2026]]+CTu[[#This Row],[Montant FCTVA 2026]]+CTu[[#This Row],[Tiers 2026]]+CTu[[#This Row],[Montant CO MO 2026]]) -> 3250 | CC50: =CTu[[#This Row],[Montant TTC 2027]]-(CTu[[#This Row],[Montant Sub AELB 2027]]+CTu[[#This Row],[Montant Sub RPDL 2027]]+CTu[[#This Row],[Montant Sub RCVL 2027]]+CTu[[#This Row],[Montant Sub CD 37 2027]]+CTu[[#This Row],[Montant Sub CD 49 2027]]+CTu[[#This Row],[Montant LIFE 2027]]+CTu[[#This Row],[Montant Sub FPRNM 2027]]+CTu[[#This Row],[Montant FCTVA 2027]]+CTu[[#This Row],[Tiers 2027]]+CTu[[#This Row],[Montant CO MO 2027]]) -> 0 | CD50: =CTu[[#This Row],[Montant TTC 2028]]-(CTu[[#This Row],[Montant Sub AELB 2028]]+CTu[[#This Row],[Montant Sub RPDL 2028]]+CTu[[#This Row],[Montant Sub RCVL 2028]]+CTu[[#This Row],[Montant Sub CD 37 2028]]+CTu[[#This Row],[Montant Sub CD 49 2028]]+CTu[[#This Row],[Montant LIFE 2028]]+CTu[[#This Row],[Montant Sub FPRNM 2028]]+CTu[[#This Row],[Montant FCTVA 2028]]+CTu[[#This Row],[Tiers 2028]]+CTu[[#This Row],[Montant CO MO 2028]]) -> 0 | CE50: =CTu[[#This Row],[Autofinancement 2026]]+CTu[[#This Row],[Autofinancement 2027]]+CTu[[#This Row],[Autofinancement 2028]] -> 3250
A51: Enjeu_A | B51: A_1 | C51: A14 | D51: BV | E51: Étude | F51: ATEau | G51: FCT | H51: =IF(CTu[[#This Row],[Montant HT 2026]]>0,"2026",IF(CTu[[#This Row],[Montant HT 2027]]>0,"2027",IF(CTu[[#This Row],[Montant HT 2028]]>0,"2028"))) -> 2026 | J51: 1 | K51: =CONCATENATE(CTu[[#This Row],[Objectifs opérationnels]],"_",VLOOKUP(CTu[[#This Row],[Compartiment]],compartiment[],2,)) -> A14_ETU | L51: =CONCATENATE(CTu[[#This Row],[Objectifs opérationnels]],"_",CTu[[#This Row],[Secteur/MO]],"_",VLOOKUP(CTu[[#This Row],[Compartiment]],compartiment[],2,FALSE),"_",CTu[[#This Row],[N° Action]]) -> A14_BV_ETU_1 | M51: =IF(CTu[[#This Row],[Année subv]]="","",CONCATENATE(CTu[[#This Row],[Objectifs opérationnels]],"_",CTu[[#This Row],[Secteur/MO]],"_",CTu[[#This Row],[Année subv]],"_",VLOOKUP(CTu[[#This Row],[Compartiment]],compartiment[],2),"_",CTu[[#This Row],[N° Action]])) ->  | N51: Inventaire des plans d'eau du bassin versant | O51: Révision de l'inventaire des plans d'eau du règlement SAGE (analyse cartographique), diagnostic de terrain sur zones prioritaires du BV (UG déficitaires, forte densité de PE, prélèvements importants) avec étude de l'impact cumulé des plans d'eau, diagnostic de déconnexion des plans d'eau sur 1 secteur ? (Riverolle, Couasnon Amont, Bassin des 3 Rus, autre ME ?) | P51: SMBAA | S51: 1 | T51: AS | U51: 83333.33333 | V51: 0 | W51: 0 | X51: 83333.33333 | Y51: 100000 | Z51: 0 | AA51: 0 | AB51: 100000 | AC51: 0.5 | AD51: =CTu[[#This Row],[Montant TTC 2026]]*CTu[[#This Row],[Taux Sub AELB]] -> 50000 | AE51: =CTu[[#This Row],[Montant TTC 2027]]*CTu[[#This Row],[Taux Sub AELB]] -> 0 | AF51: =CTu[[#This Row],[Montant TTC 2028]]*CTu[[#This Row],[Taux Sub AELB]] -> 0 | AG51: =CTu[[#This Row],[Montant Sub AELB 2026]]+CTu[[#This Row],[Montant Sub AELB 2027]]+CTu[[#This Row],[Montant Sub AELB 2028]] -> 50000 | AH51: 0.23 | AI51: =CTu[[#This Row],[Taux Sub RPDL]]*CTu[[#This Row],[Montant TTC 2026]] -> 23000 | AJ51: =CTu[[#This Row],[Taux Sub RPDL]]*CTu[[#This Row],[Montant TTC 2027]] -> 0 | AK51: =CTu[[#This Row],[Taux Sub RPDL]]*CTu[[#This Row],[Montant TTC 2028]] -> 0 | AL51: =CTu[[#This Row],[Montant Sub RPDL 2026]]+CTu[[#This Row],[Montant Sub RPDL 2027]]+CTu[[#This Row],[Montant Sub RPDL 2028]] -> 23000 | AM51: 0 | AN51: =CTu[[#This Row],[Taux Sub RCVL]]*CTu[[#This Row],[Montant TTC 2026]] -> 0 | AO51: =CTu[[#This Row],[Taux Sub RCVL]]*CTu[[#This Row],[Montant TTC 2027]] -> 0 | AP51: =CTu[[#This Row],[Taux Sub RCVL]]*CTu[[#This Row],[Montant TTC 2028]] -> 0 | AQ51: =CTu[[#This Row],[Montant Sub RCVL 2026]]+CTu[[#This Row],[Montant Sub RCVL 2027]]+CTu[[#This Row],[Montant Sub RCVL 2028]] -> 0 | AR51: 0.07 | AS51: =CTu[[#This Row],[Taux Sub CD 37]]*CTu[[#This Row],[Montant HT 2026]] -> 5833.333333 | AT51: =CTu[[#This Row],[Taux Sub CD 37]]*CTu[[#This Row],[Montant HT 2027]] -> 0 | AU51: =CTu[[#This Row],[Taux Sub CD 37]]*CTu[[#This Row],[Montant HT 2028]] -> 0 | AV51: =CTu[[#This Row],[Montant Sub CD 37 2026]]+CTu[[#This Row],[Montant Sub CD 37 2027]]+CTu[[#This Row],[Montant Sub CD 37 2028]] -> 5833.333333 | AX51: =CTu[[#This Row],[Taux Sub CD 49]]*CTu[[#This Row],[Montant TTC 2026]] -> 0 | AY51: =CTu[[#This Row],[Taux Sub CD 49]]*CTu[[#This Row],[Montant TTC 2027]] -> 0 | AZ51: =CTu[[#This Row],[Taux Sub CD 49]]*CTu[[#This Row],[Montant TTC 2028]] -> 0 | BA51: =CTu[[#This Row],[Montant Sub CD 49 2026]]+CTu[[#This Row],[Montant Sub CD 49 2027]]+CTu[[#This Row],[Montant Sub CD 49 2028]] -> 0 | BC51: =CTu[[#This Row],[Montant TTC 2026]]*CTu[[#This Row],[Taux LIFE]] -> 0 | BD51: =CTu[[#This Row],[Montant TTC 2027]]*CTu[[#This Row],[Taux LIFE]] -> 0 | BE51: =CTu[[#This Row],[Montant TTC 2028]]*CTu[[#This Row],[Taux LIFE]] -> 0 | BF51: =CTu[[#This Row],[Montant LIFE 2026]]+CTu[[#This Row],[Montant LIFE 2027]]+CTu[[#This Row],[Montant LIFE 2028]] -> 0 | BH51: =CTu[[#This Row],[Taux Sub FPRNM]]*CTu[[#This Row],[Montant HT 2026]] -> 0 | BI51: =CTu[[#This Row],[Taux Sub FPRNM]]*CTu[[#This Row],[Montant HT 2027]] -> 0 | BJ51: =CTu[[#This Row],[Taux Sub FPRNM]]*CTu[[#This Row],[Montant HT 2028]] -> 0 | BK51: =CTu[[#This Row],[Montant Sub FPRNM 2026]]+CTu[[#This Row],[Montant Sub FPRNM 2027]]+CTu[[#This Row],[Montant Sub FPRNM 2028]] -> 0 | BM51: =CTu[[#This Row],[FCTVA]]*CTu[[#This Row],[Montant TTC 2026]] -> 0 | BN51: =CTu[[#This Row],[FCTVA]]*CTu[[#This Row],[Montant TTC 2027]] -> 0 | BO51: =CTu[[#This Row],[FCTVA]]*CTu[[#This Row],[Montant TTC 2028]] -> 0 | BP51: =CTu[[#This Row],[Montant FCTVA 2026]]+CTu[[#This Row],[Montant FCTVA 2027]]+CTu[[#This Row],[Montant FCTVA 2028]] -> 0 | BR51: =CTu[[#This Row],[Taux CO MO]]*CTu[[#This Row],[Montant TTC 2026]] -> 0 | BS51: =CTu[[#This Row],[Taux CO MO]]*CTu[[#This Row],[Montant TTC 2027]] -> 0 | BT51: =CTu[[#This Row],[Taux CO MO]]*CTu[[#This Row],[Montant TTC 2028]] -> 0 | BU51: =CTu[[#This Row],[Montant CO MO 2026]]+CTu[[#This Row],[Montant CO MO 2027]]+CTu[[#This Row],[Montant CO MO 2028]] -> 0 | BW51: =CTu[[#This Row],[Taux Tiers]]*CTu[[#This Row],[Montant TTC 2026]] -> 0 | BX51: =CTu[[#This Row],[Taux Tiers]]*CTu[[#This Row],[Montant TTC 2027]] -> 0 | BY51: =CTu[[#This Row],[Taux Tiers]]*CTu[[#This Row],[Montant TTC 2028]] -> 0 | BZ51: =CTu[[#This Row],[Tiers 2026]]+CTu[[#This Row],[Tiers 2027]]+CTu[[#This Row],[Tiers 2028]] -> 0 | CA51: =100%-CTu[[#This Row],[Taux Sub AELB]]-CTu[[#This Row],[Taux Sub RPDL]]-CTu[[#This Row],[Taux Sub RCVL]]-CTu[[#This Row],[Taux Sub CD 37]]-CTu[[#This Row],[Taux Sub CD 49]]-CTu[[#This Row],[Taux Sub FPRNM]]-CTu[[#This Row],[Taux LIFE]]-CTu[[#This Row],[Taux Tiers]]-CTu[[#This Row],[Taux CO MO]]-CTu[[#This Row],[FCTVA]] -> 0.2 | CB51: =CTu[[#This Row],[Montant TTC 2026]]-(CTu[[#This Row],[Montant Sub AELB 2026]]+CTu[[#This Row],[Montant Sub RPDL 2026]]+CTu[[#This Row],[Montant Sub RCVL 2026]]+CTu[[#This Row],[Montant Sub CD 37 2026]]+CTu[[#This Row],[Montant Sub CD 49 2026]]+CTu[[#This Row],[Montant LIFE 2026]]+CTu[[#This Row],[Montant Sub FPRNM 2026]]+CTu[[#This Row],[Montant FCTVA 2026]]+CTu[[#This Row],[Tiers 2026]]+CTu[[#This Row],[Montant CO MO 2026]]) -> 21166.66667 | CC51: =CTu[[#This Row],[Montant TTC 2027]]-(CTu[[#This Row],[Montant Sub AELB 2027]]+CTu[[#This Row],[Montant Sub RPDL 2027]]+CTu[[#This Row],[Montant Sub RCVL 2027]]+CTu[[#This Row],[Montant Sub CD 37 2027]]+CTu[[#This Row],[Montant Sub CD 49 2027]]+CTu[[#This Row],[Montant LIFE 2027]]+CTu[[#This Row],[Montant Sub FPRNM 2027]]+CTu[[#This Row],[Montant FCTVA 2027]]+CTu[[#This Row],[Tiers 2027]]+CTu[[#This Row],[Montant CO MO 2027]]) -> 0 | CD51: =CTu[[#This Row],[Montant TTC 2028]]-(CTu[[#This Row],[Montant Sub AELB 2028]]+CTu[[#This Row],[Montant Sub RPDL 2028]]+CTu[[#This Row],[Montant Sub RCVL 2028]]+CTu[[#This Row],[Montant Sub CD 37 2028]]+CTu[[#This Row],[Montant Sub CD 49 2028]]+CTu[[#This Row],[Montant LIFE 2028]]+CTu[[#This Row],[Montant Sub FPRNM 2028]]+CTu[[#This Row],[Montant FCTVA 2028]]+CTu[[#This Row],[Tiers 2028]]+CTu[[#This Row],[Montant CO MO 2028]]) -> 0 | CE51: =CTu[[#This Row],[Autofinancement 2026]]+CTu[[#This Row],[Autofinancement 2027]]+CTu[[#This Row],[Autofinancement 2028]] -> 21166.66667
